Workbook

Sheet Week 1 (hidden)
A1: 49ers | B1: Cardinals | C1: 1 | D1: 20 | E1: 16 | G1: Hill | H1: 0 | I1: 13 | J1: 13 | K1: 182 | L1: 18 | M1: 31 | N1: 1 | O1: 21 | P1: 25 | Q1: 1 | R1: 7 | S1: 18 | T1: 0 | U1: 0 | V1: 0 | W1: 1 | X1: 4 | Y1: 27 | Z1: 4 | AA1: 31 | AB1: 8 | AC1: 393 | AD1: 55 | AE1: 3 | AF1: 2 | AG1: 1 | AH1: 4 | AI1: 13 | AJ1: 1 | AK1: 9 | AL1: 0 | AM1: 3 | AN1: 0 | AO1: 0 | AP1: 2 | AQ1: 8 | AR1: 5 | AS1: 25 | AT1: 13 | AU1: 394 | AV1: 8 | AW1: 31 | AX1: 37 | AY1: 17 | AZ1: 14 | BA1: 259 | BB1: 26 | BC1: 44 | BD1: 1 | BE1: 40 | BF1: 17 | BG1: 0 | BH1: 4 | BI1: 14 | BJ1: 0 | BK1: 1 | BL1: 2 | BM1: 0 | BN1: 3 | BO1: 29 | BP1: 12 | BQ1: 82 | BR1: 6 | BS1: 328 | BT1: 37 | BU1: 2 | BV1: 1 | BW1: 1 | BX1: 3 | BY1: 11 | BZ1: 0 | CA1: 5 | CB1: 0 | CC1: 0 | CD1: 0 | CE1: 0 | CF1: 0 | CG1: 0 | CH1: 3 | CI1: 16 | CJ1: 14 | CK1: 367 | CL1: 6 | CM1: 28 | CN1: 23 | CP1: =(I1+N1+Q1)/(I1+J1) -> 0.5769230769 | CQ1: =(AY1+BD1+BG1)/(AY1+AZ1) -> 0.5806451613 | CR1: =(K1+20*N1-45*V1) / (M1+X1) -> 5.771428571 | CS1: =(BA1+BD1*20-BL1*45)/(BC1+BN1) -> 4.021276596 | CT1: =(V1+W1) -> 1 | CU1: =(BL1+BM1) -> 2 | CV1: =(K1+O1)/J1 -> 15.61538462 | CW1: =(BA1+BE1)/AZ1 -> 21.35714286 | CX1: =(AW1+AX1/60)/J1 -> 2.432051282 | CY1: =(CM1+CN1/60)/AZ1 -> 2.027380952 | CZ1: =(K1+O1)/(M1+P1+X1) -> 3.383333333 | DA1: =(BA1+BE1)/(BC1+BF1+BN1) -> 4.671875 | DB1: =I1/J1 -> 1 | DC1: =AY1/AZ1 -> 1.214285714 | DD1: =(R1+T1)/(S1+U1) -> 0.3888888889 | DE1: =(BH1+BJ1)/(BI1+BK1) -> 0.2666666667 | DF1: =AU1/AT1 -> 30.30769231 | DG1: =CK1/CJ1 -> 26.21428571 | DH1: =AV1 -> 8 | DI1: =CL1 -> 6 | DJ1: =IF(AE1<>0,(AF1*7+AG1*3)/(AE1*7),0) -> 0.8095238095 | DK1: =IF(BU1<>0,(BV1*7+BW1*3)/(BU1*7),0) -> 0.7142857143 | DL1: =(M1+P1+X1)/J1 -> 4.615384615 | DM1: =(BC1+BF1+BN1)/AZ1 -> 4.571428571 | DN1: =AA1/(M1+P1+X1) -> 0.5166666667 | DO1: =BQ1/(BC1+BF1+BN1) -> 1.28125 | DP1: =AR1/AS1 -> 0.2 | DQ1: =CH1/CI1 -> 0.1875 | DR1: =O1/P1 -> 0.84 | DS1: =BE1/BF1 -> 2.352941176 | DT1: =IF(AB1<>0,(AC1-AD1)/AB1,"NONE") -> 42.25 | DU1: =IF(BR1<>0,(BS1-BT1)/BR1,"NONE") -> 48.5 | DV1: =IF(AQ1<>0,AP1/AQ1,0) -> 0.25 | DW1: =IF(CG1<>0,CF1/CG1,0) -> 0 | DX1: =D1/(K1+O1) -> 0.09852216749 | DY1: =E1/(BA1+BE1) -> 0.05351170569 | DZ1: =D1/J1 -> 1.538461538 | EA1: =E1/AZ1 -> 1.142857143 | EB1: =((MAX(MIN(((L1/M1)*100-30)/20,2.375),0)+MAX(MIN(((K1/M1)-3)*0.25,2.375),0)+MAX(MIN((N1/M1)*20,2.375),0)+MAX(MIN((2.375-(V1/M1)*25),2.375),0))/6)*100 -> 85.68548387 | EC1: =((MAX(MIN(((BB1/BC1)*100-30)/20,2.375),0)+MAX(MIN(((BA1/BC1)-3)*0.25,2.375),0)+MAX(MIN((BD1/BC1)*20,2.375),0)+MAX(MIN((2.375-(BL1/BC1)*25),2.375),0))/6)*100 -> 64.48863636 | EE1: =RANK(CP1,CP$1:CP$32,0) -> 28 | EF1: =RANK(CQ1,CQ$1:CQ$32,1) -> 6 | EG1: =RANK(CR1,CR$1:CR$32,0) -> 15 | EH1: =RANK(CS1,CS$1:CS$32,1) -> 9 | EI1: =RANK(CT1,CT$1:CT$32,1) -> 9 | EJ1: =RANK(CU1,CU$1:CU$32,0) -> 9 | EK1: =RANK(CV1,CV$1:CV$32,0) -> 31 | EL1: =RANK(CW1,CW$1:CW$32,1) -> 8 | EM1: =RANK(CX1,CX$1:CX$32,0) -> 20 | EN1: =RANK(CY1,CY$1:CY$32,1) -> 3 | EO1: =RANK(CZ1,CZ$1:CZ$32,0) -> 31 | EP1: =RANK(DA1,DA$1:DA$32,1) -> 13 | EQ1: =RANK(DB1,DB$1:DB$32,0) -> 28 | ER1: =RANK(DC1,DC$1:DC$32,1) -> 8 | ES1: =RANK(DD1,DD$1:DD$32,0) -> 18 | ET1: =RANK(DE1,DE$1:DE$32,1) -> 6 | EU1: =RANK(DF1,DF$1:DF$32,0) -> 13 | EV1: =RANK(DG1,DG$1:DG$32,1) -> 6 | EW1: =RANK(DH1,DH$1:DH$32,1) -> 31 | EX1: =RANK(DI1,DI$1:DI$32,0) -> 3 | EY1: =RANK(DJ1,DJ$1:DJ$32,0) -> 7 | EZ1: =RANK(DK1,DK$1:DK$32,1) -> 18 | FA1: =RANK(DL1,DL$1:DL$32,0) -> 29 | FB1: =RANK(DM1,DM$1:DM$32,1) -> 3 | FC1: =RANK(DN1,DN$1:DN$32,1) -> 12 | FD1: =RANK(DO1,DO$1:DO$32,0) -> 4 | FE1: =RANK(DP1,DP$1:DP$32,0) -> 29 | FF1: =RANK(DQ1,DQ$1:DQ$32,1) -> 3 | FG1: =RANK(DR1,DR$1:DR$32,0) -> 32 | FH1: =RANK(DS1,DS$1:DS$32,1) -> 6 | FI1: =RANK(DT1,DT$1:DT$32,0) -> 12 | FJ1: =RANK(DU1,DU$1:DU$32,1) -> 32 | FK1: =RANK(DV1,DV$1:DV$32,0) -> 25 | FL1: =RANK(DW1,DW$1:DW$32,1) -> 1 | FM1: =RANK(DX1,DX$1:DX$32,0) -> 5 | FN1: =RANK(DY1,DY$1:DY$32,1) -> 13 | FO1: =RANK(DZ1,DZ$1:DZ$32,0) -> 21 | FP1: =RANK(EA1,EA$1:EA$32,1) -> 9 | FQ1: =RANK(EB1,EB$1:EB$32,0) -> 16 | FR1: =RANK(EC1,EC$1:EC$32,1) -> 9 | FT1: =CP1-VLOOKUP($B1,'Defense Adjusted'!$A$1:$AG$32,'DA - Totals'!D$2,FALSE) -> 0.596272035 | FU1: =CQ1-VLOOKUP($B1,'Defense Adjusted'!$A$1:$AG$32,'DA - Totals'!E$2,FALSE) -> 0.573904114 | FV1: =CR1-VLOOKUP($B1,'Defense Adjusted'!$A$1:$AG$32,'DA - Totals'!F$2,FALSE) -> 5.791219468 | FW1: =CS1-VLOOKUP($B1,'Defense Adjusted'!$A$1:$AG$32,'DA - Totals'!G$2,FALSE) -> 3.886740642 | FX1: =CT1-VLOOKUP($B1,'Defense Adjusted'!$A$1:$AG$32,'DA - Totals'!H$2,FALSE) -> 1.01786506 | FY1: =CU1-VLOOKUP($B1,'Defense Adjusted'!$A$1:$AG$32,'DA - Totals'!I$2,FALSE) -> 1.411188098 | FZ1: =CV1-VLOOKUP($B1,'Defense Adjusted'!$A$1:$AG$32,'DA - Totals'!J$2,FALSE) -> 14.36606548 | GA1: =CW1-VLOOKUP($B1,'Defense Adjusted'!$A$1:$AG$32,'DA - Totals'!K$2,FALSE) -> 21.80977944 | GB1: =CX1-VLOOKUP($B1,'Defense Adjusted'!$A$1:$AG$32,'DA - Totals'!L$2,FALSE) -> 2.50665426 | GC1: =CY1-VLOOKUP($B1,'Defense Adjusted'!$A$1:$AG$32,'DA - Totals'!M$2,FALSE) -> 2.173481671 | GD1: =CZ1-VLOOKUP($B1,'Defense Adjusted'!$A$1:$AG$32,'DA - Totals'!N$2,FALSE) -> 3.20356367 | GE1: =DA1-VLOOKUP($B1,'Defense Adjusted'!$A$1:$AG$32,'DA - Totals'!O$2,FALSE) -> 4.420260547 | GF1: =DB1-VLOOKUP($B1,'Defense Adjusted'!$A$1:$AG$32,'DA - Totals'!P$2,FALSE) -> 1.071541239 | GG1: =DC1-VLOOKUP($B1,'Defense Adjusted'!$A$1:$AG$32,'DA - Totals'!Q$2,FALSE) -> 1.207442022 | GH1: =DD1-VLOOKUP($B1,'Defense Adjusted'!$A$1:$AG$32,'DA - Totals'!R$2,FALSE) -> 0.4090469685 | GI1: =DE1-VLOOKUP($B1,'Defense Adjusted'!$A$1:$AG$32,'DA - Totals'!S$2,FALSE) -> 0.2947165895 | GJ1: =DF1-VLOOKUP($B1,'Defense Adjusted'!$A$1:$AG$32,'DA - Totals'!T$2,FALSE) -> 32.17428339 | GK1: =DG1-VLOOKUP($B1,'Defense Adjusted'!$A$1:$AG$32,'DA - Totals'!U$2,FALSE) -> 27.70691383 | GL1: =DH1-VLOOKUP($B1,'Defense Adjusted'!$A$1:$AG$32,'DA - Totals'!V$2,FALSE) -> 8.280339343 | GM1: =DI1-VLOOKUP($B1,'Defense Adjusted'!$A$1:$AG$32,'DA - Totals'!W$2,FALSE) -> 5.807262547 | GN1: =DJ1-VLOOKUP($B1,'Defense Adjusted'!$A$1:$AG$32,'DA - Totals'!X$2,FALSE) -> 0.8144374112 | GO1: =DK1-VLOOKUP($B1,'Defense Adjusted'!$A$1:$AG$32,'DA - Totals'!Y$2,FALSE) -> 0.5758034014 | GP1: =DL1-VLOOKUP($B1,'Defense Adjusted'!$A$1:$AG$32,'DA - Totals'!Z$2,FALSE) -> 4.670204066 | GQ1: =DM1-VLOOKUP($B1,'Defense Adjusted'!$A$1:$AG$32,'DA - Totals'!AA$2,FALSE) -> 4.907924675 | GR1: =DN1-VLOOKUP($B1,'Defense Adjusted'!$A$1:$AG$32,'DA - Totals'!AB$2,FALSE) -> 0.495696048 | GS1: =DO1-VLOOKUP($B1,'Defense Adjusted'!$A$1:$AG$32,'DA - Totals'!AC$2,FALSE) -> 1.185213261 | GT1: =DP1-VLOOKUP($B1,'Defense Adjusted'!$A$1:$AG$32,'DA - Totals'!AD$2,FALSE) -> 0.2260719928 | GU1: =DQ1-VLOOKUP($B1,'Defense Adjusted'!$A$1:$AG$32,'DA - Totals'!AE$2,FALSE) -> 0.1787926321 | GV1: =DR1-VLOOKUP($B1,'Defense Adjusted'!$A$1:$AG$32,'DA - Totals'!AF$2,FALSE) -> 0.7307124681 | GW1: =DS1-VLOOKUP($B1,'Defense Adjusted'!$A$1:$AG$32,'DA - Totals'!AG$2,FALSE) -> 2.487765606 | GX1: =DT1-VLOOKUP($B1,'Defense Adjusted'!$A$1:$AG$32,'DA - Totals'!AH$2,FALSE) -> 39.26756685 | GY1: =DU1-VLOOKUP($B1,'Defense Adjusted'!$A$1:$AG$32,'DA - Totals'!AI$2,FALSE) -> 46.90627471 | HA1: =RANK(FT1,FT$1:FT$32,0) -> 28 | HB1: =RANK(FU1,FU$1:FU$32,1) -> 5 | HC1: =RANK(FV1,FV$1:FV$32,0) -> 11 | HD1: =RANK(FW1,FW$1:FW$32,1) -> 8 | HE1: 12 | HF1: =RANK(FY1,FY$1:FY$32,0) -> 19 | HG1: 32 | HH1: =RANK(GA1,GA$1:GA$32,1) -> 9 | HI1: =RANK(GB1,GB$1:GB$32,0) -> 17 | HJ1: =RANK(GC1,GC$1:GC$32,1) -> 5 | HK1: =RANK(GD1,GD$1:GD$32,0) -> 31 | HL1: =RANK(GE1,GE$1:GE$32,1) -> 9 | HM1: =RANK(GF1,GF$1:GF$32,0) -> 29 | HN1: =RANK(GG1,GG$1:GG$32,1) -> 7 | HO1: =RANK(GH1,GH$1:GH$32,0) -> 16 | HP1: =RANK(GI1,GI$1:GI$32,1) -> 9 | HQ1: =RANK(GJ1,GJ$1:GJ$32,0) -> 10 | HR1: =RANK(GK1,GK$1:GK$32,1) -> 9 | HS1: 32 | HT1: =RANK(GM1,GM$1:GM$32,0) -> 5 | HU1: =RANK(GN1,GN$1:GN$32,0) -> 8 | HV1: =RANK(GO1,GO$1:GO$32,1) -> 14 | HW1: =RANK(GP1,GP$1:GP$32,0) -> 29 | HX1: =RANK(GQ1,GQ$1:GQ$32,1) -> 11 | HY1: 9 | HZ1: =RANK(GS1,GS$1:GS$32,0) -> 6 | IA1: 30 | IB1: =RANK(GU1,GU$1:GU$32,1) -> 1 | IC1: =RANK(GV1,GV$1:GV$32,0) -> 32 | ID1: =RANK(GW1,GW$1:GW$32,1) -> 7 | IE1: =RANK(GX1,GX$1:GX$32,0) -> 17 | IF1: =RANK(GY1,GY$1:GY$32,1) -> 29
A2: Bears | B2: Packers | C2: 1 | D2: 15 | E2: 21 | G2: Cutler | H2: 0 | I2: 18 | J2: 13 | K2: 266 | L2: 17 | M2: 36 | N2: 1 | O2: 86 | P2: 31 | Q2: 0 | R2: 4 | S2: 15 | T2: 1 | U2: 3 | V2: 4 | W2: 0 | X2: 2 | Y2: 11 | Z2: 3 | AA2: 25 | AB2: 4 | AC2: 198 | AD2: 14 | AE2: 3 | AF2: 0 | AG2: 2 | AH2: 5 | AI2: 14 | AJ2: 6 | AK2: 9 | AL2: 1 | AM2: 5 | AN2: 1 | AO2: 1 | AP2: 4 | AQ2: 8 | AR2: 13 | AS2: 29 | AT2: 13 | AU2: 376 | AV2: 6 | AW2: 33 | AX2: 3 | AY2: 12 | AZ2: 12 | BA2: 150 | BB2: 17 | BC2: 28 | BD2: 1 | BE2: 76 | BF2: 22 | BG2: 1 | BH2: 4 | BI2: 14 | BJ2: 0 | BK2: 0 | BL2: 0 | BM2: 0 | BN2: 4 | BO2: 34 | BP2: 6 | BQ2: 45 | BR2: 6 | BS2: 268 | BT2: 15 | BU2: 2 | BV2: 1 | BW2: 0 | BX2: 6 | BY2: 11 | BZ2: 2 | CA2: 10 | CB2: 0 | CC2: 0 | CD2: 0 | CE2: 0 | CF2: 1 | CG2: 4 | CH2: 8 | CI2: 21 | CJ2: 13 | CK2: 534 | CL2: 5 | CM2: 26 | CN2: 57 | CP2: 0.6129032258 | CQ2: 0.5833333333 | CR2: 2.789473684 | CS2: 5.3125 | CT2: 4 | CU2: 0 | CV2: 27.07692308 | CW2: 18.83333333 | CX2: 2.542307692 | CY2: 2.245833333 | CZ2: 5.101449275 | DA2: 4.185185185 | DB2: 1.384615385 | DC2: 1 | DD2: 0.2777777778 | DE2: 0.2857142857 | DF2: 28.92307692 | DG2: 41.07692308 | DH2: 6 | DI2: 5 | DJ2: =IF(AE2<>0,(AF2*7+AG2*3)/(AE2*7),0) -> 0.2857142857 | DK2: =IF(BU2<>0,(BV2*7+BW2*3)/(BU2*7),0) -> 0.5 | DL2: 5.307692308 | DM2: 4.5 | DN2: 0.3623188406 | DO2: 0.8333333333 | DP2: =AR2/AS2 -> 0.4482758621 | DQ2: =CH2/CI2 -> 0.380952381 | DR2: 2.774193548 | DS2: 3.454545455 | DT2: 46 | DU2: 42.16666667 | DV2: =IF(AQ2<>0,AP2/AQ2,0) -> 0.5 | DW2: =IF(CG2<>0,CF2/CG2,0) -> 0.25 | DX2: =D2/(K2+O2) -> 0.04261363636 | DY2: =E2/(BA2+BE2) -> 0.09292035398 | DZ2: =D2/J2 -> 1.153846154 | EA2: =E2/AZ2 -> 1.75 | EB2: =((MAX(MIN(((L2/M2)*100-30)/20,2.375),0)+MAX(MIN(((K2/M2)-3)*0.25,2.375),0)+MAX(MIN((N2/M2)*20,2.375),0)+MAX(MIN((2.375-(V2/M2)*25),2.375),0))/6)*100 -> 41.89814815 | EC2: =((MAX(MIN(((BB2/BC2)*100-30)/20,2.375),0)+MAX(MIN(((BA2/BC2)-3)*0.25,2.375),0)+MAX(MIN((BD2/BC2)*20,2.375),0)+MAX(MIN((2.375-(BL2/BC2)*25),2.375),0))/6)*100 -> 86.9047619 | EE2: 24 | EF2: 7 | EG2: 29 | EH2: 14 | EI2: 30 | EJ2: 25 | EK2: 17 | EL2: 4 | EM2: 19 | EN2: 6 | EO2: 16 | EP2: 6 | EQ2: 22 | ER2: 2 | ES2: 25 | ET2: 9 | EU2: 21 | EV2: 31 | EW2: 27 | EX2: =RANK(DI2,DI$1:DI$32,0) -> 7 | EY2: =RANK(DJ2,DJ$1:DJ$32,0) -> 28 | EZ2: 10 | FA2: 16 | FB2: 2 | FC2: 5 | FD2: 10 | FE2: 13 | FF2: 11 | FG2: 25 | FH2: 16 | FI2: 8 | FJ2: 20 | FK2: 9 | FL2: 7 | FM2: 24 | FN2: =RANK(DY2,DY$1:DY$32,1) -> 27 | FO2: 23 | FP2: =RANK(EA2,EA$1:EA$32,1) -> 17 | FQ2: 30 | FR2: =RANK(EC2,EC$1:EC$32,1) -> 19 | FT2: =CP2-VLOOKUP($B2,'Defense Adjusted'!$A$1:$AG$32,'DA - Totals'!D$2,FALSE) -> 0.6218096985 | FU2: =CQ2-VLOOKUP($B2,'Defense Adjusted'!$A$1:$AG$32,'DA - Totals'!E$2,FALSE) -> 0.5373751626 | FV2: =CR2-VLOOKUP($B2,'Defense Adjusted'!$A$1:$AG$32,'DA - Totals'!F$2,FALSE) -> 3.339958666 | FW2: =CS2-VLOOKUP($B2,'Defense Adjusted'!$A$1:$AG$32,'DA - Totals'!G$2,FALSE) -> 3.884542038 | FX2: =CT2-VLOOKUP($B2,'Defense Adjusted'!$A$1:$AG$32,'DA - Totals'!H$2,FALSE) -> 3.36286936 | FY2: =CU2-VLOOKUP($B2,'Defense Adjusted'!$A$1:$AG$32,'DA - Totals'!I$2,FALSE) -> 0.5714701757 | FZ2: =CV2-VLOOKUP($B2,'Defense Adjusted'!$A$1:$AG$32,'DA - Totals'!J$2,FALSE) -> 30.00476565 | GA2: =CW2-VLOOKUP($B2,'Defense Adjusted'!$A$1:$AG$32,'DA - Totals'!K$2,FALSE) -> 15.05795497 | GB2: =CX2-VLOOKUP($B2,'Defense Adjusted'!$A$1:$AG$32,'DA - Totals'!L$2,FALSE) -> 2.833991011 | GC2: =CY2-VLOOKUP($B2,'Defense Adjusted'!$A$1:$AG$32,'DA - Totals'!M$2,FALSE) -> 1.969498879 | GD2: =CZ2-VLOOKUP($B2,'Defense Adjusted'!$A$1:$AG$32,'DA - Totals'!N$2,FALSE) -> 5.353523966 | GE2: =DA2-VLOOKUP($B2,'Defense Adjusted'!$A$1:$AG$32,'DA - Totals'!O$2,FALSE) -> 3.743012681 | GF2: =DB2-VLOOKUP($B2,'Defense Adjusted'!$A$1:$AG$32,'DA - Totals'!P$2,FALSE) -> 1.483289416 | GG2: =DC2-VLOOKUP($B2,'Defense Adjusted'!$A$1:$AG$32,'DA - Totals'!Q$2,FALSE) -> 0.7959895974 | GH2: =DD2-VLOOKUP($B2,'Defense Adjusted'!$A$1:$AG$32,'DA - Totals'!R$2,FALSE) -> 0.284027235 | GI2: =DE2-VLOOKUP($B2,'Defense Adjusted'!$A$1:$AG$32,'DA - Totals'!S$2,FALSE) -> 0.2203870512 | GJ2: =DF2-VLOOKUP($B2,'Defense Adjusted'!$A$1:$AG$32,'DA - Totals'!T$2,FALSE) -> 28.33806775 | GK2: =DG2-VLOOKUP($B2,'Defense Adjusted'!$A$1:$AG$32,'DA - Totals'!U$2,FALSE) -> 39.48103646 | GL2: =DH2-VLOOKUP($B2,'Defense Adjusted'!$A$1:$AG$32,'DA - Totals'!V$2,FALSE) -> 5.683900367 | GM2: =DI2-VLOOKUP($B2,'Defense Adjusted'!$A$1:$AG$32,'DA - Totals'!W$2,FALSE) -> 5.760823571 | GN2: =DJ2-VLOOKUP($B2,'Defense Adjusted'!$A$1:$AG$32,'DA - Totals'!X$2,FALSE) -> 0.2432588332 | GO2: =DK2-VLOOKUP($B2,'Defense Adjusted'!$A$1:$AG$32,'DA - Totals'!Y$2,FALSE) -> 0.4622873329 | GP2: =DL2-VLOOKUP($B2,'Defense Adjusted'!$A$1:$AG$32,'DA - Totals'!Z$2,FALSE) -> 5.637217259 | GQ2: =DM2-VLOOKUP($B2,'Defense Adjusted'!$A$1:$AG$32,'DA - Totals'!AA$2,FALSE) -> 4.282075619 | GR2: =DN2-VLOOKUP($B2,'Defense Adjusted'!$A$1:$AG$32,'DA - Totals'!AB$2,FALSE) -> 0.1966848224 | GS2: =DO2-VLOOKUP($B2,'Defense Adjusted'!$A$1:$AG$32,'DA - Totals'!AC$2,FALSE) -> 0.6645541551 | GT2: =DP2-VLOOKUP($B2,'Defense Adjusted'!$A$1:$AG$32,'DA - Totals'!AD$2,FALSE) -> 0.4944827195 | GU2: =DQ2-VLOOKUP($B2,'Defense Adjusted'!$A$1:$AG$32,'DA - Totals'!AE$2,FALSE) -> 0.3771361609 | GV2: =DR2-VLOOKUP($B2,'Defense Adjusted'!$A$1:$AG$32,'DA - Totals'!AF$2,FALSE) -> 3.235079841 | GW2: =DS2-VLOOKUP($B2,'Defense Adjusted'!$A$1:$AG$32,'DA - Totals'!AG$2,FALSE) -> 3.240029336 | GX2: =DT2-VLOOKUP($B2,'Defense Adjusted'!$A$1:$AG$32,'DA - Totals'!AH$2,FALSE) -> 42.19382097 | GY2: =DU2-VLOOKUP($B2,'Defense Adjusted'!$A$1:$AG$32,'DA - Totals'!AI$2,FALSE) -> 42.81608799 | HA2: 23 | HB2: 2 | HC2: 26 | HD2: 7 | HE2: 29 | HF2: 27 | HG2: 11 | HH2: 2 | HI2: 11 | HJ2: 1 | HK2: 12 | HL2: 4 | HM2: 18 | HN2: 1 | HO2: 25 | HP2: 1 | HQ2: 25 | HR2: 28 | HS2: 28 | HT2: =RANK(GM2,GM$1:GM$32,0) -> 6 | HU2: 29 | HV2: 10 | HW2: 11 | HX2: 1 | HY2: 1 | HZ2: 18 | IA2: 11 | IB2: 12 | IC2: 21 | ID2: 13 | IE2: 10 | IF2: 23
A3: Bengals | B3: Broncos | C3: 1 | D3: 7 | E3: 12 | G3: Palmer | H3: 1 | I3: 16 | J3: 11 | K3: 221 | L3: 21 | M3: 33 | N3: 0 | O3: 86 | P3: 27 | Q3: 1 | R3: 5 | S3: 15 | T3: 1 | U3: 2 | V3: 2 | W3: 0 | X3: 3 | Y3: 26 | Z3: 4 | AA3: 27 | AB3: 7 | AC3: 278 | AD3: 17 | AE3: 2 | AF3: 1 | AG3: 0 | AH3: 6 | AI3: 13 | AJ3: 2 | AK3: 8 | AL3: 1 | AM3: 2 | AN3: 1 | AO3: 1 | AP3: 2 | AQ3: 4 | AR3: 10 | AS3: 24 | AT3: 11 | AU3: 308 | AV3: 4 | AW3: 33 | AX3: 27 | AY3: 10 | AZ3: 11 | BA3: 227 | BB3: 17 | BC3: 28 | BD3: 1 | BE3: 75 | BF3: 20 | BG3: 0 | BH3: 3 | BI3: 12 | BJ3: 0 | BK3: 0 | BL3: 0 | BM3: 0 | BN3: 3 | BO3: 16 | BP3: 6 | BQ3: 39 | BR3: 8 | BS3: 340 | BT3: 49 | BU3: 1 | BV3: 0 | BW3: 0 | BX3: 5 | BY3: 11 | BZ3: 3 | CA3: 8 | CB3: 0 | CC3: 0 | CD3: 0 | CE3: 0 | CF3: 1 | CG3: 3 | CH3: 8 | CI3: 19 | CJ3: 11 | CK3: 235 | CL3: 5 | CM3: 26 | CN3: 33 | CP3: 0.6296296296 | CQ3: 0.5238095238 | CR3: 3.638888889 | CS3: 7.967741935 | CT3: 2 | CU3: 0 | CV3: 27.90909091 | CW3: 27.45454545 | CX3: 3.040909091 | CY3: 2.413636364 | CZ3: 4.873015873 | DA3: 5.921568627 | DB3: 1.454545455 | DC3: 0.9090909091 | DD3: 0.3529411765 | DE3: 0.25 | DF3: 28 | DG3: 21.36363636 | DH3: 4 | DI3: 5 | DJ3: 0.5 | DK3: 0 | DL3: 5.727272727 | DM3: 4.636363636 | DN3: 0.4285714286 | DO3: 0.7647058824 | DP3: 0.4166666667 | DQ3: 0.4210526316 | DR3: 3.185185185 | DS3: 3.75 | DT3: 37.28571429 | DU3: 36.375 | DV3: 0.5 | DW3: 0.3333333333 | DX3: 0.02280130293 | DY3: 0.03973509934 | DZ3: 0.6363636364 | EA3: 1.090909091 | EB3: 57.76515152 | EC3: 98.36309524 | EE3: 18 | EF3: 2 | EG3: 27 | EH3: 29 | EI3: 15 | EJ3: 25 | EK3: 13 | EL3: 18 | EM3: 7 | EN3: 12 | EO3: 19 | EP3: 27 | EQ3: 18 | ER3: 1 | ES3: 19 | ET3: 3 | EU3: 22 | EV3: 2 | EW3: 13 | EX3: 7 | EY3: 20 | EZ3: 1 | FA3: 12 | FB3: 5 | FC3: 6 | FD3: 13 | FE3: 19 | FF3: 16 | FG3: 21 | FH3: 17 | FI3: 22 | FJ3: 8 | FK3: 9 | FL3: 10 | FM3: 31 | FN3: 8 | FO3: 30 | FP3: 8 | FQ3: 27 | FR3: 28 | FT3: =CP3-VLOOKUP($B3,'Defense Adjusted'!$A$1:$AG$32,'DA - Totals'!D$2,FALSE) -> 0.6482723869 | FU3: =CQ3-VLOOKUP($B3,'Defense Adjusted'!$A$1:$AG$32,'DA - Totals'!E$2,FALSE) -> 0.5492617043 | FV3: =CR3-VLOOKUP($B3,'Defense Adjusted'!$A$1:$AG$32,'DA - Totals'!F$2,FALSE) -> 4.871110509 | FW3: =CS3-VLOOKUP($B3,'Defense Adjusted'!$A$1:$AG$32,'DA - Totals'!G$2,FALSE) -> 7.494054999 | FX3: =CT3-VLOOKUP($B3,'Defense Adjusted'!$A$1:$AG$32,'DA - Totals'!H$2,FALSE) -> 1.723910922 | FY3: =CU3-VLOOKUP($B3,'Defense Adjusted'!$A$1:$AG$32,'DA - Totals'!I$2,FALSE) -> 0.1924075715 | FZ3: =CV3-VLOOKUP($B3,'Defense Adjusted'!$A$1:$AG$32,'DA - Totals'!J$2,FALSE) -> 29.46199713 | GA3: =CW3-VLOOKUP($B3,'Defense Adjusted'!$A$1:$AG$32,'DA - Totals'!K$2,FALSE) -> 27.58377263 | GB3: =CX3-VLOOKUP($B3,'Defense Adjusted'!$A$1:$AG$32,'DA - Totals'!L$2,FALSE) -> 2.992930134 | GC3: =CY3-VLOOKUP($B3,'Defense Adjusted'!$A$1:$AG$32,'DA - Totals'!M$2,FALSE) -> 2.533014711 | GD3: =CZ3-VLOOKUP($B3,'Defense Adjusted'!$A$1:$AG$32,'DA - Totals'!N$2,FALSE) -> 5.193013508 | GE3: =DA3-VLOOKUP($B3,'Defense Adjusted'!$A$1:$AG$32,'DA - Totals'!O$2,FALSE) -> 5.904973344 | GF3: =DB3-VLOOKUP($B3,'Defense Adjusted'!$A$1:$AG$32,'DA - Totals'!P$2,FALSE) -> 1.505192046 | GG3: =DC3-VLOOKUP($B3,'Defense Adjusted'!$A$1:$AG$32,'DA - Totals'!Q$2,FALSE) -> 0.9629954778 | GH3: =DD3-VLOOKUP($B3,'Defense Adjusted'!$A$1:$AG$32,'DA - Totals'!R$2,FALSE) -> 0.3691286581 | GI3: =DE3-VLOOKUP($B3,'Defense Adjusted'!$A$1:$AG$32,'DA - Totals'!S$2,FALSE) -> 0.2863442043 | GJ3: =DF3-VLOOKUP($B3,'Defense Adjusted'!$A$1:$AG$32,'DA - Totals'!T$2,FALSE) -> 30.41893929 | GK3: =DG3-VLOOKUP($B3,'Defense Adjusted'!$A$1:$AG$32,'DA - Totals'!U$2,FALSE) -> 22.93553581 | GL3: =DH3-VLOOKUP($B3,'Defense Adjusted'!$A$1:$AG$32,'DA - Totals'!V$2,FALSE) -> 3.954553325 | GM3: =DI3-VLOOKUP($B3,'Defense Adjusted'!$A$1:$AG$32,'DA - Totals'!W$2,FALSE) -> 5.001094584 | GN3: =DJ3-VLOOKUP($B3,'Defense Adjusted'!$A$1:$AG$32,'DA - Totals'!X$2,FALSE) -> 0.6022632369 | GO3: =DK3-VLOOKUP($B3,'Defense Adjusted'!$A$1:$AG$32,'DA - Totals'!Y$2,FALSE) -> 0.08215483179 | GP3: =DL3-VLOOKUP($B3,'Defense Adjusted'!$A$1:$AG$32,'DA - Totals'!Z$2,FALSE) -> 5.64377151 | GQ3: =DM3-VLOOKUP($B3,'Defense Adjusted'!$A$1:$AG$32,'DA - Totals'!AA$2,FALSE) -> 4.710215169 | GR3: =DN3-VLOOKUP($B3,'Defense Adjusted'!$A$1:$AG$32,'DA - Totals'!AB$2,FALSE) -> 0.5165254652 | GS3: =DO3-VLOOKUP($B3,'Defense Adjusted'!$A$1:$AG$32,'DA - Totals'!AC$2,FALSE) -> 0.7471692199 | GT3: =DP3-VLOOKUP($B3,'Defense Adjusted'!$A$1:$AG$32,'DA - Totals'!AD$2,FALSE) -> 0.3788998657 | GU3: =DQ3-VLOOKUP($B3,'Defense Adjusted'!$A$1:$AG$32,'DA - Totals'!AE$2,FALSE) -> 0.395647802 | GV3: =DR3-VLOOKUP($B3,'Defense Adjusted'!$A$1:$AG$32,'DA - Totals'!AF$2,FALSE) -> 2.838580679 | GW3: =DS3-VLOOKUP($B3,'Defense Adjusted'!$A$1:$AG$32,'DA - Totals'!AG$2,FALSE) -> 3.891623228 | GX3: =DT3-VLOOKUP($B3,'Defense Adjusted'!$A$1:$AG$32,'DA - Totals'!AH$2,FALSE) -> 36.09616001 | GY3: =DU3-VLOOKUP($B3,'Defense Adjusted'!$A$1:$AG$32,'DA - Totals'!AI$2,FALSE) -> 35.26392258 | HA3: 19 | HB3: 4 | HC3: 17 | HD3: 25 | HE3: 16 | HF3: 30 | HG3: 12 | HH3: 18 | HI3: 8 | HJ3: 17 | HK3: 15 | HL3: 25 | HM3: 15 | HN3: 2 | HO3: 18 | HP3: 6 | HQ3: 15 | HR3: 3 | HS3: 14 | HT3: 12 | HU3: 18 | HV3: 2 | HW3: 10 | HX3: 7 | HY3: 11 | HZ3: 12 | IA3: 21 | IB3: 14 | IC3: 25 | ID3: 17 | IE3: 24 | IF3: 8
A4: Bills | B4: Patriots | C4: 1 | D4: 24 | E4: 25 | G4: Edwards | H4: 0 | I4: 17 | J4: 8 | K4: 186 | L4: 15 | M4: 25 | N4: 2 | O4: 90 | P4: 19 | Q4: 0 | R4: 4 | S4: 10 | T4: 1 | U4: 1 | V4: 0 | W4: 1 | X4: 4 | Y4: 26 | Z4: 9 | AA4: 71 | AB4: 4 | AC4: 171 | AD4: 21 | AE4: 2 | AF4: 2 | AG4: 0 | AH4: 4 | AI4: 8 | AJ4: 5 | AK4: 8 | AL4: 2 | AM4: 2 | AN4: 0 | AO4: 0 | AP4: 6 | AQ4: 8 | AR4: 11 | AS4: 18 | AT4: 9 | AU4: 285 | AV4: 1 | AW4: 22 | AX4: 52 | AY4: 28 | AZ4: 10 | BA4: 368 | BB4: 39 | BC4: 53 | BD4: 2 | BE4: 73 | BF4: 23 | BG4: 1 | BH4: 10 | BI4: 16 | BJ4: 0 | BK4: 2 | BL4: 1 | BM4: 0 | BN4: 1 | BO4: 10 | BP4: 6 | BQ4: 55 | BR4: 1 | BS4: 42 | BT4: 5 | BU4: 5 | BV4: 3 | BW4: 2 | BX4: 6 | BY4: 12 | BZ4: 1 | CA4: 5 | CB4: 2 | CC4: 4 | CD4: 0 | CE4: 1 | CF4: 0 | CG4: 2 | CH4: 9 | CI4: 22 | CJ4: 10 | CK4: 306 | CL4: 3 | CM4: 37 | CN4: 8 | CP4: 0.76 | CQ4: 0.8157894737 | CR4: 7.793103448 | CS4: 6.722222222 | CT4: 1 | CU4: 1 | CV4: 34.5 | CW4: 44.1 | CX4: 2.858333333 | CY4: 3.713333333 | CZ4: 5.75 | DA4: 5.727272727 | DB4: 2.125 | DC4: 2.8 | DD4: 0.4545454545 | DE4: 0.5555555556 | DF4: 31.66666667 | DG4: 30.6 | DH4: 1 | DI4: 3 | DJ4: 1 | DK4: 0.7714285714 | DL4: 6 | DM4: 7.7 | DN4: 1.479166667 | DO4: 0.7142857143 | DP4: 0.6111111111 | DQ4: 0.4090909091 | DR4: 4.736842105 | DS4: 3.173913043 | DT4: 37.5 | DU4: 37 | DV4: 0.75 | DW4: 0 | DX4: 0.08695652174 | DY4: 0.0566893424 | DZ4: 3 | EA4: 2.5 | EB4: 109.75 | EC4: 97.05188679 | EE4: 7 | EF4: 30 | EG4: 5 | EH4: 21 | EI4: 9 | EJ4: 19 | EK4: 10 | EL4: 31 | EM4: 10 | EN4: 31 | EO4: 9 | EP4: 23 | EQ4: 6 | ER4: 31 | ES4: 9 | ET4: 29 | EU4: 9 | EV4: 21 | EW4: 1 | EX4: 21 | EY4: 1 | EZ4: 24 | FA4: 8 | FB4: 30 | FC4: 31 | FD4: 15 | FE4: 5 | FF4: 13 | FG4: 7 | FH4: 11 | FI4: 21 | FJ4: 10 | FK4: 6 | FL4: 1 | FM4: 8 | FN4: 15 | FO4: 5 | FP4: 26 | FQ4: 4 | FR4: 27 | FT4: =CP4-VLOOKUP($B4,'Defense Adjusted'!$A$1:$AG$32,'DA - Totals'!D$2,FALSE) -> 0.7775814541 | FU4: =CQ4-VLOOKUP($B4,'Defense Adjusted'!$A$1:$AG$32,'DA - Totals'!E$2,FALSE) -> 0.727222504 | FV4: =CR4-VLOOKUP($B4,'Defense Adjusted'!$A$1:$AG$32,'DA - Totals'!F$2,FALSE) -> 8.00259593 | FW4: =CS4-VLOOKUP($B4,'Defense Adjusted'!$A$1:$AG$32,'DA - Totals'!G$2,FALSE) -> 4.337536099 | FX4: =CT4-VLOOKUP($B4,'Defense Adjusted'!$A$1:$AG$32,'DA - Totals'!H$2,FALSE) -> 0.9873046478 | FY4: =CU4-VLOOKUP($B4,'Defense Adjusted'!$A$1:$AG$32,'DA - Totals'!I$2,FALSE) -> 1.480974908 | FZ4: =CV4-VLOOKUP($B4,'Defense Adjusted'!$A$1:$AG$32,'DA - Totals'!J$2,FALSE) -> 33.0978331 | GA4: =CW4-VLOOKUP($B4,'Defense Adjusted'!$A$1:$AG$32,'DA - Totals'!K$2,FALSE) -> 35.75493679 | GB4: =CX4-VLOOKUP($B4,'Defense Adjusted'!$A$1:$AG$32,'DA - Totals'!L$2,FALSE) -> 2.954777058 | GC4: =CY4-VLOOKUP($B4,'Defense Adjusted'!$A$1:$AG$32,'DA - Totals'!M$2,FALSE) -> 3.311081666 | GD4: =CZ4-VLOOKUP($B4,'Defense Adjusted'!$A$1:$AG$32,'DA - Totals'!N$2,FALSE) -> 5.503054974 | GE4: =DA4-VLOOKUP($B4,'Defense Adjusted'!$A$1:$AG$32,'DA - Totals'!O$2,FALSE) -> 4.893729185 | GF4: =DB4-VLOOKUP($B4,'Defense Adjusted'!$A$1:$AG$32,'DA - Totals'!P$2,FALSE) -> 2.051110053 | GG4: =DC4-VLOOKUP($B4,'Defense Adjusted'!$A$1:$AG$32,'DA - Totals'!Q$2,FALSE) -> 2.239671944 | GH4: =DD4-VLOOKUP($B4,'Defense Adjusted'!$A$1:$AG$32,'DA - Totals'!R$2,FALSE) -> 0.4936002139 | GI4: =DE4-VLOOKUP($B4,'Defense Adjusted'!$A$1:$AG$32,'DA - Totals'!S$2,FALSE) -> 0.501111914 | GJ4: =DF4-VLOOKUP($B4,'Defense Adjusted'!$A$1:$AG$32,'DA - Totals'!T$2,FALSE) -> 34.52769628 | GK4: =DG4-VLOOKUP($B4,'Defense Adjusted'!$A$1:$AG$32,'DA - Totals'!U$2,FALSE) -> 30.89319609 | GL4: =DH4-VLOOKUP($B4,'Defense Adjusted'!$A$1:$AG$32,'DA - Totals'!V$2,FALSE) -> 1.344450579 | GM4: =DI4-VLOOKUP($B4,'Defense Adjusted'!$A$1:$AG$32,'DA - Totals'!W$2,FALSE) -> 3.940818227 | GN4: =DJ4-VLOOKUP($B4,'Defense Adjusted'!$A$1:$AG$32,'DA - Totals'!X$2,FALSE) -> 1.087744341 | GO4: =DK4-VLOOKUP($B4,'Defense Adjusted'!$A$1:$AG$32,'DA - Totals'!Y$2,FALSE) -> 0.721474336 | GP4: =DL4-VLOOKUP($B4,'Defense Adjusted'!$A$1:$AG$32,'DA - Totals'!Z$2,FALSE) -> 6.001495809 | GQ4: =DM4-VLOOKUP($B4,'Defense Adjusted'!$A$1:$AG$32,'DA - Totals'!AA$2,FALSE) -> 7.007910447 | GR4: =DN4-VLOOKUP($B4,'Defense Adjusted'!$A$1:$AG$32,'DA - Totals'!AB$2,FALSE) -> 1.369646982 | GS4: =DO4-VLOOKUP($B4,'Defense Adjusted'!$A$1:$AG$32,'DA - Totals'!AC$2,FALSE) -> 0.7743504251 | GT4: =DP4-VLOOKUP($B4,'Defense Adjusted'!$A$1:$AG$32,'DA - Totals'!AD$2,FALSE) -> 0.5960739959 | GU4: =DQ4-VLOOKUP($B4,'Defense Adjusted'!$A$1:$AG$32,'DA - Totals'!AE$2,FALSE) -> 0.3383013257 | GV4: =DR4-VLOOKUP($B4,'Defense Adjusted'!$A$1:$AG$32,'DA - Totals'!AF$2,FALSE) -> 4.508083565 | GW4: =DS4-VLOOKUP($B4,'Defense Adjusted'!$A$1:$AG$32,'DA - Totals'!AG$2,FALSE) -> 3.19628137 | GX4: =DT4-VLOOKUP($B4,'Defense Adjusted'!$A$1:$AG$32,'DA - Totals'!AH$2,FALSE) -> 39.86198131 | GY4: =DU4-VLOOKUP($B4,'Defense Adjusted'!$A$1:$AG$32,'DA - Totals'!AI$2,FALSE) -> 39.39335554 | HA4: 5 | HB4: 25 | HC4: 6 | HD4: 12 | HE4: 11 | HF4: 18 | HG4: 9 | HH4: 26 | HI4: 9 | HJ4: 28 | HK4: 11 | HL4: 17 | HM4: 5 | HN4: 29 | HO4: 6 | HP4: 26 | HQ4: 7 | HR4: 17 | HS4: 2 | HT4: 18 | HU4: 2 | HV4: 20 | HW4: 7 | HX4: 29 | HY4: 31 | HZ4: 10 | IA4: 3 | IB4: 9 | IC4: 8 | ID4: 12 | IE4: 15 | IF4: 17
A5: Broncos | B5: Bengals | C5: 1 | D5: 12 | E5: 7 | G5: Orton | H5: 0 | I5: 10 | J5: 11 | K5: 227 | L5: 17 | M5: 28 | N5: 1 | O5: 75 | P5: 20 | Q5: 0 | R5: 3 | S5: 12 | T5: 0 | U5: 0 | V5: 0 | W5: 0 | X5: 3 | Y5: 16 | Z5: 6 | AA5: 39 | AB5: 8 | AC5: 340 | AD5: 49 | AE5: 1 | AF5: 0 | AG5: 0 | AH5: 5 | AI5: 11 | AJ5: 3 | AK5: 8 | AL5: 0 | AM5: 0 | AN5: 0 | AO5: 0 | AP5: 1 | AQ5: 3 | AR5: 8 | AS5: 19 | AT5: 11 | AU5: 235 | AV5: 5 | AW5: 26 | AX5: 33 | AY5: 16 | AZ5: 11 | BA5: 221 | BB5: 21 | BC5: 33 | BD5: 0 | BE5: 86 | BF5: 27 | BG5: 1 | BH5: 5 | BI5: 15 | BJ5: 1 | BK5: 2 | BL5: 2 | BM5: 0 | BN5: 3 | BO5: 26 | BP5: 4 | BQ5: 27 | BR5: 7 | BS5: 278 | BT5: 17 | BU5: 2 | BV5: 1 | BW5: 0 | BX5: 6 | BY5: 13 | BZ5: 2 | CA5: 8 | CB5: 1 | CC5: 2 | CD5: 1 | CE5: 1 | CF5: 2 | CG5: 4 | CH5: 10 | CI5: 24 | CJ5: 11 | CK5: 308 | CL5: 4 | CM5: 33 | CN5: 27 | CP5: 0.5238095238 | CQ5: 0.6296296296 | CR5: 7.967741935 | CS5: 3.638888889 | CT5: 0 | CU5: 2 | CV5: 27.45454545 | CW5: 27.90909091 | CX5: 2.413636364 | CY5: 3.040909091 | CZ5: 5.921568627 | DA5: 4.873015873 | DB5: 0.9090909091 | DC5: 1.454545455 | DD5: 0.25 | DE5: 0.3529411765 | DF5: 21.36363636 | DG5: 28 | DH5: 5 | DI5: 4 | DJ5: 0 | DK5: 0.5 | DL5: 4.636363636 | DM5: 5.727272727 | DN5: 0.7647058824 | DO5: 0.4285714286 | DP5: 0.4210526316 | DQ5: 0.4166666667 | DR5: 3.75 | DS5: 3.185185185 | DT5: 36.375 | DU5: 37.28571429 | DV5: 0.3333333333 | DW5: 0.5 | DX5: 0.03973509934 | DY5: 0.02280130293 | DZ5: 1.090909091 | EA5: 0.6363636364 | EB5: 98.36309524 | EC5: 57.76515152 | EE5: 31 | EF5: 14 | EG5: 3 | EH5: 6 | EI5: 1 | EJ5: 9 | EK5: 15 | EL5: 20 | EM5: 21 | EN5: 26 | EO5: 6 | EP5: 14 | EQ5: 32 | ER5: 14 | ES5: 29 | ET5: 14 | EU5: 31 | EV5: 11 | EW5: 18 | EX5: 16 | EY5: 30 | EZ5: 10 | FA5: 28 | FB5: 21 | FC5: 19 | FD5: 27 | FE5: 17 | FF5: 14 | FG5: 16 | FH5: 12 | FI5: 25 | FJ5: 11 | FK5: 19 | FL5: 21 | FM5: 25 | FN5: 2 | FO5: 25 | FP5: 2 | FQ5: 5 | FR5: 6 | FT5: =CP5-VLOOKUP($B5,'Defense Adjusted'!$A$1:$AG$32,'DA - Totals'!D$2,FALSE) -> 0.540556056 | FU5: =CQ5-VLOOKUP($B5,'Defense Adjusted'!$A$1:$AG$32,'DA - Totals'!E$2,FALSE) -> 0.6382075529 | FV5: =CR5-VLOOKUP($B5,'Defense Adjusted'!$A$1:$AG$32,'DA - Totals'!F$2,FALSE) -> 8.497101455 | FW5: =CS5-VLOOKUP($B5,'Defense Adjusted'!$A$1:$AG$32,'DA - Totals'!G$2,FALSE) -> 4.081357769 | FX5: =CT5-VLOOKUP($B5,'Defense Adjusted'!$A$1:$AG$32,'DA - Totals'!H$2,FALSE) -> 0.1707543502 | FY5: =CU5-VLOOKUP($B5,'Defense Adjusted'!$A$1:$AG$32,'DA - Totals'!I$2,FALSE) -> 2.122931555 | FZ5: =CV5-VLOOKUP($B5,'Defense Adjusted'!$A$1:$AG$32,'DA - Totals'!J$2,FALSE) -> 29.13314936 | GA5: =CW5-VLOOKUP($B5,'Defense Adjusted'!$A$1:$AG$32,'DA - Totals'!K$2,FALSE) -> 28.0764905 | GB5: =CX5-VLOOKUP($B5,'Defense Adjusted'!$A$1:$AG$32,'DA - Totals'!L$2,FALSE) -> 2.531716727 | GC5: =CY5-VLOOKUP($B5,'Defense Adjusted'!$A$1:$AG$32,'DA - Totals'!M$2,FALSE) -> 2.645137454 | GD5: =CZ5-VLOOKUP($B5,'Defense Adjusted'!$A$1:$AG$32,'DA - Totals'!N$2,FALSE) -> 6.100745783 | GE5: =DA5-VLOOKUP($B5,'Defense Adjusted'!$A$1:$AG$32,'DA - Totals'!O$2,FALSE) -> 5.308021258 | GF5: =DB5-VLOOKUP($B5,'Defense Adjusted'!$A$1:$AG$32,'DA - Totals'!P$2,FALSE) -> 0.9965210912 | GG5: =DC5-VLOOKUP($B5,'Defense Adjusted'!$A$1:$AG$32,'DA - Totals'!Q$2,FALSE) -> 1.364214877 | GH5: =DD5-VLOOKUP($B5,'Defense Adjusted'!$A$1:$AG$32,'DA - Totals'!R$2,FALSE) -> 0.2469451883 | GI5: =DE5-VLOOKUP($B5,'Defense Adjusted'!$A$1:$AG$32,'DA - Totals'!S$2,FALSE) -> 0.3172492937 | GJ5: =DF5-VLOOKUP($B5,'Defense Adjusted'!$A$1:$AG$32,'DA - Totals'!T$2,FALSE) -> 21.24434607 | GK5: =DG5-VLOOKUP($B5,'Defense Adjusted'!$A$1:$AG$32,'DA - Totals'!U$2,FALSE) -> 27.93605176 | GL5: =DH5-VLOOKUP($B5,'Defense Adjusted'!$A$1:$AG$32,'DA - Totals'!V$2,FALSE) -> 4.921320245 | GM5: =DI5-VLOOKUP($B5,'Defense Adjusted'!$A$1:$AG$32,'DA - Totals'!W$2,FALSE) -> 3.639389282 | GN5: =DJ5-VLOOKUP($B5,'Defense Adjusted'!$A$1:$AG$32,'DA - Totals'!X$2,FALSE) -> 0.01299453525 | GO5: =DK5-VLOOKUP($B5,'Defense Adjusted'!$A$1:$AG$32,'DA - Totals'!Y$2,FALSE) -> 0.5285210508 | GP5: =DL5-VLOOKUP($B5,'Defense Adjusted'!$A$1:$AG$32,'DA - Totals'!Z$2,FALSE) -> 4.679541104 | GQ5: =DM5-VLOOKUP($B5,'Defense Adjusted'!$A$1:$AG$32,'DA - Totals'!AA$2,FALSE) -> 5.313248635 | GR5: =DN5-VLOOKUP($B5,'Defense Adjusted'!$A$1:$AG$32,'DA - Totals'!AB$2,FALSE) -> 0.7851082083 | GS5: =DO5-VLOOKUP($B5,'Defense Adjusted'!$A$1:$AG$32,'DA - Totals'!AC$2,FALSE) -> 0.3583049915 | GT5: =DP5-VLOOKUP($B5,'Defense Adjusted'!$A$1:$AG$32,'DA - Totals'!AD$2,FALSE) -> 0.374936661 | GU5: =DQ5-VLOOKUP($B5,'Defense Adjusted'!$A$1:$AG$32,'DA - Totals'!AE$2,FALSE) -> 0.4199089104 | GV5: =DR5-VLOOKUP($B5,'Defense Adjusted'!$A$1:$AG$32,'DA - Totals'!AF$2,FALSE) -> 3.952513908 | GW5: =DS5-VLOOKUP($B5,'Defense Adjusted'!$A$1:$AG$32,'DA - Totals'!AG$2,FALSE) -> 3.166524918 | GX5: =DT5-VLOOKUP($B5,'Defense Adjusted'!$A$1:$AG$32,'DA - Totals'!AH$2,FALSE) -> 37.48490994 | GY5: =DU5-VLOOKUP($B5,'Defense Adjusted'!$A$1:$AG$32,'DA - Totals'!AI$2,FALSE) -> 36.74644345 | HA5: 31 | HB5: 11 | HC5: 4 | HD5: 9 | HE5: 4 | HF5: 12 | HG5: 13 | HH5: 19 | HI5: 15 | HJ5: 19 | HK5: 5 | HL5: 20 | HM5: 31 | HN5: 15 | HO5: 31 | HP5: 13 | HQ5: 32 | HR5: 10 | HS5: 22 | HT5: 21 | HU5: 32 | HV5: 12 | HW5: 28 | HX5: 19 | HY5: 19 | HZ5: 31 | IA5: 22 | IB5: 17 | IC5: 16 | ID5: 11 | IE5: 21 | IF5: 11
A6: Browns | B6: Vikings | C6: 1 | D6: 20 | E6: 34 | G6: Quinn | H6: 1 | I6: 17 | J6: 12 | K6: 179 | L6: 21 | M6: 35 | N6: 1 | O6: 89 | P6: 20 | Q6: 0 | R6: 3 | S6: 12 | T6: 0 | U6: 1 | V6: 1 | W6: 1 | X6: 5 | Y6: 26 | Z6: 8 | AA6: 66 | AB6: 5 | AC6: 210 | AD6: 54 | AE6: 2 | AF6: 1 | AG6: 1 | AH6: 5 | AI6: 8 | AJ6: 2 | AK6: 7 | AL6: 1 | AM6: 3 | AN6: 0 | AO6: 0 | AP6: 0 | AQ6: 1 | AR6: 8 | AS6: 18 | AT6: 12 | AU6: 330 | AV6: 5 | AW6: 26 | AX6: 38 | AY6: 19 | AZ6: 12 | BA6: 85 | BB6: 14 | BC6: 22 | BD6: 1 | BE6: 225 | BF6: 37 | BG6: 3 | BH6: 6 | BI6: 14 | BJ6: 0 | BK6: 0 | BL6: 0 | BM6: 0 | BN6: 4 | BO6: 25 | BP6: 3 | BQ6: 38 | BR6: 6 | BS6: 232 | BT6: 67 | BU6: 5 | BV6: 3 | BW6: 2 | BX6: 11 | BY6: 17 | BZ6: 8 | CA6: 15 | CB6: 4 | CC6: 5 | CD6: 1 | CE6: 1 | CF6: 4 | CG6: 9 | CH6: 24 | CI6: 38 | CJ6: 13 | CK6: 515 | CL6: 5 | CM6: 33 | CN6: 22 | CP6: 0.6206896552 | CQ6: 0.7419354839 | CR6: 3.85 | CS6: 4.038461538 | CT6: 2 | CU6: 0 | CV6: 22.33333333 | CW6: 25.83333333 | CX6: 2.219444444 | CY6: 2.780555556 | CZ6: 4.466666667 | DA6: 4.920634921 | DB6: 1.416666667 | DC6: 1.583333333 | DD6: 0.2307692308 | DE6: 0.4285714286 | DF6: 27.5 | DG6: 39.61538462 | DH6: 5 | DI6: 5 | DJ6: 0.7142857143 | DK6: 0.7714285714 | DL6: 5 | DM6: 5.25 | DN6: 1.1 | DO6: 0.6031746032 | DP6: 0.4444444444 | DQ6: 0.6315789474 | DR6: 4.45 | DS6: 6.081081081 | DT6: 31.2 | DU6: 27.5 | DV6: 0 | DW6: 0.4444444444 | DX6: 0.07462686567 | DY6: 0.1096774194 | DZ6: 1.666666667 | EA6: 2.833333333 | EB6: 71.01190476 | EC6: 86.36363636 | EE6: 21 | EF6: 23 | EG6: 26 | EH6: 10 | EI6: 15 | EJ6: 25 | EK6: 23 | EL6: 14 | EM6: 28 | EN6: 19 | EO6: 22 | EP6: 15 | EQ6: 20 | ER6: 19 | ES6: 31 | ET6: 22 | EU6: 25 | EV6: 28 | EW6: 18 | EX6: 7 | EY6: 11 | EZ6: 24 | FA6: 22 | FB6: 14 | FC6: 27 | FD6: 18 | FE6: 15 | FF6: 30 | FG6: 11 | FH6: 32 | FI6: 28 | FJ6: 2 | FK6: 27 | FL6: 19 | FM6: 11 | FN6: 29 | FO6: 19 | FP6: 27 | FQ6: 23 | FR6: 18 | FT6: =CP6-VLOOKUP($B6,'Defense Adjusted'!$A$1:$AG$32,'DA - Totals'!D$2,FALSE) -> 0.6439637432 | FU6: =CQ6-VLOOKUP($B6,'Defense Adjusted'!$A$1:$AG$32,'DA - Totals'!E$2,FALSE) -> 0.690332689 | FV6: =CR6-VLOOKUP($B6,'Defense Adjusted'!$A$1:$AG$32,'DA - Totals'!F$2,FALSE) -> 2.688153237 | FW6: =CS6-VLOOKUP($B6,'Defense Adjusted'!$A$1:$AG$32,'DA - Totals'!G$2,FALSE) -> 2.102925734 | FX6: =CT6-VLOOKUP($B6,'Defense Adjusted'!$A$1:$AG$32,'DA - Totals'!H$2,FALSE) -> 2.415895153 | FY6: =CU6-VLOOKUP($B6,'Defense Adjusted'!$A$1:$AG$32,'DA - Totals'!I$2,FALSE) -> 0.6248431917 | FZ6: =CV6-VLOOKUP($B6,'Defense Adjusted'!$A$1:$AG$32,'DA - Totals'!J$2,FALSE) -> 23.21984259 | GA6: =CW6-VLOOKUP($B6,'Defense Adjusted'!$A$1:$AG$32,'DA - Totals'!K$2,FALSE) -> 21.66993143 | GB6: =CX6-VLOOKUP($B6,'Defense Adjusted'!$A$1:$AG$32,'DA - Totals'!L$2,FALSE) -> 2.476294588 | GC6: =CY6-VLOOKUP($B6,'Defense Adjusted'!$A$1:$AG$32,'DA - Totals'!M$2,FALSE) -> 2.516923823 | GD6: =CZ6-VLOOKUP($B6,'Defense Adjusted'!$A$1:$AG$32,'DA - Totals'!N$2,FALSE) -> 4.288203252 | GE6: =DA6-VLOOKUP($B6,'Defense Adjusted'!$A$1:$AG$32,'DA - Totals'!O$2,FALSE) -> 4.438185402 | GF6: =DB6-VLOOKUP($B6,'Defense Adjusted'!$A$1:$AG$32,'DA - Totals'!P$2,FALSE) -> 1.524333564 | GG6: =DC6-VLOOKUP($B6,'Defense Adjusted'!$A$1:$AG$32,'DA - Totals'!Q$2,FALSE) -> 1.331720861 | GH6: =DD6-VLOOKUP($B6,'Defense Adjusted'!$A$1:$AG$32,'DA - Totals'!R$2,FALSE) -> 0.2766877574 | GI6: =DE6-VLOOKUP($B6,'Defense Adjusted'!$A$1:$AG$32,'DA - Totals'!S$2,FALSE) -> 0.3780065573 | GJ6: =DF6-VLOOKUP($B6,'Defense Adjusted'!$A$1:$AG$32,'DA - Totals'!T$2,FALSE) -> 30.43467125 | GK6: =DG6-VLOOKUP($B6,'Defense Adjusted'!$A$1:$AG$32,'DA - Totals'!U$2,FALSE) -> 38.32276041 | GL6: =DH6-VLOOKUP($B6,'Defense Adjusted'!$A$1:$AG$32,'DA - Totals'!V$2,FALSE) -> 4.136281319 | GM6: =DI6-VLOOKUP($B6,'Defense Adjusted'!$A$1:$AG$32,'DA - Totals'!W$2,FALSE) -> 5.280912856 | GN6: =DJ6-VLOOKUP($B6,'Defense Adjusted'!$A$1:$AG$32,'DA - Totals'!X$2,FALSE) -> 0.6789160752 | GO6: =DK6-VLOOKUP($B6,'Defense Adjusted'!$A$1:$AG$32,'DA - Totals'!Y$2,FALSE) -> 0.6925615675 | GP6: =DL6-VLOOKUP($B6,'Defense Adjusted'!$A$1:$AG$32,'DA - Totals'!Z$2,FALSE) -> 5.379552671 | GQ6: =DM6-VLOOKUP($B6,'Defense Adjusted'!$A$1:$AG$32,'DA - Totals'!AA$2,FALSE) -> 4.933339859 | GR6: =DN6-VLOOKUP($B6,'Defense Adjusted'!$A$1:$AG$32,'DA - Totals'!AB$2,FALSE) -> 0.9345747535 | GS6: =DO6-VLOOKUP($B6,'Defense Adjusted'!$A$1:$AG$32,'DA - Totals'!AC$2,FALSE) -> 0.7104813652 | GT6: =DP6-VLOOKUP($B6,'Defense Adjusted'!$A$1:$AG$32,'DA - Totals'!AD$2,FALSE) -> 0.5282471649 | GU6: =DQ6-VLOOKUP($B6,'Defense Adjusted'!$A$1:$AG$32,'DA - Totals'!AE$2,FALSE) -> 0.6607280336 | GV6: =DR6-VLOOKUP($B6,'Defense Adjusted'!$A$1:$AG$32,'DA - Totals'!AF$2,FALSE) -> 4.789413632 | GW6: =DS6-VLOOKUP($B6,'Defense Adjusted'!$A$1:$AG$32,'DA - Totals'!AG$2,FALSE) -> 6.123183638 | GX6: =DT6-VLOOKUP($B6,'Defense Adjusted'!$A$1:$AG$32,'DA - Totals'!AH$2,FALSE) -> 30.23852866 | GY6: =DU6-VLOOKUP($B6,'Defense Adjusted'!$A$1:$AG$32,'DA - Totals'!AI$2,FALSE) -> 26.08709653 | HA6: 20 | HB6: 21 | HC6: 29 | HD6: 4 | HE6: 24 | HF6: 26 | HG6: 23 | HH6: 7 | HI6: 19 | HJ6: 16 | HK6: 25 | HL6: 10 | HM6: 14 | HN6: 13 | HO6: 26 | HP6: 19 | HQ6: 14 | HR6: 27 | HS6: 15 | HT6: 8 | HU6: 15 | HV6: 19 | HW6: 13 | HX6: 12 | HY6: 24 | HZ6: 13 | IA6: 8 | IB6: 32 | IC6: 4 | ID6: 32 | IE6: 28 | IF6: 2
A7: Buccaneers | B7: Cowboys | C7: 1 | D7: 21 | E7: 34 | G7: Leftwich | H7: 1 | I7: 26 | J7: 11 | K7: 276 | L7: 25 | M7: 42 | N7: 1 | O7: 174 | P7: 31 | Q7: 2 | R7: 5 | S7: 13 | T7: 1 | U7: 2 | V7: 0 | W7: 0 | X7: 0 | Y7: 0 | Z7: 4 | AA7: 20 | AB7: 5 | AC7: 205 | AD7: 3 | AE7: 3 | AF7: 3 | AG7: 0 | AH7: 6 | AI7: 12 | AJ7: 5 | AK7: 13 | AL7: 2 | AM7: 4 | AN7: 0 | AO7: 0 | AP7: 2 | AQ7: 6 | AR7: 13 | AS7: 29 | AT7: 11 | AU7: 255 | AV7: 3 | AW7: 33 | AX7: 32 | AY7: 18 | AZ7: 11 | BA7: 344 | BB7: 16 | BC7: 27 | BD7: 3 | BE7: 118 | BF7: 24 | BG7: 1 | BH7: 3 | BI7: 10 | BJ7: 0 | BK7: 0 | BL7: 0 | BM7: 0 | BN7: 1 | BO7: 9 | BP7: 4 | BQ7: 41 | BR7: 4 | BS7: 219 | BT7: 27 | BU7: 2 | BV7: 1 | BW7: 1 | BX7: 7 | BY7: 15 | BZ7: 4 | CA7: 6 | CB7: 1 | CC7: 2 | CD7: 0 | CE7: 0 | CF7: 6 | CG7: 7 | CH7: 12 | CI7: 23 | CJ7: 11 | CK7: 319 | CL7: 2 | CM7: 26 | CN7: 28 | CP7: 0.7837837838 | CQ7: 0.7586206897 | CR7: 7.047619048 | CS7: 14.42857143 | CT7: 0 | CU7: 0 | CV7: 40.90909091 | CW7: 42 | CX7: 3.048484848 | CY7: 2.406060606 | CZ7: 6.164383562 | DA7: 8.884615385 | DB7: 2.363636364 | DC7: 1.636363636 | DD7: 0.4 | DE7: 0.3 | DF7: 23.18181818 | DG7: 29 | DH7: 3 | DI7: 2 | DJ7: 1 | DK7: 0.7142857143 | DL7: 6.636363636 | DM7: 4.727272727 | DN7: 0.2739726027 | DO7: 0.7884615385 | DP7: 0.4482758621 | DQ7: 0.5217391304 | DR7: 5.612903226 | DS7: 4.916666667 | DT7: 40.4 | DU7: 48 | DV7: 0.3333333333 | DW7: 0.8571428571 | DX7: 0.04666666667 | DY7: 0.07359307359 | DZ7: 1.909090909 | EA7: 3.090909091 | EB7: 87.00396825 | EC7: 140.5864198 | EE7: 4 | EF7: 25 | EG7: 9 | EH7: 32 | EI7: 1 | EJ7: 25 | EK7: 5 | EL7: 29 | EM7: 6 | EN7: 11 | EO7: 5 | EP7: 32 | EQ7: 3 | ER7: 20 | ES7: 15 | ET7: 11 | EU7: 28 | EV7: 13 | EW7: 4 | EX7: 30 | EY7: 1 | EZ7: 18 | FA7: 4 | FB7: 6 | FC7: 2 | FD7: 11 | FE7: 13 | FF7: 24 | FG7: 3 | FH7: 29 | FI7: 16 | FJ7: 30 | FK7: 19 | FL7: 29 | FM7: 23 | FN7: 21 | FO7: 14 | FP7: 29 | FQ7: 13 | FR7: 32 | FT7: =CP7-VLOOKUP($B7,'Defense Adjusted'!$A$1:$AG$32,'DA - Totals'!D$2,FALSE) -> 0.8030239825 | FU7: =CQ7-VLOOKUP($B7,'Defense Adjusted'!$A$1:$AG$32,'DA - Totals'!E$2,FALSE) -> 0.7181739247 | FV7: =CR7-VLOOKUP($B7,'Defense Adjusted'!$A$1:$AG$32,'DA - Totals'!F$2,FALSE) -> 7.317479852 | FW7: =CS7-VLOOKUP($B7,'Defense Adjusted'!$A$1:$AG$32,'DA - Totals'!G$2,FALSE) -> 11.99477978 | FX7: =CT7-VLOOKUP($B7,'Defense Adjusted'!$A$1:$AG$32,'DA - Totals'!H$2,FALSE) -> 0.370266998 | FY7: =CU7-VLOOKUP($B7,'Defense Adjusted'!$A$1:$AG$32,'DA - Totals'!I$2,FALSE) -> 0.6707080919 | FZ7: =CV7-VLOOKUP($B7,'Defense Adjusted'!$A$1:$AG$32,'DA - Totals'!J$2,FALSE) -> 41.50168622 | GA7: =CW7-VLOOKUP($B7,'Defense Adjusted'!$A$1:$AG$32,'DA - Totals'!K$2,FALSE) -> 33.82678689 | GB7: =CX7-VLOOKUP($B7,'Defense Adjusted'!$A$1:$AG$32,'DA - Totals'!L$2,FALSE) -> 3.094555519 | GC7: =CY7-VLOOKUP($B7,'Defense Adjusted'!$A$1:$AG$32,'DA - Totals'!M$2,FALSE) -> 2.119294048 | GD7: =CZ7-VLOOKUP($B7,'Defense Adjusted'!$A$1:$AG$32,'DA - Totals'!N$2,FALSE) -> 6.30568623 | GE7: =DA7-VLOOKUP($B7,'Defense Adjusted'!$A$1:$AG$32,'DA - Totals'!O$2,FALSE) -> 7.66308582 | GF7: =DB7-VLOOKUP($B7,'Defense Adjusted'!$A$1:$AG$32,'DA - Totals'!P$2,FALSE) -> 2.352537281 | GG7: =DC7-VLOOKUP($B7,'Defense Adjusted'!$A$1:$AG$32,'DA - Totals'!Q$2,FALSE) -> 1.358336679 | GH7: =DD7-VLOOKUP($B7,'Defense Adjusted'!$A$1:$AG$32,'DA - Totals'!R$2,FALSE) -> 0.4371086618 | GI7: =DE7-VLOOKUP($B7,'Defense Adjusted'!$A$1:$AG$32,'DA - Totals'!S$2,FALSE) -> 0.2943969737 | GJ7: =DF7-VLOOKUP($B7,'Defense Adjusted'!$A$1:$AG$32,'DA - Totals'!T$2,FALSE) -> 27.73008556 | GK7: =DG7-VLOOKUP($B7,'Defense Adjusted'!$A$1:$AG$32,'DA - Totals'!U$2,FALSE) -> 32.52774856 | GL7: =DH7-VLOOKUP($B7,'Defense Adjusted'!$A$1:$AG$32,'DA - Totals'!V$2,FALSE) -> 3.491419929 | GM7: =DI7-VLOOKUP($B7,'Defense Adjusted'!$A$1:$AG$32,'DA - Totals'!W$2,FALSE) -> 3.625113966 | GN7: =DJ7-VLOOKUP($B7,'Defense Adjusted'!$A$1:$AG$32,'DA - Totals'!X$2,FALSE) -> 1.019849068 | GO7: =DK7-VLOOKUP($B7,'Defense Adjusted'!$A$1:$AG$32,'DA - Totals'!Y$2,FALSE) -> 0.7299165766 | GP7: =DL7-VLOOKUP($B7,'Defense Adjusted'!$A$1:$AG$32,'DA - Totals'!Z$2,FALSE) -> 6.537524044 | GQ7: =DM7-VLOOKUP($B7,'Defense Adjusted'!$A$1:$AG$32,'DA - Totals'!AA$2,FALSE) -> 4.38601508 | GR7: =DN7-VLOOKUP($B7,'Defense Adjusted'!$A$1:$AG$32,'DA - Totals'!AB$2,FALSE) -> 0.3123859152 | GS7: =DO7-VLOOKUP($B7,'Defense Adjusted'!$A$1:$AG$32,'DA - Totals'!AC$2,FALSE) -> 0.6903374434 | GT7: =DP7-VLOOKUP($B7,'Defense Adjusted'!$A$1:$AG$32,'DA - Totals'!AD$2,FALSE) -> 0.4500170743 | GU7: =DQ7-VLOOKUP($B7,'Defense Adjusted'!$A$1:$AG$32,'DA - Totals'!AE$2,FALSE) -> 0.4910484363 | GV7: =DR7-VLOOKUP($B7,'Defense Adjusted'!$A$1:$AG$32,'DA - Totals'!AF$2,FALSE) -> 5.597020523 | GW7: =DS7-VLOOKUP($B7,'Defense Adjusted'!$A$1:$AG$32,'DA - Totals'!AG$2,FALSE) -> 4.386713578 | GX7: =DT7-VLOOKUP($B7,'Defense Adjusted'!$A$1:$AG$32,'DA - Totals'!AH$2,FALSE) -> 39.37141762 | GY7: =DU7-VLOOKUP($B7,'Defense Adjusted'!$A$1:$AG$32,'DA - Totals'!AI$2,FALSE) -> 45.26633607 | HA7: 3 | HB7: 24 | HC7: 9 | HD7: 32 | HE7: 7 | HF7: 24 | HG7: 3 | HH7: 25 | HI7: 6 | HJ7: 4 | HK7: 3 | HL7: 32 | HM7: 3 | HN7: 14 | HO7: 11 | HP7: 8 | HQ7: 26 | HR7: 23 | HS7: 10 | HT7: 22 | HU7: 4 | HV7: 21 | HW7: 5 | HX7: 2 | HY7: 2 | HZ7: 17 | IA7: 13 | IB7: 22 | IC7: 2 | ID7: 23 | IE7: 16 | IF7: 28
A8: Cardinals | B8: 49ers | C8: 1 | D8: 16 | E8: 20 | G8: Warner | H8: 1 | I8: 17 | J8: 14 | K8: 259 | L8: 26 | M8: 44 | N8: 1 | O8: 40 | P8: 17 | Q8: 0 | R8: 4 | S8: 14 | T8: 0 | U8: 1 | V8: 2 | W8: 0 | X8: 3 | Y8: 29 | Z8: 12 | AA8: 82 | AB8: 6 | AC8: 328 | AD8: 37 | AE8: 2 | AF8: 1 | AG8: 1 | AH8: 3 | AI8: 11 | AJ8: 0 | AK8: 5 | AL8: 0 | AM8: 0 | AN8: 0 | AO8: 0 | AP8: 0 | AQ8: 0 | AR8: 3 | AS8: 16 | AT8: 14 | AU8: 367 | AV8: 6 | AW8: 28 | AX8: 23 | AY8: 13 | AZ8: 13 | BA8: 182 | BB8: 18 | BC8: 31 | BD8: 1 | BE8: 21 | BF8: 25 | BG8: 1 | BH8: 7 | BI8: 18 | BJ8: 0 | BK8: 0 | BL8: 0 | BM8: 1 | BN8: 4 | BO8: 27 | BP8: 4 | BQ8: 31 | BR8: 8 | BS8: 393 | BT8: 55 | BU8: 3 | BV8: 2 | BW8: 1 | BX8: 4 | BY8: 13 | BZ8: 1 | CA8: 9 | CB8: 0 | CC8: 3 | CD8: 0 | CE8: 0 | CF8: 2 | CG8: 8 | CH8: 5 | CI8: 25 | CJ8: 13 | CK8: 394 | CL8: 8 | CM8: 31 | CN8: 37 | CP8: 0.5806451613 | CQ8: 0.5769230769 | CR8: 4.021276596 | CS8: 5.771428571 | CT8: 2 | CU8: 1 | CV8: 21.35714286 | CW8: 15.61538462 | CX8: 2.027380952 | CY8: 2.432051282 | CZ8: 4.671875 | DA8: 3.383333333 | DB8: 1.214285714 | DC8: 1 | DD8: 0.2666666667 | DE8: 0.3888888889 | DF8: 26.21428571 | DG8: 30.30769231 | DH8: 6 | DI8: 8 | DJ8: 0.7142857143 | DK8: 0.8095238095 | DL8: 4.571428571 | DM8: 4.615384615 | DN8: 1.28125 | DO8: 0.5166666667 | DP8: 0.1875 | DQ8: 0.2 | DR8: 2.352941176 | DS8: 0.84 | DT8: 48.5 | DU8: 42.25 | DV8: 0 | DW8: 0.25 | DX8: 0.05351170569 | DY8: 0.09852216749 | DZ8: 1.142857143 | EA8: 1.538461538 | EB8: 64.48863636 | EC8: 85.68548387 | EE8: 27 | EF8: 5 | EG8: 24 | EH8: 18 | EI8: 15 | EJ8: 19 | EK8: 25 | EL8: 2 | EM8: 29 | EN8: 13 | EO8: 20 | EP8: 2 | EQ8: 25 | ER8: 2 | ES8: 27 | ET8: 15 | EU8: 27 | EV8: 20 | EW8: 27 | EX8: 2 | EY8: 11 | EZ8: 26 | FA8: 30 | FB8: 4 | FC8: 29 | FD8: 21 | FE8: 30 | FF8: 4 | FG8: 27 | FH8: 1 | FI8: 1 | FJ8: 21 | FK8: 27 | FL8: 7 | FM8: 20 | FN8: 28 | FO8: 24 | FP8: 12 | FQ8: 24 | FR8: 17 | FT8: =CP8-VLOOKUP($B8,'Defense Adjusted'!$A$1:$AG$32,'DA - Totals'!D$2,FALSE) -> 0.6570842322 | FU8: =CQ8-VLOOKUP($B8,'Defense Adjusted'!$A$1:$AG$32,'DA - Totals'!E$2,FALSE) -> 0.6526821882 | FV8: =CR8-VLOOKUP($B8,'Defense Adjusted'!$A$1:$AG$32,'DA - Totals'!F$2,FALSE) -> 4.2266061 | FW8: =CS8-VLOOKUP($B8,'Defense Adjusted'!$A$1:$AG$32,'DA - Totals'!G$2,FALSE) -> 6.855662563 | FX8: =CT8-VLOOKUP($B8,'Defense Adjusted'!$A$1:$AG$32,'DA - Totals'!H$2,FALSE) -> 1.800851166 | FY8: =CU8-VLOOKUP($B8,'Defense Adjusted'!$A$1:$AG$32,'DA - Totals'!I$2,FALSE) -> 1.143826982 | FZ8: =CV8-VLOOKUP($B8,'Defense Adjusted'!$A$1:$AG$32,'DA - Totals'!J$2,FALSE) -> 23.84662812 | GA8: =CW8-VLOOKUP($B8,'Defense Adjusted'!$A$1:$AG$32,'DA - Totals'!K$2,FALSE) -> 22.18601562 | GB8: =CX8-VLOOKUP($B8,'Defense Adjusted'!$A$1:$AG$32,'DA - Totals'!L$2,FALSE) -> 2.223769876 | GC8: =CY8-VLOOKUP($B8,'Defense Adjusted'!$A$1:$AG$32,'DA - Totals'!M$2,FALSE) -> 2.699281787 | GD8: =CZ8-VLOOKUP($B8,'Defense Adjusted'!$A$1:$AG$32,'DA - Totals'!N$2,FALSE) -> 4.926874833 | GE8: =DA8-VLOOKUP($B8,'Defense Adjusted'!$A$1:$AG$32,'DA - Totals'!O$2,FALSE) -> 3.805470592 | GF8: =DB8-VLOOKUP($B8,'Defense Adjusted'!$A$1:$AG$32,'DA - Totals'!P$2,FALSE) -> 1.479661135 | GG8: =DC8-VLOOKUP($B8,'Defense Adjusted'!$A$1:$AG$32,'DA - Totals'!Q$2,FALSE) -> 1.478966458 | GH8: =DD8-VLOOKUP($B8,'Defense Adjusted'!$A$1:$AG$32,'DA - Totals'!R$2,FALSE) -> 0.2903691433 | GI8: =DE8-VLOOKUP($B8,'Defense Adjusted'!$A$1:$AG$32,'DA - Totals'!S$2,FALSE) -> 0.4822661875 | GJ8: =DF8-VLOOKUP($B8,'Defense Adjusted'!$A$1:$AG$32,'DA - Totals'!T$2,FALSE) -> 26.79973003 | GK8: =DG8-VLOOKUP($B8,'Defense Adjusted'!$A$1:$AG$32,'DA - Totals'!U$2,FALSE) -> 31.65269108 | GL8: =DH8-VLOOKUP($B8,'Defense Adjusted'!$A$1:$AG$32,'DA - Totals'!V$2,FALSE) -> 4.641004031 | GM8: =DI8-VLOOKUP($B8,'Defense Adjusted'!$A$1:$AG$32,'DA - Totals'!W$2,FALSE) -> 6.631121679 | GN8: =DJ8-VLOOKUP($B8,'Defense Adjusted'!$A$1:$AG$32,'DA - Totals'!X$2,FALSE) -> 0.854793682 | GO8: =DK8-VLOOKUP($B8,'Defense Adjusted'!$A$1:$AG$32,'DA - Totals'!Y$2,FALSE) -> 0.7598946731 | GP8: =DL8-VLOOKUP($B8,'Defense Adjusted'!$A$1:$AG$32,'DA - Totals'!Z$2,FALSE) -> 4.901159306 | GQ8: =DM8-VLOOKUP($B8,'Defense Adjusted'!$A$1:$AG$32,'DA - Totals'!AA$2,FALSE) -> 5.387722795 | GR8: =DN8-VLOOKUP($B8,'Defense Adjusted'!$A$1:$AG$32,'DA - Totals'!AB$2,FALSE) -> 1.151314761 | GS8: =DO8-VLOOKUP($B8,'Defense Adjusted'!$A$1:$AG$32,'DA - Totals'!AC$2,FALSE) -> 0.5223510066 | GT8: =DP8-VLOOKUP($B8,'Defense Adjusted'!$A$1:$AG$32,'DA - Totals'!AD$2,FALSE) -> 0.2328442784 | GU8: =DQ8-VLOOKUP($B8,'Defense Adjusted'!$A$1:$AG$32,'DA - Totals'!AE$2,FALSE) -> 0.2284666825 | GV8: =DR8-VLOOKUP($B8,'Defense Adjusted'!$A$1:$AG$32,'DA - Totals'!AF$2,FALSE) -> 2.884159265 | GW8: =DS8-VLOOKUP($B8,'Defense Adjusted'!$A$1:$AG$32,'DA - Totals'!AG$2,FALSE) -> 0.4831345921 | GX8: =DT8-VLOOKUP($B8,'Defense Adjusted'!$A$1:$AG$32,'DA - Totals'!AH$2,FALSE) -> 45.07760454 | GY8: =DU8-VLOOKUP($B8,'Defense Adjusted'!$A$1:$AG$32,'DA - Totals'!AI$2,FALSE) -> 38.92018111 | HA8: 17 | HB8: 15 | HC8: 24 | HD8: 22 | HE8: 17 | HF8: 21 | HG8: 22 | HH8: 11 | HI8: 27 | HJ8: 21 | HK8: 16 | HL8: 5 | HM8: 19 | HN8: 18 | HO8: 24 | HP8: 25 | HQ8: 28 | HR8: 20 | HS8: 18 | HT8: 2 | HU8: 6 | HV8: 22 | HW8: 23 | HX8: 20 | HY8: 28 | HZ8: 22 | IA8: 29 | IB8: 4 | IC8: 23 | ID8: 1 | IE8: 6 | IF8: 16
A9: Chargers | B9: Raiders | C9: 1 | D9: 24 | E9: 20 | G9: Rivers | H9: 0 | I9: 19 | J9: 11 | K9: 240 | L9: 24 | M9: 36 | N9: 1 | O9: 77 | P9: 23 | Q9: 2 | R9: 5 | S9: 12 | T9: 0 | U9: 0 | V9: 1 | W9: 1 | X9: 3 | Y9: 12 | Z9: 9 | AA9: 60 | AB9: 5 | AC9: 265 | AD9: 36 | AE9: 4 | AF9: 3 | AG9: 0 | AH9: 7 | AI9: 15 | AJ9: 3 | AK9: 6 | AL9: 0 | AM9: 2 | AN9: 0 | AO9: 0 | AP9: 4 | AQ9: 8 | AR9: 10 | AS9: 23 | AT9: 12 | AU9: 351 | AV9: 4 | AW9: 28 | AX9: 23 | AY9: 19 | AZ9: 11 | BA9: 218 | BB9: 14 | BC9: 32 | BD9: 1 | BE9: 148 | BF9: 32 | BG9: 1 | BH9: 7 | BI9: 14 | BJ9: 1 | BK9: 1 | BL9: 2 | BM9: 1 | BN9: 1 | BO9: 7 | BP9: 6 | BQ9: 40 | BR9: 4 | BS9: 195 | BT9: 10 | BU9: 3 | BV9: 1 | BW9: 2 | BX9: 8 | BY9: 15 | BZ9: 4 | CA9: 13 | CB9: 3 | CC9: 3 | CD9: 0 | CE9: 0 | CF9: 2 | CG9: 4 | CH9: 15 | CI9: 31 | CJ9: 11 | CK9: 320 | CL9: 5 | CM9: 31 | CN9: 37 | CP9: 0.7333333333 | CQ9: 0.7 | CR9: 5.512820513 | CS9: 4.484848485 | CT9: 2 | CU9: 3 | CV9: 28.81818182 | CW9: 33.27272727 | CX9: 2.58030303 | CY9: 2.874242424 | CZ9: 5.112903226 | DA9: 5.630769231 | DB9: 1.727272727 | DC9: 1.727272727 | DD9: 0.4166666667 | DE9: 0.5333333333 | DF9: 29.25 | DG9: 29.09090909 | DH9: 4 | DI9: 5 | DJ9: 0.75 | DK9: 0.619047619 | DL9: 5.636363636 | DM9: 5.909090909 | DN9: 0.9677419355 | DO9: 0.6153846154 | DP9: 0.4347826087 | DQ9: 0.4838709677 | DR9: 3.347826087 | DS9: 4.625 | DT9: 45.8 | DU9: 46.25 | DV9: 0.5 | DW9: 0.5 | DX9: 0.07570977918 | DY9: 0.05464480874 | DZ9: 2.181818182 | EA9: 1.818181818 | EB9: 83.10185185 | EC9: 51.30208333 | EE9: 11 | EF9: 20 | EG9: 17 | EH9: 13 | EI9: 15 | EJ9: 4 | EK9: 12 | EL9: 22 | EM9: 18 | EN9: 24 | EO9: 15 | EP9: 22 | EQ9: 10 | ER9: 21 | ES9: 12 | ET9: 27 | EU9: 16 | EV9: 14 | EW9: 13 | EX9: 7 | EY9: 10 | EZ9: 15 | FA9: 13 | FB9: 23 | FC9: 25 | FD9: 17 | FE9: 16 | FF9: 23 | FG9: 19 | FH9: 25 | FI9: 9 | FJ9: 26 | FK9: 9 | FL9: 21 | FM9: 10 | FN9: 14 | FO9: 11 | FP9: 18 | FQ9: 19 | FR9: 4 | FT9: =CP9-VLOOKUP($B9,'Defense Adjusted'!$A$1:$AG$32,'DA - Totals'!D$2,FALSE) -> 0.7160999443 | FU9: =CQ9-VLOOKUP($B9,'Defense Adjusted'!$A$1:$AG$32,'DA - Totals'!E$2,FALSE) -> 0.8084872669 | FV9: =CR9-VLOOKUP($B9,'Defense Adjusted'!$A$1:$AG$32,'DA - Totals'!F$2,FALSE) -> 4.287713099 | FW9: =CS9-VLOOKUP($B9,'Defense Adjusted'!$A$1:$AG$32,'DA - Totals'!G$2,FALSE) -> 6.226784966 | FX9: =CT9-VLOOKUP($B9,'Defense Adjusted'!$A$1:$AG$32,'DA - Totals'!H$2,FALSE) -> 2.354912906 | FY9: =CU9-VLOOKUP($B9,'Defense Adjusted'!$A$1:$AG$32,'DA - Totals'!I$2,FALSE) -> 2.658131778 | FZ9: =CV9-VLOOKUP($B9,'Defense Adjusted'!$A$1:$AG$32,'DA - Totals'!J$2,FALSE) -> 26.53371493 | GA9: =CW9-VLOOKUP($B9,'Defense Adjusted'!$A$1:$AG$32,'DA - Totals'!K$2,FALSE) -> 39.51067327 | GB9: =CX9-VLOOKUP($B9,'Defense Adjusted'!$A$1:$AG$32,'DA - Totals'!L$2,FALSE) -> 2.467170611 | GC9: =CY9-VLOOKUP($B9,'Defense Adjusted'!$A$1:$AG$32,'DA - Totals'!M$2,FALSE) -> 3.197326357 | GD9: =CZ9-VLOOKUP($B9,'Defense Adjusted'!$A$1:$AG$32,'DA - Totals'!N$2,FALSE) -> 4.68914444 | GE9: =DA9-VLOOKUP($B9,'Defense Adjusted'!$A$1:$AG$32,'DA - Totals'!O$2,FALSE) -> 6.298968111 | GF9: =DB9-VLOOKUP($B9,'Defense Adjusted'!$A$1:$AG$32,'DA - Totals'!P$2,FALSE) -> 1.636173787 | GG9: =DC9-VLOOKUP($B9,'Defense Adjusted'!$A$1:$AG$32,'DA - Totals'!Q$2,FALSE) -> 2.140250461 | GH9: =DD9-VLOOKUP($B9,'Defense Adjusted'!$A$1:$AG$32,'DA - Totals'!R$2,FALSE) -> 0.4166418372 | GI9: =DE9-VLOOKUP($B9,'Defense Adjusted'!$A$1:$AG$32,'DA - Totals'!S$2,FALSE) -> 0.6049273353 | GJ9: =DF9-VLOOKUP($B9,'Defense Adjusted'!$A$1:$AG$32,'DA - Totals'!T$2,FALSE) -> 29.25975318 | GK9: =DG9-VLOOKUP($B9,'Defense Adjusted'!$A$1:$AG$32,'DA - Totals'!U$2,FALSE) -> 32.13450596 | GL9: =DH9-VLOOKUP($B9,'Defense Adjusted'!$A$1:$AG$32,'DA - Totals'!V$2,FALSE) -> 4.286646579 | GM9: =DI9-VLOOKUP($B9,'Defense Adjusted'!$A$1:$AG$32,'DA - Totals'!W$2,FALSE) -> 3.67867395 | GN9: =DJ9-VLOOKUP($B9,'Defense Adjusted'!$A$1:$AG$32,'DA - Totals'!X$2,FALSE) -> 0.7963923132 | GO9: =DK9-VLOOKUP($B9,'Defense Adjusted'!$A$1:$AG$32,'DA - Totals'!Y$2,FALSE) -> 0.6726672462 | GP9: =DL9-VLOOKUP($B9,'Defense Adjusted'!$A$1:$AG$32,'DA - Totals'!Z$2,FALSE) -> 5.590101098 | GQ9: =DM9-VLOOKUP($B9,'Defense Adjusted'!$A$1:$AG$32,'DA - Totals'!AA$2,FALSE) -> 6.548900376 | GR9: =DN9-VLOOKUP($B9,'Defense Adjusted'!$A$1:$AG$32,'DA - Totals'!AB$2,FALSE) -> 1.100684461 | GS9: =DO9-VLOOKUP($B9,'Defense Adjusted'!$A$1:$AG$32,'DA - Totals'!AC$2,FALSE) -> 0.4201178476 | GT9: =DP9-VLOOKUP($B9,'Defense Adjusted'!$A$1:$AG$32,'DA - Totals'!AD$2,FALSE) -> 0.416707753 | GU9: =DQ9-VLOOKUP($B9,'Defense Adjusted'!$A$1:$AG$32,'DA - Totals'!AE$2,FALSE) -> 0.5339065988 | GV9: =DR9-VLOOKUP($B9,'Defense Adjusted'!$A$1:$AG$32,'DA - Totals'!AF$2,FALSE) -> 2.786991548 | GW9: =DS9-VLOOKUP($B9,'Defense Adjusted'!$A$1:$AG$32,'DA - Totals'!AG$2,FALSE) -> 4.72493237 | GX9: =DT9-VLOOKUP($B9,'Defense Adjusted'!$A$1:$AG$32,'DA - Totals'!AH$2,FALSE) -> 44.24596628 | GY9: =DU9-VLOOKUP($B9,'Defense Adjusted'!$A$1:$AG$32,'DA - Totals'!AI$2,FALSE) -> 38.41888235 | HA9: 11 | HB9: 28 | HC9: 22 | HD9: 19 | HE9: 22 | HF9: 7 | HG9: 17 | HH9: 27 | HI9: 20 | HJ9: 26 | HK9: 19 | HL9: 27 | HM9: 11 | HN9: 26 | HO9: 14 | HP9: 30 | HQ9: 20 | HR9: 22 | HS9: 16 | HT9: 20 | HU9: 9 | HV9: 17 | HW9: 12 | HX9: 26 | HY9: 26 | HZ9: 27 | IA9: 16 | IB9: 25 | IC9: 26 | ID9: 28 | IE9: 7 | IF9: 15
A10: Chiefs | B10: Ravens | C10: 1 | D10: 24 | E10: 38 | G10: Croyle | H10: 0 | I10: 11 | J10: 11 | K10: 159 | L10: 16 | M10: 24 | N10: 2 | O10: 29 | P10: 17 | Q10: 0 | R10: 2 | S10: 10 | T10: 1 | U10: 2 | V10: 0 | W10: 0 | X10: 3 | Y10: 18 | Z10: 3 | AA10: 15 | AB10: 5 | AC10: 246 | AD10: 9 | AE10: 2 | AF10: 2 | AG10: 0 | AH10: 4 | AI10: 10 | AJ10: 0 | AK10: 5 | AL10: 0 | AM10: 2 | AN10: 0 | AO10: 0 | AP10: 1 | AQ10: 3 | AR10: 4 | AS10: 17 | AT10: 11 | AU10: 326 | AV10: 6 | AW10: 20 | AX10: 11 | AY10: 32 | AZ10: 11 | BA10: 303 | BB10: 26 | BC10: 43 | BD10: 3 | BE10: 198 | BF10: 41 | BG10: 2 | BH10: 10 | BI10: 17 | BJ10: 1 | BK10: 1 | BL10: 1 | BM10: 0 | BN10: 1 | BO10: 4 | BP10: 8 | BQ10: 65 | BR10: 3 | BS10: 87 | BT10: 0 | BU10: 4 | BV10: 4 | BW10: 0 | BX10: 15 | BY10: 20 | BZ10: 9 | CA10: 14 | CB10: 0 | CC10: 1 | CD10: 1 | CE10: 1 | CF10: 11 | CG10: 14 | CH10: 25 | CI10: 36 | CJ10: 11 | CK10: 331 | CL10: 2 | CM10: 39 | CN10: 49 | CP10: 0.5909090909 | CQ10: 0.8604651163 | CR10: 7.37037037 | CS10: 7.227272727 | CT10: 0 | CU10: 1 | CV10: 17.09090909 | CW10: 45.54545455 | CX10: 1.834848485 | CY10: 3.61969697 | CZ10: 4.272727273 | DA10: 5.894117647 | DB10: 1 | DC10: 2.909090909 | DD10: 0.25 | DE10: 0.6111111111 | DF10: 29.63636364 | DG10: 30.09090909 | DH10: 6 | DI10: 2 | DJ10: 1 | DK10: 1 | DL10: 4 | DM10: 7.727272727 | DN10: 0.3409090909 | DO10: 0.7647058824 | DP10: 0.2352941176 | DQ10: 0.6944444444 | DR10: 1.705882353 | DS10: 4.829268293 | DT10: 47.4 | DU10: 29 | DV10: 0.3333333333 | DW10: 0.7857142857 | DX10: 0.1276595745 | DY10: 0.07584830339 | DZ10: 2.181818182 | EA10: 3.454545455 | EB10: 113.0208333 | EC10: 95.39728682 | EE10: 25 | EF10: 32 | EG10: 7 | EH10: 25 | EI10: 1 | EJ10: 19 | EK10: 30 | EL10: 32 | EM10: 32 | EN10: 30 | EO10: 25 | EP10: 26 | EQ10: 28 | ER10: 32 | ES10: 29 | ET10: 31 | EU10: 15 | EV10: 19 | EW10: 27 | EX10: 30 | EY10: 1 | EZ10: 28 | FA10: 32 | FB10: 31 | FC10: 3 | FD10: 13 | FE10: 28 | FF10: 32 | FG10: 29 | FH10: 27 | FI10: 4 | FJ10: 3 | FK10: 19 | FL10: 28 | FM10: 2 | FN10: 24 | FO10: 11 | FP10: 31 | FQ10: 3 | FR10: 24 | FT10: =CP10-VLOOKUP($B10,'Defense Adjusted'!$A$1:$AG$32,'DA - Totals'!D$2,FALSE) -> 0.6272807392 | FU10: =CQ10-VLOOKUP($B10,'Defense Adjusted'!$A$1:$AG$32,'DA - Totals'!E$2,FALSE) -> 0.8400928462 | FV10: =CR10-VLOOKUP($B10,'Defense Adjusted'!$A$1:$AG$32,'DA - Totals'!F$2,FALSE) -> 8.082977589 | FW10: =CS10-VLOOKUP($B10,'Defense Adjusted'!$A$1:$AG$32,'DA - Totals'!G$2,FALSE) -> 7.069737528 | FX10: =CT10-VLOOKUP($B10,'Defense Adjusted'!$A$1:$AG$32,'DA - Totals'!H$2,FALSE) -> -0.3253269936 | FY10: =CU10-VLOOKUP($B10,'Defense Adjusted'!$A$1:$AG$32,'DA - Totals'!I$2,FALSE) -> 1.236572434 | FZ10: =CV10-VLOOKUP($B10,'Defense Adjusted'!$A$1:$AG$32,'DA - Totals'!J$2,FALSE) -> 19.1002929 | GA10: =CW10-VLOOKUP($B10,'Defense Adjusted'!$A$1:$AG$32,'DA - Totals'!K$2,FALSE) -> 43.45353542 | GB10: =CX10-VLOOKUP($B10,'Defense Adjusted'!$A$1:$AG$32,'DA - Totals'!L$2,FALSE) -> 1.82534615 | GC10: =CY10-VLOOKUP($B10,'Defense Adjusted'!$A$1:$AG$32,'DA - Totals'!M$2,FALSE) -> 3.595208234 | GD10: =CZ10-VLOOKUP($B10,'Defense Adjusted'!$A$1:$AG$32,'DA - Totals'!N$2,FALSE) -> 4.567995776 | GE10: =DA10-VLOOKUP($B10,'Defense Adjusted'!$A$1:$AG$32,'DA - Totals'!O$2,FALSE) -> 5.720602321 | GF10: =DB10-VLOOKUP($B10,'Defense Adjusted'!$A$1:$AG$32,'DA - Totals'!P$2,FALSE) -> 1.100720499 | GG10: =DC10-VLOOKUP($B10,'Defense Adjusted'!$A$1:$AG$32,'DA - Totals'!Q$2,FALSE) -> 2.769897838 | GH10: =DD10-VLOOKUP($B10,'Defense Adjusted'!$A$1:$AG$32,'DA - Totals'!R$2,FALSE) -> 0.2663525078 | GI10: =DE10-VLOOKUP($B10,'Defense Adjusted'!$A$1:$AG$32,'DA - Totals'!S$2,FALSE) -> 0.6051769627 | GJ10: =DF10-VLOOKUP($B10,'Defense Adjusted'!$A$1:$AG$32,'DA - Totals'!T$2,FALSE) -> 33.18140792 | GK10: =DG10-VLOOKUP($B10,'Defense Adjusted'!$A$1:$AG$32,'DA - Totals'!U$2,FALSE) -> 28.84228241 | GL10: =DH10-VLOOKUP($B10,'Defense Adjusted'!$A$1:$AG$32,'DA - Totals'!V$2,FALSE) -> 5.76383016 | GM10: =DI10-VLOOKUP($B10,'Defense Adjusted'!$A$1:$AG$32,'DA - Totals'!W$2,FALSE) -> 2.358635308 | GN10: =DJ10-VLOOKUP($B10,'Defense Adjusted'!$A$1:$AG$32,'DA - Totals'!X$2,FALSE) -> 1.130686531 | GO10: =DK10-VLOOKUP($B10,'Defense Adjusted'!$A$1:$AG$32,'DA - Totals'!Y$2,FALSE) -> 1.029175892 | GP10: =DL10-VLOOKUP($B10,'Defense Adjusted'!$A$1:$AG$32,'DA - Totals'!Z$2,FALSE) -> 4.117305151 | GQ10: =DM10-VLOOKUP($B10,'Defense Adjusted'!$A$1:$AG$32,'DA - Totals'!AA$2,FALSE) -> 7.56047785 | GR10: =DN10-VLOOKUP($B10,'Defense Adjusted'!$A$1:$AG$32,'DA - Totals'!AB$2,FALSE) -> 0.3975803891 | GS10: =DO10-VLOOKUP($B10,'Defense Adjusted'!$A$1:$AG$32,'DA - Totals'!AC$2,FALSE) -> 0.4954737823 | GT10: =DP10-VLOOKUP($B10,'Defense Adjusted'!$A$1:$AG$32,'DA - Totals'!AD$2,FALSE) -> 0.2745313756 | GU10: =DQ10-VLOOKUP($B10,'Defense Adjusted'!$A$1:$AG$32,'DA - Totals'!AE$2,FALSE) -> 0.6593529716 | GV10: =DR10-VLOOKUP($B10,'Defense Adjusted'!$A$1:$AG$32,'DA - Totals'!AF$2,FALSE) -> 2.425885061 | GW10: =DS10-VLOOKUP($B10,'Defense Adjusted'!$A$1:$AG$32,'DA - Totals'!AG$2,FALSE) -> 4.37394654 | GX10: =DT10-VLOOKUP($B10,'Defense Adjusted'!$A$1:$AG$32,'DA - Totals'!AH$2,FALSE) -> 46.31901019 | GY10: =DU10-VLOOKUP($B10,'Defense Adjusted'!$A$1:$AG$32,'DA - Totals'!AI$2,FALSE) -> 28.03694224 | HA10: 22 | HB10: 31 | HC10: 5 | HD10: 24 | HE10: 1 | HF10: 20 | HG10: 26 | HH10: 30 | HI10: 32 | HJ10: 32 | HK10: 21 | HL10: 24 | HM10: 26 | HN10: 32 | HO10: 28 | HP10: 31 | HQ10: 8 | HR10: 13 | HS10: 30 | HT10: 30 | HU10: 1 | HV10: 29 | HW10: 32 | HX10: 32 | HY10: 5 | HZ10: 23 | IA10: 28 | IB10: 31 | IC10: 28 | ID10: 22 | IE10: 3 | IF10: 3
A11: Colts | B11: Jaguars | C11: 1 | D11: 14 | E11: 12 | G11: Manning | H11: 1 | I11: 21 | J11: 9 | K11: 294 | L11: 28 | M11: 38 | N11: 1 | O11: 71 | P11: 31 | Q11: 1 | R11: 8 | S11: 14 | T11: 0 | U11: 2 | V11: 1 | W11: 1 | X11: 1 | Y11: 7 | Z11: 3 | AA11: 17 | AB11: 2 | AC11: 88 | AD11: 0 | AE11: 2 | AF11: 1 | AG11: 0 | AH11: 9 | AI11: 19 | AJ11: 2 | AK11: 6 | AL11: 2 | AM11: 5 | AN11: 0 | AO11: 1 | AP11: 3 | AQ11: 11 | AR11: 13 | AS11: 31 | AT11: 10 | AU11: 324 | AV11: 3 | AW11: 33 | AX11: 56 | AY11: 12 | AZ11: 9 | BA11: 114 | BB11: 14 | BC11: 28 | BD11: 0 | BE11: 114 | BF11: 26 | BG11: 1 | BH11: 6 | BI11: 15 | BJ11: 1 | BK11: 2 | BL11: 0 | BM11: 0 | BN11: 1 | BO11: 8 | BP11: 3 | BQ11: 24 | BR11: 5 | BS11: 189 | BT11: 5 | BU11: 2 | BV11: 1 | BW11: 1 | BX11: 5 | BY11: 9 | BZ11: 6 | CA11: 9 | CB11: 5 | CC11: 6 | CD11: 1 | CE11: 1 | CF11: 4 | CG11: 7 | CH11: 17 | CI11: 25 | CJ11: 10 | CK11: 276 | CL11: 4 | CM11: 26 | CN11: 4 | CP11: 0.7666666667 | CQ11: 0.619047619 | CR11: 6.897435897 | CS11: 3.931034483 | CT11: 2 | CU11: 0 | CV11: 40.55555556 | CW11: 25.33333333 | CX11: =(AW11+AX11/60)/J11 -> 3.77037037 | CY11: =(CM11+CN11/60)/AZ11 -> 2.896296296 | CZ11: 5.214285714 | DA11: 4.145454545 | DB11: 2.333333333 | DC11: 1.333333333 | DD11: 0.5 | DE11: 0.4117647059 | DF11: 32.4 | DG11: 27.6 | DH11: 3 | DI11: 4 | DJ11: 0.5 | DK11: 0.7142857143 | DL11: 7.777777778 | DM11: 6.111111111 | DN11: 0.2428571429 | DO11: 0.4363636364 | DP11: 0.4193548387 | DQ11: 0.68 | DR11: 2.290322581 | DS11: 4.384615385 | DT11: 44 | DU11: 36.8 | DV11: 0.2727272727 | DW11: 0.5714285714 | DX11: 0.03835616438 | DY11: 0.05263157895 | DZ11: 1.555555556 | EA11: 1.333333333 | EB11: 93.53070175 | EC11: 60.71428571 | EE11: 6 | EF11: 11 | EG11: 11 | EH11: 8 | EI11: 15 | EJ11: 25 | EK11: 6 | EL11: 12 | EM11: 1 | EN11: 25 | EO11: 14 | EP11: 5 | EQ11: 4 | ER11: 10 | ES11: 7 | ET11: 19 | EU11: 8 | EV11: 9 | EW11: 4 | EX11: 16 | EY11: 20 | EZ11: 18 | FA11: 1 | FB11: 27 | FC11: 1 | FD11: 25 | FE11: 18 | FF11: 31 | FG11: 28 | FH11: 21 | FI11: 10 | FJ11: 9 | FK11: 24 | FL11: 25 | FM11: 26 | FN11: 12 | FO11: 20 | FP11: 11 | FQ11: 10 | FR11: 7 | FT11: =CP11-VLOOKUP($B11,'Defense Adjusted'!$A$1:$AG$32,'DA - Totals'!D$2,FALSE) -> 0.7207215387 | FU11: =CQ11-VLOOKUP($B11,'Defense Adjusted'!$A$1:$AG$32,'DA - Totals'!E$2,FALSE) -> 0.6108880554 | FV11: =CR11-VLOOKUP($B11,'Defense Adjusted'!$A$1:$AG$32,'DA - Totals'!F$2,FALSE) -> 5.016080688 | FW11: =CS11-VLOOKUP($B11,'Defense Adjusted'!$A$1:$AG$32,'DA - Totals'!G$2,FALSE) -> 3.813667559 | FX11: =CT11-VLOOKUP($B11,'Defense Adjusted'!$A$1:$AG$32,'DA - Totals'!H$2,FALSE) -> 2.261790578 | FY11: =CU11-VLOOKUP($B11,'Defense Adjusted'!$A$1:$AG$32,'DA - Totals'!I$2,FALSE) -> 0.213794172 | FZ11: =CV11-VLOOKUP($B11,'Defense Adjusted'!$A$1:$AG$32,'DA - Totals'!J$2,FALSE) -> 34.05289434 | GA11: =CW11-VLOOKUP($B11,'Defense Adjusted'!$A$1:$AG$32,'DA - Totals'!K$2,FALSE) -> 23.69816828 | GB11: =CX11-VLOOKUP($B11,'Defense Adjusted'!$A$1:$AG$32,'DA - Totals'!L$2,FALSE) -> 3.379930886 | GC11: =CY11-VLOOKUP($B11,'Defense Adjusted'!$A$1:$AG$32,'DA - Totals'!M$2,FALSE) -> 2.743338209 | GD11: =CZ11-VLOOKUP($B11,'Defense Adjusted'!$A$1:$AG$32,'DA - Totals'!N$2,FALSE) -> 4.639592412 | GE11: =DA11-VLOOKUP($B11,'Defense Adjusted'!$A$1:$AG$32,'DA - Totals'!O$2,FALSE) -> 4.117955824 | GF11: =DB11-VLOOKUP($B11,'Defense Adjusted'!$A$1:$AG$32,'DA - Totals'!P$2,FALSE) -> 2.053175693 | GG11: =DC11-VLOOKUP($B11,'Defense Adjusted'!$A$1:$AG$32,'DA - Totals'!Q$2,FALSE) -> 1.245556366 | GH11: =DD11-VLOOKUP($B11,'Defense Adjusted'!$A$1:$AG$32,'DA - Totals'!R$2,FALSE) -> 0.4244086969 | GI11: =DE11-VLOOKUP($B11,'Defense Adjusted'!$A$1:$AG$32,'DA - Totals'!S$2,FALSE) -> 0.3434680397 | GJ11: =DF11-VLOOKUP($B11,'Defense Adjusted'!$A$1:$AG$32,'DA - Totals'!T$2,FALSE) -> 33.1600791 | GK11: =DG11-VLOOKUP($B11,'Defense Adjusted'!$A$1:$AG$32,'DA - Totals'!U$2,FALSE) -> 29.05516379 | GL11: =DH11-VLOOKUP($B11,'Defense Adjusted'!$A$1:$AG$32,'DA - Totals'!V$2,FALSE) -> 3.847166267 | GM11: =DI11-VLOOKUP($B11,'Defense Adjusted'!$A$1:$AG$32,'DA - Totals'!W$2,FALSE) -> 4.55533947 | GN11: =DJ11-VLOOKUP($B11,'Defense Adjusted'!$A$1:$AG$32,'DA - Totals'!X$2,FALSE) -> 0.4348878272 | GO11: =DK11-VLOOKUP($B11,'Defense Adjusted'!$A$1:$AG$32,'DA - Totals'!Y$2,FALSE) -> 0.7874203778 | GP11: =DL11-VLOOKUP($B11,'Defense Adjusted'!$A$1:$AG$32,'DA - Totals'!Z$2,FALSE) -> 7.190362806 | GQ11: =DM11-VLOOKUP($B11,'Defense Adjusted'!$A$1:$AG$32,'DA - Totals'!AA$2,FALSE) -> 5.798666653 | GR11: =DN11-VLOOKUP($B11,'Defense Adjusted'!$A$1:$AG$32,'DA - Totals'!AB$2,FALSE) -> 0.4978915587 | GS11: =DO11-VLOOKUP($B11,'Defense Adjusted'!$A$1:$AG$32,'DA - Totals'!AC$2,FALSE) -> 0.7069326862 | GT11: =DP11-VLOOKUP($B11,'Defense Adjusted'!$A$1:$AG$32,'DA - Totals'!AD$2,FALSE) -> 0.4380276447 | GU11: =DQ11-VLOOKUP($B11,'Defense Adjusted'!$A$1:$AG$32,'DA - Totals'!AE$2,FALSE) -> 0.6354723526 | GV11: =DR11-VLOOKUP($B11,'Defense Adjusted'!$A$1:$AG$32,'DA - Totals'!AF$2,FALSE) -> 2.538480359 | GW11: =DS11-VLOOKUP($B11,'Defense Adjusted'!$A$1:$AG$32,'DA - Totals'!AG$2,FALSE) -> 3.790072159 | GX11: =DT11-VLOOKUP($B11,'Defense Adjusted'!$A$1:$AG$32,'DA - Totals'!AH$2,FALSE) -> 41.94822324 | GY11: =DU11-VLOOKUP($B11,'Defense Adjusted'!$A$1:$AG$32,'DA - Totals'!AI$2,FALSE) -> 36.8669393 | HA11: 10 | HB11: 9 | HC11: 16 | HD11: 6 | HE11: 20 | HF11: 29 | HG11: 8 | HH11: 14 | HI11: 4 | HJ11: 22 | HK11: 20 | HL11: 6 | HM11: 4 | HN11: 9 | HO11: 13 | HP11: 15 | HQ11: 9 | HR11: 14 | HS11: 12 | HT11: 15 | HU11: 23 | HV11: 26 | HW11: 3 | HX11: 23 | HY11: 10 | HZ11: 14 | IA11: 14 | IB11: 30 | IC11: 27 | ID11: 16 | IE11: 11 | IF11: 12
A12: Cowboys | B12: Buccaneers | C12: 1 | D12: 34 | E12: 21 | G12: Romo | H12: 0 | I12: 18 | J12: 11 | K12: 344 | L12: 16 | M12: 27 | N12: 3 | O12: 118 | P12: 24 | Q12: 1 | R12: 3 | S12: 10 | T12: 0 | U12: 0 | V12: 0 | W12: 0 | X12: 1 | Y12: 9 | Z12: 4 | AA12: 41 | AB12: 4 | AC12: 219 | AD12: 27 | AE12: 2 | AF12: 1 | AG12: 1 | AH12: 7 | AI12: 15 | AJ12: 4 | AK12: 6 | AL12: 1 | AM12: 2 | AN12: 0 | AO12: 0 | AP12: 6 | AQ12: 7 | AR12: 12 | AS12: 23 | AT12: 11 | AU12: 319 | AV12: 2 | AW12: 26 | AX12: 28 | AY12: 26 | AZ12: 11 | BA12: 276 | BB12: 25 | BC12: 42 | BD12: 1 | BE12: 174 | BF12: 31 | BG12: 2 | BH12: 5 | BI12: 13 | BJ12: 1 | BK12: 2 | BL12: 0 | BM12: 0 | BN12: 0 | BO12: 0 | BP12: 4 | BQ12: 20 | BR12: 5 | BS12: 205 | BT12: 3 | BU12: 3 | BV12: 3 | BW12: 0 | BX12: 6 | BY12: 12 | BZ12: 5 | CA12: 13 | CB12: 2 | CC12: 4 | CD12: 0 | CE12: 0 | CF12: 2 | CG12: 6 | CH12: 13 | CI12: 29 | CJ12: 11 | CK12: 255 | CL12: 3 | CM12: 33 | CN12: 32 | CP12: 0.7586206897 | CQ12: 0.7837837838 | CR12: 14.42857143 | CS12: 7.047619048 | CT12: 0 | CU12: 0 | CV12: 42 | CW12: 40.90909091 | CX12: =(AW12+AX12/60)/J12 -> 2.406060606 | CY12: =(CM12+CN12/60)/AZ12 -> 3.048484848 | CZ12: 8.884615385 | DA12: 6.164383562 | DB12: 1.636363636 | DC12: 2.363636364 | DD12: 0.3 | DE12: 0.4 | DF12: 29 | DG12: 23.18181818 | DH12: 2 | DI12: 3 | DJ12: 0.7142857143 | DK12: 1 | DL12: 4.727272727 | DM12: 6.636363636 | DN12: 0.7884615385 | DO12: 0.2739726027 | DP12: 0.5217391304 | DQ12: 0.4482758621 | DR12: 4.916666667 | DS12: 5.612903226 | DT12: 48 | DU12: 40.4 | DV12: 0.8571428571 | DW12: 0.3333333333 | DX12: 0.07359307359 | DY12: 0.04666666667 | DZ12: 3.090909091 | EA12: 1.909090909 | EB12: 140.5864198 | EC12: 87.00396825 | EE12: 8 | EF12: 28 | EG12: 1 | EH12: 24 | EI12: 1 | EJ12: 25 | EK12: 3 | EL12: 28 | EM12: 22 | EN12: 27 | EO12: 1 | EP12: 28 | EQ12: 13 | ER12: 30 | ES12: 22 | ET12: 16 | EU12: 20 | EV12: 5 | EW12: 2 | EX12: 21 | EY12: 11 | EZ12: 28 | FA12: 27 | FB12: 28 | FC12: 22 | FD12: 31 | FE12: 9 | FF12: 19 | FG12: 4 | FH12: 30 | FI12: 3 | FJ12: 17 | FK12: 4 | FL12: 10 | FM12: 12 | FN12: 10 | FO12: 4 | FP12: 19 | FQ12: 1 | FR12: 20 | FT12: =CP12-VLOOKUP($B12,'Defense Adjusted'!$A$1:$AG$32,'DA - Totals'!D$2,FALSE) -> 0.7486163835 | FU12: =CQ12-VLOOKUP($B12,'Defense Adjusted'!$A$1:$AG$32,'DA - Totals'!E$2,FALSE) -> 0.8669415517 | FV12: =CR12-VLOOKUP($B12,'Defense Adjusted'!$A$1:$AG$32,'DA - Totals'!F$2,FALSE) -> 14.62998315 | FW12: =CS12-VLOOKUP($B12,'Defense Adjusted'!$A$1:$AG$32,'DA - Totals'!G$2,FALSE) -> 8.357592942 | FX12: =CT12-VLOOKUP($B12,'Defense Adjusted'!$A$1:$AG$32,'DA - Totals'!H$2,FALSE) -> -0.1812984552 | FY12: =CU12-VLOOKUP($B12,'Defense Adjusted'!$A$1:$AG$32,'DA - Totals'!I$2,FALSE) -> -0.2075934724 | FZ12: =CV12-VLOOKUP($B12,'Defense Adjusted'!$A$1:$AG$32,'DA - Totals'!J$2,FALSE) -> 40.94694812 | GA12: =CW12-VLOOKUP($B12,'Defense Adjusted'!$A$1:$AG$32,'DA - Totals'!K$2,FALSE) -> 44.47379932 | GB12: =CX12-VLOOKUP($B12,'Defense Adjusted'!$A$1:$AG$32,'DA - Totals'!L$2,FALSE) -> 2.363316608 | GC12: =CY12-VLOOKUP($B12,'Defense Adjusted'!$A$1:$AG$32,'DA - Totals'!M$2,FALSE) -> 3.217705759 | GD12: =CZ12-VLOOKUP($B12,'Defense Adjusted'!$A$1:$AG$32,'DA - Totals'!N$2,FALSE) -> 8.615848973 | GE12: =DA12-VLOOKUP($B12,'Defense Adjusted'!$A$1:$AG$32,'DA - Totals'!O$2,FALSE) -> 6.56934666 | GF12: =DB12-VLOOKUP($B12,'Defense Adjusted'!$A$1:$AG$32,'DA - Totals'!P$2,FALSE) -> 1.603057381 | GG12: =DC12-VLOOKUP($B12,'Defense Adjusted'!$A$1:$AG$32,'DA - Totals'!Q$2,FALSE) -> 2.662749501 | GH12: =DD12-VLOOKUP($B12,'Defense Adjusted'!$A$1:$AG$32,'DA - Totals'!R$2,FALSE) -> 0.297524861 | GI12: =DE12-VLOOKUP($B12,'Defense Adjusted'!$A$1:$AG$32,'DA - Totals'!S$2,FALSE) -> 0.4507374572 | GJ12: =DF12-VLOOKUP($B12,'Defense Adjusted'!$A$1:$AG$32,'DA - Totals'!T$2,FALSE) -> 28.67642522 | GK12: =DG12-VLOOKUP($B12,'Defense Adjusted'!$A$1:$AG$32,'DA - Totals'!U$2,FALSE) -> 23.51003269 | GL12: =DH12-VLOOKUP($B12,'Defense Adjusted'!$A$1:$AG$32,'DA - Totals'!V$2,FALSE) -> 2.292187916 | GM12: =DI12-VLOOKUP($B12,'Defense Adjusted'!$A$1:$AG$32,'DA - Totals'!W$2,FALSE) -> 1.741506953 | GN12: =DJ12-VLOOKUP($B12,'Defense Adjusted'!$A$1:$AG$32,'DA - Totals'!X$2,FALSE) -> 0.7098198604 | GO12: =DK12-VLOOKUP($B12,'Defense Adjusted'!$A$1:$AG$32,'DA - Totals'!Y$2,FALSE) -> 1.080442334 | GP12: =DL12-VLOOKUP($B12,'Defense Adjusted'!$A$1:$AG$32,'DA - Totals'!Z$2,FALSE) -> 4.735449403 | GQ12: =DM12-VLOOKUP($B12,'Defense Adjusted'!$A$1:$AG$32,'DA - Totals'!AA$2,FALSE) -> 7.032886904 | GR12: =DN12-VLOOKUP($B12,'Defense Adjusted'!$A$1:$AG$32,'DA - Totals'!AB$2,FALSE) -> 0.8528619339 | GS12: =DO12-VLOOKUP($B12,'Defense Adjusted'!$A$1:$AG$32,'DA - Totals'!AC$2,FALSE) -> 0.3674669292 | GT12: =DP12-VLOOKUP($B12,'Defense Adjusted'!$A$1:$AG$32,'DA - Totals'!AD$2,FALSE) -> 0.5014621018 | GU12: =DQ12-VLOOKUP($B12,'Defense Adjusted'!$A$1:$AG$32,'DA - Totals'!AE$2,FALSE) -> 0.5343442357 | GV12: =DR12-VLOOKUP($B12,'Defense Adjusted'!$A$1:$AG$32,'DA - Totals'!AF$2,FALSE) -> 4.4088154 | GW12: =DS12-VLOOKUP($B12,'Defense Adjusted'!$A$1:$AG$32,'DA - Totals'!AG$2,FALSE) -> 5.835693481 | GX12: =DT12-VLOOKUP($B12,'Defense Adjusted'!$A$1:$AG$32,'DA - Totals'!AH$2,FALSE) -> 49.13430032 | GY12: =DU12-VLOOKUP($B12,'Defense Adjusted'!$A$1:$AG$32,'DA - Totals'!AI$2,FALSE) -> 41.00641785 | HA12: 7 | HB12: 32 | HC12: 1 | HD12: 28 | HE12: 2 | HF12: 32 | HG12: 4 | HH12: 31 | HI12: 25 | HJ12: 27 | HK12: 1 | HL12: 29 | HM12: 12 | HN12: 31 | HO12: 22 | HP12: 23 | HQ12: 24 | HR12: 4 | HS12: 4 | HT12: 31 | HU12: 14 | HV12: 31 | HW12: 27 | HX12: 30 | HY12: 22 | HZ12: 29 | IA12: 10 | IB12: 26 | IC12: 10 | ID12: 30 | IE12: 1 | IF12: 20
A13: Dolphins | B13: Falcons | C13: 1 | D13: 7 | E13: 19 | G13: Pennington | H13: 0 | I13: 16 | J13: 11 | K13: 163 | L13: 21 | M13: 30 | N13: 1 | O13: 96 | P13: 22 | Q13: 0 | R13: 4 | S13: 11 | T13: 1 | U13: 1 | V13: 1 | W13: 3 | X13: 4 | Y13: 13 | Z13: 4 | AA13: 27 | AB13: 5 | AC13: 225 | AD13: 31 | AE13: 2 | AF13: 1 | AG13: 0 | AH13: 10 | AI13: 16 | AJ13: 2 | AK13: 6 | AL13: 0 | AM13: 0 | AN13: 0 | AO13: 0 | AP13: 2 | AQ13: 2 | AR13: 12 | AS13: 22 | AT13: 11 | AU13: 240 | AV13: 5 | AW13: 29 | AX13: 7 | AY13: 19 | AZ13: 11 | BA13: 213 | BB13: 22 | BC13: 36 | BD13: 2 | BE13: 68 | BF13: 27 | BG13: 0 | BH13: 6 | BI13: 15 | BJ13: 0 | BK13: 0 | BL13: 0 | BM13: 0 | BN13: 2 | BO13: 16 | BP13: 4 | BQ13: 35 | BR13: 4 | BS13: 155 | BT13: 11 | BU13: 4 | BV13: 1 | BW13: 1 | BX13: 4 | BY13: 15 | BZ13: 6 | CA13: 11 | CB13: 0 | CC13: 1 | CD13: 0 | CE13: 0 | CF13: 5 | CG13: 11 | CH13: 10 | CI13: 27 | CJ13: 11 | CK13: 516 | CL13: 4 | CM13: 30 | CN13: 53 | CP13: 0.6296296296 | CQ13: 0.7 | CR13: 4.058823529 | CS13: 6.657894737 | CT13: 4 | CU13: 0 | CV13: 23.54545455 | CW13: 25.54545455 | CX13: 2.646969697 | CY13: 2.807575758 | CZ13: 4.625 | DA13: 4.323076923 | DB13: 1.454545455 | DC13: 1.727272727 | DD13: 0.4166666667 | DE13: 0.4 | DF13: 21.81818182 | DG13: 46.90909091 | DH13: 5 | DI13: 4 | DJ13: 0.5 | DK13: 0.3571428571 | DL13: 5.090909091 | DM13: 5.909090909 | DN13: 0.4821428571 | DO13: 0.5384615385 | DP13: 0.5454545455 | DQ13: 0.3703703704 | DR13: 4.363636364 | DS13: 2.518518519 | DT13: 38.8 | DU13: 36 | DV13: 1 | DW13: 0.4545454545 | DX13: 0.02702702703 | DY13: 0.06761565836 | DZ13: 0.6363636364 | EA13: 1.727272727 | EB13: 80.27777778 | EC13: 96.18055556 | EE13: 18 | EF13: 20 | EG13: 22 | EH13: 20 | EI13: 30 | EJ13: 25 | EK13: 22 | EL13: 13 | EM13: 16 | EN13: 21 | EO13: 21 | EP13: 9 | EQ13: 18 | ER13: 21 | ES13: 12 | ET13: 16 | EU13: 29 | EV13: 32 | EW13: 18 | EX13: 16 | EY13: 20 | EZ13: 7 | FA13: 20 | FB13: 23 | FC13: 10 | FD13: 19 | FE13: 7 | FF13: 10 | FG13: 13 | FH13: 7 | FI13: 18 | FJ13: 7 | FK13: 1 | FL13: 20 | FM13: 30 | FN13: 20 | FO13: 30 | FP13: 16 | FQ13: 20 | FR13: 25 | FT13: =CP13-VLOOKUP($B13,'Defense Adjusted'!$A$1:$AG$32,'DA - Totals'!D$2,FALSE) -> 0.6106840383 | FU13: =CQ13-VLOOKUP($B13,'Defense Adjusted'!$A$1:$AG$32,'DA - Totals'!E$2,FALSE) -> 0.6284243285 | FV13: =CR13-VLOOKUP($B13,'Defense Adjusted'!$A$1:$AG$32,'DA - Totals'!F$2,FALSE) -> 3.182178937 | FW13: =CS13-VLOOKUP($B13,'Defense Adjusted'!$A$1:$AG$32,'DA - Totals'!G$2,FALSE) -> 5.789155959 | FX13: =CT13-VLOOKUP($B13,'Defense Adjusted'!$A$1:$AG$32,'DA - Totals'!H$2,FALSE) -> 3.989634089 | FY13: =CU13-VLOOKUP($B13,'Defense Adjusted'!$A$1:$AG$32,'DA - Totals'!I$2,FALSE) -> 0.374450183 | FZ13: =CV13-VLOOKUP($B13,'Defense Adjusted'!$A$1:$AG$32,'DA - Totals'!J$2,FALSE) -> 18.80912948 | GA13: =CW13-VLOOKUP($B13,'Defense Adjusted'!$A$1:$AG$32,'DA - Totals'!K$2,FALSE) -> 19.99706941 | GB13: =CX13-VLOOKUP($B13,'Defense Adjusted'!$A$1:$AG$32,'DA - Totals'!L$2,FALSE) -> 2.347500802 | GC13: =CY13-VLOOKUP($B13,'Defense Adjusted'!$A$1:$AG$32,'DA - Totals'!M$2,FALSE) -> 2.49729282 | GD13: =CZ13-VLOOKUP($B13,'Defense Adjusted'!$A$1:$AG$32,'DA - Totals'!N$2,FALSE) -> 4.404938528 | GE13: =DA13-VLOOKUP($B13,'Defense Adjusted'!$A$1:$AG$32,'DA - Totals'!O$2,FALSE) -> 4.162173477 | GF13: =DB13-VLOOKUP($B13,'Defense Adjusted'!$A$1:$AG$32,'DA - Totals'!P$2,FALSE) -> 1.203259838 | GG13: =DC13-VLOOKUP($B13,'Defense Adjusted'!$A$1:$AG$32,'DA - Totals'!Q$2,FALSE) -> 1.294395083 | GH13: =DD13-VLOOKUP($B13,'Defense Adjusted'!$A$1:$AG$32,'DA - Totals'!R$2,FALSE) -> 0.3574286258 | GI13: =DE13-VLOOKUP($B13,'Defense Adjusted'!$A$1:$AG$32,'DA - Totals'!S$2,FALSE) -> 0.3307166976 | GJ13: =DF13-VLOOKUP($B13,'Defense Adjusted'!$A$1:$AG$32,'DA - Totals'!T$2,FALSE) -> 24.27345282 | GK13: =DG13-VLOOKUP($B13,'Defense Adjusted'!$A$1:$AG$32,'DA - Totals'!U$2,FALSE) -> 46.86225318 | GL13: =DH13-VLOOKUP($B13,'Defense Adjusted'!$A$1:$AG$32,'DA - Totals'!V$2,FALSE) -> 5.730630372 | GM13: =DI13-VLOOKUP($B13,'Defense Adjusted'!$A$1:$AG$32,'DA - Totals'!W$2,FALSE) -> 5.096963298 | GN13: =DJ13-VLOOKUP($B13,'Defense Adjusted'!$A$1:$AG$32,'DA - Totals'!X$2,FALSE) -> 0.5470809338 | GO13: =DK13-VLOOKUP($B13,'Defense Adjusted'!$A$1:$AG$32,'DA - Totals'!Y$2,FALSE) -> 0.3145247892 | GP13: =DL13-VLOOKUP($B13,'Defense Adjusted'!$A$1:$AG$32,'DA - Totals'!Z$2,FALSE) -> 4.502053023 | GQ13: =DM13-VLOOKUP($B13,'Defense Adjusted'!$A$1:$AG$32,'DA - Totals'!AA$2,FALSE) -> 4.948487095 | GR13: =DN13-VLOOKUP($B13,'Defense Adjusted'!$A$1:$AG$32,'DA - Totals'!AB$2,FALSE) -> 0.3591367309 | GS13: =DO13-VLOOKUP($B13,'Defense Adjusted'!$A$1:$AG$32,'DA - Totals'!AC$2,FALSE) -> 0.6529451178 | GT13: =DP13-VLOOKUP($B13,'Defense Adjusted'!$A$1:$AG$32,'DA - Totals'!AD$2,FALSE) -> 0.5495029522 | GU13: =DQ13-VLOOKUP($B13,'Defense Adjusted'!$A$1:$AG$32,'DA - Totals'!AE$2,FALSE) -> 0.3692179883 | GV13: =DR13-VLOOKUP($B13,'Defense Adjusted'!$A$1:$AG$32,'DA - Totals'!AF$2,FALSE) -> 4.685475244 | GW13: =DS13-VLOOKUP($B13,'Defense Adjusted'!$A$1:$AG$32,'DA - Totals'!AG$2,FALSE) -> 2.60694694 | GX13: =DT13-VLOOKUP($B13,'Defense Adjusted'!$A$1:$AG$32,'DA - Totals'!AH$2,FALSE) -> 39.12566853 | GY13: =DU13-VLOOKUP($B13,'Defense Adjusted'!$A$1:$AG$32,'DA - Totals'!AI$2,FALSE) -> 37.14512171 | HA13: 26 | HB13: 10 | HC13: 27 | HD13: 18 | HE13: 31 | HF13: 28 | HG13: 27 | HH13: 5 | HI13: 26 | HJ13: 14 | HK13: 23 | HL13: 7 | HM13: 24 | HN13: 12 | HO13: 20 | HP13: 14 | HQ13: 29 | HR13: 32 | HS13: 29 | HT13: 10 | HU13: 20 | HV13: 5 | HW13: 30 | HX13: 13 | HY13: 3 | HZ13: 19 | IA13: 7 | IB13: 11 | IC13: 5 | ID13: 8 | IE13: 19 | IF13: 13
A14: Eagles | B14: Panthers | C14: 1 | D14: 38 | E14: 10 | G14: McNabb | H14: 0 | I14: 17 | J14: 12 | K14: 82 | L14: 17 | M14: 29 | N14: 2 | O14: 185 | P14: 32 | Q14: 1 | R14: 5 | S14: 13 | T14: 1 | U14: 2 | V14: 1 | W14: 1 | X14: 2 | Y14: 20 | Z14: 9 | AA14: 76 | AB14: 4 | AC14: 171 | AD14: 33 | AE14: 3 | AF14: 3 | AG14: 0 | AH14: 7 | AI14: 12 | AJ14: 8 | AK14: 11 | AL14: 1 | AM14: 3 | AN14: 0 | AO14: 0 | AP14: 2 | AQ14: 6 | AR14: 16 | AS14: 26 | AT14: 13 | AU14: 517 | AV14: 3 | AW14: 31 | AX14: 37 | AY14: 14 | AZ14: 14 | BA14: 83 | BB14: 14 | BC14: 34 | BD14: 0 | BE14: 86 | BF14: 30 | BG14: 1 | BH14: 3 | BI14: 16 | BJ14: 2 | BK14: 3 | BL14: 5 | BM14: 2 | BN14: 5 | BO14: 55 | BP14: 5 | BQ14: 30 | BR14: 4 | BS14: 223 | BT14: 106 | BU14: 3 | BV14: 1 | BW14: 1 | BX14: 5 | BY14: 17 | BZ14: 2 | CA14: 7 | CB14: 0 | CC14: 3 | CD14: 1 | CE14: 2 | CF14: 0 | CG14: 7 | CH14: 8 | CI14: 29 | CJ14: 15 | CK14: 500 | CL14: 9 | CM14: 28 | CN14: 23 | CP14: 0.6896551724 | CQ14: 0.5357142857 | CR14: 2.483870968 | CS14: -3.641025641 | CT14: 2 | CU14: 7 | CV14: 22.25 | CW14: 12.07142857 | CX14: 2.634722222 | CY14: 2.027380952 | CZ14: 4.238095238 | DA14: 2.449275362 | DB14: 1.416666667 | DC14: 1 | DD14: 0.4 | DE14: 0.2631578947 | DF14: 39.76923077 | DG14: 33.33333333 | DH14: 3 | DI14: 9 | DJ14: 1 | DK14: 0.4761904762 | DL14: 5.25 | DM14: 4.928571429 | DN14: 1.206349206 | DO14: 0.4347826087 | DP14: 0.6153846154 | DQ14: 0.275862069 | DR14: 5.78125 | DS14: 2.866666667 | DT14: 34.5 | DU14: 29.25 | DV14: 0.3333333333 | DW14: 0 | DX14: 0.1423220974 | DY14: 0.05917159763 | DZ14: 3.166666667 | EA14: 0.7142857143 | EB14: 72.0545977 | EC14: 9.31372549 | EE14: 14 | EF14: 3 | EG14: 30 | EH14: 1 | EI14: 15 | EJ14: 1 | EK14: 24 | EL14: 1 | EM14: 17 | EN14: 3 | EO14: 26 | EP14: 1 | EQ14: 20 | ER14: 2 | ES14: 15 | ET14: 5 | EU14: 4 | EV14: 26 | EW14: 4 | EX14: 1 | EY14: 1 | EZ14: 9 | FA14: 18 | FB14: 9 | FC14: 28 | FD14: 26 | FE14: 4 | FF14: 7 | FG14: 2 | FH14: 9 | FI14: 27 | FJ14: 4 | FK14: 19 | FL14: 1 | FM14: 1 | FN14: 16 | FO14: 3 | FP14: 4 | FQ14: 22 | FR14: 1 | FT14: =CP14-VLOOKUP($B14,'Defense Adjusted'!$A$1:$AG$32,'DA - Totals'!D$2,FALSE) -> 0.7244036157 | FU14: =CQ14-VLOOKUP($B14,'Defense Adjusted'!$A$1:$AG$32,'DA - Totals'!E$2,FALSE) -> 0.5457662694 | FV14: =CR14-VLOOKUP($B14,'Defense Adjusted'!$A$1:$AG$32,'DA - Totals'!F$2,FALSE) -> 4.017509453 | FW14: =CS14-VLOOKUP($B14,'Defense Adjusted'!$A$1:$AG$32,'DA - Totals'!G$2,FALSE) -> -3.247016195 | FX14: =CT14-VLOOKUP($B14,'Defense Adjusted'!$A$1:$AG$32,'DA - Totals'!H$2,FALSE) -> 1.345536868 | FY14: =CU14-VLOOKUP($B14,'Defense Adjusted'!$A$1:$AG$32,'DA - Totals'!I$2,FALSE) -> 6.877922406 | FZ14: =CV14-VLOOKUP($B14,'Defense Adjusted'!$A$1:$AG$32,'DA - Totals'!J$2,FALSE) -> 24.01744385 | GA14: =CW14-VLOOKUP($B14,'Defense Adjusted'!$A$1:$AG$32,'DA - Totals'!K$2,FALSE) -> 11.66969166 | GB14: =CX14-VLOOKUP($B14,'Defense Adjusted'!$A$1:$AG$32,'DA - Totals'!L$2,FALSE) -> 2.654568673 | GC14: =CY14-VLOOKUP($B14,'Defense Adjusted'!$A$1:$AG$32,'DA - Totals'!M$2,FALSE) -> 2.042699067 | GD14: =CZ14-VLOOKUP($B14,'Defense Adjusted'!$A$1:$AG$32,'DA - Totals'!N$2,FALSE) -> 4.551697281 | GE14: =DA14-VLOOKUP($B14,'Defense Adjusted'!$A$1:$AG$32,'DA - Totals'!O$2,FALSE) -> 2.426215186 | GF14: =DB14-VLOOKUP($B14,'Defense Adjusted'!$A$1:$AG$32,'DA - Totals'!P$2,FALSE) -> 1.487791793 | GG14: =DC14-VLOOKUP($B14,'Defense Adjusted'!$A$1:$AG$32,'DA - Totals'!Q$2,FALSE) -> 1.037389717 | GH14: =DD14-VLOOKUP($B14,'Defense Adjusted'!$A$1:$AG$32,'DA - Totals'!R$2,FALSE) -> 0.4430103678 | GI14: =DE14-VLOOKUP($B14,'Defense Adjusted'!$A$1:$AG$32,'DA - Totals'!S$2,FALSE) -> 0.2694424179 | GJ14: =DF14-VLOOKUP($B14,'Defense Adjusted'!$A$1:$AG$32,'DA - Totals'!T$2,FALSE) -> 39.81804687 | GK14: =DG14-VLOOKUP($B14,'Defense Adjusted'!$A$1:$AG$32,'DA - Totals'!U$2,FALSE) -> 35.23104158 | GL14: =DH14-VLOOKUP($B14,'Defense Adjusted'!$A$1:$AG$32,'DA - Totals'!V$2,FALSE) -> 3.337822831 | GM14: =DI14-VLOOKUP($B14,'Defense Adjusted'!$A$1:$AG$32,'DA - Totals'!W$2,FALSE) -> 8.674294646 | GN14: =DJ14-VLOOKUP($B14,'Defense Adjusted'!$A$1:$AG$32,'DA - Totals'!X$2,FALSE) -> 1.070896058 | GO14: =DK14-VLOOKUP($B14,'Defense Adjusted'!$A$1:$AG$32,'DA - Totals'!Y$2,FALSE) -> 0.5294565758 | GP14: =DL14-VLOOKUP($B14,'Defense Adjusted'!$A$1:$AG$32,'DA - Totals'!Z$2,FALSE) -> 5.348415632 | GQ14: =DM14-VLOOKUP($B14,'Defense Adjusted'!$A$1:$AG$32,'DA - Totals'!AA$2,FALSE) -> 4.907028222 | GR14: =DN14-VLOOKUP($B14,'Defense Adjusted'!$A$1:$AG$32,'DA - Totals'!AB$2,FALSE) -> 1.344579508 | GS14: =DO14-VLOOKUP($B14,'Defense Adjusted'!$A$1:$AG$32,'DA - Totals'!AC$2,FALSE) -> 0.5542873348 | GT14: =DP14-VLOOKUP($B14,'Defense Adjusted'!$A$1:$AG$32,'DA - Totals'!AD$2,FALSE) -> 0.5939879056 | GU14: =DQ14-VLOOKUP($B14,'Defense Adjusted'!$A$1:$AG$32,'DA - Totals'!AE$2,FALSE) -> 0.2838545195 | GV14: =DR14-VLOOKUP($B14,'Defense Adjusted'!$A$1:$AG$32,'DA - Totals'!AF$2,FALSE) -> 5.512670891 | GW14: =DS14-VLOOKUP($B14,'Defense Adjusted'!$A$1:$AG$32,'DA - Totals'!AG$2,FALSE) -> 2.315735946 | GX14: =DT14-VLOOKUP($B14,'Defense Adjusted'!$A$1:$AG$32,'DA - Totals'!AH$2,FALSE) -> 32.06174123 | GY14: =DU14-VLOOKUP($B14,'Defense Adjusted'!$A$1:$AG$32,'DA - Totals'!AI$2,FALSE) -> 30.49879606 | HA14: 9 | HB14: 3 | HC14: 25 | HD14: 1 | HE14: 14 | HF14: 1 | HG14: 21 | HH14: 1 | HI14: 13 | HJ14: 2 | HK14: 22 | HL14: 1 | HM14: 17 | HN14: 4 | HO14: 9 | HP14: 5 | HQ14: 3 | HR14: 26 | HS14: 7 | HT14: 1 | HU14: 3 | HV14: 13 | HW14: 15 | HX14: 10 | HY14: 30 | HZ14: 21 | IA14: 4 | IB14: 7 | IC14: 3 | ID14: 6 | IE14: 27 | IF14: 4
A15: Falcons | B15: Dolphins | C15: 1 | D15: 19 | E15: 7 | G15: Ryan | H15: 1 | I15: 19 | J15: 11 | K15: 213 | L15: 22 | M15: 36 | N15: 2 | O15: 68 | P15: 27 | Q15: 0 | R15: 6 | S15: 15 | T15: 0 | U15: 0 | V15: 0 | W15: 0 | X15: 2 | Y15: 16 | Z15: 4 | AA15: 35 | AB15: 4 | AC15: 155 | AD15: 11 | AE15: 4 | AF15: 1 | AG15: 1 | AH15: 4 | AI15: 15 | AJ15: 6 | AK15: 11 | AL15: 0 | AM15: 1 | AN15: 0 | AO15: 0 | AP15: 5 | AQ15: 11 | AR15: 10 | AS15: 27 | AT15: 11 | AU15: 516 | AV15: 4 | AW15: 30 | AX15: 53 | AY15: 16 | AZ15: 11 | BA15: 163 | BB15: 21 | BC15: 30 | BD15: 1 | BE15: 96 | BF15: 22 | BG15: 0 | BH15: 4 | BI15: 11 | BJ15: 1 | BK15: 1 | BL15: 1 | BM15: 3 | BN15: 4 | BO15: 13 | BP15: 4 | BQ15: 27 | BR15: 5 | BS15: 225 | BT15: 31 | BU15: 2 | BV15: 1 | BW15: 0 | BX15: 10 | BY15: 16 | BZ15: 2 | CA15: 6 | CB15: 0 | CC15: 0 | CD15: 0 | CE15: 0 | CF15: 2 | CG15: 2 | CH15: 12 | CI15: 22 | CJ15: 11 | CK15: 240 | CL15: 5 | CM15: 29 | CN15: 7 | CP15: 0.7 | CQ15: 0.6296296296 | CR15: 6.657894737 | CS15: 4.058823529 | CT15: 0 | CU15: 4 | CV15: 25.54545455 | CW15: 23.54545455 | CX15: 2.807575758 | CY15: 2.646969697 | CZ15: 4.323076923 | DA15: 4.625 | DB15: 1.727272727 | DC15: 1.454545455 | DD15: 0.4 | DE15: 0.4166666667 | DF15: 46.90909091 | DG15: 21.81818182 | DH15: 4 | DI15: 5 | DJ15: 0.3571428571 | DK15: 0.5 | DL15: 5.909090909 | DM15: 5.090909091 | DN15: 0.5384615385 | DO15: 0.4821428571 | DP15: 0.3703703704 | DQ15: 0.5454545455 | DR15: 2.518518519 | DS15: 4.363636364 | DT15: 36 | DU15: 38.8 | DV15: 0.4545454545 | DW15: 1 | DX15: 0.06761565836 | DY15: 0.02702702703 | DZ15: 1.727272727 | EA15: 0.6363636364 | EB15: 96.18055556 | EC15: 80.27777778 | EE15: 12 | EF15: 14 | EG15: 13 | EH15: 11 | EI15: 1 | EJ15: 2 | EK15: 20 | EL15: 11 | EM15: 12 | EN15: 17 | EO15: 24 | EP15: 12 | EQ15: 10 | ER15: 14 | ES15: 15 | ET15: 20 | EU15: 1 | EV15: 4 | EW15: 13 | EX15: 7 | EY15: 26 | EZ15: 10 | FA15: 9 | FB15: 13 | FC15: 14 | FD15: 23 | FE15: 23 | FF15: 26 | FG15: 26 | FH15: 20 | FI15: 26 | FJ15: 15 | FK15: 13 | FL15: 30 | FM15: 13 | FN15: 3 | FO15: 17 | FP15: 2 | FQ15: 8 | FR15: 13 | FT15: =CP15-VLOOKUP($B15,'Defense Adjusted'!$A$1:$AG$32,'DA - Totals'!D$2,FALSE) -> 0.7115740162 | FU15: =CQ15-VLOOKUP($B15,'Defense Adjusted'!$A$1:$AG$32,'DA - Totals'!E$2,FALSE) -> 0.5904152111 | FV15: =CR15-VLOOKUP($B15,'Defense Adjusted'!$A$1:$AG$32,'DA - Totals'!F$2,FALSE) -> 5.754433988 | FW15: =CS15-VLOOKUP($B15,'Defense Adjusted'!$A$1:$AG$32,'DA - Totals'!G$2,FALSE) -> 4.512002176 | FX15: =CT15-VLOOKUP($B15,'Defense Adjusted'!$A$1:$AG$32,'DA - Totals'!H$2,FALSE) -> 0.3477709117 | FY15: =CU15-VLOOKUP($B15,'Defense Adjusted'!$A$1:$AG$32,'DA - Totals'!I$2,FALSE) -> 4.017830061 | FZ15: =CV15-VLOOKUP($B15,'Defense Adjusted'!$A$1:$AG$32,'DA - Totals'!J$2,FALSE) -> 24.89210124 | GA15: =CW15-VLOOKUP($B15,'Defense Adjusted'!$A$1:$AG$32,'DA - Totals'!K$2,FALSE) -> 21.80559709 | GB15: =CX15-VLOOKUP($B15,'Defense Adjusted'!$A$1:$AG$32,'DA - Totals'!L$2,FALSE) -> 3.080903746 | GC15: =CY15-VLOOKUP($B15,'Defense Adjusted'!$A$1:$AG$32,'DA - Totals'!M$2,FALSE) -> 2.394067087 | GD15: =CZ15-VLOOKUP($B15,'Defense Adjusted'!$A$1:$AG$32,'DA - Totals'!N$2,FALSE) -> 3.819676453 | GE15: =DA15-VLOOKUP($B15,'Defense Adjusted'!$A$1:$AG$32,'DA - Totals'!O$2,FALSE) -> 4.808663131 | GF15: =DB15-VLOOKUP($B15,'Defense Adjusted'!$A$1:$AG$32,'DA - Totals'!P$2,FALSE) -> 1.816608522 | GG15: =DC15-VLOOKUP($B15,'Defense Adjusted'!$A$1:$AG$32,'DA - Totals'!Q$2,FALSE) -> 1.206116708 | GH15: =DD15-VLOOKUP($B15,'Defense Adjusted'!$A$1:$AG$32,'DA - Totals'!R$2,FALSE) -> 0.4420055989 | GI15: =DE15-VLOOKUP($B15,'Defense Adjusted'!$A$1:$AG$32,'DA - Totals'!S$2,FALSE) -> 0.3094760464 | GJ15: =DF15-VLOOKUP($B15,'Defense Adjusted'!$A$1:$AG$32,'DA - Totals'!T$2,FALSE) -> 47.44140543 | GK15: =DG15-VLOOKUP($B15,'Defense Adjusted'!$A$1:$AG$32,'DA - Totals'!U$2,FALSE) -> 23.68417002 | GL15: =DH15-VLOOKUP($B15,'Defense Adjusted'!$A$1:$AG$32,'DA - Totals'!V$2,FALSE) -> 3.883637093 | GM15: =DI15-VLOOKUP($B15,'Defense Adjusted'!$A$1:$AG$32,'DA - Totals'!W$2,FALSE) -> 5.249101963 | GN15: =DJ15-VLOOKUP($B15,'Defense Adjusted'!$A$1:$AG$32,'DA - Totals'!X$2,FALSE) -> 0.3320646655 | GO15: =DK15-VLOOKUP($B15,'Defense Adjusted'!$A$1:$AG$32,'DA - Totals'!Y$2,FALSE) -> 0.3581772661 | GP15: =DL15-VLOOKUP($B15,'Defense Adjusted'!$A$1:$AG$32,'DA - Totals'!Z$2,FALSE) -> 6.228114959 | GQ15: =DM15-VLOOKUP($B15,'Defense Adjusted'!$A$1:$AG$32,'DA - Totals'!AA$2,FALSE) -> 4.501365376 | GR15: =DN15-VLOOKUP($B15,'Defense Adjusted'!$A$1:$AG$32,'DA - Totals'!AB$2,FALSE) -> 0.6742065356 | GS15: =DO15-VLOOKUP($B15,'Defense Adjusted'!$A$1:$AG$32,'DA - Totals'!AC$2,FALSE) -> 0.6989287937 | GT15: =DP15-VLOOKUP($B15,'Defense Adjusted'!$A$1:$AG$32,'DA - Totals'!AD$2,FALSE) -> 0.3544456036 | GU15: =DQ15-VLOOKUP($B15,'Defense Adjusted'!$A$1:$AG$32,'DA - Totals'!AE$2,FALSE) -> 0.4662108685 | GV15: =DR15-VLOOKUP($B15,'Defense Adjusted'!$A$1:$AG$32,'DA - Totals'!AF$2,FALSE) -> 2.411843313 | GW15: =DS15-VLOOKUP($B15,'Defense Adjusted'!$A$1:$AG$32,'DA - Totals'!AG$2,FALSE) -> 4.230251609 | GX15: =DT15-VLOOKUP($B15,'Defense Adjusted'!$A$1:$AG$32,'DA - Totals'!AH$2,FALSE) -> 33.67700194 | GY15: =DU15-VLOOKUP($B15,'Defense Adjusted'!$A$1:$AG$32,'DA - Totals'!AI$2,FALSE) -> 35.84738549 | HA15: 13 | HB15: 6 | HC15: 12 | HD15: 14 | HE15: 6 | HF15: 2 | HG15: 20 | HH15: 8 | HI15: 7 | HJ15: 13 | HK15: 29 | HL15: 15 | HM15: 8 | HN15: 6 | HO15: 10 | HP15: 12 | HQ15: 1 | HR15: 5 | HS15: 13 | HT15: 9 | HU15: 28 | HV15: 8 | HW15: 6 | HX15: 3 | HY15: 16 | HZ15: 15 | IA15: 24 | IB15: 21 | IC15: 29 | ID15: 20 | IE15: 26 | IF15: 9
A16: Giants | B16: Redskins | C16: 1 | D16: 23 | E16: 17 | G16: Manning | H16: 1 | I16: 18 | J16: 10 | K16: 248 | L16: 20 | M16: 29 | N16: 1 | O16: 103 | P16: 31 | Q16: 0 | R16: 6 | S16: 13 | T16: 0 | U16: 1 | V16: 1 | W16: 1 | X16: 1 | Y16: 8 | Z16: 4 | AA16: 30 | AB16: 1 | AC16: 48 | AD16: 1 | AE16: 3 | AF16: 0 | AG16: 2 | AH16: 7 | AI16: 15 | AJ16: 5 | AK16: 10 | AL16: 0 | AM16: 4 | AN16: 0 | AO16: 1 | AP16: 3 | AQ16: 8 | AR16: 12 | AS16: 30 | AT16: 10 | AU16: 292 | AV16: 3 | AW16: 36 | AX16: 8 | AY16: 15 | AZ16: 10 | BA16: 187 | BB16: 19 | BC16: 26 | BD16: 1 | BE16: 85 | BF16: 21 | BG16: 1 | BH16: 5 | BI16: 12 | BJ16: 1 | BK16: 1 | BL16: 1 | BM16: 1 | BN16: 3 | BO16: 24 | BP16: 4 | BQ16: 32 | BR16: 5 | BS16: 193 | BT16: 0 | BU16: 3 | BV16: 2 | BW16: 2 | BX16: 1 | BY16: 11 | BZ16: 2 | CA16: 6 | CB16: 0 | CC16: 2 | CD16: 0 | CE16: 0 | CF16: 0 | CG16: 1 | CH16: 3 | CI16: 19 | CJ16: 10 | CK16: 313 | CL16: 3 | CM16: 23 | CN16: 52 | CP16: 0.6785714286 | CQ16: 0.68 | CR16: 7.433333333 | CS16: 5.586206897 | CT16: 2 | CU16: 2 | CV16: 35.1 | CW16: 27.2 | CX16: 3.613333333 | CY16: 2.386666667 | CZ16: 5.754098361 | DA16: 5.44 | DB16: 1.8 | DC16: 1.5 | DD16: 0.4285714286 | DE16: 0.4615384615 | DF16: 29.2 | DG16: 31.3 | DH16: 3 | DI16: 3 | DJ16: 0.2857142857 | DK16: 0.9523809524 | DL16: 6.1 | DM16: 5 | DN16: 0.4918032787 | DO16: 0.64 | DP16: 0.4 | DQ16: 0.1578947368 | DR16: 3.322580645 | DS16: 4.047619048 | DT16: 47 | DU16: 38.6 | DV16: 0.375 | DW16: 0 | DX16: 0.06552706553 | DY16: 0.0625 | DZ16: 2.3 | EA16: 1.7 | EB16: 92.31321839 | EC16: 89.74358974 | EE16: 16 | EF16: 18 | EG16: 6 | EH16: 17 | EI16: 15 | EJ16: 9 | EK16: 9 | EL16: 17 | EM16: 4 | EN16: 10 | EO16: 8 | EP16: 21 | EQ16: 9 | ER16: 17 | ES16: 10 | ET16: 25 | EU16: 17 | EV16: 23 | EW16: 4 | EX16: 21 | EY16: 28 | EZ16: 27 | FA16: 7 | FB16: 10 | FC16: 11 | FD16: 16 | FE16: 21 | FF16: 1 | FG16: 20 | FH16: 18 | FI16: 6 | FJ16: 14 | FK16: 17 | FL16: 1 | FM16: 14 | FN16: 17 | FO16: 9 | FP16: 15 | FQ16: 11 | FR16: 21 | FT16: =CP16-VLOOKUP($B16,'Defense Adjusted'!$A$1:$AG$32,'DA - Totals'!D$2,FALSE) -> 0.6872600337 | FU16: =CQ16-VLOOKUP($B16,'Defense Adjusted'!$A$1:$AG$32,'DA - Totals'!E$2,FALSE) -> 0.7011817796 | FV16: =CR16-VLOOKUP($B16,'Defense Adjusted'!$A$1:$AG$32,'DA - Totals'!F$2,FALSE) -> 7.792217231 | FW16: =CS16-VLOOKUP($B16,'Defense Adjusted'!$A$1:$AG$32,'DA - Totals'!G$2,FALSE) -> 5.643945273 | FX16: =CT16-VLOOKUP($B16,'Defense Adjusted'!$A$1:$AG$32,'DA - Totals'!H$2,FALSE) -> 2.640604299 | FY16: =CU16-VLOOKUP($B16,'Defense Adjusted'!$A$1:$AG$32,'DA - Totals'!I$2,FALSE) -> 2.072989837 | FZ16: =CV16-VLOOKUP($B16,'Defense Adjusted'!$A$1:$AG$32,'DA - Totals'!J$2,FALSE) -> 34.69170188 | GA16: =CW16-VLOOKUP($B16,'Defense Adjusted'!$A$1:$AG$32,'DA - Totals'!K$2,FALSE) -> 26.0637615 | GB16: =CX16-VLOOKUP($B16,'Defense Adjusted'!$A$1:$AG$32,'DA - Totals'!L$2,FALSE) -> 3.292452796 | GC16: =CY16-VLOOKUP($B16,'Defense Adjusted'!$A$1:$AG$32,'DA - Totals'!M$2,FALSE) -> 2.24328683 | GD16: =CZ16-VLOOKUP($B16,'Defense Adjusted'!$A$1:$AG$32,'DA - Totals'!N$2,FALSE) -> 6.055812009 | GE16: =DA16-VLOOKUP($B16,'Defense Adjusted'!$A$1:$AG$32,'DA - Totals'!O$2,FALSE) -> 5.534224025 | GF16: =DB16-VLOOKUP($B16,'Defense Adjusted'!$A$1:$AG$32,'DA - Totals'!P$2,FALSE) -> 1.780620377 | GG16: =DC16-VLOOKUP($B16,'Defense Adjusted'!$A$1:$AG$32,'DA - Totals'!Q$2,FALSE) -> 1.476470123 | GH16: =DD16-VLOOKUP($B16,'Defense Adjusted'!$A$1:$AG$32,'DA - Totals'!R$2,FALSE) -> 0.427314607 | GI16: =DE16-VLOOKUP($B16,'Defense Adjusted'!$A$1:$AG$32,'DA - Totals'!S$2,FALSE) -> 0.4701553763 | GJ16: =DF16-VLOOKUP($B16,'Defense Adjusted'!$A$1:$AG$32,'DA - Totals'!T$2,FALSE) -> 27.72517608 | GK16: =DG16-VLOOKUP($B16,'Defense Adjusted'!$A$1:$AG$32,'DA - Totals'!U$2,FALSE) -> 33.7077626 | GL16: =DH16-VLOOKUP($B16,'Defense Adjusted'!$A$1:$AG$32,'DA - Totals'!V$2,FALSE) -> 3.370933819 | GM16: =DI16-VLOOKUP($B16,'Defense Adjusted'!$A$1:$AG$32,'DA - Totals'!W$2,FALSE) -> 3.615391745 | GN16: =DJ16-VLOOKUP($B16,'Defense Adjusted'!$A$1:$AG$32,'DA - Totals'!X$2,FALSE) -> 0.3512985438 | GO16: =DK16-VLOOKUP($B16,'Defense Adjusted'!$A$1:$AG$32,'DA - Totals'!Y$2,FALSE) -> 0.9307552251 | GP16: =DL16-VLOOKUP($B16,'Defense Adjusted'!$A$1:$AG$32,'DA - Totals'!Z$2,FALSE) -> 5.736257584 | GQ16: =DM16-VLOOKUP($B16,'Defense Adjusted'!$A$1:$AG$32,'DA - Totals'!AA$2,FALSE) -> 4.670017323 | GR16: =DN16-VLOOKUP($B16,'Defense Adjusted'!$A$1:$AG$32,'DA - Totals'!AB$2,FALSE) -> 0.5637790235 | GS16: =DO16-VLOOKUP($B16,'Defense Adjusted'!$A$1:$AG$32,'DA - Totals'!AC$2,FALSE) -> 0.6948942008 | GT16: =DP16-VLOOKUP($B16,'Defense Adjusted'!$A$1:$AG$32,'DA - Totals'!AD$2,FALSE) -> 0.3920965927 | GU16: =DQ16-VLOOKUP($B16,'Defense Adjusted'!$A$1:$AG$32,'DA - Totals'!AE$2,FALSE) -> 0.2188319159 | GV16: =DR16-VLOOKUP($B16,'Defense Adjusted'!$A$1:$AG$32,'DA - Totals'!AF$2,FALSE) -> 3.412942747 | GW16: =DS16-VLOOKUP($B16,'Defense Adjusted'!$A$1:$AG$32,'DA - Totals'!AG$2,FALSE) -> 4.492995874 | GX16: =DT16-VLOOKUP($B16,'Defense Adjusted'!$A$1:$AG$32,'DA - Totals'!AH$2,FALSE) -> 45.54149627 | GY16: =DU16-VLOOKUP($B16,'Defense Adjusted'!$A$1:$AG$32,'DA - Totals'!AI$2,FALSE) -> 38.16286668 | HA16: 14 | HB16: 22 | HC16: 7 | HD16: 17 | HE16: 25 | HF16: 13 | HG16: 7 | HH16: 17 | HI16: 5 | HJ16: 7 | HK16: 6 | HL16: 23 | HM16: 9 | HN16: 17 | HO16: 12 | HP16: 24 | HQ16: 27 | HR16: 24 | HS16: 8 | HT16: 23 | HU16: 27 | HV16: 27 | HW16: 8 | HX16: 5 | HY16: 13 | HZ16: 16 | IA16: 20 | IB16: 3 | IC16: 18 | ID16: 26 | IE16: 4 | IF16: 14
A17: Jaguars | B17: Colts | C17: 1 | D17: 12 | E17: 14 | G17: Garrard | H17: 0 | I17: 12 | J17: 9 | K17: 114 | L17: 14 | M17: 28 | N17: 0 | O17: 114 | P17: 26 | Q17: 1 | R17: 6 | S17: 15 | T17: 1 | U17: 2 | V17: 0 | W17: 0 | X17: 1 | Y17: 8 | Z17: 3 | AA17: 24 | AB17: 5 | AC17: 189 | AD17: 5 | AE17: 2 | AF17: 1 | AG17: 1 | AH17: 5 | AI17: 9 | AJ17: 6 | AK17: 9 | AL17: 5 | AM17: 6 | AN17: 1 | AO17: 1 | AP17: 4 | AQ17: 7 | AR17: 17 | AS17: 25 | AT17: 10 | AU17: 276 | AV17: 4 | AW17: 26 | AX17: 4 | AY17: 21 | AZ17: 9 | BA17: 294 | BB17: 28 | BC17: 38 | BD17: 1 | BE17: 71 | BF17: 31 | BG17: 1 | BH17: 8 | BI17: 14 | BJ17: 0 | BK17: 2 | BL17: 1 | BM17: 1 | BN17: 1 | BO17: 7 | BP17: 3 | BQ17: 17 | BR17: 2 | BS17: 88 | BT17: 0 | BU17: 2 | BV17: 1 | BW17: 0 | BX17: 9 | BY17: 19 | BZ17: 2 | CA17: 6 | CB17: 2 | CC17: 5 | CD17: 0 | CE17: 1 | CF17: 3 | CG17: 11 | CH17: 13 | CI17: 31 | CJ17: 10 | CK17: 324 | CL17: 3 | CM17: 33 | CN17: 56 | CP17: 0.619047619 | CQ17: 0.7666666667 | CR17: 3.931034483 | CS17: 6.897435897 | CT17: 0 | CU17: 2 | CV17: 25.33333333 | CW17: 40.55555556 | CX17: 2.896296296 | CY17: 3.77037037 | CZ17: 4.145454545 | DA17: 5.214285714 | DB17: 1.333333333 | DC17: 2.333333333 | DD17: 0.4117647059 | DE17: 0.5 | DF17: 27.6 | DG17: 32.4 | DH17: 4 | DI17: 3 | DJ17: 0.7142857143 | DK17: 0.5 | DL17: 6.111111111 | DM17: 7.777777778 | DN17: 0.4363636364 | DO17: 0.2428571429 | DP17: 0.68 | DQ17: 0.4193548387 | DR17: 4.384615385 | DS17: 2.290322581 | DT17: 36.8 | DU17: 44 | DV17: 0.5714285714 | DW17: 0.2727272727 | DX17: 0.05263157895 | DY17: 0.03835616438 | DZ17: 1.333333333 | EA17: 1.555555556 | EB17: =((MAX(MIN(((L17/M17)*100-30)/20,2.375),0)+MAX(MIN(((K17/M17)-3)*0.25,2.375),0)+MAX(MIN((N17/M17)*20,2.375),0)+MAX(MIN((2.375-(V17/M17)*25),2.375),0))/6)*100 -> 60.71428571 | EC17: =((MAX(MIN(((BB17/BC17)*100-30)/20,2.375),0)+MAX(MIN(((BA17/BC17)-3)*0.25,2.375),0)+MAX(MIN((BD17/BC17)*20,2.375),0)+MAX(MIN((2.375-(BL17/BC17)*25),2.375),0))/6)*100 -> 93.53070175 | EE17: 22 | EF17: 27 | EG17: 25 | EH17: 22 | EI17: 1 | EJ17: 9 | EK17: 21 | EL17: 27 | EM17: 8 | EN17: 32 | EO17: 28 | EP17: 19 | EQ17: 23 | ER17: 29 | ES17: 14 | ET17: 26 | EU17: 24 | EV17: 25 | EW17: 13 | EX17: 21 | EY17: 11 | EZ17: 10 | FA17: 6 | FB17: 32 | FC17: 8 | FD17: =RANK(DO17,DO$1:DO$32,0) -> 32 | FE17: =RANK(DP17,DP$1:DP$32,0) -> 2 | FF17: 15 | FG17: 12 | FH17: 5 | FI17: 24 | FJ17: 23 | FK17: =RANK(DV17,DV$1:DV$32,0) -> 7 | FL17: 9 | FM17: 21 | FN17: 7 | FO17: 22 | FP17: 13 | FQ17: 26 | FR17: 23 | FT17: =CP17-VLOOKUP($B17,'Defense Adjusted'!$A$1:$AG$32,'DA - Totals'!D$2,FALSE) -> 0.608345311 | FU17: =CQ17-VLOOKUP($B17,'Defense Adjusted'!$A$1:$AG$32,'DA - Totals'!E$2,FALSE) -> 0.6633393579 | FV17: =CR17-VLOOKUP($B17,'Defense Adjusted'!$A$1:$AG$32,'DA - Totals'!F$2,FALSE) -> 4.272700508 | FW17: =CS17-VLOOKUP($B17,'Defense Adjusted'!$A$1:$AG$32,'DA - Totals'!G$2,FALSE) -> 4.795994434 | FX17: =CT17-VLOOKUP($B17,'Defense Adjusted'!$A$1:$AG$32,'DA - Totals'!H$2,FALSE) -> 0.1868401768 | FY17: =CU17-VLOOKUP($B17,'Defense Adjusted'!$A$1:$AG$32,'DA - Totals'!I$2,FALSE) -> 2.451690993 | FZ17: =CV17-VLOOKUP($B17,'Defense Adjusted'!$A$1:$AG$32,'DA - Totals'!J$2,FALSE) -> 22.26196403 | GA17: =CW17-VLOOKUP($B17,'Defense Adjusted'!$A$1:$AG$32,'DA - Totals'!K$2,FALSE) -> 31.76718071 | GB17: =CX17-VLOOKUP($B17,'Defense Adjusted'!$A$1:$AG$32,'DA - Totals'!L$2,FALSE) -> 2.47741041 | GC17: =CY17-VLOOKUP($B17,'Defense Adjusted'!$A$1:$AG$32,'DA - Totals'!M$2,FALSE) -> 3.586560438 | GD17: =CZ17-VLOOKUP($B17,'Defense Adjusted'!$A$1:$AG$32,'DA - Totals'!N$2,FALSE) -> 4.322668359 | GE17: =DA17-VLOOKUP($B17,'Defense Adjusted'!$A$1:$AG$32,'DA - Totals'!O$2,FALSE) -> 4.276167651 | GF17: =DB17-VLOOKUP($B17,'Defense Adjusted'!$A$1:$AG$32,'DA - Totals'!P$2,FALSE) -> 1.076230358 | GG17: =DC17-VLOOKUP($B17,'Defense Adjusted'!$A$1:$AG$32,'DA - Totals'!Q$2,FALSE) -> 1.739397538 | GH17: =DD17-VLOOKUP($B17,'Defense Adjusted'!$A$1:$AG$32,'DA - Totals'!R$2,FALSE) -> 0.3731313473 | GI17: =DE17-VLOOKUP($B17,'Defense Adjusted'!$A$1:$AG$32,'DA - Totals'!S$2,FALSE) -> 0.3781454972 | GJ17: =DF17-VLOOKUP($B17,'Defense Adjusted'!$A$1:$AG$32,'DA - Totals'!T$2,FALSE) -> 28.96402915 | GK17: =DG17-VLOOKUP($B17,'Defense Adjusted'!$A$1:$AG$32,'DA - Totals'!U$2,FALSE) -> 34.71149487 | GL17: =DH17-VLOOKUP($B17,'Defense Adjusted'!$A$1:$AG$32,'DA - Totals'!V$2,FALSE) -> 4.647811112 | GM17: =DI17-VLOOKUP($B17,'Defense Adjusted'!$A$1:$AG$32,'DA - Totals'!W$2,FALSE) -> 4.414664872 | GN17: =DJ17-VLOOKUP($B17,'Defense Adjusted'!$A$1:$AG$32,'DA - Totals'!X$2,FALSE) -> 0.7364914315 | GO17: =DK17-VLOOKUP($B17,'Defense Adjusted'!$A$1:$AG$32,'DA - Totals'!Y$2,FALSE) -> 0.3541593279 | GP17: =DL17-VLOOKUP($B17,'Defense Adjusted'!$A$1:$AG$32,'DA - Totals'!Z$2,FALSE) -> 5.238311218 | GQ17: =DM17-VLOOKUP($B17,'Defense Adjusted'!$A$1:$AG$32,'DA - Totals'!AA$2,FALSE) -> 7.041039817 | GR17: =DN17-VLOOKUP($B17,'Defense Adjusted'!$A$1:$AG$32,'DA - Totals'!AB$2,FALSE) -> 0.401543061 | GS17: =DO17-VLOOKUP($B17,'Defense Adjusted'!$A$1:$AG$32,'DA - Totals'!AC$2,FALSE) -> 0.4813367736 | GT17: =DP17-VLOOKUP($B17,'Defense Adjusted'!$A$1:$AG$32,'DA - Totals'!AD$2,FALSE) -> 0.6689402621 | GU17: =DQ17-VLOOKUP($B17,'Defense Adjusted'!$A$1:$AG$32,'DA - Totals'!AE$2,FALSE) -> 0.3822009966 | GV17: =DR17-VLOOKUP($B17,'Defense Adjusted'!$A$1:$AG$32,'DA - Totals'!AF$2,FALSE) -> 4.5043636 | GW17: =DS17-VLOOKUP($B17,'Defense Adjusted'!$A$1:$AG$32,'DA - Totals'!AG$2,FALSE) -> 2.94587088 | GX17: =DT17-VLOOKUP($B17,'Defense Adjusted'!$A$1:$AG$32,'DA - Totals'!AH$2,FALSE) -> 34.2320496 | GY17: =DU17-VLOOKUP($B17,'Defense Adjusted'!$A$1:$AG$32,'DA - Totals'!AI$2,FALSE) -> 43.0189725 | HA17: 27 | HB17: 18 | HC17: 23 | HD17: 15 | HE17: 5 | HF17: 9 | HG17: 24 | HH17: 24 | HI17: 18 | HJ17: 31 | HK17: 24 | HL17: 8 | HM17: 27 | HN17: 23 | HO17: 17 | HP17: 20 | HQ17: 23 | HR17: 25 | HS17: 19 | HT17: 17 | HU17: 12 | HV17: 7 | HW17: 18 | HX17: 31 | HY17: 6 | HZ17: 24 | IA17: 1 | IB17: 13 | IC17: 9 | ID17: 10 | IE17: 25 | IF17: 24
A18: Jets | B18: Texans | C18: 1 | D18: 24 | E18: 7 | G18: Sanchez | H18: 0 | I18: 22 | J18: 11 | K18: 272 | L18: 18 | M18: 31 | N18: 1 | O18: 190 | P18: 42 | Q18: 2 | R18: 10 | S18: 18 | T18: 2 | U18: 2 | V18: 1 | W18: 0 | X18: 0 | Y18: 0 | Z18: 10 | AA18: 80 | AB18: 4 | AC18: 164 | AD18: 0 | AE18: 2 | AF18: 1 | AG18: 1 | AH18: 6 | AI18: 20 | AJ18: 4 | AK18: 16 | AL18: 0 | AM18: 2 | AN18: 1 | AO18: 1 | AP18: 5 | AQ18: 14 | AR18: 11 | AS18: 39 | AT18: 11 | AU18: 305 | AV18: 5 | AW18: 38 | AX18: 46 | AY18: 11 | AZ18: 9 | BA18: 145 | BB18: 18 | BC18: 33 | BD18: 0 | BE18: 38 | BF18: 13 | BG18: 0 | BH18: 3 | BI18: 10 | BJ18: 0 | BK18: 1 | BL18: 1 | BM18: 1 | BN18: 2 | BO18: 21 | BP18: 6 | BQ18: 37 | BR18: 6 | BS18: 264 | BT18: 34 | BU18: 0 | BV18: 0 | BW18: 0 | BX18: 1 | BY18: 7 | BZ18: 1 | CA18: 3 | CB18: 2 | CC18: 2 | CD18: 0 | CE18: 0 | CF18: 1 | CG18: 1 | CH18: 4 | CI18: 12 | CJ18: 9 | CK18: 196 | CL18: 3 | CM18: 21 | CN18: 14 | CP18: 0.7575757576 | CQ18: 0.55 | CR18: 7.967741935 | CS18: 2.857142857 | CT18: 1 | CU18: 2 | CV18: 42 | CW18: 20.33333333 | CX18: 3.524242424 | CY18: 2.359259259 | CZ18: 6.328767123 | DA18: 3.8125 | DB18: 2 | DC18: 1.222222222 | DD18: 0.6 | DE18: 0.2727272727 | DF18: 27.72727273 | DG18: 21.77777778 | DH18: 5 | DI18: 3 | DJ18: =IF(AE18<>0,(AF18*7+AG18*3)/(AE18*7),0) -> 0.7142857143 | DK18: =IF(BU18<>0,(BV18*7+BW18*3)/(BU18*7),0) -> 0 | DL18: 6.636363636 | DM18: 5.333333333 | DN18: 1.095890411 | DO18: 0.7708333333 | DP18: =AR18/AS18 -> 0.2820512821 | DQ18: =CH18/CI18 -> 0.3333333333 | DR18: 4.523809524 | DS18: 2.923076923 | DT18: 41 | DU18: 38.33333333 | DV18: =IF(AQ18<>0,AP18/AQ18,0) -> 0.3571428571 | DW18: =IF(CG18<>0,CF18/CG18,0) -> 1 | DX18: =D18/(K18+O18) -> 0.05194805195 | DY18: =E18/(BA18+BE18) -> 0.03825136612 | DZ18: =D18/J18 -> 2.181818182 | EA18: =E18/AZ18 -> 0.7777777778 | EB18: =((MAX(MIN(((L18/M18)*100-30)/20,2.375),0)+MAX(MIN(((K18/M18)-3)*0.25,2.375),0)+MAX(MIN((N18/M18)*20,2.375),0)+MAX(MIN((2.375-(V18/M18)*25),2.375),0))/6)*100 -> 84.34139785 | EC18: =((MAX(MIN(((BB18/BC18)*100-30)/20,2.375),0)+MAX(MIN(((BA18/BC18)-3)*0.25,2.375),0)+MAX(MIN((BD18/BC18)*20,2.375),0)+MAX(MIN((2.375-(BL18/BC18)*25),2.375),0))/6)*100 -> 53.21969697 | EE18: 9 | EF18: 4 | EG18: 3 | EH18: 5 | EI18: 9 | EJ18: 9 | EK18: 3 | EL18: 6 | EM18: 5 | EN18: 8 | EO18: 4 | EP18: 3 | EQ18: 8 | ER18: 9 | ES18: 3 | ET18: 7 | EU18: 23 | EV18: 3 | EW18: 18 | EX18: 21 | EY18: 11 | EZ18: 1 | FA18: 4 | FB18: 18 | FC18: 26 | FD18: 12 | FE18: 25 | FF18: 9 | FG18: 9 | FH18: 10 | FI18: 14 | FJ18: 13 | FK18: 18 | FL18: 30 | FM18: 22 | FN18: 6 | FO18: 11 | FP18: 5 | FQ18: 18 | FR18: 5 | FT18: =CP18-VLOOKUP($B18,'Defense Adjusted'!$A$1:$AG$32,'DA - Totals'!D$2,FALSE) -> 0.7577298218 | FU18: =CQ18-VLOOKUP($B18,'Defense Adjusted'!$A$1:$AG$32,'DA - Totals'!E$2,FALSE) -> 0.5119566572 | FV18: =CR18-VLOOKUP($B18,'Defense Adjusted'!$A$1:$AG$32,'DA - Totals'!F$2,FALSE) -> 7.501560925 | FW18: =CS18-VLOOKUP($B18,'Defense Adjusted'!$A$1:$AG$32,'DA - Totals'!G$2,FALSE) -> 1.294711578 | FX18: =CT18-VLOOKUP($B18,'Defense Adjusted'!$A$1:$AG$32,'DA - Totals'!H$2,FALSE) -> 1.092048515 | FY18: =CU18-VLOOKUP($B18,'Defense Adjusted'!$A$1:$AG$32,'DA - Totals'!I$2,FALSE) -> 1.869399331 | FZ18: =CV18-VLOOKUP($B18,'Defense Adjusted'!$A$1:$AG$32,'DA - Totals'!J$2,FALSE) -> 40.75531077 | GA18: =CW18-VLOOKUP($B18,'Defense Adjusted'!$A$1:$AG$32,'DA - Totals'!K$2,FALSE) -> 16.32874405 | GB18: =CX18-VLOOKUP($B18,'Defense Adjusted'!$A$1:$AG$32,'DA - Totals'!L$2,FALSE) -> 3.594607156 | GC18: =CY18-VLOOKUP($B18,'Defense Adjusted'!$A$1:$AG$32,'DA - Totals'!M$2,FALSE) -> 2.276783069 | GD18: =CZ18-VLOOKUP($B18,'Defense Adjusted'!$A$1:$AG$32,'DA - Totals'!N$2,FALSE) -> 6.149059852 | GE18: =DA18-VLOOKUP($B18,'Defense Adjusted'!$A$1:$AG$32,'DA - Totals'!O$2,FALSE) -> 3.244037388 | GF18: =DB18-VLOOKUP($B18,'Defense Adjusted'!$A$1:$AG$32,'DA - Totals'!P$2,FALSE) -> 1.890619174 | GG18: =DC18-VLOOKUP($B18,'Defense Adjusted'!$A$1:$AG$32,'DA - Totals'!Q$2,FALSE) -> 0.995601239 | GH18: =DD18-VLOOKUP($B18,'Defense Adjusted'!$A$1:$AG$32,'DA - Totals'!R$2,FALSE) -> 0.6127336627 | GI18: =DE18-VLOOKUP($B18,'Defense Adjusted'!$A$1:$AG$32,'DA - Totals'!S$2,FALSE) -> 0.2561105808 | GJ18: =DF18-VLOOKUP($B18,'Defense Adjusted'!$A$1:$AG$32,'DA - Totals'!T$2,FALSE) -> 30.53105856 | GK18: =DG18-VLOOKUP($B18,'Defense Adjusted'!$A$1:$AG$32,'DA - Totals'!U$2,FALSE) -> 22.52542414 | GL18: =DH18-VLOOKUP($B18,'Defense Adjusted'!$A$1:$AG$32,'DA - Totals'!V$2,FALSE) -> 4.797364679 | GM18: =DI18-VLOOKUP($B18,'Defense Adjusted'!$A$1:$AG$32,'DA - Totals'!W$2,FALSE) -> 3.590260105 | GN18: =DJ18-VLOOKUP($B18,'Defense Adjusted'!$A$1:$AG$32,'DA - Totals'!X$2,FALSE) -> 0.6109240608 | GO18: =DK18-VLOOKUP($B18,'Defense Adjusted'!$A$1:$AG$32,'DA - Totals'!Y$2,FALSE) -> 0.02193013271 | GP18: =DL18-VLOOKUP($B18,'Defense Adjusted'!$A$1:$AG$32,'DA - Totals'!Z$2,FALSE) -> 6.613763202 | GQ18: =DM18-VLOOKUP($B18,'Defense Adjusted'!$A$1:$AG$32,'DA - Totals'!AA$2,FALSE) -> 5.199549546 | GR18: =DN18-VLOOKUP($B18,'Defense Adjusted'!$A$1:$AG$32,'DA - Totals'!AB$2,FALSE) -> 1.112192234 | GS18: =DO18-VLOOKUP($B18,'Defense Adjusted'!$A$1:$AG$32,'DA - Totals'!AC$2,FALSE) -> 0.7599220139 | GT18: =DP18-VLOOKUP($B18,'Defense Adjusted'!$A$1:$AG$32,'DA - Totals'!AD$2,FALSE) -> 0.3292568382 | GU18: =DQ18-VLOOKUP($B18,'Defense Adjusted'!$A$1:$AG$32,'DA - Totals'!AE$2,FALSE) -> 0.3383209569 | GV18: =DR18-VLOOKUP($B18,'Defense Adjusted'!$A$1:$AG$32,'DA - Totals'!AF$2,FALSE) -> 4.662805738 | GW18: =DS18-VLOOKUP($B18,'Defense Adjusted'!$A$1:$AG$32,'DA - Totals'!AG$2,FALSE) -> 3.634326902 | GX18: =DT18-VLOOKUP($B18,'Defense Adjusted'!$A$1:$AG$32,'DA - Totals'!AH$2,FALSE) -> 40.16928154 | GY18: =DU18-VLOOKUP($B18,'Defense Adjusted'!$A$1:$AG$32,'DA - Totals'!AI$2,FALSE) -> 36.3466776 | HA18: 6 | HB18: 1 | HC18: 8 | HD18: 3 | HE18: 13 | HF18: 14 | HG18: 5 | HH18: 3 | HI18: 2 | HJ18: 8 | HK18: 4 | HL18: 2 | HM18: 7 | HN18: 3 | HO18: 2 | HP18: 3 | HQ18: 13 | HR18: 1 | HS18: 20 | HT18: 24 | HU18: 17 | HV18: 1 | HW18: 4 | HX18: 16 | HY18: 27 | HZ18: 11 | IA18: 25 | IB18: 10 | IC18: 6 | ID18: 15 | IE18: 13 | IF18: 10
A19: Lions | B19: Saints | C19: 1 | D19: 27 | E19: 45 | G19: Stafford | H19: 0 | I19: 14 | J19: 12 | K19: 198 | L19: 16 | M19: 37 | N19: 0 | O19: 33 | P19: 20 | Q19: 2 | R19: 3 | S19: 14 | T19: 2 | U19: 2 | V19: 3 | W19: 0 | X19: 1 | Y19: 7 | Z19: 8 | AA19: 80 | AB19: 5 | AC19: 209 | AD19: 11 | AE19: 4 | AF19: 2 | AG19: 1 | AH19: 4 | AI19: 11 | AJ19: 3 | AK19: 5 | AL19: 1 | AM19: 3 | AN19: 1 | AO19: 1 | AP19: 1 | AQ19: 1 | AR19: 9 | AS19: 20 | AT19: 13 | AU19: 490 | AV19: 5 | AW19: 23 | AX19: 30 | AY19: 28 | AZ19: 13 | BA19: 358 | BB19: 26 | BC19: 34 | BD19: 6 | BE19: 157 | BF19: 35 | BG19: 0 | BH19: 9 | BI19: 13 | BJ19: 0 | BK19: 0 | BL19: 1 | BM19: 2 | BN19: 0 | BO19: 0 | BP19: 7 | BQ19: 36 | BR19: 2 | BS19: 96 | BT19: 55 | BU19: 6 | BV19: 4 | BW19: 0 | BX19: 9 | BY19: 17 | BZ19: 7 | CA19: 14 | CB19: 3 | CC19: 4 | CD19: 2 | CE19: 2 | CF19: 8 | CG19: 14 | CH19: 21 | CI19: 37 | CJ19: 13 | CK19: 519 | CL19: 3 | CM19: 36 | CN19: 30 | CP19: 0.6153846154 | CQ19: 0.8292682927 | CR19: 1.657894737 | CS19: 12.73529412 | CT19: 3 | CU19: 3 | CV19: 19.25 | CW19: 39.61538462 | CX19: 1.958333333 | CY19: 2.807692308 | CZ19: 3.982758621 | DA19: 7.463768116 | DB19: 1.166666667 | DC19: 2.153846154 | DD19: 0.3125 | DE19: 0.6923076923 | DF19: 37.69230769 | DG19: 39.92307692 | DH19: 5 | DI19: 3 | DJ19: 0.6071428571 | DK19: 0.6666666667 | DL19: 4.833333333 | DM19: 5.307692308 | DN19: 1.379310345 | DO19: 0.5217391304 | DP19: 0.45 | DQ19: 0.5675675676 | DR19: 1.65 | DS19: 4.485714286 | DT19: 39.6 | DU19: 20.5 | DV19: 1 | DW19: 0.5714285714 | DX19: 0.1168831169 | DY19: 0.08737864078 | DZ19: 2.25 | EA19: 3.461538462 | EB19: 26.63288288 | EC19: 137.0098039 | EE19: 23 | EF19: 31 | EG19: 31 | EH19: 31 | EI19: 25 | EJ19: 4 | EK19: 28 | EL19: 26 | EM19: 31 | EN19: 22 | EO19: 29 | EP19: 31 | EQ19: 26 | ER19: 28 | ES19: 20 | ET19: 32 | EU19: 6 | EV19: 30 | EW19: 18 | EX19: 21 | EY19: 19 | EZ19: 16 | FA19: 25 | FB19: 16 | FC19: 30 | FD19: 20 | FE19: 12 | FF19: 27 | FG19: 30 | FH19: 23 | FI19: 17 | FJ19: 1 | FK19: 1 | FL19: 25 | FM19: 3 | FN19: 26 | FO19: 10 | FP19: 32 | FQ19: 31 | FR19: 31 | FT19: =CP19-VLOOKUP($B19,'Defense Adjusted'!$A$1:$AG$32,'DA - Totals'!D$2,FALSE) -> 0.6167390066 | FU19: =CQ19-VLOOKUP($B19,'Defense Adjusted'!$A$1:$AG$32,'DA - Totals'!E$2,FALSE) -> 0.7503528162 | FV19: =CR19-VLOOKUP($B19,'Defense Adjusted'!$A$1:$AG$32,'DA - Totals'!F$2,FALSE) -> 2.252278322 | FW19: =CS19-VLOOKUP($B19,'Defense Adjusted'!$A$1:$AG$32,'DA - Totals'!G$2,FALSE) -> 9.753153091 | FX19: =CT19-VLOOKUP($B19,'Defense Adjusted'!$A$1:$AG$32,'DA - Totals'!H$2,FALSE) -> 2.319197581 | FY19: =CU19-VLOOKUP($B19,'Defense Adjusted'!$A$1:$AG$32,'DA - Totals'!I$2,FALSE) -> 3.03595812 | FZ19: =CV19-VLOOKUP($B19,'Defense Adjusted'!$A$1:$AG$32,'DA - Totals'!J$2,FALSE) -> 16.79400632 | GA19: =CW19-VLOOKUP($B19,'Defense Adjusted'!$A$1:$AG$32,'DA - Totals'!K$2,FALSE) -> 31.07895656 | GB19: =CX19-VLOOKUP($B19,'Defense Adjusted'!$A$1:$AG$32,'DA - Totals'!L$2,FALSE) -> 2.099280027 | GC19: =CY19-VLOOKUP($B19,'Defense Adjusted'!$A$1:$AG$32,'DA - Totals'!M$2,FALSE) -> 2.561799111 | GD19: =CZ19-VLOOKUP($B19,'Defense Adjusted'!$A$1:$AG$32,'DA - Totals'!N$2,FALSE) -> 3.706200563 | GE19: =DA19-VLOOKUP($B19,'Defense Adjusted'!$A$1:$AG$32,'DA - Totals'!O$2,FALSE) -> 6.325912779 | GF19: =DB19-VLOOKUP($B19,'Defense Adjusted'!$A$1:$AG$32,'DA - Totals'!P$2,FALSE) -> 1.104101427 | GG19: =DC19-VLOOKUP($B19,'Defense Adjusted'!$A$1:$AG$32,'DA - Totals'!Q$2,FALSE) -> 1.787592631 | GH19: =DD19-VLOOKUP($B19,'Defense Adjusted'!$A$1:$AG$32,'DA - Totals'!R$2,FALSE) -> 0.3112548959 | GI19: =DE19-VLOOKUP($B19,'Defense Adjusted'!$A$1:$AG$32,'DA - Totals'!S$2,FALSE) -> 0.6301572212 | GJ19: =DF19-VLOOKUP($B19,'Defense Adjusted'!$A$1:$AG$32,'DA - Totals'!T$2,FALSE) -> 39.75521272 | GK19: =DG19-VLOOKUP($B19,'Defense Adjusted'!$A$1:$AG$32,'DA - Totals'!U$2,FALSE) -> 39.55734368 | GL19: =DH19-VLOOKUP($B19,'Defense Adjusted'!$A$1:$AG$32,'DA - Totals'!V$2,FALSE) -> 5.060590689 | GM19: =DI19-VLOOKUP($B19,'Defense Adjusted'!$A$1:$AG$32,'DA - Totals'!W$2,FALSE) -> 3.342895837 | GN19: =DJ19-VLOOKUP($B19,'Defense Adjusted'!$A$1:$AG$32,'DA - Totals'!X$2,FALSE) -> 0.712244388 | GO19: =DK19-VLOOKUP($B19,'Defense Adjusted'!$A$1:$AG$32,'DA - Totals'!Y$2,FALSE) -> 0.6242514992 | GP19: =DL19-VLOOKUP($B19,'Defense Adjusted'!$A$1:$AG$32,'DA - Totals'!Z$2,FALSE) -> 4.780602877 | GQ19: =DM19-VLOOKUP($B19,'Defense Adjusted'!$A$1:$AG$32,'DA - Totals'!AA$2,FALSE) -> 4.8984336 | GR19: =DN19-VLOOKUP($B19,'Defense Adjusted'!$A$1:$AG$32,'DA - Totals'!AB$2,FALSE) -> 1.44465144 | GS19: =DO19-VLOOKUP($B19,'Defense Adjusted'!$A$1:$AG$32,'DA - Totals'!AC$2,FALSE) -> 0.5621022021 | GT19: =DP19-VLOOKUP($B19,'Defense Adjusted'!$A$1:$AG$32,'DA - Totals'!AD$2,FALSE) -> 0.3930400796 | GU19: =DQ19-VLOOKUP($B19,'Defense Adjusted'!$A$1:$AG$32,'DA - Totals'!AE$2,FALSE) -> 0.4991781651 | GV19: =DR19-VLOOKUP($B19,'Defense Adjusted'!$A$1:$AG$32,'DA - Totals'!AF$2,FALSE) -> 1.39768162 | GW19: =DS19-VLOOKUP($B19,'Defense Adjusted'!$A$1:$AG$32,'DA - Totals'!AG$2,FALSE) -> 4.198471379 | GX19: =DT19-VLOOKUP($B19,'Defense Adjusted'!$A$1:$AG$32,'DA - Totals'!AH$2,FALSE) -> 37.05880703 | GY19: =DU19-VLOOKUP($B19,'Defense Adjusted'!$A$1:$AG$32,'DA - Totals'!AI$2,FALSE) -> 22.28261902 | HA19: 25 | HB19: 26 | HC19: 31 | HD19: 31 | HE19: 21 | HF19: 5 | HG19: 30 | HH19: 22 | HI19: 30 | HJ19: 18 | HK19: 30 | HL19: 28 | HM19: 25 | HN19: 25 | HO19: 21 | HP19: 32 | HQ19: 4 | HR19: 29 | HS19: 23 | HT19: 26 | HU19: 13 | HV19: 15 | HW19: 25 | HX19: 9 | HY19: 32 | HZ19: 20 | IA19: 19 | IB19: 23 | IC19: 30 | ID19: 19 | IE19: 23 | IF19: 1
A20: Packers | B20: Bears | C20: 1 | D20: 21 | E20: 15 | G20: Rodgers | H20: 1 | I20: 12 | J20: 12 | K20: 150 | L20: 17 | M20: 28 | N20: 1 | O20: 76 | P20: 22 | Q20: 1 | R20: 4 | S20: 14 | T20: 0 | U20: 0 | V20: 0 | W20: 0 | X20: 4 | Y20: 34 | Z20: 6 | AA20: 45 | AB20: 6 | AC20: 268 | AD20: 15 | AE20: 2 | AF20: 1 | AG20: 0 | AH20: 6 | AI20: 11 | AJ20: 2 | AK20: 10 | AL20: 0 | AM20: 0 | AN20: 0 | AO20: 0 | AP20: 1 | AQ20: 4 | AR20: 8 | AS20: 21 | AT20: 13 | AU20: 534 | AV20: 5 | AW20: 26 | AX20: 57 | AY20: 18 | AZ20: 13 | BA20: 266 | BB20: 17 | BC20: 36 | BD20: 1 | BE20: 86 | BF20: 31 | BG20: 0 | BH20: 4 | BI20: 15 | BJ20: 1 | BK20: 3 | BL20: 4 | BM20: 0 | BN20: 2 | BO20: 11 | BP20: 3 | BQ20: 25 | BR20: 4 | BS20: 198 | BT20: 14 | BU20: 3 | BV20: 0 | BW20: 2 | BX20: 5 | BY20: 14 | BZ20: 6 | CA20: 9 | CB20: 1 | CC20: 5 | CD20: 1 | CE20: 1 | CF20: 4 | CG20: 8 | CH20: 13 | CI20: 29 | CJ20: 13 | CK20: 376 | CL20: 6 | CM20: 33 | CN20: 3 | CP20: 0.5833333333 | CQ20: 0.6129032258 | CR20: 5.3125 | CS20: 2.789473684 | CT20: 0 | CU20: 4 | CV20: 18.83333333 | CW20: 27.07692308 | CX20: 2.245833333 | CY20: 2.542307692 | CZ20: 4.185185185 | DA20: 5.101449275 | DB20: 1 | DC20: 1.384615385 | DD20: 0.2857142857 | DE20: 0.2777777778 | DF20: 41.07692308 | DG20: 28.92307692 | DH20: 5 | DI20: 6 | DJ20: 0.5 | DK20: 0.2857142857 | DL20: 4.5 | DM20: 5.307692308 | DN20: 0.8333333333 | DO20: 0.3623188406 | DP20: 0.380952381 | DQ20: 0.4482758621 | DR20: 3.454545455 | DS20: 2.774193548 | DT20: 42.16666667 | DU20: 46 | DV20: 0.25 | DW20: 0.5 | DX20: 0.09292035398 | DY20: 0.04261363636 | DZ20: 1.75 | EA20: 1.153846154 | EB20: 86.9047619 | EC20: 41.89814815 | EE20: 26 | EF20: 9 | EG20: 19 | EH20: 4 | EI20: 1 | EJ20: 2 | EK20: 29 | EL20: 16 | EM20: 27 | EN20: 14 | EO20: 27 | EP20: 17 | EQ20: 28 | ER20: 11 | ES20: 23 | ET20: 8 | EU20: 2 | EV20: 12 | EW20: 18 | EX20: 3 | EY20: 20 | EZ20: 4 | FA20: 31 | FB20: 16 | FC20: 23 | FD20: 28 | FE20: 22 | FF20: 19 | FG20: 17 | FH20: 8 | FI20: 13 | FJ20: 25 | FK20: 25 | FL20: 21 | FM20: 6 | FN20: 9 | FO20: 16 | FP20: 10 | FQ20: 14 | FR20: 3 | FT20: =CP20-VLOOKUP($B20,'Defense Adjusted'!$A$1:$AG$32,'DA - Totals'!D$2,FALSE) -> 0.5765055044 | FU20: =CQ20-VLOOKUP($B20,'Defense Adjusted'!$A$1:$AG$32,'DA - Totals'!E$2,FALSE) -> 0.6526812687 | FV20: =CR20-VLOOKUP($B20,'Defense Adjusted'!$A$1:$AG$32,'DA - Totals'!F$2,FALSE) -> 4.67925859 | FW20: =CS20-VLOOKUP($B20,'Defense Adjusted'!$A$1:$AG$32,'DA - Totals'!G$2,FALSE) -> 4.097864299 | FX20: =CT20-VLOOKUP($B20,'Defense Adjusted'!$A$1:$AG$32,'DA - Totals'!H$2,FALSE) -> -0.02334096326 | FY20: =CU20-VLOOKUP($B20,'Defense Adjusted'!$A$1:$AG$32,'DA - Totals'!I$2,FALSE) -> 3.579704297 | FZ20: =CV20-VLOOKUP($B20,'Defense Adjusted'!$A$1:$AG$32,'DA - Totals'!J$2,FALSE) -> 17.63657475 | GA20: =CW20-VLOOKUP($B20,'Defense Adjusted'!$A$1:$AG$32,'DA - Totals'!K$2,FALSE) -> 29.61972567 | GB20: =CX20-VLOOKUP($B20,'Defense Adjusted'!$A$1:$AG$32,'DA - Totals'!L$2,FALSE) -> 2.145739514 | GC20: =CY20-VLOOKUP($B20,'Defense Adjusted'!$A$1:$AG$32,'DA - Totals'!M$2,FALSE) -> 2.682113368 | GD20: =CZ20-VLOOKUP($B20,'Defense Adjusted'!$A$1:$AG$32,'DA - Totals'!N$2,FALSE) -> 4.114045433 | GE20: =DA20-VLOOKUP($B20,'Defense Adjusted'!$A$1:$AG$32,'DA - Totals'!O$2,FALSE) -> 5.321038813 | GF20: =DB20-VLOOKUP($B20,'Defense Adjusted'!$A$1:$AG$32,'DA - Totals'!P$2,FALSE) -> 0.9178255615 | GG20: =DC20-VLOOKUP($B20,'Defense Adjusted'!$A$1:$AG$32,'DA - Totals'!Q$2,FALSE) -> 1.601887692 | GH20: =DD20-VLOOKUP($B20,'Defense Adjusted'!$A$1:$AG$32,'DA - Totals'!R$2,FALSE) -> 0.26157719 | GI20: =DE20-VLOOKUP($B20,'Defense Adjusted'!$A$1:$AG$32,'DA - Totals'!S$2,FALSE) -> 0.2988032934 | GJ20: =DF20-VLOOKUP($B20,'Defense Adjusted'!$A$1:$AG$32,'DA - Totals'!T$2,FALSE) -> 39.45787771 | GK20: =DG20-VLOOKUP($B20,'Defense Adjusted'!$A$1:$AG$32,'DA - Totals'!U$2,FALSE) -> 26.97509732 | GL20: =DH20-VLOOKUP($B20,'Defense Adjusted'!$A$1:$AG$32,'DA - Totals'!V$2,FALSE) -> 4.798533308 | GM20: =DI20-VLOOKUP($B20,'Defense Adjusted'!$A$1:$AG$32,'DA - Totals'!W$2,FALSE) -> 5.017470401 | GN20: =DJ20-VLOOKUP($B20,'Defense Adjusted'!$A$1:$AG$32,'DA - Totals'!X$2,FALSE) -> 0.4322191122 | GO20: =DK20-VLOOKUP($B20,'Defense Adjusted'!$A$1:$AG$32,'DA - Totals'!Y$2,FALSE) -> 0.33345826 | GP20: =DL20-VLOOKUP($B20,'Defense Adjusted'!$A$1:$AG$32,'DA - Totals'!Z$2,FALSE) -> 4.432548569 | GQ20: =DM20-VLOOKUP($B20,'Defense Adjusted'!$A$1:$AG$32,'DA - Totals'!AA$2,FALSE) -> 5.545616116 | GR20: =DN20-VLOOKUP($B20,'Defense Adjusted'!$A$1:$AG$32,'DA - Totals'!AB$2,FALSE) -> 0.942810993 | GS20: =DO20-VLOOKUP($B20,'Defense Adjusted'!$A$1:$AG$32,'DA - Totals'!AC$2,FALSE) -> 0.3610853164 | GT20: =DP20-VLOOKUP($B20,'Defense Adjusted'!$A$1:$AG$32,'DA - Totals'!AD$2,FALSE) -> 0.354466363 | GU20: =DQ20-VLOOKUP($B20,'Defense Adjusted'!$A$1:$AG$32,'DA - Totals'!AE$2,FALSE) -> 0.4185980564 | GV20: =DR20-VLOOKUP($B20,'Defense Adjusted'!$A$1:$AG$32,'DA - Totals'!AF$2,FALSE) -> 3.38243409 | GW20: =DS20-VLOOKUP($B20,'Defense Adjusted'!$A$1:$AG$32,'DA - Totals'!AG$2,FALSE) -> 2.673723821 | GX20: =DT20-VLOOKUP($B20,'Defense Adjusted'!$A$1:$AG$32,'DA - Totals'!AH$2,FALSE) -> 41.81394462 | GY20: =DU20-VLOOKUP($B20,'Defense Adjusted'!$A$1:$AG$32,'DA - Totals'!AI$2,FALSE) -> 46.98229029 | HA20: 29 | HB20: 14 | HC20: 20 | HD20: 10 | HE20: 3 | HF20: 3 | HG20: 29 | HH20: 21 | HI20: 29 | HJ20: 20 | HK20: 27 | HL20: 21 | HM20: 32 | HN20: 21 | HO20: 29 | HP20: 10 | HQ20: 5 | HR20: 7 | HS20: 21 | HT20: 11 | HU20: 24 | HV20: 6 | HW20: 31 | HX20: 21 | HY20: 25 | HZ20: 30 | IA20: 23 | IB20: 16 | IC20: 19 | ID20: 9 | IE20: 12 | IF20: 30
A21: Panthers | B21: Eagles | C21: 1 | D21: 10 | E21: 38 | G21: Delhomme | H21: 1 | I21: 14 | J21: 14 | K21: 83 | L21: 14 | M21: 34 | N21: 0 | O21: 86 | P21: 30 | Q21: 1 | R21: 3 | S21: 16 | T21: 2 | U21: 3 | V21: 5 | W21: 2 | X21: 5 | Y21: 55 | Z21: 5 | AA21: 30 | AB21: 4 | AC21: 223 | AD21: 106 | AE21: 3 | AF21: 1 | AG21: 1 | AH21: 5 | AI21: 17 | AJ21: 2 | AK21: 7 | AL21: 0 | AM21: 3 | AN21: 1 | AO21: 2 | AP21: 0 | AQ21: 7 | AR21: 8 | AS21: 29 | AT21: 15 | AU21: 500 | AV21: 9 | AW21: 28 | AX21: 23 | AY21: 17 | AZ21: 12 | BA21: 82 | BB21: 17 | BC21: 29 | BD21: 2 | BE21: 185 | BF21: 32 | BG21: 1 | BH21: 5 | BI21: 13 | BJ21: 1 | BK21: 2 | BL21: 1 | BM21: 1 | BN21: 2 | BO21: 20 | BP21: 9 | BQ21: 76 | BR21: 4 | BS21: 171 | BT21: 33 | BU21: 3 | BV21: 3 | BW21: 0 | BX21: 7 | BY21: 12 | BZ21: 8 | CA21: 11 | CB21: 1 | CC21: 3 | CD21: 0 | CE21: 0 | CF21: 2 | CG21: 6 | CH21: 16 | CI21: 26 | CJ21: 13 | CK21: 517 | CL21: 3 | CM21: 31 | CN21: 37 | CP21: 0.5357142857 | CQ21: 0.6896551724 | CR21: -3.641025641 | CS21: 2.483870968 | CT21: 7 | CU21: 2 | CV21: 12.07142857 | CW21: 22.25 | CX21: 2.027380952 | CY21: 2.634722222 | CZ21: 2.449275362 | DA21: 4.238095238 | DB21: 1 | DC21: 1.416666667 | DD21: 0.2631578947 | DE21: 0.4 | DF21: 33.33333333 | DG21: 39.76923077 | DH21: 9 | DI21: 3 | DJ21: 0.4761904762 | DK21: 1 | DL21: 4.928571429 | DM21: 5.25 | DN21: 0.4347826087 | DO21: 1.206349206 | DP21: 0.275862069 | DQ21: 0.6153846154 | DR21: 2.866666667 | DS21: 5.78125 | DT21: 29.25 | DU21: 34.5 | DV21: 0 | DW21: 0.3333333333 | DX21: 0.05917159763 | DY21: 0.1423220974 | DZ21: 0.7142857143 | EA21: 3.166666667 | EB21: 9.31372549 | EC21: 72.0545977 | EE21: 30 | EF21: 19 | EG21: 32 | EH21: 3 | EI21: 32 | EJ21: 9 | EK21: 32 | EL21: 9 | EM21: 29 | EN21: 16 | EO21: 32 | EP21: 7 | EQ21: 28 | ER21: 12 | ES21: 28 | ET21: 16 | EU21: 7 | EV21: 29 | EW21: 32 | EX21: 21 | EY21: 24 | EZ21: 28 | FA21: 24 | FB21: 14 | FC21: 7 | FD21: 5 | FE21: 26 | FF21: 29 | FG21: 24 | FH21: 31 | FI21: 29 | FJ21: 6 | FK21: 27 | FL21: 10 | FM21: 17 | FN21: 32 | FO21: 29 | FP21: 30 | FQ21: 32 | FR21: 11 | FT21: =CP21-VLOOKUP($B21,'Defense Adjusted'!$A$1:$AG$32,'DA - Totals'!D$2,FALSE) -> 0.548188738 | FU21: =CQ21-VLOOKUP($B21,'Defense Adjusted'!$A$1:$AG$32,'DA - Totals'!E$2,FALSE) -> 0.6868895864 | FV21: =CR21-VLOOKUP($B21,'Defense Adjusted'!$A$1:$AG$32,'DA - Totals'!F$2,FALSE) -> -2.501522286 | FW21: =CS21-VLOOKUP($B21,'Defense Adjusted'!$A$1:$AG$32,'DA - Totals'!G$2,FALSE) -> 0.7029223548 | FX21: =CT21-VLOOKUP($B21,'Defense Adjusted'!$A$1:$AG$32,'DA - Totals'!H$2,FALSE) -> 6.295167786 | FY21: =CU21-VLOOKUP($B21,'Defense Adjusted'!$A$1:$AG$32,'DA - Totals'!I$2,FALSE) -> 2.284497769 | FZ21: =CV21-VLOOKUP($B21,'Defense Adjusted'!$A$1:$AG$32,'DA - Totals'!J$2,FALSE) -> 14.66796662 | GA21: =CW21-VLOOKUP($B21,'Defense Adjusted'!$A$1:$AG$32,'DA - Totals'!K$2,FALSE) -> 19.80026377 | GB21: =CX21-VLOOKUP($B21,'Defense Adjusted'!$A$1:$AG$32,'DA - Totals'!L$2,FALSE) -> 2.040014337 | GC21: =CY21-VLOOKUP($B21,'Defense Adjusted'!$A$1:$AG$32,'DA - Totals'!M$2,FALSE) -> 2.880713089 | GD21: =CZ21-VLOOKUP($B21,'Defense Adjusted'!$A$1:$AG$32,'DA - Totals'!N$2,FALSE) -> 2.853751695 | GE21: =DA21-VLOOKUP($B21,'Defense Adjusted'!$A$1:$AG$32,'DA - Totals'!O$2,FALSE) -> 3.47294217 | GF21: =DB21-VLOOKUP($B21,'Defense Adjusted'!$A$1:$AG$32,'DA - Totals'!P$2,FALSE) -> 1.074634367 | GG21: =DC21-VLOOKUP($B21,'Defense Adjusted'!$A$1:$AG$32,'DA - Totals'!Q$2,FALSE) -> 1.492249759 | GH21: =DD21-VLOOKUP($B21,'Defense Adjusted'!$A$1:$AG$32,'DA - Totals'!R$2,FALSE) -> 0.292223621 | GI21: =DE21-VLOOKUP($B21,'Defense Adjusted'!$A$1:$AG$32,'DA - Totals'!S$2,FALSE) -> 0.4189258285 | GJ21: =DF21-VLOOKUP($B21,'Defense Adjusted'!$A$1:$AG$32,'DA - Totals'!T$2,FALSE) -> 31.48104647 | GK21: =DG21-VLOOKUP($B21,'Defense Adjusted'!$A$1:$AG$32,'DA - Totals'!U$2,FALSE) -> 39.58141688 | GL21: =DH21-VLOOKUP($B21,'Defense Adjusted'!$A$1:$AG$32,'DA - Totals'!V$2,FALSE) -> 8.175894141 | GM21: =DI21-VLOOKUP($B21,'Defense Adjusted'!$A$1:$AG$32,'DA - Totals'!W$2,FALSE) -> 2.948824289 | GN21: =DJ21-VLOOKUP($B21,'Defense Adjusted'!$A$1:$AG$32,'DA - Totals'!X$2,FALSE) -> 0.4666717538 | GO21: =DK21-VLOOKUP($B21,'Defense Adjusted'!$A$1:$AG$32,'DA - Totals'!Y$2,FALSE) -> 1.046444242 | GP21: =DL21-VLOOKUP($B21,'Defense Adjusted'!$A$1:$AG$32,'DA - Totals'!Z$2,FALSE) -> 5.062090236 | GQ21: =DM21-VLOOKUP($B21,'Defense Adjusted'!$A$1:$AG$32,'DA - Totals'!AA$2,FALSE) -> 5.54659561 | GR21: =DN21-VLOOKUP($B21,'Defense Adjusted'!$A$1:$AG$32,'DA - Totals'!AB$2,FALSE) -> 0.4537876504 | GS21: =DO21-VLOOKUP($B21,'Defense Adjusted'!$A$1:$AG$32,'DA - Totals'!AC$2,FALSE) -> 0.9661633046 | GT21: =DP21-VLOOKUP($B21,'Defense Adjusted'!$A$1:$AG$32,'DA - Totals'!AD$2,FALSE) -> 0.3093092765 | GU21: =DQ21-VLOOKUP($B21,'Defense Adjusted'!$A$1:$AG$32,'DA - Totals'!AE$2,FALSE) -> 0.615169951 | GV21: =DR21-VLOOKUP($B21,'Defense Adjusted'!$A$1:$AG$32,'DA - Totals'!AF$2,FALSE) -> 2.872140011 | GW21: =DS21-VLOOKUP($B21,'Defense Adjusted'!$A$1:$AG$32,'DA - Totals'!AG$2,FALSE) -> 5.853408029 | GX21: =DT21-VLOOKUP($B21,'Defense Adjusted'!$A$1:$AG$32,'DA - Totals'!AH$2,FALSE) -> 29.33010759 | GY21: =DU21-VLOOKUP($B21,'Defense Adjusted'!$A$1:$AG$32,'DA - Totals'!AI$2,FALSE) -> 34.19282025 | HA21: 30 | HB21: 20 | HC21: 32 | HD21: 2 | HE21: 32 | HF21: 10 | HG21: 31 | HH21: 4 | HI21: 31 | HJ21: 23 | HK21: 32 | HL21: 3 | HM21: 28 | HN21: 19 | HO21: 23 | HP21: 22 | HQ21: 12 | HR21: 30 | HS21: 31 | HT21: 28 | HU21: 22 | HV21: 30 | HW21: 21 | HX21: 22 | HY21: 8 | HZ21: 8 | IA21: 26 | IB21: 28 | IC21: 24 | ID21: 31 | IE21: 29 | IF21: 7
A22: Patriots | B22: Bills | C22: 1 | D22: 25 | E22: 24 | G22: Brady | H22: 1 | I22: 28 | J22: 10 | K22: 368 | L22: 39 | M22: 53 | N22: 2 | O22: 73 | P22: 23 | Q22: 1 | R22: 10 | S22: 16 | T22: 0 | U22: 2 | V22: 1 | W22: 0 | X22: 1 | Y22: 10 | Z22: 6 | AA22: 55 | AB22: 1 | AC22: 42 | AD22: 5 | AE22: 5 | AF22: 3 | AG22: 2 | AH22: 6 | AI22: 12 | AJ22: 1 | AK22: 5 | AL22: 2 | AM22: 4 | AN22: 0 | AO22: 1 | AP22: 0 | AQ22: 2 | AR22: 9 | AS22: 22 | AT22: 10 | AU22: 306 | AV22: 3 | AW22: 37 | AX22: 8 | AY22: 17 | AZ22: 8 | BA22: 186 | BB22: 15 | BC22: 25 | BD22: 2 | BE22: 90 | BF22: 19 | BG22: 0 | BH22: 4 | BI22: 10 | BJ22: 1 | BK22: 1 | BL22: 0 | BM22: 1 | BN22: 4 | BO22: 26 | BP22: 9 | BQ22: 71 | BR22: 4 | BS22: 171 | BT22: 21 | BU22: 2 | BV22: 2 | BW22: 0 | BX22: 4 | BY22: 8 | BZ22: 5 | CA22: 8 | CB22: 2 | CC22: 2 | CD22: 0 | CE22: 0 | CF22: 6 | CG22: 8 | CH22: 11 | CI22: 18 | CJ22: 9 | CK22: 285 | CL22: 1 | CM22: 22 | CN22: 52 | CP22: 0.8157894737 | CQ22: 0.76 | CR22: 6.722222222 | CS22: 7.793103448 | CT22: 1 | CU22: 1 | CV22: 44.1 | CW22: 34.5 | CX22: 3.713333333 | CY22: 2.858333333 | CZ22: 5.727272727 | DA22: 5.75 | DB22: 2.8 | DC22: 2.125 | DD22: 0.5555555556 | DE22: 0.4545454545 | DF22: 30.6 | DG22: 31.66666667 | DH22: 3 | DI22: 1 | DJ22: 0.7714285714 | DK22: 1 | DL22: 7.7 | DM22: 6 | DN22: 0.7142857143 | DO22: 1.479166667 | DP22: 0.4090909091 | DQ22: 0.6111111111 | DR22: 3.173913043 | DS22: 4.736842105 | DT22: 37 | DU22: 37.5 | DV22: 0 | DW22: 0.75 | DX22: 0.0566893424 | DY22: 0.08695652174 | DZ22: 2.5 | EA22: 3 | EB22: 97.05188679 | EC22: 109.75 | EE22: 3 | EF22: 26 | EG22: 12 | EH22: 28 | EI22: 9 | EJ22: 19 | EK22: 2 | EL22: 23 | EM22: 2 | EN22: 23 | EO22: 10 | EP22: 24 | EQ22: 2 | ER22: 27 | ES22: 4 | ET22: 24 | EU22: 12 | EV22: 24 | EW22: 4 | EX22: 32 | EY22: 8 | EZ22: 28 | FA22: 3 | FB22: 25 | FC22: 18 | FD22: 2 | FE22: 20 | FF22: 28 | FG22: 22 | FH22: 26 | FI22: 23 | FJ22: 12 | FK22: 27 | FL22: 27 | FM22: 18 | FN22: 25 | FO22: 7 | FP22: 28 | FQ22: 6 | FR22: 29 | FT22: =CP22-VLOOKUP($B22,'Defense Adjusted'!$A$1:$AG$32,'DA - Totals'!D$2,FALSE) -> 0.8276054837 | FU22: =CQ22-VLOOKUP($B22,'Defense Adjusted'!$A$1:$AG$32,'DA - Totals'!E$2,FALSE) -> 0.8375768136 | FV22: =CR22-VLOOKUP($B22,'Defense Adjusted'!$A$1:$AG$32,'DA - Totals'!F$2,FALSE) -> 8.866381153 | FW22: =CS22-VLOOKUP($B22,'Defense Adjusted'!$A$1:$AG$32,'DA - Totals'!G$2,FALSE) -> 9.144290171 | FX22: =CT22-VLOOKUP($B22,'Defense Adjusted'!$A$1:$AG$32,'DA - Totals'!H$2,FALSE) -> 0.7686042451 | FY22: =CU22-VLOOKUP($B22,'Defense Adjusted'!$A$1:$AG$32,'DA - Totals'!I$2,FALSE) -> 0.8938717278 | FZ22: =CV22-VLOOKUP($B22,'Defense Adjusted'!$A$1:$AG$32,'DA - Totals'!J$2,FALSE) -> 43.9046938 | GA22: =CW22-VLOOKUP($B22,'Defense Adjusted'!$A$1:$AG$32,'DA - Totals'!K$2,FALSE) -> 39.90386587 | GB22: =CX22-VLOOKUP($B22,'Defense Adjusted'!$A$1:$AG$32,'DA - Totals'!L$2,FALSE) -> 3.563764714 | GC22: =CY22-VLOOKUP($B22,'Defense Adjusted'!$A$1:$AG$32,'DA - Totals'!M$2,FALSE) -> 3.059854342 | GD22: =CZ22-VLOOKUP($B22,'Defense Adjusted'!$A$1:$AG$32,'DA - Totals'!N$2,FALSE) -> 5.955060108 | GE22: =DA22-VLOOKUP($B22,'Defense Adjusted'!$A$1:$AG$32,'DA - Totals'!O$2,FALSE) -> 6.221852624 | GF22: =DB22-VLOOKUP($B22,'Defense Adjusted'!$A$1:$AG$32,'DA - Totals'!P$2,FALSE) -> 2.769159754 | GG22: =DC22-VLOOKUP($B22,'Defense Adjusted'!$A$1:$AG$32,'DA - Totals'!Q$2,FALSE) -> 2.488209171 | GH22: =DD22-VLOOKUP($B22,'Defense Adjusted'!$A$1:$AG$32,'DA - Totals'!R$2,FALSE) -> 0.5374452629 | GI22: =DE22-VLOOKUP($B22,'Defense Adjusted'!$A$1:$AG$32,'DA - Totals'!S$2,FALSE) -> 0.5637071071 | GJ22: =DF22-VLOOKUP($B22,'Defense Adjusted'!$A$1:$AG$32,'DA - Totals'!T$2,FALSE) -> 31.69286012 | GK22: =DG22-VLOOKUP($B22,'Defense Adjusted'!$A$1:$AG$32,'DA - Totals'!U$2,FALSE) -> 30.89105541 | GL22: =DH22-VLOOKUP($B22,'Defense Adjusted'!$A$1:$AG$32,'DA - Totals'!V$2,FALSE) -> 3.059678759 | GM22: =DI22-VLOOKUP($B22,'Defense Adjusted'!$A$1:$AG$32,'DA - Totals'!W$2,FALSE) -> 0.2084769633 | GN22: =DJ22-VLOOKUP($B22,'Defense Adjusted'!$A$1:$AG$32,'DA - Totals'!X$2,FALSE) -> 0.7546214729 | GO22: =DK22-VLOOKUP($B22,'Defense Adjusted'!$A$1:$AG$32,'DA - Totals'!Y$2,FALSE) -> 1.129962154 | GP22: =DL22-VLOOKUP($B22,'Defense Adjusted'!$A$1:$AG$32,'DA - Totals'!Z$2,FALSE) -> 7.398064266 | GQ22: =DM22-VLOOKUP($B22,'Defense Adjusted'!$A$1:$AG$32,'DA - Totals'!AA$2,FALSE) -> 6.605285772 | GR22: =DN22-VLOOKUP($B22,'Defense Adjusted'!$A$1:$AG$32,'DA - Totals'!AB$2,FALSE) -> 0.6010992042 | GS22: =DO22-VLOOKUP($B22,'Defense Adjusted'!$A$1:$AG$32,'DA - Totals'!AC$2,FALSE) -> 1.32168897 | GT22: =DP22-VLOOKUP($B22,'Defense Adjusted'!$A$1:$AG$32,'DA - Totals'!AD$2,FALSE) -> 0.4080632469 | GU22: =DQ22-VLOOKUP($B22,'Defense Adjusted'!$A$1:$AG$32,'DA - Totals'!AE$2,FALSE) -> 0.6174689512 | GV22: =DR22-VLOOKUP($B22,'Defense Adjusted'!$A$1:$AG$32,'DA - Totals'!AF$2,FALSE) -> 3.097297039 | GW22: =DS22-VLOOKUP($B22,'Defense Adjusted'!$A$1:$AG$32,'DA - Totals'!AG$2,FALSE) -> 4.693865927 | GX22: =DT22-VLOOKUP($B22,'Defense Adjusted'!$A$1:$AG$32,'DA - Totals'!AH$2,FALSE) -> 37.31185678 | GY22: =DU22-VLOOKUP($B22,'Defense Adjusted'!$A$1:$AG$32,'DA - Totals'!AI$2,FALSE) -> 33.53117496 | HA22: 2 | HB22: 30 | HC22: 3 | HD22: 29 | HE22: 9 | HF22: 23 | HG22: 1 | HH22: 28 | HI22: 3 | HJ22: 25 | HK22: 7 | HL22: 26 | HM22: 2 | HN22: 30 | HO22: 4 | HP22: 27 | HQ22: 11 | HR22: 16 | HS22: 6 | HT22: 32 | HU22: 11 | HV22: 32 | HW22: 2 | HX22: 27 | HY22: 14 | HZ22: 3 | IA22: 18 | IB22: 29 | IC22: 22 | ID22: 27 | IE22: 22 | IF22: 6
A23: Raiders | B23: Chargers | C23: 1 | D23: 20 | E23: 24 | G23: Russell | H23: 1 | I23: 19 | J23: 11 | K23: 218 | L23: 14 | M23: 32 | N23: 1 | O23: 148 | P23: 32 | Q23: 1 | R23: 7 | S23: 14 | T23: 1 | U23: 1 | V23: 2 | W23: 1 | X23: 1 | Y23: 7 | Z23: 6 | AA23: 40 | AB23: 4 | AC23: 195 | AD23: 10 | AE23: 3 | AF23: 1 | AG23: 2 | AH23: 8 | AI23: 15 | AJ23: 4 | AK23: 13 | AL23: 3 | AM23: 3 | AN23: 0 | AO23: 0 | AP23: 2 | AQ23: 4 | AR23: 15 | AS23: 31 | AT23: 11 | AU23: 320 | AV23: 5 | AW23: 31 | AX23: 37 | AY23: 19 | AZ23: 11 | BA23: 240 | BB23: 24 | BC23: 36 | BD23: 1 | BE23: 77 | BF23: 23 | BG23: 2 | BH23: 5 | BI23: 12 | BJ23: 0 | BK23: 0 | BL23: 1 | BM23: 1 | BN23: 3 | BO23: 12 | BP23: 9 | BQ23: 60 | BR23: 5 | BS23: 265 | BT23: 36 | BU23: 4 | BV23: 3 | BW23: 0 | BX23: 7 | BY23: 15 | BZ23: 3 | CA23: 6 | CB23: 0 | CC23: 2 | CD23: 0 | CE23: 0 | CF23: 4 | CG23: 8 | CH23: 10 | CI23: 23 | CJ23: 12 | CK23: 351 | CL23: 4 | CM23: 28 | CN23: 23 | CP23: 0.7 | CQ23: 0.7333333333 | CR23: 4.484848485 | CS23: 5.512820513 | CT23: 3 | CU23: 2 | CV23: 33.27272727 | CW23: 28.81818182 | CX23: 2.874242424 | CY23: 2.58030303 | CZ23: 5.630769231 | DA23: 5.112903226 | DB23: 1.727272727 | DC23: 1.727272727 | DD23: 0.5333333333 | DE23: 0.4166666667 | DF23: 29.09090909 | DG23: 29.25 | DH23: 5 | DI23: 4 | DJ23: 0.619047619 | DK23: 0.75 | DL23: 5.909090909 | DM23: 5.636363636 | DN23: 0.6153846154 | DO23: 0.9677419355 | DP23: 0.4838709677 | DQ23: 0.4347826087 | DR23: 4.625 | DS23: 3.347826087 | DT23: 46.25 | DU23: 45.8 | DV23: 0.5 | DW23: 0.5 | DX23: 0.05464480874 | DY23: 0.07570977918 | DZ23: 1.818181818 | EA23: 2.181818182 | EB23: 51.30208333 | EC23: 83.10185185 | EE23: 12 | EF23: 22 | EG23: 20 | EH23: 16 | EI23: 25 | EJ23: 9 | EK23: 11 | EL23: 21 | EM23: 9 | EN23: 15 | EO23: 11 | EP23: 18 | EQ23: 10 | ER23: 21 | ES23: 5 | ET23: 20 | EU23: 19 | EV23: 17 | EW23: 18 | EX23: 16 | EY23: 18 | EZ23: 23 | FA23: 9 | FB23: 20 | FC23: 16 | FD23: 8 | FE23: 10 | FF23: 17 | FG23: 8 | FH23: 14 | FI23: 7 | FJ23: 24 | FK23: 9 | FL23: 21 | FM23: 19 | FN23: 23 | FO23: 15 | FP23: 20 | FQ23: 29 | FR23: 14 | FT23: =CP23-VLOOKUP($B23,'Defense Adjusted'!$A$1:$AG$32,'DA - Totals'!D$2,FALSE) -> 0.6523961354 | FU23: =CQ23-VLOOKUP($B23,'Defense Adjusted'!$A$1:$AG$32,'DA - Totals'!E$2,FALSE) -> 0.6583975928 | FV23: =CR23-VLOOKUP($B23,'Defense Adjusted'!$A$1:$AG$32,'DA - Totals'!F$2,FALSE) -> 4.586741319 | FW23: =CS23-VLOOKUP($B23,'Defense Adjusted'!$A$1:$AG$32,'DA - Totals'!G$2,FALSE) -> 2.532278256 | FX23: =CT23-VLOOKUP($B23,'Defense Adjusted'!$A$1:$AG$32,'DA - Totals'!H$2,FALSE) -> 3.166520044 | FY23: =CU23-VLOOKUP($B23,'Defense Adjusted'!$A$1:$AG$32,'DA - Totals'!I$2,FALSE) -> 2.611405582 | FZ23: =CV23-VLOOKUP($B23,'Defense Adjusted'!$A$1:$AG$32,'DA - Totals'!J$2,FALSE) -> 28.14732567 | GA23: =CW23-VLOOKUP($B23,'Defense Adjusted'!$A$1:$AG$32,'DA - Totals'!K$2,FALSE) -> 21.14476143 | GB23: =CX23-VLOOKUP($B23,'Defense Adjusted'!$A$1:$AG$32,'DA - Totals'!L$2,FALSE) -> 2.445417934 | GC23: =CY23-VLOOKUP($B23,'Defense Adjusted'!$A$1:$AG$32,'DA - Totals'!M$2,FALSE) -> 2.217808252 | GD23: =CZ23-VLOOKUP($B23,'Defense Adjusted'!$A$1:$AG$32,'DA - Totals'!N$2,FALSE) -> 5.527439518 | GE23: =DA23-VLOOKUP($B23,'Defense Adjusted'!$A$1:$AG$32,'DA - Totals'!O$2,FALSE) -> 4.441151087 | GF23: =DB23-VLOOKUP($B23,'Defense Adjusted'!$A$1:$AG$32,'DA - Totals'!P$2,FALSE) -> 1.304443786 | GG23: =DC23-VLOOKUP($B23,'Defense Adjusted'!$A$1:$AG$32,'DA - Totals'!Q$2,FALSE) -> 1.260948381 | GH23: =DD23-VLOOKUP($B23,'Defense Adjusted'!$A$1:$AG$32,'DA - Totals'!R$2,FALSE) -> 0.5042379206 | GI23: =DE23-VLOOKUP($B23,'Defense Adjusted'!$A$1:$AG$32,'DA - Totals'!S$2,FALSE) -> 0.3614621235 | GJ23: =DF23-VLOOKUP($B23,'Defense Adjusted'!$A$1:$AG$32,'DA - Totals'!T$2,FALSE) -> 29.9499887 | GK23: =DG23-VLOOKUP($B23,'Defense Adjusted'!$A$1:$AG$32,'DA - Totals'!U$2,FALSE) -> 29.12783457 | GL23: =DH23-VLOOKUP($B23,'Defense Adjusted'!$A$1:$AG$32,'DA - Totals'!V$2,FALSE) -> 5.384612854 | GM23: =DI23-VLOOKUP($B23,'Defense Adjusted'!$A$1:$AG$32,'DA - Totals'!W$2,FALSE) -> 5.353029113 | GN23: =DJ23-VLOOKUP($B23,'Defense Adjusted'!$A$1:$AG$32,'DA - Totals'!X$2,FALSE) -> 0.5354715048 | GO23: =DK23-VLOOKUP($B23,'Defense Adjusted'!$A$1:$AG$32,'DA - Totals'!Y$2,FALSE) -> 0.673195441 | GP23: =DL23-VLOOKUP($B23,'Defense Adjusted'!$A$1:$AG$32,'DA - Totals'!Z$2,FALSE) -> 5.119712555 | GQ23: =DM23-VLOOKUP($B23,'Defense Adjusted'!$A$1:$AG$32,'DA - Totals'!AA$2,FALSE) -> 5.013644008 | GR23: =DN23-VLOOKUP($B23,'Defense Adjusted'!$A$1:$AG$32,'DA - Totals'!AB$2,FALSE) -> 0.661101706 | GS23: =DO23-VLOOKUP($B23,'Defense Adjusted'!$A$1:$AG$32,'DA - Totals'!AC$2,FALSE) -> 1.146311639 | GT23: =DP23-VLOOKUP($B23,'Defense Adjusted'!$A$1:$AG$32,'DA - Totals'!AD$2,FALSE) -> 0.4189185001 | GU23: =DQ23-VLOOKUP($B23,'Defense Adjusted'!$A$1:$AG$32,'DA - Totals'!AE$2,FALSE) -> 0.4997673446 | GV23: =DR23-VLOOKUP($B23,'Defense Adjusted'!$A$1:$AG$32,'DA - Totals'!AF$2,FALSE) -> 4.365195888 | GW23: =DS23-VLOOKUP($B23,'Defense Adjusted'!$A$1:$AG$32,'DA - Totals'!AG$2,FALSE) -> 4.463886832 | GX23: =DT23-VLOOKUP($B23,'Defense Adjusted'!$A$1:$AG$32,'DA - Totals'!AH$2,FALSE) -> 45.43324949 | GY23: =DU23-VLOOKUP($B23,'Defense Adjusted'!$A$1:$AG$32,'DA - Totals'!AI$2,FALSE) -> 45.15804827 | HA23: 18 | HB23: 16 | HC23: 21 | HD23: 5 | HE23: 27 | HF23: 8 | HG23: 14 | HH23: 6 | HI23: 21 | HJ23: 6 | HK23: 10 | HL23: 11 | HM23: 23 | HN23: 10 | HO23: 5 | HP23: 17 | HQ23: 16 | HR23: 15 | HS23: 25 | HT23: 7 | HU23: 21 | HV23: 18 | HW23: 19 | HX23: 14 | HY23: 15 | HZ23: 7 | IA23: 15 | IB23: 24 | IC23: 12 | ID23: 25 | IE23: 5 | IF23: 27
A24: Rams | B24: Seahawks | C24: 1 | D24: 0 | E24: 28 | G24: Bulger | H24: 0 | I24: 13 | J24: 12 | K24: 170 | L24: 17 | M24: 36 | N24: 0 | O24: 77 | P24: 18 | Q24: 0 | R24: 2 | S24: 12 | T24: 0 | U24: 1 | V24: 0 | W24: 1 | X24: 3 | Y24: 21 | Z24: 10 | AA24: 85 | AB24: 8 | AC24: 406 | AD24: 28 | AE24: 2 | AF24: 0 | AG24: 0 | AH24: 3 | AI24: 9 | AJ24: 4 | AK24: 6 | AL24: 1 | AM24: 2 | AN24: 0 | AO24: 0 | AP24: 1 | AQ24: 3 | AR24: 8 | AS24: 17 | AT24: 13 | AU24: 379 | AV24: 6 | AW24: 27 | AX24: 33 | AY24: 25 | AZ24: 12 | BA24: 279 | BB24: 25 | BC24: 36 | BD24: 3 | BE24: 167 | BF24: 34 | BG24: 1 | BH24: 8 | BI24: 15 | BJ24: 0 | BK24: 0 | BL24: 2 | BM24: 1 | BN24: 0 | BO24: 0 | BP24: 4 | BQ24: 25 | BR24: 5 | BS24: 266 | BT24: 24 | BU24: 3 | BV24: 2 | BW24: 0 | BX24: 12 | BY24: 16 | BZ24: 3 | CA24: 12 | CB24: 3 | CC24: 6 | CD24: 0 | CE24: 0 | CF24: 5 | CG24: 13 | CH24: 18 | CI24: 34 | CJ24: 12 | CK24: 317 | CL24: 4 | CM24: 32 | CN24: 27 | CP24: 0.52 | CQ24: 0.7837837838 | CR24: 4.358974359 | CS24: 6.916666667 | CT24: 1 | CU24: 3 | CV24: 20.58333333 | CW24: 37.16666667 | CX24: 2.295833333 | CY24: 2.704166667 | CZ24: 4.333333333 | DA24: 6.371428571 | DB24: 1.083333333 | DC24: 2.083333333 | DD24: 0.1538461538 | DE24: 0.5333333333 | DF24: 29.15384615 | DG24: 26.41666667 | DH24: 6 | DI24: 4 | DJ24: 0 | DK24: 0.6666666667 | DL24: 4.75 | DM24: 5.833333333 | DN24: 1.49122807 | DO24: 0.3571428571 | DP24: 0.4705882353 | DQ24: 0.5294117647 | DR24: 4.277777778 | DS24: 4.911764706 | DT24: 47.25 | DU24: 48.4 | DV24: 0.3333333333 | DW24: 0.3846153846 | DX24: 0 | DY24: 0.06278026906 | DZ24: 0 | EA24: 2.333333333 | EB24: 61.11111111 | EC24: 96.875 | EE24: 32 | EF24: 28 | EG24: 21 | EH24: 23 | EI24: 9 | EJ24: 4 | EK24: 26 | EL24: 25 | EM24: 26 | EN24: 18 | EO24: 23 | EP24: 30 | EQ24: 27 | ER24: 26 | ES24: 32 | ET24: 27 | EU24: 18 | EV24: 7 | EW24: 27 | EX24: 16 | EY24: 30 | EZ24: 16 | FA24: 26 | FB24: 22 | FC24: 32 | FD24: 29 | FE24: 11 | FF24: 25 | FG24: 14 | FH24: 28 | FI24: 5 | FJ24: 31 | FK24: 19 | FL24: 17 | FM24: 32 | FN24: 18 | FO24: 32 | FP24: 25 | FQ24: 25 | FR24: 26 | FT24: =CP24-VLOOKUP($B24,'Defense Adjusted'!$A$1:$AG$32,'DA - Totals'!D$2,FALSE) -> 0.5087515272 | FU24: =CQ24-VLOOKUP($B24,'Defense Adjusted'!$A$1:$AG$32,'DA - Totals'!E$2,FALSE) -> 0.8253723134 | FV24: =CR24-VLOOKUP($B24,'Defense Adjusted'!$A$1:$AG$32,'DA - Totals'!F$2,FALSE) -> 2.903718888 | FW24: =CS24-VLOOKUP($B24,'Defense Adjusted'!$A$1:$AG$32,'DA - Totals'!G$2,FALSE) -> 8.16853189 | FX24: =CT24-VLOOKUP($B24,'Defense Adjusted'!$A$1:$AG$32,'DA - Totals'!H$2,FALSE) -> 1.385474187 | FY24: =CU24-VLOOKUP($B24,'Defense Adjusted'!$A$1:$AG$32,'DA - Totals'!I$2,FALSE) -> 2.722894447 | FZ24: =CV24-VLOOKUP($B24,'Defense Adjusted'!$A$1:$AG$32,'DA - Totals'!J$2,FALSE) -> 18.69114512 | GA24: =CW24-VLOOKUP($B24,'Defense Adjusted'!$A$1:$AG$32,'DA - Totals'!K$2,FALSE) -> 40.35963449 | GB24: =CX24-VLOOKUP($B24,'Defense Adjusted'!$A$1:$AG$32,'DA - Totals'!L$2,FALSE) -> 2.174953095 | GC24: =CY24-VLOOKUP($B24,'Defense Adjusted'!$A$1:$AG$32,'DA - Totals'!M$2,FALSE) -> 3.049910182 | GD24: =CZ24-VLOOKUP($B24,'Defense Adjusted'!$A$1:$AG$32,'DA - Totals'!N$2,FALSE) -> 3.965956647 | GE24: =DA24-VLOOKUP($B24,'Defense Adjusted'!$A$1:$AG$32,'DA - Totals'!O$2,FALSE) -> 6.915051385 | GF24: =DB24-VLOOKUP($B24,'Defense Adjusted'!$A$1:$AG$32,'DA - Totals'!P$2,FALSE) -> 1.058466619 | GG24: =DC24-VLOOKUP($B24,'Defense Adjusted'!$A$1:$AG$32,'DA - Totals'!Q$2,FALSE) -> 2.182826847 | GH24: =DD24-VLOOKUP($B24,'Defense Adjusted'!$A$1:$AG$32,'DA - Totals'!R$2,FALSE) -> 0.137882919 | GI24: =DE24-VLOOKUP($B24,'Defense Adjusted'!$A$1:$AG$32,'DA - Totals'!S$2,FALSE) -> 0.5955350084 | GJ24: =DF24-VLOOKUP($B24,'Defense Adjusted'!$A$1:$AG$32,'DA - Totals'!T$2,FALSE) -> 29.54285022 | GK24: =DG24-VLOOKUP($B24,'Defense Adjusted'!$A$1:$AG$32,'DA - Totals'!U$2,FALSE) -> 28.09440019 | GL24: =DH24-VLOOKUP($B24,'Defense Adjusted'!$A$1:$AG$32,'DA - Totals'!V$2,FALSE) -> 5.566053629 | GM24: =DI24-VLOOKUP($B24,'Defense Adjusted'!$A$1:$AG$32,'DA - Totals'!W$2,FALSE) -> 3.191935166 | GN24: =DJ24-VLOOKUP($B24,'Defense Adjusted'!$A$1:$AG$32,'DA - Totals'!X$2,FALSE) -> 0.06931304903 | GO24: =DK24-VLOOKUP($B24,'Defense Adjusted'!$A$1:$AG$32,'DA - Totals'!Y$2,FALSE) -> 0.7805064911 | GP24: =DL24-VLOOKUP($B24,'Defense Adjusted'!$A$1:$AG$32,'DA - Totals'!Z$2,FALSE) -> 4.761518415 | GQ24: =DM24-VLOOKUP($B24,'Defense Adjusted'!$A$1:$AG$32,'DA - Totals'!AA$2,FALSE) -> 5.886719882 | GR24: =DN24-VLOOKUP($B24,'Defense Adjusted'!$A$1:$AG$32,'DA - Totals'!AB$2,FALSE) -> 1.33063561 | GS24: =DO24-VLOOKUP($B24,'Defense Adjusted'!$A$1:$AG$32,'DA - Totals'!AC$2,FALSE) -> 0.3446261622 | GT24: =DP24-VLOOKUP($B24,'Defense Adjusted'!$A$1:$AG$32,'DA - Totals'!AD$2,FALSE) -> 0.4911807022 | GU24: =DQ24-VLOOKUP($B24,'Defense Adjusted'!$A$1:$AG$32,'DA - Totals'!AE$2,FALSE) -> 0.551600984 | GV24: =DR24-VLOOKUP($B24,'Defense Adjusted'!$A$1:$AG$32,'DA - Totals'!AF$2,FALSE) -> 4.408451643 | GW24: =DS24-VLOOKUP($B24,'Defense Adjusted'!$A$1:$AG$32,'DA - Totals'!AG$2,FALSE) -> 5.340417117 | GX24: =DT24-VLOOKUP($B24,'Defense Adjusted'!$A$1:$AG$32,'DA - Totals'!AH$2,FALSE) -> 43.68980927 | GY24: =DU24-VLOOKUP($B24,'Defense Adjusted'!$A$1:$AG$32,'DA - Totals'!AI$2,FALSE) -> 47.21848612 | HA24: 32 | HB24: 29 | HC24: 28 | HD24: 26 | HE24: 15 | HF24: 6 | HG24: 28 | HH24: 29 | HI24: 28 | HJ24: 24 | HK24: 28 | HL24: 31 | HM24: 30 | HN24: 28 | HO24: 32 | HP24: 28 | HQ24: 18 | HR24: 11 | HS24: 26 | HT24: 27 | HU24: 31 | HV24: 25 | HW24: 26 | HX24: 24 | HY24: 29 | HZ24: 32 | IA24: 12 | IB24: 27 | IC24: 11 | ID24: 29 | IE24: 8 | IF24: 31
A25: Ravens | B25: Chiefs | C25: 1 | D25: 38 | E25: 24 | G25: Flacco | H25: 1 | I25: 32 | J25: 11 | K25: 303 | L25: 26 | M25: 43 | N25: 3 | O25: 198 | P25: 41 | Q25: 2 | R25: 10 | S25: 17 | T25: 1 | U25: 1 | V25: 1 | W25: 0 | X25: 1 | Y25: 4 | Z25: 8 | AA25: 65 | AB25: 3 | AC25: 87 | AD25: 0 | AE25: 4 | AF25: 4 | AG25: 0 | AH25: 15 | AI25: 20 | AJ25: 9 | AK25: 14 | AL25: 0 | AM25: 1 | AN25: 1 | AO25: 1 | AP25: 11 | AQ25: 14 | AR25: 25 | AS25: 36 | AT25: 11 | AU25: 331 | AV25: 2 | AW25: 39 | AX25: 49 | AY25: 11 | AZ25: 11 | BA25: 159 | BB25: 16 | BC25: 24 | BD25: 2 | BE25: 29 | BF25: 17 | BG25: 0 | BH25: 2 | BI25: 10 | BJ25: 1 | BK25: 2 | BL25: 0 | BM25: 0 | BN25: 3 | BO25: 18 | BP25: 3 | BQ25: 15 | BR25: 5 | BS25: 246 | BT25: 9 | BU25: 2 | BV25: 2 | BW25: 0 | BX25: 4 | BY25: 10 | BZ25: 0 | CA25: 5 | CB25: 0 | CC25: 2 | CD25: 0 | CE25: 0 | CF25: 1 | CG25: 3 | CH25: 4 | CI25: 17 | CJ25: 11 | CK25: 326 | CL25: 6 | CM25: 20 | CN25: 11 | CP25: 0.8604651163 | CQ25: 0.5909090909 | CR25: 7.227272727 | CS25: 7.37037037 | CT25: 1 | CU25: 0 | CV25: 45.54545455 | CW25: 17.09090909 | CX25: 3.61969697 | CY25: 1.834848485 | CZ25: 5.894117647 | DA25: 4.272727273 | DB25: 2.909090909 | DC25: 1 | DD25: 0.6111111111 | DE25: 0.25 | DF25: 30.09090909 | DG25: 29.63636364 | DH25: 2 | DI25: 6 | DJ25: 1 | DK25: 1 | DL25: 7.727272727 | DM25: 4 | DN25: 0.7647058824 | DO25: 0.3409090909 | DP25: 0.6944444444 | DQ25: 0.2352941176 | DR25: 4.829268293 | DS25: 1.705882353 | DT25: 29 | DU25: 47.4 | DV25: 0.7857142857 | DW25: 0.3333333333 | DX25: 0.07584830339 | DY25: 0.1276595745 | DZ25: 3.454545455 | EA25: 2.181818182 | EB25: 95.39728682 | EC25: 113.0208333 | EE25: 1 | EF25: 8 | EG25: 8 | EH25: 26 | EI25: 9 | EJ25: 25 | EK25: 1 | EL25: 3 | EM25: 3 | EN25: 1 | EO25: 7 | EP25: 8 | EQ25: 1 | ER25: 2 | ES25: 2 | ET25: 3 | EU25: 14 | EV25: 18 | EW25: 2 | EX25: 3 | EY25: 1 | EZ25: 28 | FA25: 2 | FB25: 1 | FC25: 19 | FD25: 30 | FE25: 1 | FF25: 5 | FG25: 6 | FH25: 4 | FI25: 30 | FJ25: 29 | FK25: 5 | FL25: 10 | FM25: 9 | FN25: 31 | FO25: 2 | FP25: 20 | FQ25: 9 | FR25: 30 | FT25: =CP25-VLOOKUP($B25,'Defense Adjusted'!$A$1:$AG$32,'DA - Totals'!D$2,FALSE) -> 0.8619569343 | FU25: =CQ25-VLOOKUP($B25,'Defense Adjusted'!$A$1:$AG$32,'DA - Totals'!E$2,FALSE) -> 0.6746270973 | FV25: =CR25-VLOOKUP($B25,'Defense Adjusted'!$A$1:$AG$32,'DA - Totals'!F$2,FALSE) -> 6.695733159 | FW25: =CS25-VLOOKUP($B25,'Defense Adjusted'!$A$1:$AG$32,'DA - Totals'!G$2,FALSE) -> 8.308361897 | FX25: =CT25-VLOOKUP($B25,'Defense Adjusted'!$A$1:$AG$32,'DA - Totals'!H$2,FALSE) -> 0.8726708372 | FY25: =CU25-VLOOKUP($B25,'Defense Adjusted'!$A$1:$AG$32,'DA - Totals'!I$2,FALSE) -> -0.03001306897 | FZ25: =CV25-VLOOKUP($B25,'Defense Adjusted'!$A$1:$AG$32,'DA - Totals'!J$2,FALSE) -> 43.22949758 | GA25: =CW25-VLOOKUP($B25,'Defense Adjusted'!$A$1:$AG$32,'DA - Totals'!K$2,FALSE) -> 21.99719549 | GB25: =CX25-VLOOKUP($B25,'Defense Adjusted'!$A$1:$AG$32,'DA - Totals'!L$2,FALSE) -> 3.640836944 | GC25: =CY25-VLOOKUP($B25,'Defense Adjusted'!$A$1:$AG$32,'DA - Totals'!M$2,FALSE) -> 2.339377726 | GD25: =CZ25-VLOOKUP($B25,'Defense Adjusted'!$A$1:$AG$32,'DA - Totals'!N$2,FALSE) -> 5.334175129 | GE25: =DA25-VLOOKUP($B25,'Defense Adjusted'!$A$1:$AG$32,'DA - Totals'!O$2,FALSE) -> 4.65622656 | GF25: =DB25-VLOOKUP($B25,'Defense Adjusted'!$A$1:$AG$32,'DA - Totals'!P$2,FALSE) -> 2.926282291 | GG25: =DC25-VLOOKUP($B25,'Defense Adjusted'!$A$1:$AG$32,'DA - Totals'!Q$2,FALSE) -> 1.407237472 | GH25: =DD25-VLOOKUP($B25,'Defense Adjusted'!$A$1:$AG$32,'DA - Totals'!R$2,FALSE) -> 0.6103325796 | GI25: =DE25-VLOOKUP($B25,'Defense Adjusted'!$A$1:$AG$32,'DA - Totals'!S$2,FALSE) -> 0.3539123304 | GJ25: =DF25-VLOOKUP($B25,'Defense Adjusted'!$A$1:$AG$32,'DA - Totals'!T$2,FALSE) -> 29.75465784 | GK25: =DG25-VLOOKUP($B25,'Defense Adjusted'!$A$1:$AG$32,'DA - Totals'!U$2,FALSE) -> 31.32993752 | GL25: =DH25-VLOOKUP($B25,'Defense Adjusted'!$A$1:$AG$32,'DA - Totals'!V$2,FALSE) -> 1.294384679 | GM25: =DI25-VLOOKUP($B25,'Defense Adjusted'!$A$1:$AG$32,'DA - Totals'!W$2,FALSE) -> 4.92391205 | GN25: =DJ25-VLOOKUP($B25,'Defense Adjusted'!$A$1:$AG$32,'DA - Totals'!X$2,FALSE) -> 0.9143817029 | GO25: =DK25-VLOOKUP($B25,'Defense Adjusted'!$A$1:$AG$32,'DA - Totals'!Y$2,FALSE) -> 0.9785483828 | GP25: =DL25-VLOOKUP($B25,'Defense Adjusted'!$A$1:$AG$32,'DA - Totals'!Z$2,FALSE) -> 7.856306173 | GQ25: =DM25-VLOOKUP($B25,'Defense Adjusted'!$A$1:$AG$32,'DA - Totals'!AA$2,FALSE) -> 4.569689599 | GR25: =DN25-VLOOKUP($B25,'Defense Adjusted'!$A$1:$AG$32,'DA - Totals'!AB$2,FALSE) -> 0.8305520624 | GS25: =DO25-VLOOKUP($B25,'Defense Adjusted'!$A$1:$AG$32,'DA - Totals'!AC$2,FALSE) -> 0.439864482 | GT25: =DP25-VLOOKUP($B25,'Defense Adjusted'!$A$1:$AG$32,'DA - Totals'!AD$2,FALSE) -> 0.6303275295 | GU25: =DQ25-VLOOKUP($B25,'Defense Adjusted'!$A$1:$AG$32,'DA - Totals'!AE$2,FALSE) -> 0.2794027852 | GV25: =DR25-VLOOKUP($B25,'Defense Adjusted'!$A$1:$AG$32,'DA - Totals'!AF$2,FALSE) -> 4.21210939 | GW25: =DS25-VLOOKUP($B25,'Defense Adjusted'!$A$1:$AG$32,'DA - Totals'!AG$2,FALSE) -> 1.586877412 | GX25: =DT25-VLOOKUP($B25,'Defense Adjusted'!$A$1:$AG$32,'DA - Totals'!AH$2,FALSE) -> 27.46553866 | GY25: =DU25-VLOOKUP($B25,'Defense Adjusted'!$A$1:$AG$32,'DA - Totals'!AI$2,FALSE) -> 43.66541625 | HA25: 1 | HB25: 19 | HC25: 10 | HD25: 27 | HE25: 10 | HF25: 31 | HG25: 2 | HH25: 10 | HI25: 1 | HJ25: 10 | HK25: 13 | HL25: 14 | HM25: 1 | HN25: 16 | HO25: 3 | HP25: 16 | HQ25: 17 | HR25: 18 | HS25: 1 | HT25: 13 | HU25: 5 | HV25: 28 | HW25: 1 | HX25: 4 | HY25: 20 | HZ25: 26 | IA25: 2 | IB25: 6 | IC25: 13 | ID25: 2 | IE25: 31 | IF25: 25
A26: Redskins | B26: Giants | C26: 1 | D26: 17 | E26: 23 | G26: Campbell | H26: 0 | I26: 15 | J26: 10 | K26: 187 | L26: 19 | M26: 26 | N26: 1 | O26: 85 | P26: 21 | Q26: 1 | R26: 5 | S26: 12 | T26: 1 | U26: 1 | V26: 1 | W26: 1 | X26: 3 | Y26: 24 | Z26: 4 | AA26: 32 | AB26: 5 | AC26: 193 | AD26: 0 | AE26: 3 | AF26: 2 | AG26: 2 | AH26: 1 | AI26: 11 | AJ26: 2 | AK26: 6 | AL26: 0 | AM26: 2 | AN26: 0 | AO26: 0 | AP26: 0 | AQ26: 1 | AR26: 3 | AS26: 19 | AT26: 10 | AU26: 313 | AV26: 3 | AW26: 23 | AX26: 52 | AY26: 18 | AZ26: 10 | BA26: 248 | BB26: 20 | BC26: 29 | BD26: 1 | BE26: 103 | BF26: 31 | BG26: 0 | BH26: 6 | BI26: 13 | BJ26: 0 | BK26: 1 | BL26: 1 | BM26: 1 | BN26: 1 | BO26: 8 | BP26: 4 | BQ26: 30 | BR26: 1 | BS26: 48 | BT26: 1 | BU26: 3 | BV26: 0 | BW26: 2 | BX26: 7 | BY26: 15 | BZ26: 5 | CA26: 10 | CB26: 0 | CC26: 4 | CD26: 0 | CE26: 1 | CF26: 3 | CG26: 8 | CH26: 12 | CI26: 30 | CJ26: 10 | CK26: 292 | CL26: 3 | CM26: 36 | CN26: 8 | CP26: 0.68 | CQ26: 0.6785714286 | CR26: 5.586206897 | CS26: 7.433333333 | CT26: 2 | CU26: 2 | CV26: 27.2 | CW26: 35.1 | CX26: 2.386666667 | CY26: 3.613333333 | CZ26: 5.44 | DA26: 5.754098361 | DB26: 1.5 | DC26: 1.8 | DD26: 0.4615384615 | DE26: 0.4285714286 | DF26: 31.3 | DG26: 29.2 | DH26: 3 | DI26: 3 | DJ26: 0.9523809524 | DK26: 0.2857142857 | DL26: 5 | DM26: 6.1 | DN26: 0.64 | DO26: 0.4918032787 | DP26: 0.1578947368 | DQ26: 0.4 | DR26: 4.047619048 | DS26: 3.322580645 | DT26: 38.6 | DU26: 47 | DV26: 0 | DW26: 0.375 | DX26: 0.0625 | DY26: 0.06552706553 | DZ26: 1.7 | EA26: 2.3 | EB26: 89.74358974 | EC26: 92.31321839 | EE26: 15 | EF26: 17 | EG26: 16 | EH26: 27 | EI26: 15 | EJ26: 9 | EK26: 16 | EL26: 24 | EM26: 23 | EN26: 29 | EO26: 12 | EP26: 25 | EQ26: 15 | ER26: 24 | ES26: 8 | ET26: 22 | EU26: 10 | EV26: 16 | EW26: 4 | EX26: 21 | EY26: 6 | EZ26: 4 | FA26: 22 | FB26: 26 | FC26: 17 | FD26: 22 | FE26: 32 | FF26: 12 | FG26: 15 | FH26: 13 | FI26: 19 | FJ26: 27 | FK26: 27 | FL26: 16 | FM26: 16 | FN26: 19 | FO26: 18 | FP26: 24 | FQ26: 12 | FR26: 22 | FT26: =CP26-VLOOKUP($B26,'Defense Adjusted'!$A$1:$AG$32,'DA - Totals'!D$2,FALSE) -> 0.6576626924 | FU26: =CQ26-VLOOKUP($B26,'Defense Adjusted'!$A$1:$AG$32,'DA - Totals'!E$2,FALSE) -> 0.6498298127 | FV26: =CR26-VLOOKUP($B26,'Defense Adjusted'!$A$1:$AG$32,'DA - Totals'!F$2,FALSE) -> 5.266773565 | FW26: =CS26-VLOOKUP($B26,'Defense Adjusted'!$A$1:$AG$32,'DA - Totals'!G$2,FALSE) -> 5.493442079 | FX26: =CT26-VLOOKUP($B26,'Defense Adjusted'!$A$1:$AG$32,'DA - Totals'!H$2,FALSE) -> 2.095515009 | FY26: =CU26-VLOOKUP($B26,'Defense Adjusted'!$A$1:$AG$32,'DA - Totals'!I$2,FALSE) -> 1.843525547 | FZ26: =CV26-VLOOKUP($B26,'Defense Adjusted'!$A$1:$AG$32,'DA - Totals'!J$2,FALSE) -> 27.68714809 | GA26: =CW26-VLOOKUP($B26,'Defense Adjusted'!$A$1:$AG$32,'DA - Totals'!K$2,FALSE) -> 31.22287928 | GB26: =CX26-VLOOKUP($B26,'Defense Adjusted'!$A$1:$AG$32,'DA - Totals'!L$2,FALSE) -> 2.437790881 | GC26: =CY26-VLOOKUP($B26,'Defense Adjusted'!$A$1:$AG$32,'DA - Totals'!M$2,FALSE) -> 3.466506126 | GD26: =CZ26-VLOOKUP($B26,'Defense Adjusted'!$A$1:$AG$32,'DA - Totals'!N$2,FALSE) -> 5.5408036 | GE26: =DA26-VLOOKUP($B26,'Defense Adjusted'!$A$1:$AG$32,'DA - Totals'!O$2,FALSE) -> 5.145055181 | GF26: =DB26-VLOOKUP($B26,'Defense Adjusted'!$A$1:$AG$32,'DA - Totals'!P$2,FALSE) -> 1.391516512 | GG26: =DC26-VLOOKUP($B26,'Defense Adjusted'!$A$1:$AG$32,'DA - Totals'!Q$2,FALSE) -> 1.626962991 | GH26: =DD26-VLOOKUP($B26,'Defense Adjusted'!$A$1:$AG$32,'DA - Totals'!R$2,FALSE) -> 0.4463523507 | GI26: =DE26-VLOOKUP($B26,'Defense Adjusted'!$A$1:$AG$32,'DA - Totals'!S$2,FALSE) -> 0.3806916312 | GJ26: =DF26-VLOOKUP($B26,'Defense Adjusted'!$A$1:$AG$32,'DA - Totals'!T$2,FALSE) -> 29.20103975 | GK26: =DG26-VLOOKUP($B26,'Defense Adjusted'!$A$1:$AG$32,'DA - Totals'!U$2,FALSE) -> 28.68115051 | GL26: =DH26-VLOOKUP($B26,'Defense Adjusted'!$A$1:$AG$32,'DA - Totals'!V$2,FALSE) -> 3.029118347 | GM26: =DI26-VLOOKUP($B26,'Defense Adjusted'!$A$1:$AG$32,'DA - Totals'!W$2,FALSE) -> 3.494409606 | GN26: =DJ26-VLOOKUP($B26,'Defense Adjusted'!$A$1:$AG$32,'DA - Totals'!X$2,FALSE) -> 0.8314138841 | GO26: =DK26-VLOOKUP($B26,'Defense Adjusted'!$A$1:$AG$32,'DA - Totals'!Y$2,FALSE) -> 0.3018873125 | GP26: =DL26-VLOOKUP($B26,'Defense Adjusted'!$A$1:$AG$32,'DA - Totals'!Z$2,FALSE) -> 5.079571343 | GQ26: =DM26-VLOOKUP($B26,'Defense Adjusted'!$A$1:$AG$32,'DA - Totals'!AA$2,FALSE) -> 5.995743616 | GR26: =DN26-VLOOKUP($B26,'Defense Adjusted'!$A$1:$AG$32,'DA - Totals'!AB$2,FALSE) -> 0.7259675597 | GS26: =DO26-VLOOKUP($B26,'Defense Adjusted'!$A$1:$AG$32,'DA - Totals'!AC$2,FALSE) -> 0.46102561 | GT26: =DP26-VLOOKUP($B26,'Defense Adjusted'!$A$1:$AG$32,'DA - Totals'!AD$2,FALSE) -> 0.1845373851 | GU26: =DQ26-VLOOKUP($B26,'Defense Adjusted'!$A$1:$AG$32,'DA - Totals'!AE$2,FALSE) -> 0.4114088012 | GV26: =DR26-VLOOKUP($B26,'Defense Adjusted'!$A$1:$AG$32,'DA - Totals'!AF$2,FALSE) -> 4.040579126 | GW26: =DS26-VLOOKUP($B26,'Defense Adjusted'!$A$1:$AG$32,'DA - Totals'!AG$2,FALSE) -> 3.569099678 | GX26: =DT26-VLOOKUP($B26,'Defense Adjusted'!$A$1:$AG$32,'DA - Totals'!AH$2,FALSE) -> 39.93416025 | GY26: =DU26-VLOOKUP($B26,'Defense Adjusted'!$A$1:$AG$32,'DA - Totals'!AI$2,FALSE) -> 49.80938197 | HA26: 16 | HB26: 13 | HC26: 14 | HD26: 16 | HE26: 19 | HF26: 15 | HG26: 15 | HH26: 23 | HI26: 22 | HJ26: 29 | HK26: 9 | HL26: 18 | HM26: 21 | HN26: 22 | HO26: 8 | HP26: 21 | HQ26: 21 | HR26: 12 | HS26: 5 | HT26: 25 | HU26: 7 | HV26: 4 | HW26: 20 | HX26: 25 | HY26: 18 | HZ26: 25 | IA26: 31 | IB26: 15 | IC26: 15 | ID26: 14 | IE26: 14 | IF26: 32
A27: Saints | B27: Lions | C27: 1 | D27: 45 | E27: 27 | G27: Brees | H27: 1 | I27: 28 | J27: 13 | K27: 358 | L27: 26 | M27: 34 | N27: 6 | O27: 157 | P27: 35 | Q27: 0 | R27: 9 | S27: 13 | T27: 0 | U27: 0 | V27: 1 | W27: 2 | X27: 0 | Y27: 0 | Z27: 7 | AA27: 36 | AB27: 2 | AC27: 96 | AD27: 55 | AE27: 6 | AF27: 4 | AG27: 0 | AH27: 9 | AI27: 17 | AJ27: 7 | AK27: 14 | AL27: 3 | AM27: 4 | AN27: 2 | AO27: 2 | AP27: 8 | AQ27: 14 | AR27: 21 | AS27: 37 | AT27: 13 | AU27: 519 | AV27: 3 | AW27: 36 | AX27: 30 | AY27: 14 | AZ27: 12 | BA27: 198 | BB27: 16 | BC27: 37 | BD27: 0 | BE27: 33 | BF27: 20 | BG27: 2 | BH27: 3 | BI27: 14 | BJ27: 2 | BK27: 2 | BL27: 3 | BM27: 0 | BN27: 1 | BO27: 7 | BP27: 8 | BQ27: 80 | BR27: 5 | BS27: 209 | BT27: 11 | BU27: 4 | BV27: 2 | BW27: 1 | BX27: 4 | BY27: 11 | BZ27: 3 | CA27: 5 | CB27: 1 | CC27: 3 | CD27: 1 | CE27: 1 | CF27: 1 | CG27: 1 | CH27: 9 | CI27: 20 | CJ27: 13 | CK27: 490 | CL27: 5 | CM27: 23 | CN27: 30 | CP27: 0.8292682927 | CQ27: 0.6153846154 | CR27: 12.73529412 | CS27: 1.657894737 | CT27: 3 | CU27: 3 | CV27: 39.61538462 | CW27: 19.25 | CX27: 2.807692308 | CY27: 1.958333333 | CZ27: 7.463768116 | DA27: 3.982758621 | DB27: 2.153846154 | DC27: 1.166666667 | DD27: 0.6923076923 | DE27: 0.3125 | DF27: 39.92307692 | DG27: 37.69230769 | DH27: 3 | DI27: 5 | DJ27: 0.6666666667 | DK27: 0.6071428571 | DL27: 5.307692308 | DM27: 4.833333333 | DN27: 0.5217391304 | DO27: 1.379310345 | DP27: 0.5675675676 | DQ27: 0.45 | DR27: 4.485714286 | DS27: 1.65 | DT27: 20.5 | DU27: 39.6 | DV27: 0.5714285714 | DW27: 1 | DX27: 0.08737864078 | DY27: 0.1168831169 | DZ27: 3.461538462 | EA27: 2.25 | EB27: 137.0098039 | EC27: 26.63288288 | EE27: 2 | EF27: 10 | EG27: 2 | EH27: 2 | EI27: 25 | EJ27: 4 | EK27: 7 | EL27: 5 | EM27: 11 | EN27: 2 | EO27: 2 | EP27: 4 | EQ27: 5 | ER27: 7 | ES27: 1 | ET27: 13 | EU27: 3 | EV27: 27 | EW27: 4 | EX27: 7 | EY27: 16 | EZ27: 14 | FA27: 16 | FB27: 8 | FC27: 13 | FD27: 3 | FE27: 6 | FF27: 21 | FG27: 10 | FH27: 3 | FI27: 32 | FJ27: 16 | FK27: 7 | FL27: 30 | FM27: 7 | FN27: 30 | FO27: 1 | FP27: 23 | FQ27: 2 | FR27: 2 | FT27: =CP27-VLOOKUP($B27,'Defense Adjusted'!$A$1:$AG$32,'DA - Totals'!D$2,FALSE) -> 0.7777235125 | FU27: =CQ27-VLOOKUP($B27,'Defense Adjusted'!$A$1:$AG$32,'DA - Totals'!E$2,FALSE) -> 0.6589275715 | FV27: =CR27-VLOOKUP($B27,'Defense Adjusted'!$A$1:$AG$32,'DA - Totals'!F$2,FALSE) -> 10.07189422 | FW27: =CS27-VLOOKUP($B27,'Defense Adjusted'!$A$1:$AG$32,'DA - Totals'!G$2,FALSE) -> 4.386831521 | FX27: =CT27-VLOOKUP($B27,'Defense Adjusted'!$A$1:$AG$32,'DA - Totals'!H$2,FALSE) -> 3.268127291 | FY27: =CU27-VLOOKUP($B27,'Defense Adjusted'!$A$1:$AG$32,'DA - Totals'!I$2,FALSE) -> 2.136450329 | FZ27: =CV27-VLOOKUP($B27,'Defense Adjusted'!$A$1:$AG$32,'DA - Totals'!J$2,FALSE) -> 34.70388322 | GA27: =CW27-VLOOKUP($B27,'Defense Adjusted'!$A$1:$AG$32,'DA - Totals'!K$2,FALSE) -> 22.52836895 | GB27: =CX27-VLOOKUP($B27,'Defense Adjusted'!$A$1:$AG$32,'DA - Totals'!L$2,FALSE) -> 2.853013095 | GC27: =CY27-VLOOKUP($B27,'Defense Adjusted'!$A$1:$AG$32,'DA - Totals'!M$2,FALSE) -> 2.100366295 | GD27: =CZ27-VLOOKUP($B27,'Defense Adjusted'!$A$1:$AG$32,'DA - Totals'!N$2,FALSE) -> 6.5013323 | GE27: =DA27-VLOOKUP($B27,'Defense Adjusted'!$A$1:$AG$32,'DA - Totals'!O$2,FALSE) -> 4.592951952 | GF27: =DB27-VLOOKUP($B27,'Defense Adjusted'!$A$1:$AG$32,'DA - Totals'!P$2,FALSE) -> 2.006711655 | GG27: =DC27-VLOOKUP($B27,'Defense Adjusted'!$A$1:$AG$32,'DA - Totals'!Q$2,FALSE) -> 1.279794785 | GH27: =DD27-VLOOKUP($B27,'Defense Adjusted'!$A$1:$AG$32,'DA - Totals'!R$2,FALSE) -> 0.671072737 | GI27: =DE27-VLOOKUP($B27,'Defense Adjusted'!$A$1:$AG$32,'DA - Totals'!S$2,FALSE) -> 0.3622145165 | GJ27: =DF27-VLOOKUP($B27,'Defense Adjusted'!$A$1:$AG$32,'DA - Totals'!T$2,FALSE) -> 34.9262947 | GK27: =DG27-VLOOKUP($B27,'Defense Adjusted'!$A$1:$AG$32,'DA - Totals'!U$2,FALSE) -> 40.33327906 | GL27: =DH27-VLOOKUP($B27,'Defense Adjusted'!$A$1:$AG$32,'DA - Totals'!V$2,FALSE) -> 3.530080927 | GM27: =DI27-VLOOKUP($B27,'Defense Adjusted'!$A$1:$AG$32,'DA - Totals'!W$2,FALSE) -> 4.826101353 | GN27: =DJ27-VLOOKUP($B27,'Defense Adjusted'!$A$1:$AG$32,'DA - Totals'!X$2,FALSE) -> 0.670691874 | GO27: =DK27-VLOOKUP($B27,'Defense Adjusted'!$A$1:$AG$32,'DA - Totals'!Y$2,FALSE) -> 0.657646961 | GP27: =DL27-VLOOKUP($B27,'Defense Adjusted'!$A$1:$AG$32,'DA - Totals'!Z$2,FALSE) -> 5.329585108 | GQ27: =DM27-VLOOKUP($B27,'Defense Adjusted'!$A$1:$AG$32,'DA - Totals'!AA$2,FALSE) -> 4.777752556 | GR27: =DN27-VLOOKUP($B27,'Defense Adjusted'!$A$1:$AG$32,'DA - Totals'!AB$2,FALSE) -> 0.4468127733 | GS27: =DO27-VLOOKUP($B27,'Defense Adjusted'!$A$1:$AG$32,'DA - Totals'!AC$2,FALSE) -> 1.472615926 | GT27: =DP27-VLOOKUP($B27,'Defense Adjusted'!$A$1:$AG$32,'DA - Totals'!AD$2,FALSE) -> 0.5665574739 | GU27: =DQ27-VLOOKUP($B27,'Defense Adjusted'!$A$1:$AG$32,'DA - Totals'!AE$2,FALSE) -> 0.4407809388 | GV27: =DR27-VLOOKUP($B27,'Defense Adjusted'!$A$1:$AG$32,'DA - Totals'!AF$2,FALSE) -> 4.198134992 | GW27: =DS27-VLOOKUP($B27,'Defense Adjusted'!$A$1:$AG$32,'DA - Totals'!AG$2,FALSE) -> 1.674663204 | GX27: =DT27-VLOOKUP($B27,'Defense Adjusted'!$A$1:$AG$32,'DA - Totals'!AH$2,FALSE) -> 19.81660811 | GY27: =DU27-VLOOKUP($B27,'Defense Adjusted'!$A$1:$AG$32,'DA - Totals'!AI$2,FALSE) -> 40.10856051 | HA27: 4 | HB27: 17 | HC27: 2 | HD27: 13 | HE27: 28 | HF27: 11 | HG27: 6 | HH27: 13 | HI27: 10 | HJ27: 3 | HK27: 2 | HL27: 12 | HM27: 6 | HN27: 11 | HO27: 1 | HP27: 18 | HQ27: 6 | HR27: 31 | HS27: 11 | HT27: 14 | HU27: 16 | HV27: 16 | HW27: 17 | HX27: 8 | HY27: 7 | HZ27: 2 | IA27: 6 | IB27: 18 | IC27: 14 | ID27: 4 | IE27: 32 | IF27: 19
A28: Seahawks | B28: Rams | C28: 1 | D28: 28 | E28: 0 | G28: Hasselbeck | H28: 1 | I28: 25 | J28: 12 | K28: 279 | L28: 25 | M28: 36 | N28: 3 | O28: 167 | P28: 34 | Q28: 1 | R28: 8 | S28: 15 | T28: 0 | U28: 0 | V28: 2 | W28: 1 | X28: 0 | Y28: 0 | Z28: 4 | AA28: 25 | AB28: 5 | AC28: 266 | AD28: 24 | AE28: 3 | AF28: 2 | AG28: 0 | AH28: 12 | AI28: 16 | AJ28: 3 | AK28: 12 | AL28: 3 | AM28: 6 | AN28: 0 | AO28: 0 | AP28: 5 | AQ28: 13 | AR28: 18 | AS28: 34 | AT28: 12 | AU28: 317 | AV28: 4 | AW28: 32 | AX28: 27 | AY28: 13 | AZ28: 12 | BA28: 170 | BB28: 17 | BC28: 36 | BD28: 0 | BE28: 77 | BF28: 18 | BG28: 0 | BH28: 2 | BI28: 12 | BJ28: 0 | BK28: 1 | BL28: 0 | BM28: 1 | BN28: 3 | BO28: 21 | BP28: 10 | BQ28: 85 | BR28: 8 | BS28: 406 | BT28: 28 | BU28: 2 | BV28: 0 | BW28: 0 | BX28: 3 | BY28: 9 | BZ28: 4 | CA28: 6 | CB28: 1 | CC28: 2 | CD28: 0 | CE28: 0 | CF28: 1 | CG28: 3 | CH28: 8 | CI28: 17 | CJ28: 13 | CK28: 379 | CL28: 6 | CM28: 27 | CN28: 33 | CP28: 0.7837837838 | CQ28: 0.52 | CR28: 6.916666667 | CS28: 4.358974359 | CT28: 3 | CU28: 1 | CV28: 37.16666667 | CW28: 20.58333333 | CX28: 2.704166667 | CY28: 2.295833333 | CZ28: 6.371428571 | DA28: 4.333333333 | DB28: 2.083333333 | DC28: 1.083333333 | DD28: 0.5333333333 | DE28: 0.1538461538 | DF28: 26.41666667 | DG28: 29.15384615 | DH28: 4 | DI28: 6 | DJ28: 0.6666666667 | DK28: 0 | DL28: 5.833333333 | DM28: 4.75 | DN28: 0.3571428571 | DO28: 1.49122807 | DP28: 0.5294117647 | DQ28: 0.4705882353 | DR28: 4.911764706 | DS28: 4.277777778 | DT28: 48.4 | DU28: 47.25 | DV28: 0.3846153846 | DW28: 0.3333333333 | DX28: 0.06278026906 | DY28: 0 | DZ28: 2.333333333 | EA28: 0 | EB28: 96.875 | EC28: 61.11111111 | EE28: 4 | EF28: 1 | EG28: 10 | EH28: 12 | EI28: 25 | EJ28: 19 | EK28: 8 | EL28: 7 | EM28: 15 | EN28: 7 | EO28: 3 | EP28: 10 | EQ28: 7 | ER28: 6 | ES28: 5 | ET28: 1 | EU28: 26 | EV28: 15 | EW28: 13 | EX28: 3 | EY28: 16 | EZ28: 1 | FA28: 11 | FB28: 7 | FC28: 4 | FD28: 1 | FE28: 8 | FF28: 22 | FG28: 5 | FH28: 19 | FI28: 2 | FJ28: 28 | FK28: 16 | FL28: 10 | FM28: 15 | FN28: 1 | FO28: 8 | FP28: 1 | FQ28: 7 | FR28: 8 | FT28: =CP28-VLOOKUP($B28,'Defense Adjusted'!$A$1:$AG$32,'DA - Totals'!D$2,FALSE) -> 0.7359368284 | FU28: =CQ28-VLOOKUP($B28,'Defense Adjusted'!$A$1:$AG$32,'DA - Totals'!E$2,FALSE) -> 0.5968535662 | FV28: =CR28-VLOOKUP($B28,'Defense Adjusted'!$A$1:$AG$32,'DA - Totals'!F$2,FALSE) -> 4.867655251 | FW28: =CS28-VLOOKUP($B28,'Defense Adjusted'!$A$1:$AG$32,'DA - Totals'!G$2,FALSE) -> 6.924922281 | FX28: =CT28-VLOOKUP($B28,'Defense Adjusted'!$A$1:$AG$32,'DA - Totals'!H$2,FALSE) -> 3.584382912 | FY28: =CU28-VLOOKUP($B28,'Defense Adjusted'!$A$1:$AG$32,'DA - Totals'!I$2,FALSE) -> 0.6370809502 | FZ28: =CV28-VLOOKUP($B28,'Defense Adjusted'!$A$1:$AG$32,'DA - Totals'!J$2,FALSE) -> 30.87101626 | GA28: =CW28-VLOOKUP($B28,'Defense Adjusted'!$A$1:$AG$32,'DA - Totals'!K$2,FALSE) -> 24.54436431 | GB28: =CX28-VLOOKUP($B28,'Defense Adjusted'!$A$1:$AG$32,'DA - Totals'!L$2,FALSE) -> 2.384322864 | GC28: =CY28-VLOOKUP($B28,'Defense Adjusted'!$A$1:$AG$32,'DA - Totals'!M$2,FALSE) -> 2.337040737 | GD28: =CZ28-VLOOKUP($B28,'Defense Adjusted'!$A$1:$AG$32,'DA - Totals'!N$2,FALSE) -> 5.724522526 | GE28: =DA28-VLOOKUP($B28,'Defense Adjusted'!$A$1:$AG$32,'DA - Totals'!O$2,FALSE) -> 5.172684402 | GF28: =DB28-VLOOKUP($B28,'Defense Adjusted'!$A$1:$AG$32,'DA - Totals'!P$2,FALSE) -> 1.759739017 | GG28: =DC28-VLOOKUP($B28,'Defense Adjusted'!$A$1:$AG$32,'DA - Totals'!Q$2,FALSE) -> 1.233725126 | GH28: =DD28-VLOOKUP($B28,'Defense Adjusted'!$A$1:$AG$32,'DA - Totals'!R$2,FALSE) -> 0.4799373638 | GI28: =DE28-VLOOKUP($B28,'Defense Adjusted'!$A$1:$AG$32,'DA - Totals'!S$2,FALSE) -> 0.2204482808 | GJ28: =DF28-VLOOKUP($B28,'Defense Adjusted'!$A$1:$AG$32,'DA - Totals'!T$2,FALSE) -> 28.9721749 | GK28: =DG28-VLOOKUP($B28,'Defense Adjusted'!$A$1:$AG$32,'DA - Totals'!U$2,FALSE) -> 31.37477384 | GL28: =DH28-VLOOKUP($B28,'Defense Adjusted'!$A$1:$AG$32,'DA - Totals'!V$2,FALSE) -> 4.634456411 | GM28: =DI28-VLOOKUP($B28,'Defense Adjusted'!$A$1:$AG$32,'DA - Totals'!W$2,FALSE) -> 6.034990726 | GN28: =DJ28-VLOOKUP($B28,'Defense Adjusted'!$A$1:$AG$32,'DA - Totals'!X$2,FALSE) -> 0.591020466 | GO28: =DK28-VLOOKUP($B28,'Defense Adjusted'!$A$1:$AG$32,'DA - Totals'!Y$2,FALSE) -> 0.2050611303 | GP28: =DL28-VLOOKUP($B28,'Defense Adjusted'!$A$1:$AG$32,'DA - Totals'!Z$2,FALSE) -> 5.364500969 | GQ28: =DM28-VLOOKUP($B28,'Defense Adjusted'!$A$1:$AG$32,'DA - Totals'!AA$2,FALSE) -> 4.684944051 | GR28: =DN28-VLOOKUP($B28,'Defense Adjusted'!$A$1:$AG$32,'DA - Totals'!AB$2,FALSE) -> 0.533563883 | GS28: =DO28-VLOOKUP($B28,'Defense Adjusted'!$A$1:$AG$32,'DA - Totals'!AC$2,FALSE) -> 1.498217685 | GT28: =DP28-VLOOKUP($B28,'Defense Adjusted'!$A$1:$AG$32,'DA - Totals'!AD$2,FALSE) -> 0.5214307627 | GU28: =DQ28-VLOOKUP($B28,'Defense Adjusted'!$A$1:$AG$32,'DA - Totals'!AE$2,FALSE) -> 0.4650413327 | GV28: =DR28-VLOOKUP($B28,'Defense Adjusted'!$A$1:$AG$32,'DA - Totals'!AF$2,FALSE) -> 4.630008095 | GW28: =DS28-VLOOKUP($B28,'Defense Adjusted'!$A$1:$AG$32,'DA - Totals'!AG$2,FALSE) -> 3.983373575 | GX28: =DT28-VLOOKUP($B28,'Defense Adjusted'!$A$1:$AG$32,'DA - Totals'!AH$2,FALSE) -> 47.92459451 | GY28: =DU28-VLOOKUP($B28,'Defense Adjusted'!$A$1:$AG$32,'DA - Totals'!AI$2,FALSE) -> 43.69940376 | HA28: 8 | HB28: 7 | HC28: 18 | HD28: 23 | HE28: 30 | HF28: 25 | HG28: 10 | HH28: 15 | HI28: 23 | HJ28: 9 | HK28: 8 | HL28: 19 | HM28: 10 | HN28: 8 | HO28: 7 | HP28: 2 | HQ28: 22 | HR28: 19 | HS28: 17 | HT28: 3 | HU28: 19 | HV28: 3 | HW28: 14 | HX28: 6 | HY28: 12 | HZ28: 1 | IA28: 9 | IB28: 20 | IC28: 7 | ID28: 18 | IE28: 2 | IF28: 26
A29: Steelers | B29: Titans | C29: 1 | D29: 13 | E29: 10 | G29: Roethlisberger | H29: 1 | I29: 19 | J29: 13 | K29: 321 | L29: 33 | M29: 43 | N29: 1 | O29: 36 | P29: 23 | Q29: 0 | R29: 4 | S29: 14 | T29: 0 | U29: 0 | V29: 2 | W29: 1 | X29: 4 | Y29: 42 | Z29: 6 | AA29: 60 | AB29: 7 | AC29: 299 | AD29: 14 | AE29: 2 | AF29: 0 | AG29: 2 | AH29: 2 | AI29: 8 | AJ29: 2 | AK29: 12 | AL29: 0 | AM29: 2 | AN29: 0 | AO29: 0 | AP29: 2 | AQ29: 5 | AR29: 4 | AS29: 22 | AT29: 13 | AU29: 401 | AV29: 5 | AW29: 36 | AX29: 11 | AY29: 18 | AZ29: 12 | BA29: 234 | BB29: 22 | BC29: 35 | BD29: 1 | BE29: 86 | BF29: 25 | BG29: 0 | BH29: 4 | BI29: 13 | BJ29: 0 | BK29: 0 | BL29: 1 | BM29: 1 | BN29: 1 | BO29: 10 | BP29: 5 | BQ29: 28 | BR29: 5 | BS29: 223 | BT29: 11 | BU29: 3 | BV29: 1 | BW29: 0 | BX29: 5 | BY29: 15 | BZ29: 1 | CA29: 7 | CB29: 0 | CC29: 3 | CD29: 0 | CE29: 0 | CF29: 0 | CG29: 5 | CH29: 6 | CI29: 25 | CJ29: 12 | CK29: 246 | CL29: 3 | CM29: 28 | CN29: 21 | CP29: 0.625 | CQ29: 0.6333333333 | CR29: 5.340425532 | CS29: 5.805555556 | CT29: 3 | CU29: 2 | CV29: 27.46153846 | CW29: 26.66666667 | CX29: 2.783333333 | CY29: 2.3625 | CZ29: 5.1 | DA29: 5.245901639 | DB29: 1.461538462 | DC29: 1.5 | DD29: 0.2857142857 | DE29: 0.3076923077 | DF29: 30.84615385 | DG29: 20.5 | DH29: 5 | DI29: 3 | DJ29: 0.4285714286 | DK29: 0.3333333333 | DL29: 5.384615385 | DM29: 5.083333333 | DN29: 0.8571428571 | DO29: 0.4590163934 | DP29: 0.1818181818 | DQ29: 0.24 | DR29: 1.565217391 | DS29: 3.44 | DT29: 40.71428571 | DU29: 42.4 | DV29: 0.4 | DW29: 0 | DX29: 0.03641456583 | DY29: 0.03125 | DZ29: 1 | EA29: 0.8333333333 | EB29: 85.51356589 | EC29: 79.94047619 | EE29: 20 | EF29: 16 | EG29: 18 | EH29: 19 | EI29: 25 | EJ29: 9 | EK29: 14 | EL29: 15 | EM29: 13 | EN29: 9 | EO29: 17 | EP29: 20 | EQ29: 17 | ER29: 17 | ES29: 23 | ET29: 12 | EU29: 11 | EV29: 1 | EW29: 18 | EX29: 21 | EY29: 25 | EZ29: 6 | FA29: 14 | FB29: 12 | FC29: 24 | FD29: 24 | FE29: 31 | FF29: 6 | FG29: 31 | FH29: 15 | FI29: 15 | FJ29: 22 | FK29: 15 | FL29: 1 | FM29: 28 | FN29: 4 | FO29: 26 | FP29: 6 | FQ29: 17 | FR29: 12 | FT29: =CP29-VLOOKUP($B29,'Defense Adjusted'!$A$1:$AG$32,'DA - Totals'!D$2,FALSE) -> 0.6171715275 | FU29: =CQ29-VLOOKUP($B29,'Defense Adjusted'!$A$1:$AG$32,'DA - Totals'!E$2,FALSE) -> 0.6383357799 | FV29: =CR29-VLOOKUP($B29,'Defense Adjusted'!$A$1:$AG$32,'DA - Totals'!F$2,FALSE) -> 5.051737954 | FW29: =CS29-VLOOKUP($B29,'Defense Adjusted'!$A$1:$AG$32,'DA - Totals'!G$2,FALSE) -> 6.328978626 | FX29: =CT29-VLOOKUP($B29,'Defense Adjusted'!$A$1:$AG$32,'DA - Totals'!H$2,FALSE) -> 3.007623912 | FY29: =CU29-VLOOKUP($B29,'Defense Adjusted'!$A$1:$AG$32,'DA - Totals'!I$2,FALSE) -> 1.671085839 | FZ29: =CV29-VLOOKUP($B29,'Defense Adjusted'!$A$1:$AG$32,'DA - Totals'!J$2,FALSE) -> 25.19556587 | GA29: =CW29-VLOOKUP($B29,'Defense Adjusted'!$A$1:$AG$32,'DA - Totals'!K$2,FALSE) -> 24.96756933 | GB29: =CX29-VLOOKUP($B29,'Defense Adjusted'!$A$1:$AG$32,'DA - Totals'!L$2,FALSE) -> 2.704192136 | GC29: =CY29-VLOOKUP($B29,'Defense Adjusted'!$A$1:$AG$32,'DA - Totals'!M$2,FALSE) -> 2.514009725 | GD29: =CZ29-VLOOKUP($B29,'Defense Adjusted'!$A$1:$AG$32,'DA - Totals'!N$2,FALSE) -> 4.787164516 | GE29: =DA29-VLOOKUP($B29,'Defense Adjusted'!$A$1:$AG$32,'DA - Totals'!O$2,FALSE) -> 4.818416167 | GF29: =DB29-VLOOKUP($B29,'Defense Adjusted'!$A$1:$AG$32,'DA - Totals'!P$2,FALSE) -> 1.410639634 | GG29: =DC29-VLOOKUP($B29,'Defense Adjusted'!$A$1:$AG$32,'DA - Totals'!Q$2,FALSE) -> 1.569564162 | GH29: =DD29-VLOOKUP($B29,'Defense Adjusted'!$A$1:$AG$32,'DA - Totals'!R$2,FALSE) -> 0.2610266527 | GI29: =DE29-VLOOKUP($B29,'Defense Adjusted'!$A$1:$AG$32,'DA - Totals'!S$2,FALSE) -> 0.2898887204 | GJ29: =DF29-VLOOKUP($B29,'Defense Adjusted'!$A$1:$AG$32,'DA - Totals'!T$2,FALSE) -> 29.39235418 | GK29: =DG29-VLOOKUP($B29,'Defense Adjusted'!$A$1:$AG$32,'DA - Totals'!U$2,FALSE) -> 22.87607131 | GL29: =DH29-VLOOKUP($B29,'Defense Adjusted'!$A$1:$AG$32,'DA - Totals'!V$2,FALSE) -> 5.337791266 | GM29: =DI29-VLOOKUP($B29,'Defense Adjusted'!$A$1:$AG$32,'DA - Totals'!W$2,FALSE) -> 2.929297804 | GN29: =DJ29-VLOOKUP($B29,'Defense Adjusted'!$A$1:$AG$32,'DA - Totals'!X$2,FALSE) -> 0.4066998781 | GO29: =DK29-VLOOKUP($B29,'Defense Adjusted'!$A$1:$AG$32,'DA - Totals'!Y$2,FALSE) -> 0.3610625496 | GP29: =DL29-VLOOKUP($B29,'Defense Adjusted'!$A$1:$AG$32,'DA - Totals'!Z$2,FALSE) -> 5.329755667 | GQ29: =DM29-VLOOKUP($B29,'Defense Adjusted'!$A$1:$AG$32,'DA - Totals'!AA$2,FALSE) -> 5.204712261 | GR29: =DN29-VLOOKUP($B29,'Defense Adjusted'!$A$1:$AG$32,'DA - Totals'!AB$2,FALSE) -> 0.8925580616 | GS29: =DO29-VLOOKUP($B29,'Defense Adjusted'!$A$1:$AG$32,'DA - Totals'!AC$2,FALSE) -> 0.4057841772 | GT29: =DP29-VLOOKUP($B29,'Defense Adjusted'!$A$1:$AG$32,'DA - Totals'!AD$2,FALSE) -> 0.1708980778 | GU29: =DQ29-VLOOKUP($B29,'Defense Adjusted'!$A$1:$AG$32,'DA - Totals'!AE$2,FALSE) -> 0.2478716341 | GV29: =DR29-VLOOKUP($B29,'Defense Adjusted'!$A$1:$AG$32,'DA - Totals'!AF$2,FALSE) -> 1.080212128 | GW29: =DS29-VLOOKUP($B29,'Defense Adjusted'!$A$1:$AG$32,'DA - Totals'!AG$2,FALSE) -> 2.228120697 | GX29: =DT29-VLOOKUP($B29,'Defense Adjusted'!$A$1:$AG$32,'DA - Totals'!AH$2,FALSE) -> 39.21019696 | GY29: =DU29-VLOOKUP($B29,'Defense Adjusted'!$A$1:$AG$32,'DA - Totals'!AI$2,FALSE) -> 41.1311909 | HA29: 24 | HB29: 12 | HC29: 15 | HD29: 20 | HE29: 26 | HF29: 17 | HG29: 19 | HH29: 16 | HI29: 12 | HJ29: 15 | HK29: 18 | HL29: 16 | HM29: 20 | HN29: 20 | HO29: 30 | HP29: 7 | HQ29: 19 | HR29: 2 | HS29: 24 | HT29: 29 | HU29: 25 | HV29: 9 | HW29: 16 | HX29: 17 | HY29: 23 | HZ29: 28 | IA29: 32 | IB29: 5 | IC29: 31 | ID29: 5 | IE29: 18 | IF29: 22
A30: Texans | B30: Jets | C30: 1 | D30: 7 | E30: 24 | G30: Schaub | H30: 1 | I30: 11 | J30: 9 | K30: 145 | L30: 18 | M30: 33 | N30: 0 | O30: 38 | P30: 13 | Q30: 0 | R30: 3 | S30: 10 | T30: 0 | U30: 1 | V30: 1 | W30: 1 | X30: 2 | Y30: 21 | Z30: 6 | AA30: 37 | AB30: 6 | AC30: 264 | AD30: 34 | AE30: 0 | AF30: 0 | AG30: 0 | AH30: 1 | AI30: 7 | AJ30: 1 | AK30: 3 | AL30: 2 | AM30: 2 | AN30: 0 | AO30: 0 | AP30: 1 | AQ30: 1 | AR30: 4 | AS30: 12 | AT30: 9 | AU30: 196 | AV30: 3 | AW30: 21 | AX30: 14 | AY30: 22 | AZ30: 11 | BA30: 272 | BB30: 18 | BC30: 31 | BD30: 1 | BE30: 190 | BF30: 42 | BG30: 2 | BH30: 10 | BI30: 18 | BJ30: 2 | BK30: 2 | BL30: 1 | BM30: 0 | BN30: 0 | BO30: 0 | BP30: 10 | BQ30: 80 | BR30: 4 | BS30: 164 | BT30: 0 | BU30: 2 | BV30: 1 | BW30: 1 | BX30: 6 | BY30: 20 | BZ30: 4 | CA30: 16 | CB30: 0 | CC30: 2 | CD30: 1 | CE30: 1 | CF30: 5 | CG30: 14 | CH30: 11 | CI30: 39 | CJ30: 11 | CK30: 305 | CL30: 5 | CM30: 38 | CN30: 46 | CP30: 0.55 | CQ30: 0.7575757576 | CR30: 2.857142857 | CS30: 7.967741935 | CT30: 2 | CU30: 1 | CV30: 20.33333333 | CW30: 42 | CX30: 2.359259259 | CY30: 3.524242424 | CZ30: 3.8125 | DA30: 6.328767123 | DB30: 1.222222222 | DC30: 2 | DD30: 0.2727272727 | DE30: 0.6 | DF30: 21.77777778 | DG30: 27.72727273 | DH30: 3 | DI30: 5 | DJ30: 0 | DK30: 0.7142857143 | DL30: 5.333333333 | DM30: 6.636363636 | DN30: 0.7708333333 | DO30: 1.095890411 | DP30: 0.3333333333 | DQ30: 0.2820512821 | DR30: 2.923076923 | DS30: 4.523809524 | DT30: 38.33333333 | DU30: 41 | DV30: 1 | DW30: 0.3571428571 | DX30: 0.03825136612 | DY30: 0.05194805195 | DZ30: 0.7777777778 | EA30: 2.181818182 | EB30: 53.21969697 | EC30: 84.34139785 | EE30: 29 | EF30: 24 | EG30: 28 | EH30: 29 | EI30: 15 | EJ30: 19 | EK30: 27 | EL30: 29 | EM30: 25 | EN30: 28 | EO30: 30 | EP30: 29 | EQ30: 24 | ER30: 25 | ES30: 26 | ET30: 30 | EU30: 30 | EV30: 10 | EW30: 4 | EX30: 7 | EY30: 30 | EZ30: 18 | FA30: 15 | FB30: 28 | FC30: 21 | FD30: 7 | FE30: 24 | FF30: 8 | FG30: 23 | FH30: 24 | FI30: 20 | FJ30: 19 | FK30: 1 | FL30: 15 | FM30: 27 | FN30: 11 | FO30: 28 | FP30: 20 | FQ30: 28 | FR30: 15 | FT30: =CP30-VLOOKUP($B30,'Defense Adjusted'!$A$1:$AG$32,'DA - Totals'!D$2,FALSE) -> 0.6664325816 | FU30: =CQ30-VLOOKUP($B30,'Defense Adjusted'!$A$1:$AG$32,'DA - Totals'!E$2,FALSE) -> 0.7926051594 | FV30: =CR30-VLOOKUP($B30,'Defense Adjusted'!$A$1:$AG$32,'DA - Totals'!F$2,FALSE) -> 4.856339568 | FW30: =CS30-VLOOKUP($B30,'Defense Adjusted'!$A$1:$AG$32,'DA - Totals'!G$2,FALSE) -> 9.179567804 | FX30: =CT30-VLOOKUP($B30,'Defense Adjusted'!$A$1:$AG$32,'DA - Totals'!H$2,FALSE) -> 1.892512976 | FY30: =CU30-VLOOKUP($B30,'Defense Adjusted'!$A$1:$AG$32,'DA - Totals'!I$2,FALSE) -> 0.8986832361 | FZ30: =CV30-VLOOKUP($B30,'Defense Adjusted'!$A$1:$AG$32,'DA - Totals'!J$2,FALSE) -> 27.09825325 | GA30: =CW30-VLOOKUP($B30,'Defense Adjusted'!$A$1:$AG$32,'DA - Totals'!K$2,FALSE) -> 44.56986421 | GB30: =CX30-VLOOKUP($B30,'Defense Adjusted'!$A$1:$AG$32,'DA - Totals'!L$2,FALSE) -> 2.507942988 | GC30: =CY30-VLOOKUP($B30,'Defense Adjusted'!$A$1:$AG$32,'DA - Totals'!M$2,FALSE) -> 3.475980589 | GD30: =CZ30-VLOOKUP($B30,'Defense Adjusted'!$A$1:$AG$32,'DA - Totals'!N$2,FALSE) -> 4.889861954 | GE30: =DA30-VLOOKUP($B30,'Defense Adjusted'!$A$1:$AG$32,'DA - Totals'!O$2,FALSE) -> 6.677367641 | GF30: =DB30-VLOOKUP($B30,'Defense Adjusted'!$A$1:$AG$32,'DA - Totals'!P$2,FALSE) -> 1.581906514 | GG30: =DC30-VLOOKUP($B30,'Defense Adjusted'!$A$1:$AG$32,'DA - Totals'!Q$2,FALSE) -> 2.179599692 | GH30: =DD30-VLOOKUP($B30,'Defense Adjusted'!$A$1:$AG$32,'DA - Totals'!R$2,FALSE) -> 0.3666244937 | GI30: =DE30-VLOOKUP($B30,'Defense Adjusted'!$A$1:$AG$32,'DA - Totals'!S$2,FALSE) -> 0.6008565751 | GJ30: =DF30-VLOOKUP($B30,'Defense Adjusted'!$A$1:$AG$32,'DA - Totals'!T$2,FALSE) -> 23.44931644 | GK30: =DG30-VLOOKUP($B30,'Defense Adjusted'!$A$1:$AG$32,'DA - Totals'!U$2,FALSE) -> 25.38599529 | GL30: =DH30-VLOOKUP($B30,'Defense Adjusted'!$A$1:$AG$32,'DA - Totals'!V$2,FALSE) -> 2.01781368 | GM30: =DI30-VLOOKUP($B30,'Defense Adjusted'!$A$1:$AG$32,'DA - Totals'!W$2,FALSE) -> 3.806889661 | GN30: =DJ30-VLOOKUP($B30,'Defense Adjusted'!$A$1:$AG$32,'DA - Totals'!X$2,FALSE) -> 0.1795617126 | GO30: =DK30-VLOOKUP($B30,'Defense Adjusted'!$A$1:$AG$32,'DA - Totals'!Y$2,FALSE) -> 0.7711801475 | GP30: =DL30-VLOOKUP($B30,'Defense Adjusted'!$A$1:$AG$32,'DA - Totals'!Z$2,FALSE) -> 5.676940271 | GQ30: =DM30-VLOOKUP($B30,'Defense Adjusted'!$A$1:$AG$32,'DA - Totals'!AA$2,FALSE) -> 6.808030758 | GR30: =DN30-VLOOKUP($B30,'Defense Adjusted'!$A$1:$AG$32,'DA - Totals'!AB$2,FALSE) -> 0.8340402143 | GS30: =DO30-VLOOKUP($B30,'Defense Adjusted'!$A$1:$AG$32,'DA - Totals'!AC$2,FALSE) -> 1.236825572 | GT30: =DP30-VLOOKUP($B30,'Defense Adjusted'!$A$1:$AG$32,'DA - Totals'!AD$2,FALSE) -> 0.4115692529 | GU30: =DQ30-VLOOKUP($B30,'Defense Adjusted'!$A$1:$AG$32,'DA - Totals'!AE$2,FALSE) -> 0.3062211558 | GV30: =DR30-VLOOKUP($B30,'Defense Adjusted'!$A$1:$AG$32,'DA - Totals'!AF$2,FALSE) -> 3.37583297 | GW30: =DS30-VLOOKUP($B30,'Defense Adjusted'!$A$1:$AG$32,'DA - Totals'!AG$2,FALSE) -> 4.337326808 | GX30: =DT30-VLOOKUP($B30,'Defense Adjusted'!$A$1:$AG$32,'DA - Totals'!AH$2,FALSE) -> 38.3910374 | GY30: =DU30-VLOOKUP($B30,'Defense Adjusted'!$A$1:$AG$32,'DA - Totals'!AI$2,FALSE) -> 39.99771724 | HA30: 15 | HB30: 27 | HC30: 19 | HD30: 30 | HE30: 18 | HF30: 22 | HG30: 16 | HH30: 32 | HI30: 16 | HJ30: 30 | HK30: 17 | HL30: 30 | HM30: 13 | HN30: 27 | HO30: 19 | HP30: 29 | HQ30: 30 | HR30: 6 | HS30: 3 | HT30: 19 | HU30: 30 | HV30: 23 | HW30: 9 | HX30: 28 | HY30: 21 | HZ30: 4 | IA30: 17 | IB30: 8 | IC30: 20 | ID30: 21 | IE30: 20 | IF30: 18
A31: Titans | B31: Steelers | C31: 1 | D31: 10 | E31: 13 | G31: Collins | H31: 0 | I31: 18 | J31: 12 | K31: 234 | L31: 22 | M31: 35 | N31: 1 | O31: 86 | P31: 25 | Q31: 0 | R31: 4 | S31: 13 | T31: 0 | U31: 0 | V31: 1 | W31: 1 | X31: 1 | Y31: 10 | Z31: 5 | AA31: 28 | AB31: 5 | AC31: 223 | AD31: 11 | AE31: 3 | AF31: 1 | AG31: 0 | AH31: 5 | AI31: 15 | AJ31: 1 | AK31: 7 | AL31: 0 | AM31: 3 | AN31: 0 | AO31: 0 | AP31: 0 | AQ31: 5 | AR31: 6 | AS31: 25 | AT31: 12 | AU31: 246 | AV31: 3 | AW31: 28 | AX31: 21 | AY31: 19 | AZ31: 13 | BA31: 321 | BB31: 33 | BC31: 43 | BD31: 1 | BE31: 36 | BF31: 23 | BG31: 0 | BH31: 4 | BI31: 14 | BJ31: 0 | BK31: 0 | BL31: 2 | BM31: 1 | BN31: 4 | BO31: 42 | BP31: 6 | BQ31: 60 | BR31: 7 | BS31: 299 | BT31: 14 | BU31: 2 | BV31: 0 | BW31: 2 | BX31: 2 | BY31: 8 | BZ31: 2 | CA31: 12 | CB31: 0 | CC31: 2 | CD31: 0 | CE31: 0 | CF31: 2 | CG31: 5 | CH31: 4 | CI31: 22 | CJ31: 13 | CK31: 401 | CL31: 5 | CM31: 36 | CN31: 11 | CP31: 0.6333333333 | CQ31: 0.625 | CR31: 5.805555556 | CS31: 5.340425532 | CT31: 2 | CU31: 3 | CV31: 26.66666667 | CW31: 27.46153846 | CX31: 2.3625 | CY31: 2.783333333 | CZ31: 5.245901639 | DA31: 5.1 | DB31: 1.5 | DC31: 1.461538462 | DD31: 0.3076923077 | DE31: 0.2857142857 | DF31: 20.5 | DG31: 30.84615385 | DH31: 3 | DI31: 5 | DJ31: 0.3333333333 | DK31: 0.4285714286 | DL31: 5.083333333 | DM31: 5.384615385 | DN31: 0.4590163934 | DO31: 0.8571428571 | DP31: 0.24 | DQ31: 0.1818181818 | DR31: 3.44 | DS31: 1.565217391 | DT31: 42.4 | DU31: 40.71428571 | DV31: 0 | DW31: 0.4 | DX31: 0.03125 | DY31: 0.03641456583 | DZ31: 0.8333333333 | EA31: 1 | EB31: 79.94047619 | EC31: 85.51356589 | EE31: 17 | EF31: 13 | EG31: 14 | EH31: 15 | EI31: 15 | EJ31: 4 | EK31: 18 | EL31: 19 | EM31: 24 | EN31: 20 | EO31: 13 | EP31: 16 | EQ31: 15 | ER31: 16 | ES31: 21 | ET31: 9 | EU31: 32 | EV31: 22 | EW31: 4 | EX31: 7 | EY31: 27 | EZ31: 8 | FA31: 21 | FB31: 19 | FC31: 9 | FD31: 9 | FE31: 27 | FF31: 2 | FG31: 18 | FH31: 2 | FI31: 11 | FJ31: 18 | FK31: 27 | FL31: 18 | FM31: 29 | FN31: 5 | FO31: 27 | FP31: 7 | FQ31: 21 | FR31: 16 | FT31: =CP31-VLOOKUP($B31,'Defense Adjusted'!$A$1:$AG$32,'DA - Totals'!D$2,FALSE) -> 0.6347502921 | FU31: =CQ31-VLOOKUP($B31,'Defense Adjusted'!$A$1:$AG$32,'DA - Totals'!E$2,FALSE) -> 0.5975872118 | FV31: =CR31-VLOOKUP($B31,'Defense Adjusted'!$A$1:$AG$32,'DA - Totals'!F$2,FALSE) -> 5.30599497 | FW31: =CS31-VLOOKUP($B31,'Defense Adjusted'!$A$1:$AG$32,'DA - Totals'!G$2,FALSE) -> 4.178853088 | FX31: =CT31-VLOOKUP($B31,'Defense Adjusted'!$A$1:$AG$32,'DA - Totals'!H$2,FALSE) -> 2.363313874 | FY31: =CU31-VLOOKUP($B31,'Defense Adjusted'!$A$1:$AG$32,'DA - Totals'!I$2,FALSE) -> 3.123824412 | FZ31: =CV31-VLOOKUP($B31,'Defense Adjusted'!$A$1:$AG$32,'DA - Totals'!J$2,FALSE) -> 26.22101889 | GA31: =CW31-VLOOKUP($B31,'Defense Adjusted'!$A$1:$AG$32,'DA - Totals'!K$2,FALSE) -> 22.41448705 | GB31: =CX31-VLOOKUP($B31,'Defense Adjusted'!$A$1:$AG$32,'DA - Totals'!L$2,FALSE) -> 2.368754551 | GC31: =CY31-VLOOKUP($B31,'Defense Adjusted'!$A$1:$AG$32,'DA - Totals'!M$2,FALSE) -> 2.376958819 | GD31: =CZ31-VLOOKUP($B31,'Defense Adjusted'!$A$1:$AG$32,'DA - Totals'!N$2,FALSE) -> 5.193132912 | GE31: =DA31-VLOOKUP($B31,'Defense Adjusted'!$A$1:$AG$32,'DA - Totals'!O$2,FALSE) -> 4.605939232 | GF31: =DB31-VLOOKUP($B31,'Defense Adjusted'!$A$1:$AG$32,'DA - Totals'!P$2,FALSE) -> 1.49356544 | GG31: =DC31-VLOOKUP($B31,'Defense Adjusted'!$A$1:$AG$32,'DA - Totals'!Q$2,FALSE) -> 1.174308085 | GH31: =DD31-VLOOKUP($B31,'Defense Adjusted'!$A$1:$AG$32,'DA - Totals'!R$2,FALSE) -> 0.2688037612 | GI31: =DE31-VLOOKUP($B31,'Defense Adjusted'!$A$1:$AG$32,'DA - Totals'!S$2,FALSE) -> 0.2638265741 | GJ31: =DF31-VLOOKUP($B31,'Defense Adjusted'!$A$1:$AG$32,'DA - Totals'!T$2,FALSE) -> 23.1348105 | GK31: =DG31-VLOOKUP($B31,'Defense Adjusted'!$A$1:$AG$32,'DA - Totals'!U$2,FALSE) -> 32.05055555 | GL31: =DH31-VLOOKUP($B31,'Defense Adjusted'!$A$1:$AG$32,'DA - Totals'!V$2,FALSE) -> 3.479603975 | GM31: =DI31-VLOOKUP($B31,'Defense Adjusted'!$A$1:$AG$32,'DA - Totals'!W$2,FALSE) -> 5.996284123 | GN31: =DJ31-VLOOKUP($B31,'Defense Adjusted'!$A$1:$AG$32,'DA - Totals'!X$2,FALSE) -> 0.3917292663 | GO31: =DK31-VLOOKUP($B31,'Defense Adjusted'!$A$1:$AG$32,'DA - Totals'!Y$2,FALSE) -> 0.488130333 | GP31: =DL31-VLOOKUP($B31,'Defense Adjusted'!$A$1:$AG$32,'DA - Totals'!Z$2,FALSE) -> 4.956881348 | GQ31: =DM31-VLOOKUP($B31,'Defense Adjusted'!$A$1:$AG$32,'DA - Totals'!AA$2,FALSE) -> 5.018491015 | GR31: =DN31-VLOOKUP($B31,'Defense Adjusted'!$A$1:$AG$32,'DA - Totals'!AB$2,FALSE) -> 0.3822156915 | GS31: =DO31-VLOOKUP($B31,'Defense Adjusted'!$A$1:$AG$32,'DA - Totals'!AC$2,FALSE) -> 0.8947874783 | GT31: =DP31-VLOOKUP($B31,'Defense Adjusted'!$A$1:$AG$32,'DA - Totals'!AD$2,FALSE) -> 0.2807944899 | GU31: =DQ31-VLOOKUP($B31,'Defense Adjusted'!$A$1:$AG$32,'DA - Totals'!AE$2,FALSE) -> 0.1930881837 | GV31: =DR31-VLOOKUP($B31,'Defense Adjusted'!$A$1:$AG$32,'DA - Totals'!AF$2,FALSE) -> 3.921614777 | GW31: =DS31-VLOOKUP($B31,'Defense Adjusted'!$A$1:$AG$32,'DA - Totals'!AG$2,FALSE) -> 1.627341933 | GX31: =DT31-VLOOKUP($B31,'Defense Adjusted'!$A$1:$AG$32,'DA - Totals'!AH$2,FALSE) -> 42.32605432 | GY31: =DU31-VLOOKUP($B31,'Defense Adjusted'!$A$1:$AG$32,'DA - Totals'!AI$2,FALSE) -> 41.10856226 | HA31: 21 | HB31: 8 | HC31: 13 | HD31: 11 | HE31: 23 | HF31: 4 | HG31: 18 | HH31: 12 | HI31: 24 | HJ31: 12 | HK31: 14 | HL31: 13 | HM31: 16 | HN31: 5 | HO31: 27 | HP31: 4 | HQ31: 31 | HR31: 21 | HS31: 9 | HT31: 4 | HU31: 26 | HV31: 11 | HW31: 22 | HX31: 15 | HY31: 4 | HZ31: 9 | IA31: 27 | IB31: 2 | IC31: 17 | ID31: 3 | IE31: 9 | IF31: 21
A32: Vikings | B32: Browns | C32: 1 | D32: 34 | E32: 20 | G32: Favre | H32: 0 | I32: 19 | J32: 12 | K32: 85 | L32: 14 | M32: 22 | N32: 1 | O32: 225 | P32: 37 | Q32: 3 | R32: 6 | S32: 14 | T32: 0 | U32: 0 | V32: 0 | W32: 0 | X32: 4 | Y32: 25 | Z32: 3 | AA32: 38 | AB32: 6 | AC32: 232 | AD32: 67 | AE32: 5 | AF32: 3 | AG32: 2 | AH32: 11 | AI32: 17 | AJ32: 8 | AK32: 15 | AL32: 4 | AM32: 5 | AN32: 1 | AO32: 1 | AP32: 4 | AQ32: 9 | AR32: 24 | AS32: 38 | AT32: 13 | AU32: 515 | AV32: 5 | AW32: 33 | AX32: 22 | AY32: 17 | AZ32: 12 | BA32: 179 | BB32: 21 | BC32: 35 | BD32: 1 | BE32: 89 | BF32: 20 | BG32: 0 | BH32: 3 | BI32: 12 | BJ32: 0 | BK32: 1 | BL32: 1 | BM32: 1 | BN32: 5 | BO32: 26 | BP32: 8 | BQ32: 66 | BR32: 5 | BS32: 210 | BT32: 54 | BU32: 2 | BV32: 1 | BW32: 1 | BX32: 5 | BY32: 8 | BZ32: 2 | CA32: 7 | CB32: 1 | CC32: 3 | CD32: 0 | CE32: 0 | CF32: 0 | CG32: 1 | CH32: 8 | CI32: 18 | CJ32: 12 | CK32: 330 | CL32: 5 | CM32: 26 | CN32: 38 | CP32: 0.7419354839 | CQ32: 0.6206896552 | CR32: 4.038461538 | CS32: 3.85 | CT32: 0 | CU32: 2 | CV32: 25.83333333 | CW32: 22.33333333 | CX32: 2.780555556 | CY32: 2.219444444 | CZ32: 4.920634921 | DA32: 4.466666667 | DB32: 1.583333333 | DC32: 1.416666667 | DD32: 0.4285714286 | DE32: 0.2307692308 | DF32: 39.61538462 | DG32: 27.5 | DH32: 5 | DI32: 5 | DJ32: 0.7714285714 | DK32: 0.7142857143 | DL32: 5.25 | DM32: 5 | DN32: 0.6031746032 | DO32: 1.1 | DP32: 0.6315789474 | DQ32: 0.4444444444 | DR32: 6.081081081 | DS32: 4.45 | DT32: 27.5 | DU32: 31.2 | DV32: 0.4444444444 | DW32: 0 | DX32: 0.1096774194 | DY32: 0.07462686567 | DZ32: 2.833333333 | EA32: 1.666666667 | EB32: 86.36363636 | EC32: 71.01190476 | EE32: 10 | EF32: 12 | EG32: 23 | EH32: 7 | EI32: 1 | EJ32: 9 | EK32: 19 | EL32: 10 | EM32: 14 | EN32: 5 | EO32: 18 | EP32: 11 | EQ32: 14 | ER32: 12 | ES32: 10 | ET32: 2 | EU32: 5 | EV32: 8 | EW32: 18 | EX32: 7 | EY32: 8 | EZ32: 18 | FA32: 18 | FB32: 10 | FC32: 15 | FD32: 6 | FE32: 3 | FF32: 18 | FG32: 1 | FH32: 22 | FI32: 31 | FJ32: 5 | FK32: 14 | FL32: 1 | FM32: 4 | FN32: 22 | FO32: 6 | FP32: 14 | FQ32: 15 | FR32: 10 | FT32: =CP32-VLOOKUP($B32,'Defense Adjusted'!$A$1:$AG$32,'DA - Totals'!D$2,FALSE) -> 0.7140555171 | FU32: =CQ32-VLOOKUP($B32,'Defense Adjusted'!$A$1:$AG$32,'DA - Totals'!E$2,FALSE) -> 0.716638439 | FV32: =CR32-VLOOKUP($B32,'Defense Adjusted'!$A$1:$AG$32,'DA - Totals'!F$2,FALSE) -> 2.30203973 | FW32: =CS32-VLOOKUP($B32,'Defense Adjusted'!$A$1:$AG$32,'DA - Totals'!G$2,FALSE) -> 6.695044184 | FX32: =CT32-VLOOKUP($B32,'Defense Adjusted'!$A$1:$AG$32,'DA - Totals'!H$2,FALSE) -> 0.4821630803 | FY32: =CU32-VLOOKUP($B32,'Defense Adjusted'!$A$1:$AG$32,'DA - Totals'!I$2,FALSE) -> 1.783993063 | FZ32: =CV32-VLOOKUP($B32,'Defense Adjusted'!$A$1:$AG$32,'DA - Totals'!J$2,FALSE) -> 19.62827293 | GA32: =CW32-VLOOKUP($B32,'Defense Adjusted'!$A$1:$AG$32,'DA - Totals'!K$2,FALSE) -> 28.36925292 | GB32: =CX32-VLOOKUP($B32,'Defense Adjusted'!$A$1:$AG$32,'DA - Totals'!L$2,FALSE) -> 2.646289805 | GC32: =CY32-VLOOKUP($B32,'Defense Adjusted'!$A$1:$AG$32,'DA - Totals'!M$2,FALSE) -> 2.35346984 | GD32: =CZ32-VLOOKUP($B32,'Defense Adjusted'!$A$1:$AG$32,'DA - Totals'!N$2,FALSE) -> 4.223225446 | GE32: =DA32-VLOOKUP($B32,'Defense Adjusted'!$A$1:$AG$32,'DA - Totals'!O$2,FALSE) -> 5.494162737 | GF32: =DB32-VLOOKUP($B32,'Defense Adjusted'!$A$1:$AG$32,'DA - Totals'!P$2,FALSE) -> 1.347322953 | GG32: =DC32-VLOOKUP($B32,'Defense Adjusted'!$A$1:$AG$32,'DA - Totals'!Q$2,FALSE) -> 1.746444708 | GH32: =DD32-VLOOKUP($B32,'Defense Adjusted'!$A$1:$AG$32,'DA - Totals'!R$2,FALSE) -> 0.4156328223 | GI32: =DE32-VLOOKUP($B32,'Defense Adjusted'!$A$1:$AG$32,'DA - Totals'!S$2,FALSE) -> 0.3000361167 | GJ32: =DF32-VLOOKUP($B32,'Defense Adjusted'!$A$1:$AG$32,'DA - Totals'!T$2,FALSE) -> 41.66627314 | GK32: =DG32-VLOOKUP($B32,'Defense Adjusted'!$A$1:$AG$32,'DA - Totals'!U$2,FALSE) -> 27.49752588 | GL32: =DH32-VLOOKUP($B32,'Defense Adjusted'!$A$1:$AG$32,'DA - Totals'!V$2,FALSE) -> 5.571915483 | GM32: =DI32-VLOOKUP($B32,'Defense Adjusted'!$A$1:$AG$32,'DA - Totals'!W$2,FALSE) -> 4.52748452 | GN32: =DJ32-VLOOKUP($B32,'Defense Adjusted'!$A$1:$AG$32,'DA - Totals'!X$2,FALSE) -> 0.7903268631 | GO32: =DK32-VLOOKUP($B32,'Defense Adjusted'!$A$1:$AG$32,'DA - Totals'!Y$2,FALSE) -> 0.7725811044 | GP32: =DL32-VLOOKUP($B32,'Defense Adjusted'!$A$1:$AG$32,'DA - Totals'!Z$2,FALSE) -> 4.859732464 | GQ32: =DM32-VLOOKUP($B32,'Defense Adjusted'!$A$1:$AG$32,'DA - Totals'!AA$2,FALSE) -> 5.225181553 | GR32: =DN32-VLOOKUP($B32,'Defense Adjusted'!$A$1:$AG$32,'DA - Totals'!AB$2,FALSE) -> 0.6941591707 | GS32: =DO32-VLOOKUP($B32,'Defense Adjusted'!$A$1:$AG$32,'DA - Totals'!AC$2,FALSE) -> 1.20529768 | GT32: =DP32-VLOOKUP($B32,'Defense Adjusted'!$A$1:$AG$32,'DA - Totals'!AD$2,FALSE) -> 0.5793081451 | GU32: =DQ32-VLOOKUP($B32,'Defense Adjusted'!$A$1:$AG$32,'DA - Totals'!AE$2,FALSE) -> 0.462114921 | GV32: =DR32-VLOOKUP($B32,'Defense Adjusted'!$A$1:$AG$32,'DA - Totals'!AF$2,FALSE) -> 5.704686192 | GW32: =DS32-VLOOKUP($B32,'Defense Adjusted'!$A$1:$AG$32,'DA - Totals'!AG$2,FALSE) -> 4.4601462 | GX32: =DT32-VLOOKUP($B32,'Defense Adjusted'!$A$1:$AG$32,'DA - Totals'!AH$2,FALSE) -> 28.56451002 | GY32: =DU32-VLOOKUP($B32,'Defense Adjusted'!$A$1:$AG$32,'DA - Totals'!AI$2,FALSE) -> 30.62855621 | HA32: 12 | HB32: 23 | HC32: 30 | HD32: 21 | HE32: 8 | HF32: 16 | HG32: 25 | HH32: 20 | HI32: 14 | HJ32: 11 | HK32: 26 | HL32: 22 | HM32: 22 | HN32: 24 | HO32: 15 | HP32: 11 | HQ32: 2 | HR32: 8 | HS32: 27 | HT32: 16 | HU32: 10 | HV32: 24 | HW32: 24 | HX32: 18 | HY32: 17 | HZ32: 5 | IA32: 5 | IB32: 19 | IC32: 1 | ID32: 24 | IE32: 30 | IF32: 5
A33: Average | CP33: 0.6908370326 | CQ33: 0.6908370326 | CR33: 5.414570545 | CS33: 5.414570545 | CT33: 1.758333333 | CU33: 1.758333333 | CV33: 28.35842881 | CW33: 28.35842881 | CX33: 2.654169179 | CY33: 2.654169179 | CZ33: 5.140231017 | DA33: 5.140231017 | DB33: 1.624493927 | DC33: 1.624493927 | DD33: 0.3908278248 | DE33: 0.3908278248 | DF33: 31.19958075 | DG33: 31.19958075 | DH33: 3.921568627 | DI33: 3.921568627 | DJ33: 0.65624892 | DK33: 0.65624892 | DL33: 5.502605737 | DM33: 5.502605737 | DN33: 0.8218527781 | DO33: 0.8218527781 | DP33: 0.4563771129 | DQ33: 0.4563771129 | DR33: 4.125266215 | DS33: 4.125266215 | DT33: 37.89847406 | DU33: 37.89847406 | DV33: 0.4542252329 | DW33: 0.4542252329 | DX33: 0.06553735727 | DY33: 0.06553735727 | DZ33: 1.85853648 | EA33: 1.85853648 | FT33: 0.6908370326 | FU33: 0.6908370326 | FV33: 5.414570545 | FW33: 5.414570545 | FX33: 1.758333333 | FY33: 1.758333333 | FZ33: 28.35842881 | GA33: 28.35842881 | GB33: 2.654169179 | GC33: 2.654169179 | GD33: 5.140231017 | GE33: 5.140231017 | GF33: 1.624493927 | GG33: 1.624493927 | GH33: 0.3908278248 | GI33: 0.3908278248 | GJ33: 31.19958075 | GK33: 31.19958075 | GL33: 3.921568627 | GM33: 3.921568627 | GN33: 0.65624892 | GO33: 0.65624892 | GP33: 5.502605737 | GQ33: 5.502605737 | GR33: 0.8218527781 | GS33: 0.8218527781 | GT33: 0.4563771129 | GU33: 0.4563771129 | GV33: 4.125266215 | GW33: 4.125266215 | GX33: 37.89847406 | GY33: 37.89847406
A34: Std Dev | CP34: 0.1033470191 | CQ34: 0.1033470191 | CR34: 2.829115632 | CS34: 2.829115632 | CT34: 1.404272948 | CU34: 1.404272948 | CV34: 8.947799708 | CW34: 8.947799708 | CX34: 0.596523219 | CY34: 0.596523219 | CZ34: 1.136529657 | DA34: 1.136529657 | DB34: 0.5515253629 | DC34: 0.5515253629 | DD34: 0.1343675963 | DE34: 0.1343675963 | DF34: 5.66260792 | DG34: 5.66260792 | DH34: 2.021028332 | DI34: 2.021028332 | DJ34: 0.2737722014 | DK34: 0.2737722014 | DL34: 0.9978113306 | DM34: 0.9978113306 | DN34: 0.4339694551 | DO34: 0.4339694551 | DP34: 0.1169363699 | DQ34: 0.1169363699 | DR34: 1.260740997 | DS34: 1.260740997 | DT34: 6.528069847 | DU34: 6.528069847 | FT34: 0.1033470191 | FU34: 0.1033470191 | FV34: 2.829115632 | FW34: 2.829115632 | FX34: 1.404272948 | FY34: 1.404272948 | FZ34: 8.947799708 | GA34: 8.947799708 | GB34: 0.596523219 | GC34: 0.596523219 | GD34: 1.136529657 | GE34: 1.136529657 | GF34: 0.5515253629 | GG34: 0.5515253629 | GH34: 0.1343675963 | GI34: 0.1343675963 | GJ34: 5.66260792 | GK34: 5.66260792 | GL34: 2.021028332 | GM34: 2.021028332 | GN34: 0.2737722014 | GO34: 0.2737722014 | GP34: 0.9978113306 | GQ34: 0.9978113306 | GR34: 0.4339694551 | GS34: 0.4339694551 | GT34: 0.1169363699 | GU34: 0.1169363699 | GV34: 1.260740997 | GW34: 1.260740997 | GX34: 6.528069847 | GY34: 6.528069847
CP35: DSR | CR35: ANPY/A | CT35: Turnovers | CV35: Yds/Drive | CX35: TOP | CZ35: Yards/Play | DB35: 1st Downs/Drive | DD35: 3rd/4th Down | DF35: Start Pos | DH35: 3 and Outs | DJ35: Red Zone | DL35: Plays/Drive | DN35: Pen Yds / Play | DP35: RB Success | DR35: YPC | DT35: Net Punt Avg | DV35: RB Success 4th | DX35: Pts/Yards | DZ35: Pts/Drive | EB35: QB Rating | EE35: DSR | EG35: ANPY/A | EI35: Turnovers | EK35: Yds/Drive | EM35: TOP | EO35: Yards/Play | EQ35: 1st Downs/Drive | ES35: 3rd/4th Down | EU35: Start Pos | EW35: 3 and Outs | EY35: Red Zone | FA35: Plays/Drive | FC35: Pen Yds / Play | FE35: RB Success | FG35: YPC | FI35: Net Punt Avg | FK35: RB Success 4th | FM35: Pts/Yards | FO35: Pts/Drive | FQ35: QB Rating
CP37: =IF(CP1>CP$33,IF(CQ1<CQ$33,IF($D1>$E1,1,0),"NONE"),"NONE") -> NONE | CR37: =IF(CR1>CR$33,IF(CS1<CS$33,IF($D1>$E1,1,0),"NONE"),"NONE") -> 1 | CT37: =IF(CT1<CT$33,IF(CU1>CU$33,IF($D1>$E1,1,0),"NONE"),"NONE") -> 1 | CV37: =IF(CV1>CV$33,IF(CW1<CW$33,IF($D1>$E1,1,0),"NONE"),"NONE") -> NONE | CX37: =IF(CX1>CX$33,IF(CY1<CY$33,IF($D1>$E1,1,0),"NONE"),"NONE") -> NONE | CZ37: =IF(CZ1>CZ$33,IF(DA1<DA$33,IF($D1>$E1,1,0),"NONE"),"NONE") -> NONE | DB37: =IF(DB1>DB$33,IF(DC1<DC$33,IF($D1>$E1,1,0),"NONE"),"NONE") -> NONE | DD37: =IF(DD1>DD$33,IF(DE1<DE$33,IF($D1>$E1,1,0),"NONE"),"NONE") -> NONE | DF37: =IF(DF1>DF$33,IF(DG1<DG$33,IF($D1>$E1,1,0),"NONE"),"NONE") -> NONE | DH37: =IF(DH1<DH$33,IF(DI1>DI$33,IF($D1>$E1,1,0),"NONE"),"NONE") -> NONE | DJ37: =IF(DJ1>DJ$33,IF(DK1<DK$33,IF($D1>$E1,1,0),"NONE"),"NONE") -> NONE | DL37: =IF(DL1>DL$33,IF(DM1<DM$33,IF($D1>$E1,1,0),"NONE"),"NONE") -> NONE | DN37: =IF(DN1<DN$33,IF(DO1>DO$33,IF($D1>$E1,1,0),"NONE"),"NONE") -> 1 | DP37: =IF(DP1>DP$33,IF(DQ1<DQ$33,IF($D1>$E1,1,0),"NONE"),"NONE") -> NONE | DR37: =IF(DR1>DR$33,IF(DS1<DS$33,IF($D1>$E1,1,0),"NONE"),"NONE") -> NONE | DT37: =IF(DT1>DT$33,IF(DU1<DU$33,IF($D1>$E1,1,0),"NONE"),"NONE") -> NONE | DV37: =IF(DV1>DV$33,IF(DW1<DW$33,IF($D1>$E1,1,0),"NONE"),"NONE") -> NONE | DX37: =IF(DX1>DX$33,IF(DY1<DY$33,IF($D1>$E1,1,0),"NONE"),"NONE") -> 1 | DZ37: =IF(DZ1>DZ$33,IF(EA1<EA$33,IF($D1>$E1,1,0),"NONE"),"NONE") -> NONE | EB37: =IF(EB1>EB$33,IF(EC1<EC$33,IF($D1>$E1,1,0),"NONE"),"NONE") -> NONE
CP38: NONE | CR38: =IF(CR2>CR$33,IF(CS2<CS$33,IF($D2>$E2,1,0),"NONE"),"NONE") -> NONE | CT38: =IF(CT2<CT$33,IF(CU2>CU$33,IF($D2>$E2,1,0),"NONE"),"NONE") -> NONE | CV38: =IF(CV2>CV$33,IF(CW2<CW$33,IF($D2>$E2,1,0),"NONE"),"NONE") -> NONE | CX38: =IF(CX2>CX$33,IF(CY2<CY$33,IF($D2>$E2,1,0),"NONE"),"NONE") -> NONE | CZ38: =IF(CZ2>CZ$33,IF(DA2<DA$33,IF($D2>$E2,1,0),"NONE"),"NONE") -> NONE | DB38: =IF(DB2>DB$33,IF(DC2<DC$33,IF($D2>$E2,1,0),"NONE"),"NONE") -> NONE | DD38: =IF(DD2>DD$33,IF(DE2<DE$33,IF($D2>$E2,1,0),"NONE"),"NONE") -> NONE | DF38: =IF(DF2>DF$33,IF(DG2<DG$33,IF($D2>$E2,1,0),"NONE"),"NONE") -> NONE | DH38: =IF(DH2<DH$33,IF(DI2>DI$33,IF($D2>$E2,1,0),"NONE"),"NONE") -> NONE | DJ38: =IF(DJ2>DJ$33,IF(DK2<DK$33,IF($D2>$E2,1,0),"NONE"),"NONE") -> NONE | DL38: =IF(DL2>DL$33,IF(DM2<DM$33,IF($D2>$E2,1,0),"NONE"),"NONE") -> NONE | DN38: =IF(DN2<DN$33,IF(DO2>DO$33,IF($D2>$E2,1,0),"NONE"),"NONE") -> 0 | DP38: =IF(DP2>DP$33,IF(DQ2<DQ$33,IF($D2>$E2,1,0),"NONE"),"NONE") -> NONE | DR38: =IF(DR2>DR$33,IF(DS2<DS$33,IF($D2>$E2,1,0),"NONE"),"NONE") -> NONE | DT38: =IF(DT2>DT$33,IF(DU2<DU$33,IF($D2>$E2,1,0),"NONE"),"NONE") -> NONE | DV38: =IF(DV2>DV$33,IF(DW2<DW$33,IF($D2>$E2,1,0),"NONE"),"NONE") -> 0 | DX38: =IF(DX2>DX$33,IF(DY2<DY$33,IF($D2>$E2,1,0),"NONE"),"NONE") -> NONE | DZ38: =IF(DZ2>DZ$33,IF(EA2<EA$33,IF($D2>$E2,1,0),"NONE"),"NONE") -> NONE | EB38: =IF(EB2>EB$33,IF(EC2<EC$33,IF($D2>$E2,1,0),"NONE"),"NONE") -> NONE
CP39: NONE | CR39: =IF(CR3>CR$33,IF(CS3<CS$33,IF($D3>$E3,1,0),"NONE"),"NONE") -> NONE | CT39: NONE | CV39: =IF(CV3>CV$33,IF(CW3<CW$33,IF($D3>$E3,1,0),"NONE"),"NONE") -> NONE | CX39: =IF(CX3>CX$33,IF(CY3<CY$33,IF($D3>$E3,1,0),"NONE"),"NONE") -> 0 | CZ39: =IF(CZ3>CZ$33,IF(DA3<DA$33,IF($D3>$E3,1,0),"NONE"),"NONE") -> NONE | DB39: =IF(DB3>DB$33,IF(DC3<DC$33,IF($D3>$E3,1,0),"NONE"),"NONE") -> NONE | DD39: =IF(DD3>DD$33,IF(DE3<DE$33,IF($D3>$E3,1,0),"NONE"),"NONE") -> NONE | DF39: =IF(DF3>DF$33,IF(DG3<DG$33,IF($D3>$E3,1,0),"NONE"),"NONE") -> NONE | DH39: NONE | DJ39: =IF(DJ3>DJ$33,IF(DK3<DK$33,IF($D3>$E3,1,0),"NONE"),"NONE") -> NONE | DL39: =IF(DL3>DL$33,IF(DM3<DM$33,IF($D3>$E3,1,0),"NONE"),"NONE") -> 0 | DN39: NONE | DP39: =IF(DP3>DP$33,IF(DQ3<DQ$33,IF($D3>$E3,1,0),"NONE"),"NONE") -> NONE | DR39: =IF(DR3>DR$33,IF(DS3<DS$33,IF($D3>$E3,1,0),"NONE"),"NONE") -> NONE | DT39: =IF(DT3>DT$33,IF(DU3<DU$33,IF($D3>$E3,1,0),"NONE"),"NONE") -> NONE | DV39: =IF(DV3>DV$33,IF(DW3<DW$33,IF($D3>$E3,1,0),"NONE"),"NONE") -> 0 | DX39: =IF(DX3>DX$33,IF(DY3<DY$33,IF($D3>$E3,1,0),"NONE"),"NONE") -> NONE | DZ39: =IF(DZ3>DZ$33,IF(EA3<EA$33,IF($D3>$E3,1,0),"NONE"),"NONE") -> NONE | EB39: =IF(EB3>EB$33,IF(EC3<EC$33,IF($D3>$E3,1,0),"NONE"),"NONE") -> NONE
CP40: NONE | CR40: =IF(CR4>CR$33,IF(CS4<CS$33,IF($D4>$E4,1,0),"NONE"),"NONE") -> NONE | CT40: NONE | CV40: =IF(CV4>CV$33,IF(CW4<CW$33,IF($D4>$E4,1,0),"NONE"),"NONE") -> NONE | CX40: =IF(CX4>CX$33,IF(CY4<CY$33,IF($D4>$E4,1,0),"NONE"),"NONE") -> NONE | CZ40: =IF(CZ4>CZ$33,IF(DA4<DA$33,IF($D4>$E4,1,0),"NONE"),"NONE") -> NONE | DB40: =IF(DB4>DB$33,IF(DC4<DC$33,IF($D4>$E4,1,0),"NONE"),"NONE") -> NONE | DD40: =IF(DD4>DD$33,IF(DE4<DE$33,IF($D4>$E4,1,0),"NONE"),"NONE") -> NONE | DF40: =IF(DF4>DF$33,IF(DG4<DG$33,IF($D4>$E4,1,0),"NONE"),"NONE") -> 0 | DH40: NONE | DJ40: =IF(DJ4>DJ$33,IF(DK4<DK$33,IF($D4>$E4,1,0),"NONE"),"NONE") -> NONE | DL40: =IF(DL4>DL$33,IF(DM4<DM$33,IF($D4>$E4,1,0),"NONE"),"NONE") -> NONE | DN40: NONE | DP40: =IF(DP4>DP$33,IF(DQ4<DQ$33,IF($D4>$E4,1,0),"NONE"),"NONE") -> 0 | DR40: =IF(DR4>DR$33,IF(DS4<DS$33,IF($D4>$E4,1,0),"NONE"),"NONE") -> 0 | DT40: =IF(DT4>DT$33,IF(DU4<DU$33,IF($D4>$E4,1,0),"NONE"),"NONE") -> NONE | DV40: =IF(DV4>DV$33,IF(DW4<DW$33,IF($D4>$E4,1,0),"NONE"),"NONE") -> 0 | DX40: =IF(DX4>DX$33,IF(DY4<DY$33,IF($D4>$E4,1,0),"NONE"),"NONE") -> 0 | DZ40: =IF(DZ4>DZ$33,IF(EA4<EA$33,IF($D4>$E4,1,0),"NONE"),"NONE") -> NONE | EB40: =IF(EB4>EB$33,IF(EC4<EC$33,IF($D4>$E4,1,0),"NONE"),"NONE") -> NONE
CP41: NONE | CR41: =IF(CR5>CR$33,IF(CS5<CS$33,IF($D5>$E5,1,0),"NONE"),"NONE") -> 1 | CT41: 1 | CV41: =IF(CV5>CV$33,IF(CW5<CW$33,IF($D5>$E5,1,0),"NONE"),"NONE") -> NONE | CX41: =IF(CX5>CX$33,IF(CY5<CY$33,IF($D5>$E5,1,0),"NONE"),"NONE") -> NONE | CZ41: =IF(CZ5>CZ$33,IF(DA5<DA$33,IF($D5>$E5,1,0),"NONE"),"NONE") -> 1 | DB41: =IF(DB5>DB$33,IF(DC5<DC$33,IF($D5>$E5,1,0),"NONE"),"NONE") -> NONE | DD41: =IF(DD5>DD$33,IF(DE5<DE$33,IF($D5>$E5,1,0),"NONE"),"NONE") -> NONE | DF41: =IF(DF5>DF$33,IF(DG5<DG$33,IF($D5>$E5,1,0),"NONE"),"NONE") -> NONE | DH41: NONE | DJ41: =IF(DJ5>DJ$33,IF(DK5<DK$33,IF($D5>$E5,1,0),"NONE"),"NONE") -> NONE | DL41: =IF(DL5>DL$33,IF(DM5<DM$33,IF($D5>$E5,1,0),"NONE"),"NONE") -> NONE | DN41: NONE | DP41: =IF(DP5>DP$33,IF(DQ5<DQ$33,IF($D5>$E5,1,0),"NONE"),"NONE") -> NONE | DR41: =IF(DR5>DR$33,IF(DS5<DS$33,IF($D5>$E5,1,0),"NONE"),"NONE") -> NONE | DT41: =IF(DT5>DT$33,IF(DU5<DU$33,IF($D5>$E5,1,0),"NONE"),"NONE") -> NONE | DV41: =IF(DV5>DV$33,IF(DW5<DW$33,IF($D5>$E5,1,0),"NONE"),"NONE") -> NONE | DX41: =IF(DX5>DX$33,IF(DY5<DY$33,IF($D5>$E5,1,0),"NONE"),"NONE") -> NONE | DZ41: =IF(DZ5>DZ$33,IF(EA5<EA$33,IF($D5>$E5,1,0),"NONE"),"NONE") -> NONE | EB41: =IF(EB5>EB$33,IF(EC5<EC$33,IF($D5>$E5,1,0),"NONE"),"NONE") -> NONE
CP42: NONE | CR42: =IF(CR6>CR$33,IF(CS6<CS$33,IF($D6>$E6,1,0),"NONE"),"NONE") -> NONE | CT42: NONE | CV42: =IF(CV6>CV$33,IF(CW6<CW$33,IF($D6>$E6,1,0),"NONE"),"NONE") -> NONE | CX42: =IF(CX6>CX$33,IF(CY6<CY$33,IF($D6>$E6,1,0),"NONE"),"NONE") -> NONE | CZ42: =IF(CZ6>CZ$33,IF(DA6<DA$33,IF($D6>$E6,1,0),"NONE"),"NONE") -> NONE | DB42: =IF(DB6>DB$33,IF(DC6<DC$33,IF($D6>$E6,1,0),"NONE"),"NONE") -> NONE | DD42: =IF(DD6>DD$33,IF(DE6<DE$33,IF($D6>$E6,1,0),"NONE"),"NONE") -> NONE | DF42: =IF(DF6>DF$33,IF(DG6<DG$33,IF($D6>$E6,1,0),"NONE"),"NONE") -> NONE | DH42: NONE | DJ42: =IF(DJ6>DJ$33,IF(DK6<DK$33,IF($D6>$E6,1,0),"NONE"),"NONE") -> NONE | DL42: =IF(DL6>DL$33,IF(DM6<DM$33,IF($D6>$E6,1,0),"NONE"),"NONE") -> NONE | DN42: NONE | DP42: =IF(DP6>DP$33,IF(DQ6<DQ$33,IF($D6>$E6,1,0),"NONE"),"NONE") -> NONE | DR42: =IF(DR6>DR$33,IF(DS6<DS$33,IF($D6>$E6,1,0),"NONE"),"NONE") -> NONE | DT42: =IF(DT6>DT$33,IF(DU6<DU$33,IF($D6>$E6,1,0),"NONE"),"NONE") -> NONE | DV42: =IF(DV6>DV$33,IF(DW6<DW$33,IF($D6>$E6,1,0),"NONE"),"NONE") -> NONE | DX42: =IF(DX6>DX$33,IF(DY6<DY$33,IF($D6>$E6,1,0),"NONE"),"NONE") -> NONE | DZ42: =IF(DZ6>DZ$33,IF(EA6<EA$33,IF($D6>$E6,1,0),"NONE"),"NONE") -> NONE | EB42: =IF(EB6>EB$33,IF(EC6<EC$33,IF($D6>$E6,1,0),"NONE"),"NONE") -> NONE
CP43: NONE | CR43: =IF(CR7>CR$33,IF(CS7<CS$33,IF($D7>$E7,1,0),"NONE"),"NONE") -> NONE | CT43: NONE | CV43: =IF(CV7>CV$33,IF(CW7<CW$33,IF($D7>$E7,1,0),"NONE"),"NONE") -> NONE | CX43: =IF(CX7>CX$33,IF(CY7<CY$33,IF($D7>$E7,1,0),"NONE"),"NONE") -> 0 | CZ43: =IF(CZ7>CZ$33,IF(DA7<DA$33,IF($D7>$E7,1,0),"NONE"),"NONE") -> NONE | DB43: =IF(DB7>DB$33,IF(DC7<DC$33,IF($D7>$E7,1,0),"NONE"),"NONE") -> NONE | DD43: =IF(DD7>DD$33,IF(DE7<DE$33,IF($D7>$E7,1,0),"NONE"),"NONE") -> 0 | DF43: =IF(DF7>DF$33,IF(DG7<DG$33,IF($D7>$E7,1,0),"NONE"),"NONE") -> NONE | DH43: NONE | DJ43: =IF(DJ7>DJ$33,IF(DK7<DK$33,IF($D7>$E7,1,0),"NONE"),"NONE") -> NONE | DL43: =IF(DL7>DL$33,IF(DM7<DM$33,IF($D7>$E7,1,0),"NONE"),"NONE") -> 0 | DN43: NONE | DP43: =IF(DP7>DP$33,IF(DQ7<DQ$33,IF($D7>$E7,1,0),"NONE"),"NONE") -> NONE | DR43: =IF(DR7>DR$33,IF(DS7<DS$33,IF($D7>$E7,1,0),"NONE"),"NONE") -> NONE | DT43: =IF(DT7>DT$33,IF(DU7<DU$33,IF($D7>$E7,1,0),"NONE"),"NONE") -> NONE | DV43: =IF(DV7>DV$33,IF(DW7<DW$33,IF($D7>$E7,1,0),"NONE"),"NONE") -> NONE | DX43: =IF(DX7>DX$33,IF(DY7<DY$33,IF($D7>$E7,1,0),"NONE"),"NONE") -> NONE | DZ43: =IF(DZ7>DZ$33,IF(EA7<EA$33,IF($D7>$E7,1,0),"NONE"),"NONE") -> NONE | EB43: =IF(EB7>EB$33,IF(EC7<EC$33,IF($D7>$E7,1,0),"NONE"),"NONE") -> NONE
CP44: NONE | CR44: =IF(CR8>CR$33,IF(CS8<CS$33,IF($D8>$E8,1,0),"NONE"),"NONE") -> NONE | CT44: NONE | CV44: =IF(CV8>CV$33,IF(CW8<CW$33,IF($D8>$E8,1,0),"NONE"),"NONE") -> NONE | CX44: =IF(CX8>CX$33,IF(CY8<CY$33,IF($D8>$E8,1,0),"NONE"),"NONE") -> NONE | CZ44: =IF(CZ8>CZ$33,IF(DA8<DA$33,IF($D8>$E8,1,0),"NONE"),"NONE") -> NONE | DB44: =IF(DB8>DB$33,IF(DC8<DC$33,IF($D8>$E8,1,0),"NONE"),"NONE") -> NONE | DD44: =IF(DD8>DD$33,IF(DE8<DE$33,IF($D8>$E8,1,0),"NONE"),"NONE") -> NONE | DF44: =IF(DF8>DF$33,IF(DG8<DG$33,IF($D8>$E8,1,0),"NONE"),"NONE") -> NONE | DH44: NONE | DJ44: =IF(DJ8>DJ$33,IF(DK8<DK$33,IF($D8>$E8,1,0),"NONE"),"NONE") -> NONE | DL44: =IF(DL8>DL$33,IF(DM8<DM$33,IF($D8>$E8,1,0),"NONE"),"NONE") -> NONE | DN44: NONE | DP44: =IF(DP8>DP$33,IF(DQ8<DQ$33,IF($D8>$E8,1,0),"NONE"),"NONE") -> NONE | DR44: =IF(DR8>DR$33,IF(DS8<DS$33,IF($D8>$E8,1,0),"NONE"),"NONE") -> NONE | DT44: =IF(DT8>DT$33,IF(DU8<DU$33,IF($D8>$E8,1,0),"NONE"),"NONE") -> NONE | DV44: =IF(DV8>DV$33,IF(DW8<DW$33,IF($D8>$E8,1,0),"NONE"),"NONE") -> NONE | DX44: =IF(DX8>DX$33,IF(DY8<DY$33,IF($D8>$E8,1,0),"NONE"),"NONE") -> NONE | DZ44: =IF(DZ8>DZ$33,IF(EA8<EA$33,IF($D8>$E8,1,0),"NONE"),"NONE") -> NONE | EB44: =IF(EB8>EB$33,IF(EC8<EC$33,IF($D8>$E8,1,0),"NONE"),"NONE") -> NONE
CP45: NONE | CR45: =IF(CR9>CR$33,IF(CS9<CS$33,IF($D9>$E9,1,0),"NONE"),"NONE") -> 1 | CT45: NONE | CV45: =IF(CV9>CV$33,IF(CW9<CW$33,IF($D9>$E9,1,0),"NONE"),"NONE") -> NONE | CX45: =IF(CX9>CX$33,IF(CY9<CY$33,IF($D9>$E9,1,0),"NONE"),"NONE") -> NONE | CZ45: =IF(CZ9>CZ$33,IF(DA9<DA$33,IF($D9>$E9,1,0),"NONE"),"NONE") -> NONE | DB45: =IF(DB9>DB$33,IF(DC9<DC$33,IF($D9>$E9,1,0),"NONE"),"NONE") -> NONE | DD45: =IF(DD9>DD$33,IF(DE9<DE$33,IF($D9>$E9,1,0),"NONE"),"NONE") -> NONE | DF45: =IF(DF9>DF$33,IF(DG9<DG$33,IF($D9>$E9,1,0),"NONE"),"NONE") -> NONE | DH45: NONE | DJ45: =IF(DJ9>DJ$33,IF(DK9<DK$33,IF($D9>$E9,1,0),"NONE"),"NONE") -> 1 | DL45: =IF(DL9>DL$33,IF(DM9<DM$33,IF($D9>$E9,1,0),"NONE"),"NONE") -> NONE | DN45: NONE | DP45: =IF(DP9>DP$33,IF(DQ9<DQ$33,IF($D9>$E9,1,0),"NONE"),"NONE") -> NONE | DR45: =IF(DR9>DR$33,IF(DS9<DS$33,IF($D9>$E9,1,0),"NONE"),"NONE") -> NONE | DT45: =IF(DT9>DT$33,IF(DU9<DU$33,IF($D9>$E9,1,0),"NONE"),"NONE") -> NONE | DV45: =IF(DV9>DV$33,IF(DW9<DW$33,IF($D9>$E9,1,0),"NONE"),"NONE") -> NONE | DX45: =IF(DX9>DX$33,IF(DY9<DY$33,IF($D9>$E9,1,0),"NONE"),"NONE") -> 1 | DZ45: =IF(DZ9>DZ$33,IF(EA9<EA$33,IF($D9>$E9,1,0),"NONE"),"NONE") -> 1 | EB45: =IF(EB9>EB$33,IF(EC9<EC$33,IF($D9>$E9,1,0),"NONE"),"NONE") -> NONE
CP46: NONE | CR46: =IF(CR10>CR$33,IF(CS10<CS$33,IF($D10>$E10,1,0),"NONE"),"NONE") -> NONE | CT46: NONE | CV46: =IF(CV10>CV$33,IF(CW10<CW$33,IF($D10>$E10,1,0),"NONE"),"NONE") -> NONE | CX46: =IF(CX10>CX$33,IF(CY10<CY$33,IF($D10>$E10,1,0),"NONE"),"NONE") -> NONE | CZ46: =IF(CZ10>CZ$33,IF(DA10<DA$33,IF($D10>$E10,1,0),"NONE"),"NONE") -> NONE | DB46: =IF(DB10>DB$33,IF(DC10<DC$33,IF($D10>$E10,1,0),"NONE"),"NONE") -> NONE | DD46: =IF(DD10>DD$33,IF(DE10<DE$33,IF($D10>$E10,1,0),"NONE"),"NONE") -> NONE | DF46: =IF(DF10>DF$33,IF(DG10<DG$33,IF($D10>$E10,1,0),"NONE"),"NONE") -> NONE | DH46: NONE | DJ46: =IF(DJ10>DJ$33,IF(DK10<DK$33,IF($D10>$E10,1,0),"NONE"),"NONE") -> NONE | DL46: =IF(DL10>DL$33,IF(DM10<DM$33,IF($D10>$E10,1,0),"NONE"),"NONE") -> NONE | DN46: NONE | DP46: =IF(DP10>DP$33,IF(DQ10<DQ$33,IF($D10>$E10,1,0),"NONE"),"NONE") -> NONE | DR46: =IF(DR10>DR$33,IF(DS10<DS$33,IF($D10>$E10,1,0),"NONE"),"NONE") -> NONE | DT46: =IF(DT10>DT$33,IF(DU10<DU$33,IF($D10>$E10,1,0),"NONE"),"NONE") -> 0 | DV46: =IF(DV10>DV$33,IF(DW10<DW$33,IF($D10>$E10,1,0),"NONE"),"NONE") -> NONE | DX46: =IF(DX10>DX$33,IF(DY10<DY$33,IF($D10>$E10,1,0),"NONE"),"NONE") -> NONE | DZ46: =IF(DZ10>DZ$33,IF(EA10<EA$33,IF($D10>$E10,1,0),"NONE"),"NONE") -> NONE | EB46: =IF(EB10>EB$33,IF(EC10<EC$33,IF($D10>$E10,1,0),"NONE"),"NONE") -> NONE
CP47: 1 | CR47: =IF(CR11>CR$33,IF(CS11<CS$33,IF($D11>$E11,1,0),"NONE"),"NONE") -> 1 | CT47: NONE | CV47: =IF(CV11>CV$33,IF(CW11<CW$33,IF($D11>$E11,1,0),"NONE"),"NONE") -> 1 | CX47: =IF(CX11>CX$33,IF(CY11<CY$33,IF($D11>$E11,1,0),"NONE"),"NONE") -> NONE | CZ47: =IF(CZ11>CZ$33,IF(DA11<DA$33,IF($D11>$E11,1,0),"NONE"),"NONE") -> 1 | DB47: =IF(DB11>DB$33,IF(DC11<DC$33,IF($D11>$E11,1,0),"NONE"),"NONE") -> 1 | DD47: =IF(DD11>DD$33,IF(DE11<DE$33,IF($D11>$E11,1,0),"NONE"),"NONE") -> NONE | DF47: =IF(DF11>DF$33,IF(DG11<DG$33,IF($D11>$E11,1,0),"NONE"),"NONE") -> 1 | DH47: 1 | DJ47: =IF(DJ11>DJ$33,IF(DK11<DK$33,IF($D11>$E11,1,0),"NONE"),"NONE") -> NONE | DL47: =IF(DL11>DL$33,IF(DM11<DM$33,IF($D11>$E11,1,0),"NONE"),"NONE") -> NONE | DN47: NONE | DP47: =IF(DP11>DP$33,IF(DQ11<DQ$33,IF($D11>$E11,1,0),"NONE"),"NONE") -> NONE | DR47: =IF(DR11>DR$33,IF(DS11<DS$33,IF($D11>$E11,1,0),"NONE"),"NONE") -> NONE | DT47: =IF(DT11>DT$33,IF(DU11<DU$33,IF($D11>$E11,1,0),"NONE"),"NONE") -> 1 | DV47: =IF(DV11>DV$33,IF(DW11<DW$33,IF($D11>$E11,1,0),"NONE"),"NONE") -> NONE | DX47: =IF(DX11>DX$33,IF(DY11<DY$33,IF($D11>$E11,1,0),"NONE"),"NONE") -> NONE | DZ47: =IF(DZ11>DZ$33,IF(EA11<EA$33,IF($D11>$E11,1,0),"NONE"),"NONE") -> NONE | EB47: =IF(EB11>EB$33,IF(EC11<EC$33,IF($D11>$E11,1,0),"NONE"),"NONE") -> NONE
CP48: NONE | CR48: =IF(CR12>CR$33,IF(CS12<CS$33,IF($D12>$E12,1,0),"NONE"),"NONE") -> NONE | CT48: NONE | CV48: =IF(CV12>CV$33,IF(CW12<CW$33,IF($D12>$E12,1,0),"NONE"),"NONE") -> NONE | CX48: =IF(CX12>CX$33,IF(CY12<CY$33,IF($D12>$E12,1,0),"NONE"),"NONE") -> NONE | CZ48: =IF(CZ12>CZ$33,IF(DA12<DA$33,IF($D12>$E12,1,0),"NONE"),"NONE") -> NONE | DB48: =IF(DB12>DB$33,IF(DC12<DC$33,IF($D12>$E12,1,0),"NONE"),"NONE") -> NONE | DD48: =IF(DD12>DD$33,IF(DE12<DE$33,IF($D12>$E12,1,0),"NONE"),"NONE") -> NONE | DF48: =IF(DF12>DF$33,IF(DG12<DG$33,IF($D12>$E12,1,0),"NONE"),"NONE") -> NONE | DH48: NONE | DJ48: =IF(DJ12>DJ$33,IF(DK12<DK$33,IF($D12>$E12,1,0),"NONE"),"NONE") -> NONE | DL48: =IF(DL12>DL$33,IF(DM12<DM$33,IF($D12>$E12,1,0),"NONE"),"NONE") -> NONE | DN48: NONE | DP48: =IF(DP12>DP$33,IF(DQ12<DQ$33,IF($D12>$E12,1,0),"NONE"),"NONE") -> 1 | DR48: =IF(DR12>DR$33,IF(DS12<DS$33,IF($D12>$E12,1,0),"NONE"),"NONE") -> NONE | DT48: =IF(DT12>DT$33,IF(DU12<DU$33,IF($D12>$E12,1,0),"NONE"),"NONE") -> NONE | DV48: =IF(DV12>DV$33,IF(DW12<DW$33,IF($D12>$E12,1,0),"NONE"),"NONE") -> 1 | DX48: =IF(DX12>DX$33,IF(DY12<DY$33,IF($D12>$E12,1,0),"NONE"),"NONE") -> 1 | DZ48: =IF(DZ12>DZ$33,IF(EA12<EA$33,IF($D12>$E12,1,0),"NONE"),"NONE") -> NONE | EB48: =IF(EB12>EB$33,IF(EC12<EC$33,IF($D12>$E12,1,0),"NONE"),"NONE") -> NONE
CP49: NONE | CR49: =IF(CR13>CR$33,IF(CS13<CS$33,IF($D13>$E13,1,0),"NONE"),"NONE") -> NONE | CT49: NONE | CV49: =IF(CV13>CV$33,IF(CW13<CW$33,IF($D13>$E13,1,0),"NONE"),"NONE") -> NONE | CX49: =IF(CX13>CX$33,IF(CY13<CY$33,IF($D13>$E13,1,0),"NONE"),"NONE") -> NONE | CZ49: =IF(CZ13>CZ$33,IF(DA13<DA$33,IF($D13>$E13,1,0),"NONE"),"NONE") -> NONE | DB49: =IF(DB13>DB$33,IF(DC13<DC$33,IF($D13>$E13,1,0),"NONE"),"NONE") -> NONE | DD49: =IF(DD13>DD$33,IF(DE13<DE$33,IF($D13>$E13,1,0),"NONE"),"NONE") -> NONE | DF49: =IF(DF13>DF$33,IF(DG13<DG$33,IF($D13>$E13,1,0),"NONE"),"NONE") -> NONE | DH49: NONE | DJ49: =IF(DJ13>DJ$33,IF(DK13<DK$33,IF($D13>$E13,1,0),"NONE"),"NONE") -> NONE | DL49: =IF(DL13>DL$33,IF(DM13<DM$33,IF($D13>$E13,1,0),"NONE"),"NONE") -> NONE | DN49: NONE | DP49: =IF(DP13>DP$33,IF(DQ13<DQ$33,IF($D13>$E13,1,0),"NONE"),"NONE") -> 0 | DR49: =IF(DR13>DR$33,IF(DS13<DS$33,IF($D13>$E13,1,0),"NONE"),"NONE") -> 0 | DT49: =IF(DT13>DT$33,IF(DU13<DU$33,IF($D13>$E13,1,0),"NONE"),"NONE") -> 0 | DV49: =IF(DV13>DV$33,IF(DW13<DW$33,IF($D13>$E13,1,0),"NONE"),"NONE") -> NONE | DX49: =IF(DX13>DX$33,IF(DY13<DY$33,IF($D13>$E13,1,0),"NONE"),"NONE") -> NONE | DZ49: =IF(DZ13>DZ$33,IF(EA13<EA$33,IF($D13>$E13,1,0),"NONE"),"NONE") -> NONE | EB49: =IF(EB13>EB$33,IF(EC13<EC$33,IF($D13>$E13,1,0),"NONE"),"NONE") -> NONE
CP50: NONE | CR50: =IF(CR14>CR$33,IF(CS14<CS$33,IF($D14>$E14,1,0),"NONE"),"NONE") -> NONE | CT50: NONE | CV50: =IF(CV14>CV$33,IF(CW14<CW$33,IF($D14>$E14,1,0),"NONE"),"NONE") -> NONE | CX50: =IF(CX14>CX$33,IF(CY14<CY$33,IF($D14>$E14,1,0),"NONE"),"NONE") -> NONE | CZ50: =IF(CZ14>CZ$33,IF(DA14<DA$33,IF($D14>$E14,1,0),"NONE"),"NONE") -> NONE | DB50: =IF(DB14>DB$33,IF(DC14<DC$33,IF($D14>$E14,1,0),"NONE"),"NONE") -> NONE | DD50: =IF(DD14>DD$33,IF(DE14<DE$33,IF($D14>$E14,1,0),"NONE"),"NONE") -> 1 | DF50: =IF(DF14>DF$33,IF(DG14<DG$33,IF($D14>$E14,1,0),"NONE"),"NONE") -> NONE | DH50: 1 | DJ50: =IF(DJ14>DJ$33,IF(DK14<DK$33,IF($D14>$E14,1,0),"NONE"),"NONE") -> 1 | DL50: =IF(DL14>DL$33,IF(DM14<DM$33,IF($D14>$E14,1,0),"NONE"),"NONE") -> NONE | DN50: NONE | DP50: =IF(DP14>DP$33,IF(DQ14<DQ$33,IF($D14>$E14,1,0),"NONE"),"NONE") -> 1 | DR50: =IF(DR14>DR$33,IF(DS14<DS$33,IF($D14>$E14,1,0),"NONE"),"NONE") -> 1 | DT50: =IF(DT14>DT$33,IF(DU14<DU$33,IF($D14>$E14,1,0),"NONE"),"NONE") -> NONE | DV50: =IF(DV14>DV$33,IF(DW14<DW$33,IF($D14>$E14,1,0),"NONE"),"NONE") -> NONE | DX50: =IF(DX14>DX$33,IF(DY14<DY$33,IF($D14>$E14,1,0),"NONE"),"NONE") -> 1 | DZ50: =IF(DZ14>DZ$33,IF(EA14<EA$33,IF($D14>$E14,1,0),"NONE"),"NONE") -> 1 | EB50: =IF(EB14>EB$33,IF(EC14<EC$33,IF($D14>$E14,1,0),"NONE"),"NONE") -> NONE
CP51: 1 | CR51: =IF(CR15>CR$33,IF(CS15<CS$33,IF($D15>$E15,1,0),"NONE"),"NONE") -> 1 | CT51: 1 | CV51: =IF(CV15>CV$33,IF(CW15<CW$33,IF($D15>$E15,1,0),"NONE"),"NONE") -> NONE | CX51: =IF(CX15>CX$33,IF(CY15<CY$33,IF($D15>$E15,1,0),"NONE"),"NONE") -> 1 | CZ51: =IF(CZ15>CZ$33,IF(DA15<DA$33,IF($D15>$E15,1,0),"NONE"),"NONE") -> NONE | DB51: =IF(DB15>DB$33,IF(DC15<DC$33,IF($D15>$E15,1,0),"NONE"),"NONE") -> 1 | DD51: =IF(DD15>DD$33,IF(DE15<DE$33,IF($D15>$E15,1,0),"NONE"),"NONE") -> NONE | DF51: =IF(DF15>DF$33,IF(DG15<DG$33,IF($D15>$E15,1,0),"NONE"),"NONE") -> 1 | DH51: NONE | DJ51: =IF(DJ15>DJ$33,IF(DK15<DK$33,IF($D15>$E15,1,0),"NONE"),"NONE") -> NONE | DL51: =IF(DL15>DL$33,IF(DM15<DM$33,IF($D15>$E15,1,0),"NONE"),"NONE") -> 1 | DN51: NONE | DP51: =IF(DP15>DP$33,IF(DQ15<DQ$33,IF($D15>$E15,1,0),"NONE"),"NONE") -> NONE | DR51: =IF(DR15>DR$33,IF(DS15<DS$33,IF($D15>$E15,1,0),"NONE"),"NONE") -> NONE | DT51: =IF(DT15>DT$33,IF(DU15<DU$33,IF($D15>$E15,1,0),"NONE"),"NONE") -> NONE | DV51: =IF(DV15>DV$33,IF(DW15<DW$33,IF($D15>$E15,1,0),"NONE"),"NONE") -> NONE | DX51: =IF(DX15>DX$33,IF(DY15<DY$33,IF($D15>$E15,1,0),"NONE"),"NONE") -> 1 | DZ51: =IF(DZ15>DZ$33,IF(EA15<EA$33,IF($D15>$E15,1,0),"NONE"),"NONE") -> NONE | EB51: =IF(EB15>EB$33,IF(EC15<EC$33,IF($D15>$E15,1,0),"NONE"),"NONE") -> NONE
CP52: NONE | CR52: =IF(CR16>CR$33,IF(CS16<CS$33,IF($D16>$E16,1,0),"NONE"),"NONE") -> NONE | CT52: NONE | CV52: =IF(CV16>CV$33,IF(CW16<CW$33,IF($D16>$E16,1,0),"NONE"),"NONE") -> 1 | CX52: =IF(CX16>CX$33,IF(CY16<CY$33,IF($D16>$E16,1,0),"NONE"),"NONE") -> 1 | CZ52: =IF(CZ16>CZ$33,IF(DA16<DA$33,IF($D16>$E16,1,0),"NONE"),"NONE") -> NONE | DB52: =IF(DB16>DB$33,IF(DC16<DC$33,IF($D16>$E16,1,0),"NONE"),"NONE") -> 1 | DD52: =IF(DD16>DD$33,IF(DE16<DE$33,IF($D16>$E16,1,0),"NONE"),"NONE") -> NONE | DF52: =IF(DF16>DF$33,IF(DG16<DG$33,IF($D16>$E16,1,0),"NONE"),"NONE") -> NONE | DH52: NONE | DJ52: =IF(DJ16>DJ$33,IF(DK16<DK$33,IF($D16>$E16,1,0),"NONE"),"NONE") -> NONE | DL52: =IF(DL16>DL$33,IF(DM16<DM$33,IF($D16>$E16,1,0),"NONE"),"NONE") -> 1 | DN52: NONE | DP52: =IF(DP16>DP$33,IF(DQ16<DQ$33,IF($D16>$E16,1,0),"NONE"),"NONE") -> NONE | DR52: =IF(DR16>DR$33,IF(DS16<DS$33,IF($D16>$E16,1,0),"NONE"),"NONE") -> NONE | DT52: =IF(DT16>DT$33,IF(DU16<DU$33,IF($D16>$E16,1,0),"NONE"),"NONE") -> NONE | DV52: =IF(DV16>DV$33,IF(DW16<DW$33,IF($D16>$E16,1,0),"NONE"),"NONE") -> NONE | DX52: =IF(DX16>DX$33,IF(DY16<DY$33,IF($D16>$E16,1,0),"NONE"),"NONE") -> NONE | DZ52: =IF(DZ16>DZ$33,IF(EA16<EA$33,IF($D16>$E16,1,0),"NONE"),"NONE") -> 1 | EB52: =IF(EB16>EB$33,IF(EC16<EC$33,IF($D16>$E16,1,0),"NONE"),"NONE") -> NONE
CP53: NONE | CR53: =IF(CR17>CR$33,IF(CS17<CS$33,IF($D17>$E17,1,0),"NONE"),"NONE") -> NONE | CT53: 0 | CV53: =IF(CV17>CV$33,IF(CW17<CW$33,IF($D17>$E17,1,0),"NONE"),"NONE") -> NONE | CX53: =IF(CX17>CX$33,IF(CY17<CY$33,IF($D17>$E17,1,0),"NONE"),"NONE") -> NONE | CZ53: =IF(CZ17>CZ$33,IF(DA17<DA$33,IF($D17>$E17,1,0),"NONE"),"NONE") -> NONE | DB53: =IF(DB17>DB$33,IF(DC17<DC$33,IF($D17>$E17,1,0),"NONE"),"NONE") -> NONE | DD53: =IF(DD17>DD$33,IF(DE17<DE$33,IF($D17>$E17,1,0),"NONE"),"NONE") -> NONE | DF53: =IF(DF17>DF$33,IF(DG17<DG$33,IF($D17>$E17,1,0),"NONE"),"NONE") -> NONE | DH53: NONE | DJ53: =IF(DJ17>DJ$33,IF(DK17<DK$33,IF($D17>$E17,1,0),"NONE"),"NONE") -> 0 | DL53: =IF(DL17>DL$33,IF(DM17<DM$33,IF($D17>$E17,1,0),"NONE"),"NONE") -> NONE | DN53: NONE | DP53: =IF(DP17>DP$33,IF(DQ17<DQ$33,IF($D17>$E17,1,0),"NONE"),"NONE") -> 0 | DR53: =IF(DR17>DR$33,IF(DS17<DS$33,IF($D17>$E17,1,0),"NONE"),"NONE") -> 0 | DT53: =IF(DT17>DT$33,IF(DU17<DU$33,IF($D17>$E17,1,0),"NONE"),"NONE") -> NONE | DV53: =IF(DV17>DV$33,IF(DW17<DW$33,IF($D17>$E17,1,0),"NONE"),"NONE") -> 0 | DX53: =IF(DX17>DX$33,IF(DY17<DY$33,IF($D17>$E17,1,0),"NONE"),"NONE") -> NONE | DZ53: =IF(DZ17>DZ$33,IF(EA17<EA$33,IF($D17>$E17,1,0),"NONE"),"NONE") -> NONE | EB53: =IF(EB17>EB$33,IF(EC17<EC$33,IF($D17>$E17,1,0),"NONE"),"NONE") -> NONE
CP54: 1 | CR54: =IF(CR18>CR$33,IF(CS18<CS$33,IF($D18>$E18,1,0),"NONE"),"NONE") -> 1 | CT54: 1 | CV54: =IF(CV18>CV$33,IF(CW18<CW$33,IF($D18>$E18,1,0),"NONE"),"NONE") -> 1 | CX54: =IF(CX18>CX$33,IF(CY18<CY$33,IF($D18>$E18,1,0),"NONE"),"NONE") -> 1 | CZ54: =IF(CZ18>CZ$33,IF(DA18<DA$33,IF($D18>$E18,1,0),"NONE"),"NONE") -> 1 | DB54: =IF(DB18>DB$33,IF(DC18<DC$33,IF($D18>$E18,1,0),"NONE"),"NONE") -> 1 | DD54: =IF(DD18>DD$33,IF(DE18<DE$33,IF($D18>$E18,1,0),"NONE"),"NONE") -> 1 | DF54: =IF(DF18>DF$33,IF(DG18<DG$33,IF($D18>$E18,1,0),"NONE"),"NONE") -> NONE | DH54: NONE | DJ54: =IF(DJ18>DJ$33,IF(DK18<DK$33,IF($D18>$E18,1,0),"NONE"),"NONE") -> 1 | DL54: =IF(DL18>DL$33,IF(DM18<DM$33,IF($D18>$E18,1,0),"NONE"),"NONE") -> 1 | DN54: NONE | DP54: =IF(DP18>DP$33,IF(DQ18<DQ$33,IF($D18>$E18,1,0),"NONE"),"NONE") -> NONE | DR54: =IF(DR18>DR$33,IF(DS18<DS$33,IF($D18>$E18,1,0),"NONE"),"NONE") -> 1 | DT54: =IF(DT18>DT$33,IF(DU18<DU$33,IF($D18>$E18,1,0),"NONE"),"NONE") -> NONE | DV54: =IF(DV18>DV$33,IF(DW18<DW$33,IF($D18>$E18,1,0),"NONE"),"NONE") -> NONE | DX54: =IF(DX18>DX$33,IF(DY18<DY$33,IF($D18>$E18,1,0),"NONE"),"NONE") -> NONE | DZ54: =IF(DZ18>DZ$33,IF(EA18<EA$33,IF($D18>$E18,1,0),"NONE"),"NONE") -> 1 | EB54: =IF(EB18>EB$33,IF(EC18<EC$33,IF($D18>$E18,1,0),"NONE"),"NONE") -> NONE
CP55: NONE | CR55: =IF(CR19>CR$33,IF(CS19<CS$33,IF($D19>$E19,1,0),"NONE"),"NONE") -> NONE | CT55: NONE | CV55: =IF(CV19>CV$33,IF(CW19<CW$33,IF($D19>$E19,1,0),"NONE"),"NONE") -> NONE | CX55: =IF(CX19>CX$33,IF(CY19<CY$33,IF($D19>$E19,1,0),"NONE"),"NONE") -> NONE | CZ55: =IF(CZ19>CZ$33,IF(DA19<DA$33,IF($D19>$E19,1,0),"NONE"),"NONE") -> NONE | DB55: =IF(DB19>DB$33,IF(DC19<DC$33,IF($D19>$E19,1,0),"NONE"),"NONE") -> NONE | DD55: =IF(DD19>DD$33,IF(DE19<DE$33,IF($D19>$E19,1,0),"NONE"),"NONE") -> NONE | DF55: =IF(DF19>DF$33,IF(DG19<DG$33,IF($D19>$E19,1,0),"NONE"),"NONE") -> NONE | DH55: NONE | DJ55: =IF(DJ19>DJ$33,IF(DK19<DK$33,IF($D19>$E19,1,0),"NONE"),"NONE") -> NONE | DL55: =IF(DL19>DL$33,IF(DM19<DM$33,IF($D19>$E19,1,0),"NONE"),"NONE") -> NONE | DN55: NONE | DP55: =IF(DP19>DP$33,IF(DQ19<DQ$33,IF($D19>$E19,1,0),"NONE"),"NONE") -> NONE | DR55: =IF(DR19>DR$33,IF(DS19<DS$33,IF($D19>$E19,1,0),"NONE"),"NONE") -> NONE | DT55: =IF(DT19>DT$33,IF(DU19<DU$33,IF($D19>$E19,1,0),"NONE"),"NONE") -> 0 | DV55: =IF(DV19>DV$33,IF(DW19<DW$33,IF($D19>$E19,1,0),"NONE"),"NONE") -> NONE | DX55: =IF(DX19>DX$33,IF(DY19<DY$33,IF($D19>$E19,1,0),"NONE"),"NONE") -> NONE | DZ55: =IF(DZ19>DZ$33,IF(EA19<EA$33,IF($D19>$E19,1,0),"NONE"),"NONE") -> NONE | EB55: =IF(EB19>EB$33,IF(EC19<EC$33,IF($D19>$E19,1,0),"NONE"),"NONE") -> NONE
CP56: NONE | CR56: =IF(CR20>CR$33,IF(CS20<CS$33,IF($D20>$E20,1,0),"NONE"),"NONE") -> NONE | CT56: 1 | CV56: =IF(CV20>CV$33,IF(CW20<CW$33,IF($D20>$E20,1,0),"NONE"),"NONE") -> NONE | CX56: =IF(CX20>CX$33,IF(CY20<CY$33,IF($D20>$E20,1,0),"NONE"),"NONE") -> NONE | CZ56: =IF(CZ20>CZ$33,IF(DA20<DA$33,IF($D20>$E20,1,0),"NONE"),"NONE") -> NONE | DB56: =IF(DB20>DB$33,IF(DC20<DC$33,IF($D20>$E20,1,0),"NONE"),"NONE") -> NONE | DD56: =IF(DD20>DD$33,IF(DE20<DE$33,IF($D20>$E20,1,0),"NONE"),"NONE") -> NONE | DF56: =IF(DF20>DF$33,IF(DG20<DG$33,IF($D20>$E20,1,0),"NONE"),"NONE") -> 1 | DH56: NONE | DJ56: =IF(DJ20>DJ$33,IF(DK20<DK$33,IF($D20>$E20,1,0),"NONE"),"NONE") -> NONE | DL56: =IF(DL20>DL$33,IF(DM20<DM$33,IF($D20>$E20,1,0),"NONE"),"NONE") -> NONE | DN56: NONE | DP56: =IF(DP20>DP$33,IF(DQ20<DQ$33,IF($D20>$E20,1,0),"NONE"),"NONE") -> NONE | DR56: =IF(DR20>DR$33,IF(DS20<DS$33,IF($D20>$E20,1,0),"NONE"),"NONE") -> NONE | DT56: =IF(DT20>DT$33,IF(DU20<DU$33,IF($D20>$E20,1,0),"NONE"),"NONE") -> NONE | DV56: =IF(DV20>DV$33,IF(DW20<DW$33,IF($D20>$E20,1,0),"NONE"),"NONE") -> NONE | DX56: =IF(DX20>DX$33,IF(DY20<DY$33,IF($D20>$E20,1,0),"NONE"),"NONE") -> 1 | DZ56: =IF(DZ20>DZ$33,IF(EA20<EA$33,IF($D20>$E20,1,0),"NONE"),"NONE") -> NONE | EB56: =IF(EB20>EB$33,IF(EC20<EC$33,IF($D20>$E20,1,0),"NONE"),"NONE") -> NONE
CP57: NONE | CR57: =IF(CR21>CR$33,IF(CS21<CS$33,IF($D21>$E21,1,0),"NONE"),"NONE") -> NONE | CT57: NONE | CV57: =IF(CV21>CV$33,IF(CW21<CW$33,IF($D21>$E21,1,0),"NONE"),"NONE") -> NONE | CX57: =IF(CX21>CX$33,IF(CY21<CY$33,IF($D21>$E21,1,0),"NONE"),"NONE") -> NONE | CZ57: =IF(CZ21>CZ$33,IF(DA21<DA$33,IF($D21>$E21,1,0),"NONE"),"NONE") -> NONE | DB57: =IF(DB21>DB$33,IF(DC21<DC$33,IF($D21>$E21,1,0),"NONE"),"NONE") -> NONE | DD57: =IF(DD21>DD$33,IF(DE21<DE$33,IF($D21>$E21,1,0),"NONE"),"NONE") -> NONE | DF57: =IF(DF21>DF$33,IF(DG21<DG$33,IF($D21>$E21,1,0),"NONE"),"NONE") -> NONE | DH57: NONE | DJ57: =IF(DJ21>DJ$33,IF(DK21<DK$33,IF($D21>$E21,1,0),"NONE"),"NONE") -> NONE | DL57: =IF(DL21>DL$33,IF(DM21<DM$33,IF($D21>$E21,1,0),"NONE"),"NONE") -> NONE | DN57: 0 | DP57: =IF(DP21>DP$33,IF(DQ21<DQ$33,IF($D21>$E21,1,0),"NONE"),"NONE") -> NONE | DR57: =IF(DR21>DR$33,IF(DS21<DS$33,IF($D21>$E21,1,0),"NONE"),"NONE") -> NONE | DT57: =IF(DT21>DT$33,IF(DU21<DU$33,IF($D21>$E21,1,0),"NONE"),"NONE") -> NONE | DV57: =IF(DV21>DV$33,IF(DW21<DW$33,IF($D21>$E21,1,0),"NONE"),"NONE") -> NONE | DX57: =IF(DX21>DX$33,IF(DY21<DY$33,IF($D21>$E21,1,0),"NONE"),"NONE") -> NONE | DZ57: =IF(DZ21>DZ$33,IF(EA21<EA$33,IF($D21>$E21,1,0),"NONE"),"NONE") -> NONE | EB57: =IF(EB21>EB$33,IF(EC21<EC$33,IF($D21>$E21,1,0),"NONE"),"NONE") -> NONE
CP58: NONE | CR58: =IF(CR22>CR$33,IF(CS22<CS$33,IF($D22>$E22,1,0),"NONE"),"NONE") -> NONE | CT58: NONE | CV58: =IF(CV22>CV$33,IF(CW22<CW$33,IF($D22>$E22,1,0),"NONE"),"NONE") -> NONE | CX58: =IF(CX22>CX$33,IF(CY22<CY$33,IF($D22>$E22,1,0),"NONE"),"NONE") -> NONE | CZ58: =IF(CZ22>CZ$33,IF(DA22<DA$33,IF($D22>$E22,1,0),"NONE"),"NONE") -> NONE | DB58: =IF(DB22>DB$33,IF(DC22<DC$33,IF($D22>$E22,1,0),"NONE"),"NONE") -> NONE | DD58: =IF(DD22>DD$33,IF(DE22<DE$33,IF($D22>$E22,1,0),"NONE"),"NONE") -> NONE | DF58: =IF(DF22>DF$33,IF(DG22<DG$33,IF($D22>$E22,1,0),"NONE"),"NONE") -> NONE | DH58: NONE | DJ58: =IF(DJ22>DJ$33,IF(DK22<DK$33,IF($D22>$E22,1,0),"NONE"),"NONE") -> NONE | DL58: =IF(DL22>DL$33,IF(DM22<DM$33,IF($D22>$E22,1,0),"NONE"),"NONE") -> NONE | DN58: 1 | DP58: =IF(DP22>DP$33,IF(DQ22<DQ$33,IF($D22>$E22,1,0),"NONE"),"NONE") -> NONE | DR58: =IF(DR22>DR$33,IF(DS22<DS$33,IF($D22>$E22,1,0),"NONE"),"NONE") -> NONE | DT58: =IF(DT22>DT$33,IF(DU22<DU$33,IF($D22>$E22,1,0),"NONE"),"NONE") -> NONE | DV58: =IF(DV22>DV$33,IF(DW22<DW$33,IF($D22>$E22,1,0),"NONE"),"NONE") -> NONE | DX58: =IF(DX22>DX$33,IF(DY22<DY$33,IF($D22>$E22,1,0),"NONE"),"NONE") -> NONE | DZ58: =IF(DZ22>DZ$33,IF(EA22<EA$33,IF($D22>$E22,1,0),"NONE"),"NONE") -> NONE | EB58: =IF(EB22>EB$33,IF(EC22<EC$33,IF($D22>$E22,1,0),"NONE"),"NONE") -> NONE
CP59: NONE | CR59: =IF(CR23>CR$33,IF(CS23<CS$33,IF($D23>$E23,1,0),"NONE"),"NONE") -> NONE | CT59: NONE | CV59: =IF(CV23>CV$33,IF(CW23<CW$33,IF($D23>$E23,1,0),"NONE"),"NONE") -> NONE | CX59: =IF(CX23>CX$33,IF(CY23<CY$33,IF($D23>$E23,1,0),"NONE"),"NONE") -> 0 | CZ59: =IF(CZ23>CZ$33,IF(DA23<DA$33,IF($D23>$E23,1,0),"NONE"),"NONE") -> 0 | DB59: =IF(DB23>DB$33,IF(DC23<DC$33,IF($D23>$E23,1,0),"NONE"),"NONE") -> NONE | DD59: =IF(DD23>DD$33,IF(DE23<DE$33,IF($D23>$E23,1,0),"NONE"),"NONE") -> NONE | DF59: =IF(DF23>DF$33,IF(DG23<DG$33,IF($D23>$E23,1,0),"NONE"),"NONE") -> NONE | DH59: NONE | DJ59: =IF(DJ23>DJ$33,IF(DK23<DK$33,IF($D23>$E23,1,0),"NONE"),"NONE") -> NONE | DL59: =IF(DL23>DL$33,IF(DM23<DM$33,IF($D23>$E23,1,0),"NONE"),"NONE") -> NONE | DN59: 0 | DP59: =IF(DP23>DP$33,IF(DQ23<DQ$33,IF($D23>$E23,1,0),"NONE"),"NONE") -> 0 | DR59: =IF(DR23>DR$33,IF(DS23<DS$33,IF($D23>$E23,1,0),"NONE"),"NONE") -> 0 | DT59: =IF(DT23>DT$33,IF(DU23<DU$33,IF($D23>$E23,1,0),"NONE"),"NONE") -> NONE | DV59: =IF(DV23>DV$33,IF(DW23<DW$33,IF($D23>$E23,1,0),"NONE"),"NONE") -> NONE | DX59: =IF(DX23>DX$33,IF(DY23<DY$33,IF($D23>$E23,1,0),"NONE"),"NONE") -> NONE | DZ59: =IF(DZ23>DZ$33,IF(EA23<EA$33,IF($D23>$E23,1,0),"NONE"),"NONE") -> NONE | EB59: =IF(EB23>EB$33,IF(EC23<EC$33,IF($D23>$E23,1,0),"NONE"),"NONE") -> NONE
CP60: NONE | CR60: =IF(CR24>CR$33,IF(CS24<CS$33,IF($D24>$E24,1,0),"NONE"),"NONE") -> NONE | CT60: 0 | CV60: =IF(CV24>CV$33,IF(CW24<CW$33,IF($D24>$E24,1,0),"NONE"),"NONE") -> NONE | CX60: =IF(CX24>CX$33,IF(CY24<CY$33,IF($D24>$E24,1,0),"NONE"),"NONE") -> NONE | CZ60: =IF(CZ24>CZ$33,IF(DA24<DA$33,IF($D24>$E24,1,0),"NONE"),"NONE") -> NONE | DB60: =IF(DB24>DB$33,IF(DC24<DC$33,IF($D24>$E24,1,0),"NONE"),"NONE") -> NONE | DD60: =IF(DD24>DD$33,IF(DE24<DE$33,IF($D24>$E24,1,0),"NONE"),"NONE") -> NONE | DF60: =IF(DF24>DF$33,IF(DG24<DG$33,IF($D24>$E24,1,0),"NONE"),"NONE") -> NONE | DH60: NONE | DJ60: =IF(DJ24>DJ$33,IF(DK24<DK$33,IF($D24>$E24,1,0),"NONE"),"NONE") -> NONE | DL60: =IF(DL24>DL$33,IF(DM24<DM$33,IF($D24>$E24,1,0),"NONE"),"NONE") -> NONE | DN60: NONE | DP60: =IF(DP24>DP$33,IF(DQ24<DQ$33,IF($D24>$E24,1,0),"NONE"),"NONE") -> NONE | DR60: =IF(DR24>DR$33,IF(DS24<DS$33,IF($D24>$E24,1,0),"NONE"),"NONE") -> NONE | DT60: =IF(DT24>DT$33,IF(DU24<DU$33,IF($D24>$E24,1,0),"NONE"),"NONE") -> NONE | DV60: =IF(DV24>DV$33,IF(DW24<DW$33,IF($D24>$E24,1,0),"NONE"),"NONE") -> NONE | DX60: =IF(DX24>DX$33,IF(DY24<DY$33,IF($D24>$E24,1,0),"NONE"),"NONE") -> NONE | DZ60: =IF(DZ24>DZ$33,IF(EA24<EA$33,IF($D24>$E24,1,0),"NONE"),"NONE") -> NONE | EB60: =IF(EB24>EB$33,IF(EC24<EC$33,IF($D24>$E24,1,0),"NONE"),"NONE") -> NONE
CP61: 1 | CR61: =IF(CR25>CR$33,IF(CS25<CS$33,IF($D25>$E25,1,0),"NONE"),"NONE") -> NONE | CT61: NONE | CV61: =IF(CV25>CV$33,IF(CW25<CW$33,IF($D25>$E25,1,0),"NONE"),"NONE") -> 1 | CX61: =IF(CX25>CX$33,IF(CY25<CY$33,IF($D25>$E25,1,0),"NONE"),"NONE") -> 1 | CZ61: =IF(CZ25>CZ$33,IF(DA25<DA$33,IF($D25>$E25,1,0),"NONE"),"NONE") -> 1 | DB61: =IF(DB25>DB$33,IF(DC25<DC$33,IF($D25>$E25,1,0),"NONE"),"NONE") -> 1 | DD61: =IF(DD25>DD$33,IF(DE25<DE$33,IF($D25>$E25,1,0),"NONE"),"NONE") -> 1 | DF61: =IF(DF25>DF$33,IF(DG25<DG$33,IF($D25>$E25,1,0),"NONE"),"NONE") -> NONE | DH61: 1 | DJ61: =IF(DJ25>DJ$33,IF(DK25<DK$33,IF($D25>$E25,1,0),"NONE"),"NONE") -> NONE | DL61: =IF(DL25>DL$33,IF(DM25<DM$33,IF($D25>$E25,1,0),"NONE"),"NONE") -> 1 | DN61: NONE | DP61: =IF(DP25>DP$33,IF(DQ25<DQ$33,IF($D25>$E25,1,0),"NONE"),"NONE") -> 1 | DR61: =IF(DR25>DR$33,IF(DS25<DS$33,IF($D25>$E25,1,0),"NONE"),"NONE") -> 1 | DT61: =IF(DT25>DT$33,IF(DU25<DU$33,IF($D25>$E25,1,0),"NONE"),"NONE") -> NONE | DV61: =IF(DV25>DV$33,IF(DW25<DW$33,IF($D25>$E25,1,0),"NONE"),"NONE") -> 1 | DX61: =IF(DX25>DX$33,IF(DY25<DY$33,IF($D25>$E25,1,0),"NONE"),"NONE") -> NONE | DZ61: =IF(DZ25>DZ$33,IF(EA25<EA$33,IF($D25>$E25,1,0),"NONE"),"NONE") -> NONE | EB61: =IF(EB25>EB$33,IF(EC25<EC$33,IF($D25>$E25,1,0),"NONE"),"NONE") -> NONE
CP62: NONE | CR62: =IF(CR26>CR$33,IF(CS26<CS$33,IF($D26>$E26,1,0),"NONE"),"NONE") -> NONE | CT62: NONE | CV62: =IF(CV26>CV$33,IF(CW26<CW$33,IF($D26>$E26,1,0),"NONE"),"NONE") -> NONE | CX62: =IF(CX26>CX$33,IF(CY26<CY$33,IF($D26>$E26,1,0),"NONE"),"NONE") -> NONE | CZ62: =IF(CZ26>CZ$33,IF(DA26<DA$33,IF($D26>$E26,1,0),"NONE"),"NONE") -> NONE | DB62: =IF(DB26>DB$33,IF(DC26<DC$33,IF($D26>$E26,1,0),"NONE"),"NONE") -> NONE | DD62: =IF(DD26>DD$33,IF(DE26<DE$33,IF($D26>$E26,1,0),"NONE"),"NONE") -> NONE | DF62: =IF(DF26>DF$33,IF(DG26<DG$33,IF($D26>$E26,1,0),"NONE"),"NONE") -> 0 | DH62: NONE | DJ62: =IF(DJ26>DJ$33,IF(DK26<DK$33,IF($D26>$E26,1,0),"NONE"),"NONE") -> 0 | DL62: =IF(DL26>DL$33,IF(DM26<DM$33,IF($D26>$E26,1,0),"NONE"),"NONE") -> NONE | DN62: NONE | DP62: =IF(DP26>DP$33,IF(DQ26<DQ$33,IF($D26>$E26,1,0),"NONE"),"NONE") -> NONE | DR62: =IF(DR26>DR$33,IF(DS26<DS$33,IF($D26>$E26,1,0),"NONE"),"NONE") -> NONE | DT62: =IF(DT26>DT$33,IF(DU26<DU$33,IF($D26>$E26,1,0),"NONE"),"NONE") -> NONE | DV62: =IF(DV26>DV$33,IF(DW26<DW$33,IF($D26>$E26,1,0),"NONE"),"NONE") -> NONE | DX62: =IF(DX26>DX$33,IF(DY26<DY$33,IF($D26>$E26,1,0),"NONE"),"NONE") -> NONE | DZ62: =IF(DZ26>DZ$33,IF(EA26<EA$33,IF($D26>$E26,1,0),"NONE"),"NONE") -> NONE | EB62: =IF(EB26>EB$33,IF(EC26<EC$33,IF($D26>$E26,1,0),"NONE"),"NONE") -> NONE
CP63: 1 | CR63: =IF(CR27>CR$33,IF(CS27<CS$33,IF($D27>$E27,1,0),"NONE"),"NONE") -> 1 | CT63: NONE | CV63: =IF(CV27>CV$33,IF(CW27<CW$33,IF($D27>$E27,1,0),"NONE"),"NONE") -> 1 | CX63: =IF(CX27>CX$33,IF(CY27<CY$33,IF($D27>$E27,1,0),"NONE"),"NONE") -> 1 | CZ63: =IF(CZ27>CZ$33,IF(DA27<DA$33,IF($D27>$E27,1,0),"NONE"),"NONE") -> 1 | DB63: =IF(DB27>DB$33,IF(DC27<DC$33,IF($D27>$E27,1,0),"NONE"),"NONE") -> 1 | DD63: =IF(DD27>DD$33,IF(DE27<DE$33,IF($D27>$E27,1,0),"NONE"),"NONE") -> 1 | DF63: =IF(DF27>DF$33,IF(DG27<DG$33,IF($D27>$E27,1,0),"NONE"),"NONE") -> NONE | DH63: 1 | DJ63: =IF(DJ27>DJ$33,IF(DK27<DK$33,IF($D27>$E27,1,0),"NONE"),"NONE") -> 1 | DL63: =IF(DL27>DL$33,IF(DM27<DM$33,IF($D27>$E27,1,0),"NONE"),"NONE") -> NONE | DN63: 1 | DP63: =IF(DP27>DP$33,IF(DQ27<DQ$33,IF($D27>$E27,1,0),"NONE"),"NONE") -> 1 | DR63: =IF(DR27>DR$33,IF(DS27<DS$33,IF($D27>$E27,1,0),"NONE"),"NONE") -> 1 | DT63: =IF(DT27>DT$33,IF(DU27<DU$33,IF($D27>$E27,1,0),"NONE"),"NONE") -> NONE | DV63: =IF(DV27>DV$33,IF(DW27<DW$33,IF($D27>$E27,1,0),"NONE"),"NONE") -> NONE | DX63: =IF(DX27>DX$33,IF(DY27<DY$33,IF($D27>$E27,1,0),"NONE"),"NONE") -> NONE | DZ63: =IF(DZ27>DZ$33,IF(EA27<EA$33,IF($D27>$E27,1,0),"NONE"),"NONE") -> NONE | EB63: =IF(EB27>EB$33,IF(EC27<EC$33,IF($D27>$E27,1,0),"NONE"),"NONE") -> NONE
CP64: 1 | CR64: =IF(CR28>CR$33,IF(CS28<CS$33,IF($D28>$E28,1,0),"NONE"),"NONE") -> 1 | CT64: NONE | CV64: =IF(CV28>CV$33,IF(CW28<CW$33,IF($D28>$E28,1,0),"NONE"),"NONE") -> 1 | CX64: =IF(CX28>CX$33,IF(CY28<CY$33,IF($D28>$E28,1,0),"NONE"),"NONE") -> 1 | CZ64: =IF(CZ28>CZ$33,IF(DA28<DA$33,IF($D28>$E28,1,0),"NONE"),"NONE") -> 1 | DB64: =IF(DB28>DB$33,IF(DC28<DC$33,IF($D28>$E28,1,0),"NONE"),"NONE") -> 1 | DD64: =IF(DD28>DD$33,IF(DE28<DE$33,IF($D28>$E28,1,0),"NONE"),"NONE") -> 1 | DF64: =IF(DF28>DF$33,IF(DG28<DG$33,IF($D28>$E28,1,0),"NONE"),"NONE") -> NONE | DH64: NONE | DJ64: =IF(DJ28>DJ$33,IF(DK28<DK$33,IF($D28>$E28,1,0),"NONE"),"NONE") -> 1 | DL64: =IF(DL28>DL$33,IF(DM28<DM$33,IF($D28>$E28,1,0),"NONE"),"NONE") -> 1 | DN64: 1 | DP64: =IF(DP28>DP$33,IF(DQ28<DQ$33,IF($D28>$E28,1,0),"NONE"),"NONE") -> NONE | DR64: =IF(DR28>DR$33,IF(DS28<DS$33,IF($D28>$E28,1,0),"NONE"),"NONE") -> NONE | DT64: =IF(DT28>DT$33,IF(DU28<DU$33,IF($D28>$E28,1,0),"NONE"),"NONE") -> NONE | DV64: =IF(DV28>DV$33,IF(DW28<DW$33,IF($D28>$E28,1,0),"NONE"),"NONE") -> NONE | DX64: =IF(DX28>DX$33,IF(DY28<DY$33,IF($D28>$E28,1,0),"NONE"),"NONE") -> NONE | DZ64: =IF(DZ28>DZ$33,IF(EA28<EA$33,IF($D28>$E28,1,0),"NONE"),"NONE") -> 1 | EB64: =IF(EB28>EB$33,IF(EC28<EC$33,IF($D28>$E28,1,0),"NONE"),"NONE") -> NONE
CP65: NONE | CR65: =IF(CR29>CR$33,IF(CS29<CS$33,IF($D29>$E29,1,0),"NONE"),"NONE") -> NONE | CT65: NONE | CV65: =IF(CV29>CV$33,IF(CW29<CW$33,IF($D29>$E29,1,0),"NONE"),"NONE") -> NONE | CX65: =IF(CX29>CX$33,IF(CY29<CY$33,IF($D29>$E29,1,0),"NONE"),"NONE") -> 1 | CZ65: =IF(CZ29>CZ$33,IF(DA29<DA$33,IF($D29>$E29,1,0),"NONE"),"NONE") -> NONE | DB65: =IF(DB29>DB$33,IF(DC29<DC$33,IF($D29>$E29,1,0),"NONE"),"NONE") -> NONE | DD65: =IF(DD29>DD$33,IF(DE29<DE$33,IF($D29>$E29,1,0),"NONE"),"NONE") -> NONE | DF65: =IF(DF29>DF$33,IF(DG29<DG$33,IF($D29>$E29,1,0),"NONE"),"NONE") -> NONE | DH65: NONE | DJ65: =IF(DJ29>DJ$33,IF(DK29<DK$33,IF($D29>$E29,1,0),"NONE"),"NONE") -> NONE | DL65: =IF(DL29>DL$33,IF(DM29<DM$33,IF($D29>$E29,1,0),"NONE"),"NONE") -> NONE | DN65: NONE | DP65: =IF(DP29>DP$33,IF(DQ29<DQ$33,IF($D29>$E29,1,0),"NONE"),"NONE") -> NONE | DR65: =IF(DR29>DR$33,IF(DS29<DS$33,IF($D29>$E29,1,0),"NONE"),"NONE") -> NONE | DT65: =IF(DT29>DT$33,IF(DU29<DU$33,IF($D29>$E29,1,0),"NONE"),"NONE") -> NONE | DV65: =IF(DV29>DV$33,IF(DW29<DW$33,IF($D29>$E29,1,0),"NONE"),"NONE") -> NONE | DX65: =IF(DX29>DX$33,IF(DY29<DY$33,IF($D29>$E29,1,0),"NONE"),"NONE") -> NONE | DZ65: =IF(DZ29>DZ$33,IF(EA29<EA$33,IF($D29>$E29,1,0),"NONE"),"NONE") -> NONE | EB65: =IF(EB29>EB$33,IF(EC29<EC$33,IF($D29>$E29,1,0),"NONE"),"NONE") -> NONE
CP66: NONE | CR66: =IF(CR30>CR$33,IF(CS30<CS$33,IF($D30>$E30,1,0),"NONE"),"NONE") -> NONE | CT66: NONE | CV66: =IF(CV30>CV$33,IF(CW30<CW$33,IF($D30>$E30,1,0),"NONE"),"NONE") -> NONE | CX66: =IF(CX30>CX$33,IF(CY30<CY$33,IF($D30>$E30,1,0),"NONE"),"NONE") -> NONE | CZ66: =IF(CZ30>CZ$33,IF(DA30<DA$33,IF($D30>$E30,1,0),"NONE"),"NONE") -> NONE | DB66: =IF(DB30>DB$33,IF(DC30<DC$33,IF($D30>$E30,1,0),"NONE"),"NONE") -> NONE | DD66: =IF(DD30>DD$33,IF(DE30<DE$33,IF($D30>$E30,1,0),"NONE"),"NONE") -> NONE | DF66: =IF(DF30>DF$33,IF(DG30<DG$33,IF($D30>$E30,1,0),"NONE"),"NONE") -> NONE | DH66: 0 | DJ66: =IF(DJ30>DJ$33,IF(DK30<DK$33,IF($D30>$E30,1,0),"NONE"),"NONE") -> NONE | DL66: =IF(DL30>DL$33,IF(DM30<DM$33,IF($D30>$E30,1,0),"NONE"),"NONE") -> NONE | DN66: 0 | DP66: =IF(DP30>DP$33,IF(DQ30<DQ$33,IF($D30>$E30,1,0),"NONE"),"NONE") -> NONE | DR66: =IF(DR30>DR$33,IF(DS30<DS$33,IF($D30>$E30,1,0),"NONE"),"NONE") -> NONE | DT66: =IF(DT30>DT$33,IF(DU30<DU$33,IF($D30>$E30,1,0),"NONE"),"NONE") -> NONE | DV66: =IF(DV30>DV$33,IF(DW30<DW$33,IF($D30>$E30,1,0),"NONE"),"NONE") -> 0 | DX66: =IF(DX30>DX$33,IF(DY30<DY$33,IF($D30>$E30,1,0),"NONE"),"NONE") -> NONE | DZ66: =IF(DZ30>DZ$33,IF(EA30<EA$33,IF($D30>$E30,1,0),"NONE"),"NONE") -> NONE | EB66: =IF(EB30>EB$33,IF(EC30<EC$33,IF($D30>$E30,1,0),"NONE"),"NONE") -> NONE
CP67: NONE | CR67: =IF(CR31>CR$33,IF(CS31<CS$33,IF($D31>$E31,1,0),"NONE"),"NONE") -> 0 | CT67: NONE | CV67: =IF(CV31>CV$33,IF(CW31<CW$33,IF($D31>$E31,1,0),"NONE"),"NONE") -> NONE | CX67: =IF(CX31>CX$33,IF(CY31<CY$33,IF($D31>$E31,1,0),"NONE"),"NONE") -> NONE | CZ67: =IF(CZ31>CZ$33,IF(DA31<DA$33,IF($D31>$E31,1,0),"NONE"),"NONE") -> 0 | DB67: =IF(DB31>DB$33,IF(DC31<DC$33,IF($D31>$E31,1,0),"NONE"),"NONE") -> NONE | DD67: =IF(DD31>DD$33,IF(DE31<DE$33,IF($D31>$E31,1,0),"NONE"),"NONE") -> NONE | DF67: =IF(DF31>DF$33,IF(DG31<DG$33,IF($D31>$E31,1,0),"NONE"),"NONE") -> NONE | DH67: 0 | DJ67: =IF(DJ31>DJ$33,IF(DK31<DK$33,IF($D31>$E31,1,0),"NONE"),"NONE") -> NONE | DL67: =IF(DL31>DL$33,IF(DM31<DM$33,IF($D31>$E31,1,0),"NONE"),"NONE") -> NONE | DN67: 0 | DP67: =IF(DP31>DP$33,IF(DQ31<DQ$33,IF($D31>$E31,1,0),"NONE"),"NONE") -> NONE | DR67: =IF(DR31>DR$33,IF(DS31<DS$33,IF($D31>$E31,1,0),"NONE"),"NONE") -> NONE | DT67: =IF(DT31>DT$33,IF(DU31<DU$33,IF($D31>$E31,1,0),"NONE"),"NONE") -> NONE | DV67: =IF(DV31>DV$33,IF(DW31<DW$33,IF($D31>$E31,1,0),"NONE"),"NONE") -> NONE | DX67: =IF(DX31>DX$33,IF(DY31<DY$33,IF($D31>$E31,1,0),"NONE"),"NONE") -> NONE | DZ67: =IF(DZ31>DZ$33,IF(EA31<EA$33,IF($D31>$E31,1,0),"NONE"),"NONE") -> NONE | EB67: =IF(EB31>EB$33,IF(EC31<EC$33,IF($D31>$E31,1,0),"NONE"),"NONE") -> NONE
CP68: 1 | CR68: =IF(CR32>CR$33,IF(CS32<CS$33,IF($D32>$E32,1,0),"NONE"),"NONE") -> NONE | CT68: 1 | CV68: =IF(CV32>CV$33,IF(CW32<CW$33,IF($D32>$E32,1,0),"NONE"),"NONE") -> NONE | CX68: =IF(CX32>CX$33,IF(CY32<CY$33,IF($D32>$E32,1,0),"NONE"),"NONE") -> 1 | CZ68: =IF(CZ32>CZ$33,IF(DA32<DA$33,IF($D32>$E32,1,0),"NONE"),"NONE") -> NONE | DB68: =IF(DB32>DB$33,IF(DC32<DC$33,IF($D32>$E32,1,0),"NONE"),"NONE") -> NONE | DD68: =IF(DD32>DD$33,IF(DE32<DE$33,IF($D32>$E32,1,0),"NONE"),"NONE") -> 1 | DF68: =IF(DF32>DF$33,IF(DG32<DG$33,IF($D32>$E32,1,0),"NONE"),"NONE") -> 1 | DH68: NONE | DJ68: =IF(DJ32>DJ$33,IF(DK32<DK$33,IF($D32>$E32,1,0),"NONE"),"NONE") -> NONE | DL68: =IF(DL32>DL$33,IF(DM32<DM$33,IF($D32>$E32,1,0),"NONE"),"NONE") -> NONE | DN68: 1 | DP68: =IF(DP32>DP$33,IF(DQ32<DQ$33,IF($D32>$E32,1,0),"NONE"),"NONE") -> 1 | DR68: =IF(DR32>DR$33,IF(DS32<DS$33,IF($D32>$E32,1,0),"NONE"),"NONE") -> NONE | DT68: =IF(DT32>DT$33,IF(DU32<DU$33,IF($D32>$E32,1,0),"NONE"),"NONE") -> NONE | DV68: =IF(DV32>DV$33,IF(DW32<DW$33,IF($D32>$E32,1,0),"NONE"),"NONE") -> NONE | DX68: =IF(DX32>DX$33,IF(DY32<DY$33,IF($D32>$E32,1,0),"NONE"),"NONE") -> NONE | DZ68: =IF(DZ32>DZ$33,IF(EA32<EA$33,IF($D32>$E32,1,0),"NONE"),"NONE") -> 1 | EB68: =IF(EB32>EB$33,IF(EC32<EC$33,IF($D32>$E32,1,0),"NONE"),"NONE") -> NONE
CP69: =SUM(CP37:CP68) -> 7 | CQ69: =COUNTIF(CP37:CP68,"0") -> 0 | CR69: =SUM(CR37:CR68) -> 8 | CS69: =COUNTIF(CR37:CR68,"0") -> 1 | CT69: =SUM(CT37:CT68) -> 6 | CU69: =COUNTIF(CT37:CT68,"0") -> 2 | CV69: =SUM(CV37:CV68) -> 6 | CW69: =COUNTIF(CV37:CV68,"0") -> 0 | CX69: =SUM(CX37:CX68) -> 8 | CY69: =COUNTIF(CX37:CX68,"0") -> 3 | CZ69: =SUM(CZ37:CZ68) -> 6 | DA69: =COUNTIF(CZ37:CZ68,"0") -> 2 | DB69: =SUM(DB37:DB68) -> 7 | DC69: =COUNTIF(DB37:DB68,"0") -> 0 | DD69: =SUM(DD37:DD68) -> 6 | DE69: =COUNTIF(DD37:DD68,"0") -> 1 | DF69: =SUM(DF37:DF68) -> 4 | DG69: =COUNTIF(DF37:DF68,"0") -> 2 | DH69: =SUM(DH37:DH68) -> 4 | DI69: =COUNTIF(DH37:DH68,"0") -> 2 | DJ69: =SUM(DJ37:DJ68) -> 5 | DK69: =COUNTIF(DJ37:DJ68,"0") -> 2 | DL69: =SUM(DL37:DL68) -> 5 | DM69: =COUNTIF(DL37:DL68,"0") -> 2 | DN69: =SUM(DN37:DN68) -> 5 | DO69: =COUNTIF(DN37:DN68,"0") -> 5 | DP69: =SUM(DP37:DP68) -> 5 | DQ69: =COUNTIF(DP37:DP68,"0") -> 4 | DR69: =SUM(DR37:DR68) -> 4 | DS69: =COUNTIF(DR37:DR68,"0") -> 4 | DT69: =SUM(DT37:DT68) -> 1 | DU69: =COUNTIF(DT37:DT68,"0") -> 3 | DV69: =SUM(DV37:DV68) -> 2 | DW69: =COUNTIF(DV37:DV68,"0") -> 5 | DX69: =SUM(DX37:DX68) -> 6 | DY69: =COUNTIF(DX37:DX68,"0") -> 1 | DZ69: =SUM(DZ37:DZ68) -> 6 | EA69: =COUNTIF(DZ37:DZ68,"0") -> 0
CP72: 3.913565426 | CQ72: 3.913565426 | CR72: 3.910369069 | CS72: 3.910369069 | CT72: 3.25045208 | CU72: 3.25045208 | CV72: 3.150921659 | CW72: 3.150921659 | CX72: 2.960339943 | CY72: 2.960339943 | CZ72: 2.739872068 | DA72: 2.739872068 | DB72: 2.636469222 | DC72: 2.636469222 | DD72: 2.510080645 | DE72: 2.510080645 | DF72: 2.287104623 | DG72: 2.287104623 | DH72: 1.993939394 | DI72: 1.993939394 | DJ72: 1.97265625 | DK72: 1.97265625 | DL72: 1.666666667 | DM72: 1.666666667 | DN72: 1.084745763 | DO72: 1.084745763 | DP72: 0.9029779059 | DQ72: 0.9029779059 | DR72: 0.5020080321 | DS72: 0.5020080321 | DT72: 0.2969247084 | DU72: 0.2969247084 | DV72: Offense | DW72: Defense | DX72: Total | FT72: 3.913565426 | FU72: 3.913565426 | FV72: 3.910369069 | FW72: 3.910369069 | FX72: 3.25045208 | FY72: 3.25045208 | FZ72: 3.150921659 | GA72: 3.150921659 | GB72: 2.960339943 | GC72: 2.960339943 | GD72: 2.739872068 | GE72: 2.739872068 | GF72: 2.636469222 | GG72: 2.636469222 | GH72: 2.510080645 | GI72: 2.510080645 | GJ72: 2.287104623 | GK72: 2.287104623 | GL72: 1.993939394 | GM72: 1.993939394 | GN72: 1.97265625 | GO72: 1.97265625 | GP72: 1.666666667 | GQ72: 1.666666667 | GR72: 1.084745763 | GS72: 1.084745763 | GT72: 0.9029779059 | GU72: 0.9029779059 | GV72: 0.5020080321 | GW72: 0.5020080321 | GX72: 0.2969247084 | GY72: 0.2969247084 | GZ72: Offense | HA72: Defense | HB72: Total
CO73: =A1 -> 49ers | CP73: =NORMDIST(CP1,CP$33,CP$34,TRUE) -> 0.1351771226 | CQ73: =1-NORMDIST(CQ1,CQ$33,CQ$34,TRUE) -> 0.8568405498 | CR73: =NORMDIST(CR1,CR$33,CR$34,TRUE) -> 0.5501885216 | CS73: =1-NORMDIST(CS1,CS$33,CS$34,TRUE) -> 0.6888113557 | CT73: =1-NORMDIST(CT1,CT$33,CT$34,TRUE) -> 0.7054078537 | CU73: =NORMDIST(CU1,CU$33,CU$34,TRUE) -> 0.5683181062 | CV73: =NORMDIST(CV1,CV$33,CV$34,TRUE) -> 0.07720095773 | CW73: =1-NORMDIST(CW1,CW$33,CW$34,TRUE) -> 0.7830275489 | CX73: =NORMDIST(CX1,CX$33,CX$34,TRUE) -> 0.3548145927 | CY73: =1-NORMDIST(CY1,CY$33,CY$34,TRUE) -> 0.8533099967 | CZ73: =NORMDIST(CZ1,CZ$33,CZ$34,TRUE) -> 0.06107110978 | DA73: =1-NORMDIST(DA1,DA$33,DA$34,TRUE) -> 0.6598644031 | DB73: =NORMDIST(DB1,DB$33,DB$34,TRUE) -> 0.128753495 | DC73: =1-NORMDIST(DC1,DC$33,DC$34,TRUE) -> 0.77149229 | DD73: =NORMDIST(DD1,DD$33,DD$34,TRUE) -> 0.4942434286 | DE73: =1-NORMDIST(DE1,DE$33,DE$34,TRUE) -> 0.822267496 | DF73: =NORMDIST(DF1,DF$33,DF$34,TRUE) -> 0.437423477 | DG73: =1-NORMDIST(DG1,DG$33,DG$34,TRUE) -> 0.8106755646 | DH73: =1-NORMDIST(DH1,DH$33,DH$34,TRUE) -> 0.02179572861 | DI73: =NORMDIST(DI1,DI$33,DI$34,TRUE) -> 0.8481198246 | DJ73: =NORMDIST(DJ1,DJ$33,DJ$34,TRUE) -> 0.7122135106 | DK73: =1-NORMDIST(DK1,DK$33,DK$34,TRUE) -> 0.4160576669 | DL73: =NORMDIST(DL1,DL$33,DL$34,TRUE) -> 0.18695661 | DM73: =1-NORMDIST(DM1,DM$33,DM$34,TRUE) -> 0.8246467208 | DN73: =1-NORMDIST(DN1,DN$33,DN$34,TRUE) -> 0.7590479303 | DO73: =NORMDIST(DO1,DO$33,DO$34,TRUE) -> 0.855107514 | DP73: =NORMDIST(DP1,DP$33,DP$34,TRUE) -> 0.01417352452 | DQ73: =1-NORMDIST(DQ1,DQ$33,DQ$34,TRUE) -> 0.9892573352 | DR73: =NORMDIST(DR1,DR$33,DR$34,TRUE) -> 0.004582708304 | DS73: =1-NORMDIST(DS1,DS$33,DS$34,TRUE) -> 0.9201053346 | DT73: =NORMDIST(DT1,DT$33,DT$34,TRUE) -> 0.7474819853 | DU73: =1-NORMDIST(DU1,DU$33,DU$34,TRUE) -> 0.05218887674 | DV73: =CP$72*CP73+CR$72*CR73+CT$72*CT73+CV$72*CV73+CX$72*CX73+CZ$72*CZ73+DB$72*DB73+DD$72*DD73+DF$72*DF73+DH$72*DH73+DJ$72*DJ73+DL$72*DL73+DN$72*DN73+DP$72*DP73+DR$72*DR73+DT$72*DT73 -> 11.83521585 | DW73: =CQ$72*CQ73+CS$72*CS73+CU$72*CU73+CW$72*CW73+CY$72*CY73+DA$72*DA73+DC$72*DC73+DE$72*DE73+DG$72*DG73+DI$72*DI73+DK$72*DK73+DM$72*DM73+DO$72*DO73+DQ$72*DQ73+DS$72*DS73+DU$72*DU73 -> 26.83196005 | DX73: =SUMPRODUCT(CP$72:DU$72,CP73:DU73) -> 38.6671759 | DZ73: =RANK(DV73,DV$73:DV$104,0) -> 25 | EA73: =RANK(DW73,DW$73:DW$104,0) -> 3 | EB73: 10 | FS73: =A1 -> 49ers | FT73: =NORMDIST(FT1,FT$33,FT$34,TRUE) -> 0.1800895287 | FU73: =1-NORMDIST(FU1,FU$33,FU$34,TRUE) -> 0.8710690322 | FV73: =NORMDIST(FV1,FV$33,FV$34,TRUE) -> 0.5529559394 | FW73: =1-NORMDIST(FW1,FW$33,FW$34,TRUE) -> 0.7054145812 | FX73: =1-NORMDIST(FX1,FX$33,FX$34,TRUE) -> 0.7010061634 | FY73: =NORMDIST(FY1,FY$33,FY$34,TRUE) -> 0.4023742531 | FZ73: =NORMDIST(FZ1,FZ$33,FZ$34,TRUE) -> 0.05893497453 | GA73: =1-NORMDIST(GA1,GA$33,GA$34,TRUE) -> 0.7678768319 | GB73: =NORMDIST(GB1,GB$33,GB$34,TRUE) -> 0.4023414498 | GC73: =1-NORMDIST(GC1,GC$33,GC$34,TRUE) -> 0.7898253088 | GD73: =NORMDIST(GD1,GD$33,GD$34,TRUE) -> 0.04418883314 | GE73: =1-NORMDIST(GE1,GE$33,GE$34,TRUE) -> 0.736790359 | GF73: =NORMDIST(GF1,GF$33,GF$34,TRUE) -> 0.1580298538 | GG73: =1-NORMDIST(GG1,GG$33,GG$34,TRUE) -> 0.7752290633 | GH73: =NORMDIST(GH1,GH$33,GH$34,TRUE) -> 0.5539280044 | GI73: =1-NORMDIST(GI1,GI$33,GI$34,TRUE) -> 0.7627837734 | GJ73: =NORMDIST(GJ1,GJ$33,GJ$34,TRUE) -> 0.5683321932 | GK73: =1-NORMDIST(GK1,GK$33,GK$34,TRUE) -> 0.7313149469 | GL73: =1-NORMDIST(GL1,GL$33,GL$34,TRUE) -> 0.01551415871 | GM73: =NORMDIST(GM1,GM$33,GM$34,TRUE) -> 0.8245995302 | GN73: =NORMDIST(GN1,GN$33,GN$34,TRUE) -> 0.7183040149 | GO73: =1-NORMDIST(GO1,GO$33,GO$34,TRUE) -> 0.6155603276 | GP73: =NORMDIST(GP1,GP$33,GP$34,TRUE) -> 0.2020763932 | GQ73: =1-NORMDIST(GQ1,GQ$33,GQ$34,TRUE) -> 0.7244075356 | GR73: =1-NORMDIST(GR1,GR$33,GR$34,TRUE) -> 0.7738439813 | GS73: =NORMDIST(GS1,GS$33,GS$34,TRUE) -> 0.7987866334 | GT73: =NORMDIST(GT1,GT$33,GT$34,TRUE) -> 0.0244483715 | GU73: =1-NORMDIST(GU1,GU$33,GU$34,TRUE) -> 0.9911971467 | GV73: =NORMDIST(GV1,GV$33,GV$34,TRUE) -> 0.00354585414 | GW73: =1-NORMDIST(GW1,GW$33,GW$34,TRUE) -> 0.9030005469 | GX73: =NORMDIST(GX1,GX$33,GX$34,TRUE) -> 0.5830584461 | GY73: =1-NORMDIST(GY1,GY$33,GY$34,TRUE) -> 0.08381539166 | GZ73: =FT$72*FT73+FV$72*FV73+FX$72*FX73+FZ$72*FZ73+GB$72*GB73+GD$72*GD73+GF$72*GF73+GH$72*GH73+GJ$72*GJ73+GL$72*GL73+GN$72*GN73+GP$72*GP73+GR$72*GR73+GT$72*GT73+GV$72*GV73+GX$72*GX73 -> 12.5714596 | HA73: =FU$72*FU73+FW$72*FW73+FY$72*FY73+GA$72*GA73+GC$72*GC73+GE$72*GE73+GG$72*GG73+GI$72*GI73+GK$72*GK73+GM$72*GM73+GO$72*GO73+GQ$72*GQ73+GS$72*GS73+GU$72*GU73+GW$72*GW73+GY$72*GY73 -> 26.18835409 | HB73: =SUMPRODUCT(FT$72:GY$72,FT73:GY73) -> 38.7598137 | HD73: =RANK(GZ73,GZ$73:GZ$104,0) -> 25 | HE73: =RANK(HA73,HA$73:HA$104,0) -> 5 | HF73: 13
CO74: =A2 -> Bears | CP74: =NORMDIST(CP2,CP$33,CP$34,TRUE) -> 0.2253951124 | CQ74: =1-NORMDIST(CQ2,CQ$33,CQ$34,TRUE) -> 0.8508812909 | CR74: 0.176733347 | CS74: 0.5143901589 | CT74: 0.05520886828 | CU74: =NORMDIST(CU2,CU$33,CU$34,TRUE) -> 0.105261113 | CV74: 0.4430581356 | CW74: 0.8564529887 | CX74: 0.4256255174 | CY74: 0.7531785634 | CZ74: 0.4863895548 | DA74: 0.7996348218 | DB74: 0.3318042392 | DC74: 0.871246505 | DD74: 0.2000762149 | DE74: 0.7829759776 | DF74: 0.3438332118 | DG74: 0.04055254431 | DH74: 0.1518801754 | DI74: =NORMDIST(DI2,DI$33,DI$34,TRUE) -> 0.70319267 | DJ74: 0.0879573279 | DK74: 0.7159073124 | DL74: 0.4225630142 | DM74: 0.8425046035 | DN74: 0.8551792698 | DO74: =NORMDIST(DO2,DO$33,DO$34,TRUE) -> 0.5105526891 | DP74: 0.4723837159 | DQ74: 0.74053855 | DR74: 0.1419387086 | DS74: 0.7026388014 | DT74: 0.8927025371 | DU74: 0.2566133973 | DV74: =CP$72*CP74+CR$72*CR74+CT$72*CT74+CV$72*CV74+CX$72*CX74+CZ$72*CZ74+DB$72*DB74+DD$72*DD74+DF$72*DF74+DH$72*DH74+DJ$72*DJ74+DL$72*DL74+DN$72*DN74+DP$72*DP74+DR$72*DR74+DT$72*DT74 -> 10.77585448 | DW74: =CQ$72*CQ74+CS$72*CS74+CU$72*CU74+CW$72*CW74+CY$72*CY74+DA$72*DA74+DC$72*DC74+DE$72*DE74+DG$72*DG74+DI$72*DI74+DK$72*DK74+DM$72*DM74+DO$72*DO74+DQ$72*DQ74+DS$72*DS74+DU$72*DU74 -> 23.02782643 | DX74: =SUMPRODUCT(CP$72:DU$72,CP74:DU74) -> 33.80368091 | DZ74: =RANK(DV74,DV$73:DV$104,0) -> 27 | EA74: 11 | EB74: 21 | FS74: =A2 -> Bears | FT74: =NORMDIST(FT2,FT$33,FT$34,TRUE) -> 0.252092969 | FU74: =1-NORMDIST(FU2,FU$33,FU$34,TRUE) -> 0.9312172534 | FV74: 0.2316854329 | FW74: 0.7056824896 | FX74: 0.1266003183 | FY74: =NORMDIST(FY2,FY$33,FY$34,TRUE) -> 0.1990052238 | FZ74: 0.5729907167 | GA74: 0.931420184 | GB74: 0.618464255 | GC74: 0.8744678378 | GD74: 0.574432473 | GE74: 0.890533917 | GF74: 0.3989656054 | GG74: 0.9334779533 | GH74: 0.2133536156 | GI74: 0.8976842689 | GJ74: 0.3066618424 | GK74: 0.07180474241 | GL74: 0.1916048591 | GM74: =NORMDIST(GM2,GM$33,GM$34,TRUE) -> 0.8186042919 | GN74: 0.06571109833 | GO74: 0.7606757714 | GP74: 0.553657214 | GQ74: 0.8893742981 | GR74: 0.9251483905 | GS74: =NORMDIST(GS2,GS$33,GS$34,TRUE) -> 0.3585023864 | GT74: 0.6277371927 | GU74: 0.7510005272 | GV74: 0.2400686095 | GW74: 0.7587090648 | GX74: 0.7447248782 | GY74: 0.2256339591 | GZ74: =FT$72*FT74+FV$72*FV74+FX$72*FX74+FZ$72*FZ74+GB$72*GB74+GD$72*GD74+GF$72*GF74+GH$72*GH74+GJ$72*GJ74+GL$72*GL74+GN$72*GN74+GP$72*GP74+GR$72*GR74+GT$72*GT74+GV$72*GV74+GX$72*GX74 -> 13.14947708 | HA74: 26.02277426 | HB74: =SUMPRODUCT(FT$72:GY$72,FT74:GY74) -> 39.17225134 | HD74: =RANK(GZ74,GZ$73:GZ$104,0) -> 22 | HE74: 6 | HF74: 11
CO75: Bengals | CP75: 0.276841172 | CQ75: 0.9469724284 | CR75: =NORMDIST(CR3,CR$33,CR$34,TRUE) -> 0.2651181022 | CS75: =1-NORMDIST(CS3,CS$33,CS$34,TRUE) -> 0.183405558 | CT75: 0.4316818938 | CU75: 0.105261113 | CV75: 0.4799744545 | CW75: 0.5402316712 | CX75: 0.7416120719 | CY75: 0.656608485 | CZ75: 0.4070597472 | DA75: 0.2458912026 | DB75: 0.3789869044 | DC75: 0.9027076815 | DD75: 0.3889860612 | DE75: 0.8526988412 | DF75: 0.2860244337 | DG75: 0.9588063277 | DH75: 0.4845218704 | DI75: 0.70319267 | DJ75: 0.2840926876 | DK75: 0.9917364348 | DL75: 0.5890725157 | DM75: 0.8073417479 | DN75: 0.817596113 | DO75: 0.4476170642 | DP75: 0.3670825765 | DQ75: 0.6187055778 | DR75: 0.2279371575 | DS75: 0.6170168609 | DT75: 0.4626080466 | DU75: 0.5922640409 | DV75: 14.95457525 | DW75: 22.03216653 | DX75: 36.98674178 | DZ75: 18 | EA75: 14 | EB75: 14 | FS75: Bengals | FT75: 0.3402205151 | FU75: 0.9146413131 | FV75: 0.4238337478 | FW75: 0.2311606558 | FX75: 0.5097781419 | FY75: 0.1324005823 | FZ75: 0.5490787083 | GA75: 0.5344953493 | GB75: 0.7149459565 | GC75: 0.5804719589 | GD75: 0.5185209424 | GE75: 0.2505134277 | GF75: 0.4143720472 | GG75: 0.8848133989 | GH75: 0.4358533228 | GI75: 0.7815962038 | GJ75: 0.4451759274 | GK75: 0.9277733257 | GL75: 0.493489252 | GM75: 0.7033800377 | GN75: 0.4218386523 | GO75: 0.982002207 | GP75: 0.5562528101 | GQ75: 0.7864397307 | GR75: 0.7591492864 | GS75: 0.4316817978 | GT75: 0.2538065102 | GU75: 0.6982369056 | GV75: 0.1537270185 | GW75: 0.5735117408 | GX75: 0.3912406914 | GY75: 0.6567365576 | GZ75: 17.10699442 | HA75: 21.6513325 | HB75: 38.75832692 | HD75: 13 | HE75: 11 | HF75: 14
CO76: Bills | CP76: 0.7483257431 | CQ76: 0.1133204659 | CR76: 0.7997514366 | CS76: 0.3219645881 | CT76: 0.7054078537 | CU76: 0.2945921463 | CV76: 0.7537625541 | CW76: 0.03926606125 | CX76: 0.633921195 | CY76: 0.0379025421 | CZ76: 0.7041998111 | DA76: 0.3027452034 | DB76: 0.8179272447 | DC76: 0.01652922721 | DD76: 0.6823227214 | DE76: 0.1101090592 | DF76: 0.5328698776 | DG76: 0.5421628876 | DH76: 0.9258532086 | DI76: 0.3241985991 | DJ76: 0.8953712756 | DK76: 0.3369821639 | DL76: 0.69092898 | DM76: 0.01382509138 | DN76: 0.06492993195 | DO76: 0.4021183386 | DP76: 0.9071209546 | DQ76: 0.6570316955 | DR76: 0.6861946026 | DS76: 0.7747550157 | DT76: 0.4756636353 | DU76: 0.5547345345 | DV76: 25.75693743 | DW76: 8.202754609 | DX76: 33.95969204 | DZ76: 5 | EA76: 31 | EB76: 20 | FS76: Bills | FT76: 0.7993638077 | FU76: 0.3623925697 | FV76: 0.8198470803 | FW76: 0.6482857703 | FX76: 0.7085175159 | FY76: 0.421714096 | FZ76: 0.701830524 | GA76: 0.2042237744 | GB76: 0.6928458549 | GC76: 0.1353971086 | GD76: 0.6252271457 | GE76: 0.5858529352 | GF76: 0.7803927736 | GG76: 0.1323369515 | GH76: 0.7778225192 | GI76: 0.2058903467 | GJ76: 0.7216450687 | GK76: 0.521574897 | GL76: 0.8988722527 | GM76: 0.5037997306 | GN76: 0.9424999059 | GO76: 0.4058447482 | GP76: 0.6914569595 | GQ76: 0.06569967954 | GR76: 0.1034226824 | GS76: 0.4564187717 | GT76: 0.8838861732 | GU76: 0.843691 | GV76: 0.6193007123 | GW76: 0.7693951048 | GX76: 0.6182085429 | GY76: 0.4094372269 | GZ76: 26.48186638 | HA76: 13.71150681 | HB76: 40.19337319 | HD76: 4 | HE76: 25 | HF76: 9
CO77: Broncos | CP77: 0.05302757164 | CQ77: 0.723158828 | CR77: 0.816594442 | CS77: 0.7348818978 | CT77: 0.894738887 | CU77: 0.5683181062 | CV77: 0.4597683288 | CW77: 0.5200255455 | CX77: 0.343391515 | CY77: 0.2583879281 | CZ77: 0.7541087974 | DA77: 0.5929402528 | DB77: 0.09729231848 | DC77: 0.6210130956 | DD77: 0.1473011588 | DE77: 0.6110139388 | DF77: 0.04119367229 | DG77: 0.7139755663 | DH77: 0.29680733 | DI77: 0.5154781296 | DJ77: 0.008263565175 | DK77: 0.7159073124 | DL77: 0.1926582521 | DM77: 0.4109274843 | DN77: 0.5523829358 | DO77: 0.182403887 | DP77: 0.3812944222 | DQ77: 0.6329174235 | DR77: 0.3829831391 | DS77: 0.7720628425 | DT77: 0.4077359591 | DU77: 0.5373919534 | DV77: 13.74692693 | DW77: 20.8245182 | DX77: 34.57144513 | DZ77: 19 | EA77: 15 | EB77: 19 | FS77: Broncos | FT77: 0.07295382523 | FU77: 0.6947115348 | FV77: 0.8620495851 | FW77: 0.6812678863 | FX77: 0.8708744604 | FY77: 0.6024272813 | FZ77: 0.534498209 | GA77: 0.5125682853 | GB77: 0.4186778856 | GC77: 0.5060399986 | GD77: 0.8009807365 | GE77: 0.4413158727 | GF77: 0.1274327226 | GG77: 0.6815101255 | GH77: 0.1421266471 | GI77: 0.7080137287 | GJ77: 0.03936819681 | GK77: 0.7178038159 | GL77: 0.3104148758 | GM77: 0.4444794601 | GN77: 0.009396869453 | GO77: 0.679588346 | GP77: 0.2047226997 | GQ77: 0.5752562778 | GR77: 0.533738471 | GS77: 0.1427247057 | GT77: 0.2430732165 | GU77: 0.6224279236 | GV77: 0.4455057455 | GW77: 0.7765097378 | GX77: 0.4747432362 | GY77: 0.5700389733 | GZ77: 14.52987437 | HA77: 21.34042657 | HB77: 35.87030095 | HD77: 21 | HE77: 14 | HF77: 16
CO78: Browns | CP78: 0.2486463362 | CQ78: 0.3104992685 | CR78: 0.2901232822 | CS78: 0.6866616077 | CT78: 0.4316818938 | CU78: 0.105261113 | CV78: 0.250358965 | CW78: 0.6111060517 | CX78: 0.2330729733 | CY78: 0.4161035726 | CZ78: 0.2767076904 | DA78: 0.5766052274 | DB78: 0.3531526957 | DC78: 0.5297456326 | DD78: 0.1167876664 | DE78: 0.3893942753 | DF78: 0.2567701209 | DG78: 0.06861227377 | DH78: 0.29680733 | DI78: 0.70319267 | DJ78: 0.5839423331 | DK78: 0.3369821639 | DL78: 0.307233227 | DM78: 0.5999276429 | DN78: 0.2607817019 | DO78: 0.3071650427 | DP78: 0.4593608293 | DQ78: 0.06703202456 | DR78: 0.6016320542 | DS78: 0.06041230458 | DT78: 0.1524214458 | DU78: 0.9444071677 | DV78: 10.85995236 | DW78: 15.28180078 | DX78: 26.14175314 | DZ78: 26 | EA78: 22 | EB78: 27 | FS78: Browns | FT78: 0.3250755073 | FU78: 0.5019468699 | FV78: 0.1675983036 | FW78: 0.8791118182 | FX78: 0.3198001063 | FY78: 0.2097836283 | FZ78: 0.2828875147 | GA78: 0.772619675 | GB78: 0.3827807833 | GC78: 0.5909834349 | GD78: 0.2267252619 | GE78: 0.7316167059 | GF78: 0.427945936 | GG78: 0.702236014 | GH78: 0.1978123394 | GI78: 0.5380091229 | GJ78: 0.4462740026 | GK78: 0.1042080486 | GL78: 0.4576962342 | GM78: 0.7493991893 | GN78: 0.5329929973 | GO78: 0.4472397666 | GP78: 0.4509256724 | GQ78: 0.7158356204 | GR78: 0.3975297244 | GS78: 0.3987305777 | GT78: 0.7305932515 | GU78: 0.04027190323 | GV78: 0.7008307452 | GW78: 0.05651534791 | GX78: 0.1203205357 | GY78: 0.9647994695 | GZ78: 12.45230317 | HA78: 20.06595811 | HB78: 32.51826128 | HD78: 26 | HE78: 16 | HF78: 22
CO79: Buccaneers | CP79: 0.8157710152 | CQ79: 0.2559493793 | CR79: 0.7181077248 | CS79: 0.0007208866842 | CT79: 0.894738887 | CU79: 0.105261113 | CV79: 0.9196398972 | CW79: 0.063682855 | CX79: 0.7457012728 | CY79: 0.6612673447 | CZ79: 0.8162384274 | DA79: 0.0004928498315 | DB79: 0.909906341 | DC79: 0.4914147859 | DD79: 0.5272113875 | DE79: 0.7504686434 | DF79: 0.07840042713 | DG79: 0.6511546015 | DH79: 0.6758014009 | DI79: 0.1708561105 | DJ79: 0.8953712756 | DK79: 0.4160576669 | DL79: 0.8720729295 | DM79: 0.7814305499 | DN79: 0.8966129425 | DO79: 0.4693341445 | DP79: 0.4723837159 | DQ79: 0.288096657 | DR79: 0.8809939986 | DS79: 0.2650915824 | DT79: 0.6492125333 | DU79: 0.06088358301 | DV79: 26.75357401 | DW79: 11.55903024 | DX79: 38.31260425 | DZ79: 4 | EA79: 25 | EB79: 11 | FS79: Buccaneers | FT79: 0.8611579221 | FU79: 0.3956913478 | FV79: 0.7494042875 | FW79: 0.01001223361 | FX79: 0.8385360654 | FY79: 0.2193142495 | FZ79: 0.9290675326 | GA79: 0.270553459 | GB79: 0.7698202931 | GC79: 0.8150483032 | GD79: 0.8474247286 | GE79: 0.0132165837 | GF79: 0.9065915333 | GG79: 0.6853043853 | GH79: 0.6347402297 | GI79: 0.7635179053 | GJ79: 0.2700364669 | GK79: 0.4072787963 | GL79: 0.5842727731 | GM79: 0.4416903059 | GN79: 0.9079294461 | GO79: 0.3939326091 | GP79: 0.8501759612 | GQ79: 0.8684384338 | GR79: 0.8797963597 | GS79: 0.3809250962 | GT79: 0.4783126677 | GU79: 0.3834251466 | GV79: 0.8784700043 | GW79: 0.4178581315 | GX79: 0.5892563006 | GY79: 0.1295241775 | GZ79: 27.53072415 | HA79: 14.36972827 | HB79: 41.90045242 | HD79: 3 | HE79: 24 | HF79: 6
CO80: Cardinals | CP80: 0.1431594502 | CQ80: 0.8648228774 | CR80: 0.3111886443 | CS80: 0.4498114784 | CT80: 0.4316818938 | CU80: 0.2945921463 | CV80: 0.2169724511 | CW80: 0.9227990423 | CX80: 0.1466900033 | CY80: 0.6451854073 | CZ80: 0.3401355969 | DA80: 0.9389288902 | DB80: 0.22850771 | DC80: 0.871246505 | DD80: 0.177732504 | DE80: 0.5057565714 | DF80: 0.1893244354 | DG80: 0.562576523 | DH80: 0.1518801754 | DI80: 0.9782042714 | DJ80: 0.5839423331 | DK80: 0.2877864894 | DL80: 0.1753532792 | DM80: 0.81304339 | DN80: 0.144892486 | DO80: 0.2409520697 | DP80: 0.01074266479 | DQ80: 0.9858264755 | DR80: 0.07989466544 | DS80: 0.9954172917 | DT80: 0.9478111233 | DU80: 0.2525180147 | DV80: 8.947133408 | DW80: 23.94387761 | DX80: 32.89101101 | DZ80: 30 | EA80: 8 | EB80: 23 | FS80: Cardinals | FT80: 0.3719864514 | FU80: 0.6440075168 | FV80: 0.3372768277 | FW80: 0.3052433057 | FX80: 0.4879228823 | FY80: 0.3308390366 | FZ80: 0.3070478532 | GA80: 0.7548477809 | GB80: 0.2352969491 | GC80: 0.4698583635 | GD80: 0.4255457177 | GE80: 0.8798860992 | GF80: 0.3964278903 | GG80: 0.6040574888 | GH80: 0.2273384592 | GI80: 0.2480911028 | GJ80: 0.2185791579 | GK80: 0.468111486 | GL80: 0.3609296729 | GM80: 0.9099878779 | GN80: 0.7658411107 | GO80: 0.3524984325 | GP80: 0.2733322885 | GQ80: 0.5458309147 | GR80: 0.2238717191 | GS80: 0.2450515599 | GT80: 0.02796525826 | GU80: 0.9743530257 | GV80: 0.1624529069 | GW80: 0.9980669277 | GX80: 0.8642756521 | GY80: 0.4378155889 | GZ80: 12.59858518 | HA80: 19.45167649 | HB80: 32.05026168 | HD80: 24 | HE80: 17 | HF80: 24
CO81: Chargers | CP81: 0.6595370789 | CQ81: 0.4646752128 | CR81: 0.5138517453 | CS81: 0.628780951 | CT81: 0.4316818938 | CU81: 0.8117075093 | CV81: 0.52048931 | CW81: 0.2914277039 | CX81: 0.450725816 | CY81: 0.3560912416 | CZ81: 0.4904083796 | DA81: 0.3330122373 | DB81: 0.5739163066 | DC81: 0.4260836934 | DD81: 0.5762462542 | DE81: 0.1444439213 | DF81: 0.3653140046 | DG81: 0.6451969822 | DH81: 0.4845218704 | DI81: 0.70319267 | DJ81: 0.6339908295 | DK81: 0.5540435644 | DL81: 0.5533189929 | DM81: 0.3418656373 | DN81: 0.3683699074 | DO81: 0.3171203414 | DP81: 0.4267443925 | DQ81: 0.4070585429 | DR81: 0.2687317069 | DS81: 0.3459119879 | DT81: 0.8869358161 | DU81: 0.1003912358 | DV81: 18.42881891 | DW81: 16.74195832 | DX81: 35.17077723 | DZ81: 14 | EA81: 20 | EB81: 18 | FS81: Chargers | FT81: 0.5965578385 | FU81: 0.1274767718 | FV81: 0.3452018353 | FW81: 0.3870212153 | FX81: 0.3354797071 | FY81: 0.7391598801 | FZ81: 0.4192045772 | GA81: 0.1063148006 | GB81: 0.3769577076 | GC81: 0.1812693726 | GD81: 0.3457212652 | GE81: 0.1539734104 | GF81: 0.5084479192 | GG81: 0.1748566264 | GH81: 0.5761738839 | GI81: 0.05553675903 | GJ81: 0.365961786 | GK81: 0.4344306459 | GL81: 0.4283251962 | GM81: 0.4521688119 | GN81: 0.6956387382 | GO81: 0.4760894626 | GP81: 0.5349373847 | GQ81: 0.1471835095 | GR81: 0.2602695775 | GS81: 0.1772953206 | GT81: 0.3672149015 | GU81: 0.253663435 | GV81: 0.144231709 | GW81: 0.3171633715 | GX81: 0.8345588576 | GY81: 0.4682305513 | GZ81: 15.83476708 | HA81: 10.10804298 | HB81: 25.94281005 | HD81: 16 | HE81: 27 | HF81: 27
CO82: Chiefs | CP82: 0.1667928797 | CQ82: 0.05036293938 | CR82: 0.7553150584 | CS82: 0.2608487239 | CT82: 0.894738887 | CU82: 0.2945921463 | CV82: 0.1039699643 | CW82: 0.02737781445 | CX82: 0.08479950841 | CY82: 0.05276752423 | CZ82: 0.2226447017 | DA82: 0.2535617509 | DB82: 0.128753495 | DC82: 0.009924999441 | DD82: 0.1473011588 | DE82: 0.05056417842 | DF82: 0.3912511562 | DG82: 0.5776120161 | DH82: 0.1518801754 | DI82: 0.1708561105 | DJ82: 0.8953712756 | DK82: 0.1046287244 | DL82: 0.06604621047 | DM82: 0.01288877482 | DN82: 0.8661215956 | DO82: 0.4476170642 | DP82: 0.02933711272 | DQ82: 0.0208816694 | DR82: 0.02749106834 | DS82: 0.2882844708 | DT82: 0.9272328657 | DU82: 0.9135759992 | DV82: 12.7416089 | DW82: 6.07496458 | DX82: 18.81657348 | DZ82: 23 | EA82: 32 | EB82: 31 | FS82: Chiefs | FT82: 0.2692841446 | FU82: 0.07433857528 | FV82: 0.8272093539 | FW82: 0.2792578944 | FX82: 0.9310690184 | FY82: 0.3551130898 | FZ82: 0.1504084977 | GA82: 0.04579986542 | GB82: 0.0823520932 | GC82: 0.05733569844 | GD82: 0.3073086911 | GE82: 0.3047973288 | GF82: 0.1711370593 | GG82: 0.01891034282 | GH82: 0.1771245315 | GI82: 0.05532881143 | GJ82: 0.6368249786 | GK82: 0.6614018243 | GL82: 0.1810037183 | GM82: 0.2196618725 | GN82: 0.9584490448 | GO82: 0.08657056932 | GP82: 0.08251689024 | GQ82: 0.01958550082 | GR82: 0.8358774968 | GS82: 0.2260019963 | GT82: 0.05996317573 | GU82: 0.0413013357 | GV82: 0.08884165563 | GW82: 0.4218162119 | GX82: 0.9014567466 | GY82: 0.9345592844 | GZ82: 14.88918519 | HA82: 6.800897219 | HB82: 21.69008241 | HD82: 17 | HE82: 30 | HF82: 31
CO83: Colts | CP83: 0.76844578 | CQ83: 0.7563608661 | CR83: 0.6999109747 | CS83: 0.6999934094 | CT83: 0.4316818938 | CU83: 0.105261113 | CV83: 0.9135812097 | CW83: 0.6323495322 | CX83: 0.9693398013 | CY83: 0.3424090598 | CZ83: 0.5259761437 | DA83: 0.8092879672 | DB83: 0.9006448188 | DC83: 0.7012221434 | DD83: 0.7917444121 | DE83: 0.4380882674 | DF83: 0.5839427887 | DG83: 0.7375060043 | DH83: 0.6758014009 | DI83: 0.5154781296 | DJ83: 0.2840926876 | DK83: 0.4160576669 | DL83: 0.9887009756 | DM83: 0.2709838634 | DN83: 0.9089284198 | DO83: 0.1871933711 | DP83: 0.3757728558 | DQ83: 0.02791586655 | DR83: 0.0727725644 | DS83: 0.4185080606 | DT83: 0.8250182334 | DU83: 0.5668143068 | DV83: 25.19667355 | DW83: 18.80493482 | DX83: 44.00160837 | DZ83: 7 | EA83: 17 | EB83: 7 | FS83: Colts | FT83: 0.6137730548 | FU83: 0.780415522 | FV83: 0.4439929758 | FW83: 0.7142578791 | FX83: 0.359977819 | FY83: 0.1356910519 | FZ83: 0.7377452537 | GA83: 0.6987565423 | GB83: 0.8881318477 | GC83: 0.4405869557 | GD83: 0.3297883691 | GE83: 0.8157990179 | GF83: 0.7814989963 | GG83: 0.7539812797 | GH83: 0.5986745933 | GI83: 0.6377549684 | GJ83: 0.6354106593 | GK83: 0.6475438431 | GL83: 0.5146833885 | GM83: 0.6230831273 | GN83: 0.2093843068 | GO83: 0.3159243957 | GP83: 0.9546254249 | GQ83: 0.3833438399 | GR83: 0.7723193862 | GS83: 0.3955773479 | GT83: 0.4376545788 | GU83: 0.06281534221 | GV83: 0.1040849531 | GW83: 0.6048305936 | GX83: 0.7324893865 | GY83: 0.5627776195 | GZ83: 20.71504729 | HA83: 20.56020171 | HB83: 41.27524901 | HD83: 8 | HE83: 15 | HF83: 7
CO84: Cowboys | CP84: 0.7440506207 | CQ84: 0.1842289848 | CR84: 0.9992791133 | CS84: 0.2818922752 | CT84: 0.894738887 | CU84: 0.105261113 | CV84: 0.936317145 | CW84: 0.08036010283 | CX84: 0.3387326553 | CY84: 0.2542987272 | CZ84: 0.9995071502 | DA84: 0.1837615726 | DB84: 0.5085852141 | DC84: 0.090093659 | DD84: 0.2495313566 | DE84: 0.4727886125 | DF84: 0.3488453985 | DG84: 0.9215995729 | DH84: 0.8291438895 | DI84: 0.3241985991 | DJ84: 0.5839423331 | DK84: 0.1046287244 | DL84: 0.2185694501 | DM84: 0.1279270705 | DN84: 0.5306658555 | DO84: 0.1033870575 | DP84: 0.711903343 | DQ84: 0.5276162841 | DR84: 0.7349084176 | DS84: 0.1190060014 | DT84: 0.939116417 | DU84: 0.3507874667 | DV84: 24.22006322 | DW84: 9.025519443 | DX84: 33.24558266 | DZ84: 8 | EA84: 29 | EB84: 22 | FS84: Cowboys | FT84: 0.7119467667 | FU84: 0.04418946024 | FV84: 0.9994377066 | FW84: 0.149109022 | FX84: 0.916396734 | FY84: 0.0807625579 | FZ84: 0.9202691566 | GA84: 0.03584806468 | GB84: 0.3129238129 | GC84: 0.1724055597 | GD84: 0.9988862628 | GE84: 0.1042975282 | GF84: 0.4844979174 | GG84: 0.0298829636 | GH84: 0.2437201181 | GI84: 0.3278478558 | GJ84: 0.3279496478 | GK84: 0.9127604948 | GL84: 0.7899401772 | GM84: 0.1403631244 | GN84: 0.5775685309 | GO84: 0.06063807354 | GP84: 0.2209944265 | GQ84: 0.06255939266 | GR84: 0.4715179396 | GS84: 0.1475392522 | GT84: 0.6500855584 | GU84: 0.2524664689 | GV84: 0.5889740985 | GW84: 0.08744080318 | GX84: 0.9573887357 | GY84: 0.3170054026 | GZ84: 23.63637096 | HA84: 5.946704923 | HB84: 29.58307588 | HD84: 7 | HE84: 32 | HF84: 26
CO85: Dolphins | CP85: 0.276841172 | CQ85: 0.4646752128 | CR85: 0.3158938017 | CS85: 0.3301588757 | CT85: 0.05520886828 | CU85: 0.105261113 | CV85: 0.2953248653 | CW85: 0.623382292 | CX85: 0.4951852535 | CY85: 0.3985246106 | CZ85: 0.325153024 | DA85: 0.7639266318 | DB85: 0.3789869044 | DC85: 0.4260836934 | DD85: 0.5762462542 | DE85: 0.4727886125 | DF85: 0.04878727836 | DG85: 0.002766426823 | DH85: 0.29680733 | DI85: 0.5154781296 | DJ85: 0.2840926876 | DK85: 0.8627012738 | DL85: 0.3399499641 | DM85: 0.3418656373 | DN85: 0.7831267902 | DO85: 0.2568713166 | DP85: 0.7768983287 | DQ85: 0.7689825905 | DR85: 0.5749815976 | DS85: 0.8987474939 | DT85: 0.5549192766 | DU85: 0.6144043802 | DV85: 12.06593098 | DW85: 15.91125157 | DX85: 27.97718255 | DZ85: 24 | EA85: 21 | EB85: 25 | FS85: Dolphins | FT85: 0.2190010405 | FU85: 0.7270495656 | FV85: 0.2150333437 | FW85: 0.447332489 | FX85: 0.05603734769 | FY85: 0.1621941324 | FZ85: 0.1429355323 | GA85: 0.8249666261 | GB85: 0.3035935055 | GC85: 0.603718736 | GD85: 0.2588279872 | GE85: 0.8052611401 | GF85: 0.2225045564 | GG85: 0.7252534208 | GH85: 0.4018483043 | GI85: 0.6726936041 | GJ85: 0.1106395558 | GK85: 0.002837582058 | GL85: 0.1853616221 | GM85: 0.7195760267 | GN85: 0.3450369333 | GO85: 0.894022204 | GP85: 0.1579913777 | GQ85: 0.7106669153 | GR85: 0.8568426549 | GS85: 0.3485583506 | GT85: 0.7870945321 | GU85: 0.7719714729 | GV85: 0.6716048681 | GW85: 0.8857645391 | GX85: 0.5745567115 | GY85: 0.5459367549 | GZ85: 9.248192473 | HA85: 21.38660693 | HB85: 30.6347994 | HD85: 30 | HE85: 13 | HF85: 25
CO86: Eagles | CP86: 0.4954378585 | CQ86: 0.9333208068 | CR86: 0.1501228574 | CS86: 0.9993149038 | CT86: 0.4316818938 | CU86: 0.999905264 | CV86: 0.2474064811 | CW86: 0.9656375541 | CX86: 0.4869965844 | CY86: 0.8533099967 | CZ86: 0.2136665573 | DA86: 0.991050359 | DB86: 0.3531526957 | DC86: 0.871246505 | DD86: 0.5272113875 | DE86: 0.8289830356 | DF86: 0.9349078013 | DG86: 0.3531557444 | DH86: 0.6758014009 | DI86: 0.9940110667 | DJ86: 0.8953712756 | DK86: 0.7446327393 | DL86: 0.4000723571 | DM86: 0.7174535698 | DN86: 0.1878090796 | DO86: 0.1862153544 | DP86: 0.9130499058 | DQ86: 0.9386698699 | DR86: 0.9054928044 | DS86: 0.8409333943 | DT86: 0.3013248115 | DU86: 0.9073834665 | DV86: 16.48120822 | DW86: 30.66789899 | DX86: 47.14910721 | DZ86: 17 | EA86: 1 | EB86: 5 | FS86: Eagles | FT86: 0.6273318415 | FU86: 0.9197995776 | FV86: 0.3107182501 | FW86: 0.998899169 | FX86: 0.6156047833 | FY86: 0.9998666791 | FZ86: 0.3137865616 | GA86: 0.9689178399 | GB86: 0.5002671735 | GC86: 0.8473317784 | GD86: 0.3022870353 | GE86: 0.9915294846 | GF86: 0.4021206228 | GG86: 0.8564511146 | GH86: 0.6511239222 | GI86: 0.8168386796 | GJ86: 0.9359949478 | GK86: 0.2382496668 | GL86: 0.6136465699 | GM86: 0.99065451 | GN86: 0.9350593214 | GO86: 0.6783647002 | GP86: 0.4385965932 | GQ86: 0.7247075504 | GR86: 0.1141935085 | GS86: 0.2687645935 | GT86: 0.8803624525 | GU86: 0.9299413622 | GV86: 0.8644357904 | GW86: 0.9243979114 | GX86: 0.1856347854 | GY86: 0.8715013922 | GZ86: 19.01130827 | HA86: 30.26247167 | HB86: 49.27377994 | HD86: 11 | HE86: 1 | HF86: 2
CO87: Falcons | CP87: 0.5353247872 | CQ87: 0.723158828 | CR87: 0.6698411243 | CS87: 0.6841061983 | CT87: 0.894738887 | CU87: 0.9447911317 | CV87: 0.376617708 | CW87: 0.7046751347 | CX87: 0.6014753894 | CY87: 0.5048147465 | CZ87: 0.2360733682 | DA87: 0.674846976 | DB87: 0.5739163066 | DC87: 0.6210130956 | DD87: 0.5272113875 | DE87: 0.4237537458 | DF87: 0.9972335732 | DG87: 0.9512127216 | DH87: 0.4845218704 | DI87: 0.70319267 | DJ87: 0.1372987262 | DK87: 0.7159073124 | DL87: 0.6581343627 | DM87: 0.6600500359 | DN87: 0.7431286834 | DO87: 0.2168732098 | DP87: 0.2310174095 | DQ87: 0.2231016713 | DR87: 0.1012525061 | DS87: 0.4250184024 | DT87: 0.3855956198 | DU87: 0.4450807234 | DV87: 19.86784189 | DW87: 23.71316247 | DX87: 43.58100436 | DZ87: 12 | EA87: 9 | EB87: 8 | FS87: Falcons | FT87: 0.5795153999 | FU87: 0.8343989433 | FV87: 0.5478101655 | FW87: 0.6251475296 | FX87: 0.8424260604 | FY87: 0.9461935073 | FZ87: 0.3492321216 | GA87: 0.7680194673 | GB87: 0.762809649 | GC87: 0.6685925625 | GD87: 0.122634334 | GE87: 0.6147561864 | GF87: 0.6362050189 | GG87: 0.7759486817 | GH87: 0.6483534226 | GI87: 0.7275573049 | GJ87: 0.9979363108 | GK87: 0.9077786607 | GL87: 0.5074870819 | GM87: 0.7443646358 | GN87: 0.1181790844 | GO87: 0.8618696748 | GP87: 0.766417836 | GQ87: 0.8421748621 | GR87: 0.6331555727 | GS87: 0.3884907147 | GT87: 0.1916905202 | GU87: 0.4664904786 | GV87: 0.0870637579 | GW87: 0.4668173262 | GX87: 0.2589244976 | GY87: 0.6233136267 | GZ87: 19.93297846 | HA87: 26.66743277 | HB87: 46.60041124 | HD87: 10 | HE87: 3 | HF87: 5
CO88: Giants | CP88: 0.4527629853 | CQ88: 0.5417567967 | CR88: 0.7622524316 | CS88: 0.4758118698 | CT88: 0.4316818938 | CU88: 0.5683181062 | CV88: 0.7744052421 | CW88: 0.5515052258 | CX88: 0.9460741158 | CY88: 0.6730807331 | CZ88: 0.7054443608 | DA88: 0.3959831344 | DB88: 0.6248407429 | DC88: 0.5892929533 | DD88: 0.6106057247 | DE88: 0.2993580624 | DF88: 0.3619991975 | DG88: 0.4929256296 | DH88: 0.6758014009 | DI88: 0.3241985991 | DJ88: 0.0879573279 | DK88: 0.1396988997 | DL88: 0.7253150653 | DM88: 0.692766773 | DN88: 0.7765329434 | DO88: 0.3375915824 | DP88: 0.3148611101 | DQ88: 0.9946526554 | DR88: 0.2621674291 | DS88: 0.5245547388 | DT88: 0.9183734942 | DU88: 0.4572108403 | DV88: 21.59818522 | DW88: 17.81583008 | DX88: 39.4140153 | DZ88: 10 | EA88: 18 | EB88: 9 | FS88: Giants | FT88: 0.4861947521 | FU88: 0.46013358 | FV88: 0.7996636618 | FW88: 0.4676905664 | FX88: 0.2649115813 | FY88: 0.5886488772 | FZ88: 0.7604659763 | GA88: 0.6011984839 | GB88: 0.8576917689 | GC88: 0.7545239316 | GD88: 0.7897613848 | GE88: 0.3644221801 | GF88: 0.6114426953 | GG88: 0.6058003708 | GH88: 0.607013862 | GI88: 0.2774689308 | GJ88: 0.2697498542 | GK88: 0.328905442 | GL88: 0.6073630569 | GM88: 0.4397923941 | GN88: 0.1326645544 | GO88: 0.1580072939 | GP88: 0.5925713071 | GQ88: 0.7979763238 | GR88: 0.7239719189 | GS88: 0.384932352 | GT88: 0.2912608253 | GU88: 0.9788930667 | GV88: 0.286035586 | GW88: 0.3852666443 | GX88: 0.8791591189 | GY88: 0.4838468999 | GZ88: 20.65586955 | HA88: 17.87243155 | HB88: 38.5283011 | HD88: 9 | HE88: 21 | HF88: 15
CO89: Jaguars | CP89: 0.2436391339 | CQ89: 0.23155422 | CR89: 0.3000065906 | CS89: 0.3000890253 | CT89: 0.894738887 | CU89: 0.5683181062 | CV89: 0.3676504678 | CW89: 0.08641879027 | CX89: 0.6575909402 | CY89: 0.0306601987 | CZ89: 0.1907120328 | DA89: 0.4740238563 | DB89: 0.2987778566 | DC89: 0.0993551812 | DD89: 0.5619117326 | DE89: 0.2082555879 | DF89: 0.2624939957 | DG89: 0.4160572113 | DH89: =1-NORMDIST(DH17,DH$33,DH$34,TRUE) -> 0.4845218704 | DI89: 0.3241985991 | DJ89: 0.5839423331 | DK89: 0.7159073124 | DL89: 0.7290161366 | DM89: 0.0112990244 | DN89: =1-NORMDIST(DN17,DN$33,DN$34,TRUE) -> 0.8128066289 | DO89: 0.09107158018 | DP89: 0.9720841334 | DQ89: 0.6242271442 | DR89: 0.5814919394 | DS89: 0.9272274356 | DT89: 0.4331856932 | DU89: 0.1749817666 | DV89: 16.97415863 | DW89: 10.5824199 | DX89: 27.55657853 | DZ89: 16 | EA89: =RANK(DW89,DW$73:DW$104,0) -> 26 | EB89: =RANK(DX89,DX$73:DX$104,0) -> 26 | FS89: Jaguars | FT89: 0.2123768509 | FU89: 0.6049078472 | FV89: 0.3432483777 | FW89: =1-NORMDIST(FW17,FW$33,FW$34,TRUE) -> 0.5865372698 | FX89: 0.8684469011 | FY89: 0.6892580954 | FZ89: 0.2478292173 | GA89: 0.3516165426 | GB89: 0.3834947714 | GC89: 0.05902127658 | GD89: 0.2359626345 | GE89: 0.7764518078 | GF89: 0.1600905325 | GG89: 0.4174825879 | GH89: 0.4476100128 | GI89: 0.5375984587 | GJ89: 0.3464982461 | GK89: =1-NORMDIST(GK17,GK$33,GK$34,TRUE) -> 0.2675651134 | GL89: 0.3596692364 | GM89: 0.5963779473 | GN89: 0.615276973 | GO89: 0.86508066 | GP89: 0.3955531714 | GQ89: =1-NORMDIST(GQ17,GQ$33,GQ$34,TRUE) -> 0.06156005707 | GR89: 0.8336085642 | GS89: 0.2163281383 | GT89: 0.9654501727 | GU89: 0.7370668929 | GV89: 0.6181761176 | GW89: 0.8252289652 | GX89: 0.2871806968 | GY89: 0.2164080902 | GZ89: 14.65876294 | HA89: 17.75037975 | HB89: 32.40914269 | HD89: 20 | HE89: 22 | HF89: 23
CO90: Jets | CP90: 0.7407868446 | CQ90: 0.9135206889 | CR90: 0.816594442 | CS90: 0.8169935984 | CT90: =1-NORMDIST(CT18,CT$33,CT$34,TRUE) -> 0.7054078537 | CU90: 0.5683181062 | CV90: 0.936317145 | CW90: 0.8151083107 | CX90: 0.9276588001 | CY90: 0.6894815382 | CZ90: 0.8521638401 | DA90: 0.8786435267 | DB90: 0.7520168127 | DC90: 0.7671154511 | DD90: 0.9402310255 | DE90: 0.8102820805 | DF90: 0.2698722366 | DG90: 0.95193008 | DH90: 0.29680733 | DI90: 0.3241985991 | DJ90: 0.5839423331 | DK90: 0.9917364348 | DL90: 0.8720729295 | DM90: 0.5673548225 | DN90: 0.2638674269 | DO90: 0.4532063283 | DP90: 0.06801027309 | DQ90: 0.8536526336 | DR90: 0.6240436439 | DS90: 0.8298462132 | DT90: 0.682644332 | DU90: 0.4734445958 | DV90: 25.43721399 | DW90: 27.23547539 | DX90: 52.67268938 | DZ90: 6 | EA90: 2 | EB90: 3 | FS90: Jets | FT90: 0.7412694024 | FU90: 0.9582626273 | FV90: 0.7696464339 | FW90: 0.9273362525 | FX90: 0.6824174629 | FY90: =NORMDIST(FY18,FY$33,FY$34,TRUE) -> 0.531520062 | FZ90: 0.9170451546 | GA90: 0.9105952097 | GB90: 0.9425483815 | GC90: 0.7365165296 | GD90: 0.8126327022 | GE90: 0.9523824847 | GF90: 0.6852837818 | GG90: 0.8729149199 | GH90: 0.9506800334 | GI90: 0.8419735764 | GJ90: 0.4530104297 | GK90: 0.93721789 | GL90: 0.3323832383 | GM90: =NORMDIST(GM18,GM$33,GM$34,TRUE) -> 0.4348928625 | GN90: 0.4342528594 | GO90: 0.9897469996 | GP90: 0.8672734614 | GQ90: 0.6193297467 | GR90: 0.25173753 | GS90: =NORMDIST(GS18,GS$33,GS$34,TRUE) -> 0.4432605346 | GT90: 0.1384986765 | GU90: 0.8436507704 | GV90: 0.6650801152 | GW90: 0.6515118495 | GX90: 0.6360246391 | GY90: 0.5939475196 | GZ90: 25.14987815 | HA90: 28.91928261 | HB90: 54.06916076 | HD90: 5 | HE90: 2 | HF90: 1
CO91: Lions | CP91: 0.2326682016 | CQ91: 0.09020723844 | CR91: =NORMDIST(CR19,CR$33,CR$34,TRUE) -> 0.09211181125 | CS91: =1-NORMDIST(CS19,CS$33,CS$34,TRUE) -> 0.004831841479 | CT91: 0.1882924907 | CU91: 0.8117075093 | CV91: 0.1543504318 | CW91: 0.1041832728 | CX91: 0.1217090496 | CY91: 0.3984492016 | CZ91: 0.1542375575 | DA91: 0.02045633461 | DB91: 0.2032380194 | DC91: 0.1685787702 | DD91: 0.2799679026 | DE91: 0.01242602474 | DF91: 0.8742258072 | DG91: 0.06171391342 | DH91: 0.29680733 | DI91: 0.3241985991 | DJ91: 0.4288242481 | DK91: 0.4848228681 | DL91: 0.2511929503 | DM91: 0.5774369858 | DN91: 0.09947394299 | DO91: 0.2446084864 | DP91: 0.4782545031 | DQ91: 0.1708369912 | DR91: 0.02480320278 | DS91: 0.3874766826 | DT91: 0.6028178727 | DU91: 0.9961526313 | DV91: 8.977638956 | DW91: 8.666112951 | DX91: 17.64375191 | DZ91: 29 | EA91: 30 | EB91: 32 | FS91: Lions | FT91: 0.2366923819 | FU91: 0.282347159 | FV91: 0.1318332497 | FW91: 0.06257053491 | FX91: 0.344799868 | FY91: 0.818539244 | FZ91: 0.09810379405 | GA91: 0.3805470597 | GB91: 0.176132359 | GC91: 0.5615291882 | GD91: 0.1035171373 | GE91: 0.1484168318 | GF91: 0.172699482 | GG91: 0.3837208372 | GH91: 0.2768572425 | GI91: 0.03744363899 | GJ91: 0.9345929821 | GK91: 0.06997778599 | GL91: 0.2865181625 | GM91: 0.3873142549 | GN91: 0.5810315227 | GO91: 0.5465208718 | GP91: 0.2346598001 | GQ91: 0.7275757142 | GR91: 0.07562631567 | GS91: 0.2747379186 | GT91: 0.2940343911 | GU91: 0.3571750692 | GV91: 0.01525224189 | GW91: 0.4768483514 | GX91: 0.4488275529 | GY91: 0.9916240682 | GZ91: 9.561540383 | HA91: 12.76138272 | HB91: 22.32292311 | HD91: 29 | HE91: 26 | HF91: 30
CO92: Packers | CP92: 0.1491187091 | CQ92: 0.7746048876 | CR92: 0.4856098411 | CS92: 0.823266653 | CT92: 0.894738887 | CU92: 0.9447911317 | CV92: 0.1435470113 | CW92: 0.5569418644 | CX92: 0.2468214366 | CY92: 0.5743744826 | CZ92: 0.2003651782 | DA92: 0.5136104452 | DB92: 0.128753495 | DC92: 0.6681957608 | DD92: 0.2170240224 | DE92: 0.7999237851 | DF92: 0.9594474557 | DG92: 0.6561667882 | DH92: 0.29680733 | DI92: 0.8481198246 | DJ92: 0.2840926876 | DK92: 0.9120426721 | DL92: 0.1574953965 | DM92: 0.5774369858 | DN92: 0.4894473109 | DO92: 0.1448207302 | DP92: 0.25946145 | DQ92: 0.5276162841 | DR92: 0.2973611986 | DS92: 0.8580612914 | DT92: 0.7433866027 | DU92: 0.1072974629 | DV92: 12.75126702 | DW92: 25.00323897 | DX92: 37.754506 | DZ92: 22 | EA92: 6 | EB92: 12 | FS92: Packers | FT92: 0.1343010232 | FU92: 0.6440108324 | FV92: 0.3974670744 | FW92: 0.6791820168 | FX92: 0.8977352587 | FY92: 0.9026879533 | FZ92: 0.1154065242 | GA92: 0.4439501082 | GB92: 0.1970177915 | GC92: 0.4813183425 | GD92: 0.1832864598 | GE92: 0.4367999218 | GF92: 0.1000445008 | GG92: 0.5163474951 | GH92: 0.1680453508 | GI92: 0.7532874805 | GJ92: 0.927633613 | GK92: 0.7721757825 | GL92: 0.3321732558 | GM92: 0.7061767095 | GN92: 0.2065908518 | GO92: 0.8808105365 | GP92: 0.1417692372 | GQ92: 0.482809028 | GR92: 0.3902278682 | GS92: 0.1441743915 | GT92: 0.1917389612 | GU92: 0.6266802565 | GV92: 0.2778626198 | GW92: 0.8752039457 | GX92: 0.7256768778 | GY92: 0.08203676645 | GZ92: 11.51165187 | HA92: 22.28534287 | HB92: 33.79699474 | HD92: 27 | HE92: 10 | HF92: 20
CO93: Panthers | CP93: 0.06667919324 | CQ93: 0.5045621415 | CR93: 0.0006850962208 | CS93: 0.8498771426 | CT93: 9.473595437e-05 | CU93: 0.5683181062 | CV93: 0.03436244593 | CW93: 0.7525935189 | CX93: 0.1466900033 | CY93: 0.5130034156 | CZ93: 0.008949640954 | DA93: 0.7863334427 | DB93: 0.128753495 | DC93: 0.6468473043 | DD93: 0.1710169644 | DE93: 0.4727886125 | DF93: 0.6468442556 | DG93: 0.06509219873 | DH93: 0.005988933271 | DI93: 0.3241985991 | DJ93: 0.2553672607 | DK93: 0.1046287244 | DL93: 0.2825464302 | DM93: 0.5999276429 | DN93: 0.8137846456 | DO93: 0.8121909204 | DP93: 0.06133013009 | DQ93: 0.08695009419 | DR93: 0.1590666057 | DS93: 0.09450719564 | DT93: 0.09261653353 | DU93: 0.6986751885 | DV93: 5.111194467 | DW93: 19.29788523 | DX93: 24.4090797 | DZ93: 32 | EA93: 16 | EB93: 28 | FS93: Panthers | FT93: 0.08374952363 | FU93: 0.5152343082 | FV93: 0.002570366207 | FW93: 0.952084885 | FX93: 0.0006173607263 | FY93: 0.6460537975 | FZ93: 0.06300381906 | GA93: 0.8305787185 | GB93: 0.1516089316 | GC93: 0.3520566533 | GD93: 0.02212009638 | GE93: 0.9288119532 | GF93: 0.1593871954 | GG93: 0.5947491839 | GH93: 0.2315233859 | GI93: 0.4171800349 | GJ93: 0.5198216719 | GK93: 0.06940890628 | GL93: 0.01764434311 | GM93: 0.3151475343 | GN93: 0.2443232539 | GO93: 0.07704168651 | GP93: 0.3294321322 | GQ93: 0.4824177812 | GR93: 0.801818889 | GS93: 0.6302577717 | GT93: 0.1042548329 | GU93: 0.08724100371 | GV93: 0.1601211549 | GW93: 0.08522878955 | GX93: 0.09466864632 | GY93: 0.7148634135 | GZ93: 5.376607801 | HA93: 19.4193178 | HB93: 24.7959256 | HD93: 32 | HE93: 18 | HF93: 28
CO94: Patriots | CP94: 0.8866795341 | CQ94: 0.2516742569 | CR94: 0.6780354119 | CS94: 0.2002485634 | CT94: 0.7054078537 | CU94: 0.2945921463 | CV94: 0.9607339387 | CW94: 0.2462374459 | CX94: 0.9620974579 | CY94: 0.366078805 | CZ94: 0.6972547966 | DA94: 0.2958001889 | DB94: 0.9834707728 | DC94: 0.1820727553 | DD94: 0.8898909408 | DE94: 0.3176772786 | DF94: 0.4578371124 | DG94: 0.4671301224 | DH94: 0.6758014009 | DI94: 0.07414679136 | DJ94: 0.6630178361 | DK94: 0.1046287244 | DL94: 0.9861749086 | DM94: 0.30907102 | DN94: 0.5978816614 | DO94: 0.9350700681 | DP94: 0.3429683045 | DQ94: 0.09287904542 | DR94: 0.2252449843 | DS94: 0.3138053974 | DT94: 0.4452654655 | DU94: 0.5243363647 | DV94: 27.57633885 | DW94: 10.02215602 | DX94: 37.59849487 | DZ94: 2 | EA94: 28 | EB94: 13 | FS94: Patriots | FT94: 0.9071472058 | FU94: 0.07782213299 | FV94: 0.8887869595 | FW94: 0.09369591436 | FX94: 0.7595320949 | FY94: 0.2690813491 | FZ94: 0.9588452307 | GA94: 0.09847149168 | GB94: 0.9363490456 | GC94: 0.2482260267 | GD94: 0.7632959384 | GE94: 0.1706276252 | GF94: 0.9810277868 | GG94: 0.05866867901 | GH94: 0.8624002173 | GI94: 0.09911436361 | GJ94: 0.5347086354 | GK94: 0.5217254903 | GL94: 0.6651140386 | GM94: 0.03308805531 | GN94: 0.640323134 | GO94: 0.04178665101 | GP94: 0.9712582451 | GQ94: 0.1345584053 | GR94: 0.6945133368 | GS94: 0.8752937128 | GT94: 0.3397433323 | GU94: 0.08416302075 | GV94: 0.2074305504 | GW94: 0.3259931961 | GX94: 0.4641989341 | GY94: 0.7482532565 | GZ94: 28.86327013 | HA94: 6.438859741 | HB94: 35.30212987 | HD94: 1 | HE94: 31 | HF94: 17
CO95: Raiders | CP95: 0.5353247872 | CQ95: 0.3404629211 | CR95: 0.371219049 | CS95: 0.4861482547 | CT95: 0.1882924907 | CU95: 0.5683181062 | CV95: 0.7085722961 | CW95: 0.47951069 | CX95: 0.6439087584 | CY95: 0.549274184 | CZ95: 0.6669877627 | DA95: 0.5095916204 | DB95: 0.5739163066 | DC95: 0.4260836934 | DD95: 0.8555560787 | DE95: 0.4237537458 | DF95: 0.3548030178 | DG95: 0.6346859954 | DH95: 0.29680733 | DI95: 0.5154781296 | DJ95: 0.4459564356 | DK95: 0.3660091705 | DL95: 0.6581343627 | DM95: 0.4466810071 | DN95: 0.6828796586 | DO95: 0.6316300926 | DP95: 0.5929414571 | DQ95: 0.5732556075 | DR95: 0.6540880121 | DS95: 0.7312682931 | DT95: 0.8996087642 | DU95: 0.1130641839 | DV95: 19.03713513 | DW95: 17.35027454 | DX95: 36.38740967 | DZ95: 13 | EA95: 19 | EB95: 15 | FS95: Raiders | FT95: 0.354961532 | FU95: 0.6231971339 | FV95: 0.384909905 | FW95: 0.8458501376 | FX95: 0.157981812 | FY95: 0.7282348616 | FZ95: 0.4905887305 | GA95: 0.7899346602 | GB95: 0.3631894043 | GC95: 0.7677652433 | GD95: 0.6333329111 | GE95: 0.7307558152 | GF95: 0.28085618 | GG95: 0.7451047004 | GH95: 0.8006732914 | GI95: 0.5864987208 | GJ95: 0.4126730212 | GK95: 0.6427668378 | GL95: 0.2345602511 | GM95: 0.7606153071 | GN95: 0.3295484909 | GO95: 0.4753212021 | GP95: 0.3505881583 | GQ95: 0.6879451694 | GR95: 0.6444653044 | GS95: 0.7726654618 | GT95: 0.3743578428 | GU95: 0.3552969875 | GV95: 0.5754662863 | GW95: 0.3941231558 | GX95: 0.8757933327 | GY95: 0.1330572023 | GZ95: 14.74623842 | HA95: 24.78150031 | HB95: 39.52773874 | HD95: 19 | HE95: 7 | HF95: 10
CO96: Rams | CP96: 0.0491610896 | CQ96: 0.1842289848 | CR96: 0.3545300193 | CS96: 0.2977295092 | CT96: 0.7054078537 | CU96: 0.8117075093 | CV96: 0.1924401461 | CW96: 0.1624587846 | CX96: 0.2740174817 | CY96: 0.4666018315 | CZ96: 0.2388625368 | DA96: 0.1393386233 | DB96: 0.1632453154 | DC96: 0.2027196684 | DD96: 0.03889279173 | DE96: 0.1444439213 | DF96: 0.3589485298 | DG96: 0.8008464785 | DH96: 0.1518801754 | DI96: 0.5154781296 | DJ96: 0.008263565175 | DK96: 0.4848228681 | DL96: 0.225347592 | DM96: 0.3701511543 | DN96: 0.06148238973 | DO96: 0.1421216892 | DP96: 0.5483638492 | DQ96: 0.2661274903 | DR96: 0.5481425148 | DS96: 0.2663668997 | DT96: 0.9240010541 | DU96: 0.05384399439 | DV96: 9.098706684 | DW96: 12.67257418 | DX96: 21.77128086 | DZ96: 28 | EA96: 24 | EB96: 29 | FS96: Rams | FT96: 0.03904441158 | FU96: 0.09649547329 | FV96: 0.1874037862 | FW96: 0.1651684727 | FX96: 0.6046946134 | FY96: 0.7539195031 | FZ96: 0.1399800361 | GA96: 0.08992020507 | GB96: 0.2108866417 | GC96: 0.2535331782 | GD96: 0.1507527012 | GE96: 0.0591895013 | GF96: 0.1523764534 | GG96: 0.1556870066 | GH96: 0.02988513704 | GI96: 0.06381855075 | GJ96: 0.3849239839 | GK96: 0.7082796251 | GL96: 0.2079120678 | GM96: 0.3590419127 | GN96: 0.01602108705 | GO96: 0.3249604336 | GP96: 0.2288277666 | GQ96: 0.3501347525 | GR96: 0.120519617 | GS96: 0.1357362452 | GT96: 0.6170066169 | GU96: 0.2077302243 | GV96: 0.5888618644 | GW96: 0.1675634127 | GX96: 0.8124991964 | GY96: 0.07669161095 | GZ96: 7.738957171 | HA96: 9.242907042 | HB96: 16.98186421 | HD96: 31 | HE96: 28 | HF96: 32
CO97: Ravens | CP97: 0.9496370606 | CQ97: 0.8332071203 | CR97: 0.7391512761 | CS97: 0.2446849416 | CT97: 0.7054078537 | CU97: 0.105261113 | CV97: 0.9726221855 | CW97: 0.8960300357 | CX97: 0.9472324758 | CY97: 0.9152004916 | CZ97: 0.7464382491 | DA97: 0.7773552983 | DB97: 0.9900750006 | DC97: 0.871246505 | DD97: 0.9494358216 | DE97: 0.8526988412 | DF97: 0.4223879839 | DG97: 0.6087488438 | DH97: 0.8291438895 | DI97: 0.8481198246 | DJ97: 0.8953712756 | DK97: 0.1046287244 | DL97: 0.9871112252 | DM97: 0.9339537895 | DN97: 0.5523829358 | DO97: 0.1338784044 | DP97: 0.9791183306 | DQ97: 0.9706628873 | DR97: 0.7117155292 | DS97: 0.9725089317 | DT97: 0.08642400077 | DU97: 0.0727671343 | DV97: 29.70412887 | DW97: 23.03748456 | DX97: 52.74161343 | DZ97: 1 | EA97: 10 | EB97: 2 | FS97: Ravens | FT97: 0.9511167852 | FU97: 0.5623182967 | FV97: 0.6746713162 | FW97: 0.1531868436 | FX97: 0.735878751 | FY97: 0.1014197298 | FZ97: 0.9517416593 | GA97: 0.7614352948 | GB97: 0.9509393706 | GC97: 0.7011497919 | GD97: 0.567748893 | GE97: 0.6648956895 | GF97: 0.9908709479 | GG97: 0.6531796695 | GH97: 0.9488300122 | GI97: 0.6082401169 | GJ97: 0.3992962247 | GK97: 0.4908169107 | GL97: 0.9031865514 | GM97: 0.6900376732 | GN97: 0.8271274085 | GO97: 0.1195470388 | GP97: 0.9908344943 | GQ97: 0.8250961772 | GR97: 0.4920034005 | GS97: 0.1893702562 | GT97: 0.9315671363 | GU97: 0.9349140243 | GV97: 0.5274584838 | GW97: 0.9779642541 | GX97: 0.05500308513 | GY97: 0.1885082219 | GZ97: 28.76914106 | HA97: 18.38073256 | HB97: 47.14987362 | HD97: 2 | HE97: 20 | HF97: 4
CO98: Redskins | CP98: 0.4582432033 | CQ98: 0.5472370147 | CR98: 0.5241881302 | CS98: 0.2377475684 | CT98: 0.4316818938 | CU98: 0.5683181062 | CV98: 0.4484947742 | CW98: 0.2255947579 | CX98: 0.3269192669 | CY98: 0.05392588415 | CZ98: 0.6040168656 | DA98: 0.2945556392 | DB98: 0.4107070467 | DC98: 0.3751592571 | DD98: 0.7006419376 | DE98: 0.3893942753 | DF98: 0.5070743704 | DG98: 0.6380008025 | DH98: 0.6758014009 | DI98: 0.3241985991 | DJ98: 0.8603011003 | DK98: 0.9120426721 | DL98: 0.307233227 | DM98: 0.2746849347 | DN98: 0.6624084176 | DO98: 0.2234670566 | DP98: 0.005347344627 | DQ98: 0.6851388899 | DR98: 0.4754452612 | DS98: 0.7378325709 | DT98: 0.5427891597 | DU98: 0.08162650576 | DV98: 17.96326338 | DW98: 14.18090823 | DX98: 32.14417161 | DZ98: 15 | EA98: 23 | EB98: 24 | FS98: Redskins | FT98: 0.3741053895 | FU98: 0.6542393945 | FV98: 0.4791681701 | FW98: 0.4888795233 | FX98: 0.4051220224 | FY98: 0.5241875627 | FZ98: 0.4700986535 | GA98: 0.3744352586 | GB98: 0.3584023977 | GC98: 0.08663272109 | GD98: 0.6377504875 | GE98: 0.4983066373 | GF98: 0.3363578705 | GG98: 0.4982140244 | GH98: 0.6602804108 | GI98: 0.5300662089 | GJ98: 0.3620680245 | GK98: 0.6717488502 | GL98: 0.6706042422 | GM98: 0.4163042504 | GN98: 0.7388552264 | GO98: 0.9022305979 | GP98: 0.3357966511 | GQ98: 0.3105755627 | GR98: 0.587434019 | GS98: 0.2028576074 | GT98: 0.01004451877 | GU98: 0.6497159421 | GV98: 0.4732222002 | GW98: 0.6704451105 | GX98: 0.6224173604 | GY98: 0.03403311648 | GZ98: 16.73944511 | HA98: 17.43882866 | HB98: 34.17827377 | HD98: 14 | HE98: 23 | HF98: 19
CO99: Saints | CP99: 0.9097927616 | CQ99: 0.7673317984 | CR99: 0.9951681585 | CS99: 0.9078881887 | CT99: 0.1882924907 | CU99: 0.8117075093 | CV99: 0.8958167272 | CW99: 0.8456495682 | CX99: 0.6015507984 | CY99: 0.8782909504 | CZ99: 0.9795436654 | DA99: 0.8457624425 | DB99: 0.8314212298 | DC99: 0.7967619806 | DD99: 0.9875739753 | DE99: 0.7200320974 | DF99: 0.9382860866 | DG99: 0.1257741928 | DH99: 0.6758014009 | DI99: 0.70319267 | DJ99: 0.5151771319 | DK99: 0.5711757519 | DL99: 0.4225630142 | DM99: 0.7488070497 | DN99: 0.7553915136 | DO99: 0.900526057 | DP99: 0.8291630088 | DQ99: 0.5217454969 | DR99: 0.6125233174 | DS99: 0.9751967972 | DT99: 0.003847368726 | DU99: 0.3971821273 | DV99: 27.1129805 | DW99: 26.8014545 | DX99: 53.914435 | DZ99: 3 | EA99: 4 | EB99: 1 | FS99: Saints | FT99: 0.7997491495 | FU99: 0.6212480811 | FV99: 0.9501399246 | FW99: 0.6417992162 | FX99: 0.1411553986 | FY99: 0.606135869 | FZ99: 0.7608885401 | GA99: 0.7426586054 | GB99: 0.6305604581 | GC99: 0.8233959108 | GD99: 0.8844624751 | GE99: 0.684931925 | GF99: 0.7558512843 | GG99: 0.7340119664 | GH99: 0.9814952135 | GI99: 0.5843162312 | GJ99: 0.7447716678 | GK99: 0.05337394712 | GL99: 0.5767974155 | GM99: 0.6727648412 | GN99: 0.5210365896 | GO99: 0.4979627763 | GP99: 0.431168456 | GQ99: 0.7662164189 | GR99: 0.8062632631 | GS99: 0.9331357659 | GT99: 0.8269612491 | GU99: 0.5530508675 | GV99: 0.5230453826 | GW99: 0.9740390008 | GX99: 0.002803984776 | GY99: 0.367473892 | GZ99: 24.9326195 | HA99: 22.7998361 | HB99: 47.7324556 | HD99: 6 | HE99: 8 | HF99: 3
CO100: Seahawks | CP100: 0.8157710152 | CQ100: 0.9508389104 | CR100: 0.7022704908 | CS100: 0.6454699807 | CT100: 0.1882924907 | CU100: 0.2945921463 | CV100: 0.8375412154 | CW100: 0.8075598539 | CX100: 0.5333981685 | CY100: 0.7259825183 | CZ100: 0.8606613767 | DA100: 0.7611374632 | DB100: 0.7972803316 | DC100: 0.8367546846 | DD100: 0.8555560787 | DE100: 0.9611072083 | DF100: 0.1991535215 | DG100: 0.6410514702 | DH100: 0.4845218704 | DI100: 0.8481198246 | DJ100: 0.5151771319 | DK100: 0.9917364348 | DL100: 0.6298488457 | DM100: 0.774652408 | DN100: 0.8578783108 | DO100: 0.9385176103 | DP100: 0.7338725097 | DQ100: 0.4516361508 | DR100: 0.7336331003 | DS100: 0.4518574852 | DT100: 0.9461560056 | DU100: 0.0759989459 | DV100: 23.10651928 | DW100: 26.68038677 | DX100: 49.78690605 | DZ100: 9 | EA100: 5 | EB100: 4 | FS100: =A28 -> Seahawks | FT100: 0.6687237708 | FU100: 0.8184296907 | FV100: 0.4233554748 | FW100: 0.2967191912 | FX100: 0.09674012269 | FY100: 0.2123024995 | FZ100: 0.6105700398 | GA100: 0.6650397973 | GB100: 0.3255029743 | GC100: 0.7025081638 | GD100: 0.6964094572 | GE100: 0.4886098282 | GF100: 0.596856983 | GG100: 0.7606899558 | GH100: 0.7463914944 | GI100: 0.8976029275 | GJ100: 0.3470292564 | GK100: 0.4876592578 | GL100: 0.3621434929 | GM100: 0.8521539631 | GN100: 0.4058404451 | GO100: 0.9503278624 | GP100: 0.4449591072 | GQ100: 0.7937366246 | GR100: 0.746753041 | GS100: 0.9404490323 | GT100: 0.711002797 | GU100: 0.4704680112 | GV100: 0.6555518603 | GW100: 0.5448051542 | GX100: 0.9377121198 | GY100: 0.1871054699 | GZ100: 17.94719387 | HA100: 22.61186867 | HB100: 40.55906255 | HD100: 12 | HE100: 9 | HF100: 8
CO101: =A29 -> Steelers | CP101: 0.2620467236 | CQ101: 0.7110359689 | CR101: 0.4895457809 | CS101: 0.4450410057 | CT101: 0.1882924907 | CU101: 0.5683181062 | CV101: 0.460078541 | CW101: 0.5749810952 | CX101: 0.5857120131 | CY101: 0.6875609483 | CZ101: 0.4858811404 | DA101: 0.46296109 | DB101: 0.3838200184 | DC101: 0.5892929533 | DD101: 0.2170240224 | DE101: 0.7319485981 | DF101: 0.4751165105 | DG101: 0.9705885507 | DH101: 0.29680733 | DI101: 0.3241985991 | DJ101: 0.2028085862 | DK101: 0.8809013584 | DL101: 0.4529351193 | DM101: 0.6628274245 | DN101: 0.4675940249 | DO101: 0.2015528738 | DP101: 0.0094389217 | DQ101: 0.9678708421 | DR101: 0.0211482708 | DS101: 0.7066218045 | DT101: 0.6668890814 | DU101: 0.2452340145 | DV101: 13.18118184 | DW101: 22.1055859 | DX101: 35.28676774 | DZ101: 21 | EA101: 13 | EB101: 17 | FS101: Steelers | FT101: 0.2379855115 | FU101: 0.6942766092 | FV101: 0.4489757745 | FW101: 0.3732668168 | FX101: 0.1868309122 | FY101: 0.4752296487 | FZ101: 0.3618645321 | GA101: 0.6476412702 | GB101: 0.5334151423 | GC101: 0.5928803434 | GD101: 0.378032164 | GE101: 0.6114712572 | GF101: 0.3491003011 | GG101: 0.5396674974 | GH101: 0.1670182286 | GI101: 0.7737386999 | GJ101: 0.3748060335 | GK101: 0.9292065861 | GL101: 0.2417315253 | GM101: 0.311722688 | GN101: 0.1810105292 | GO101: 0.8595319672 | GP101: 0.4312356317 | GQ101: 0.6173571055 | GR101: 0.4352880085 | GS101: 0.1688421276 | GT101: 0.007316851709 | GU101: 0.9627123683 | GV101: 0.007861360713 | GW101: 0.9338104597 | GX101: 0.5796256106 | GY101: 0.3102285751 | GZ101: 11.45884755 | HA101: 21.64212182 | HB101: 33.10096937 | HD101: 28 | HE101: 12 | HF101: 21
CO102: Texans | CP102: 0.08647931112 | CQ102: 0.2592131554 | CR102: 0.1830064016 | CS102: 0.183405558 | CT102: 0.4316818938 | CU102: 0.2945921463 | CV102: 0.1848916893 | CW102: 0.063682855 | CX102: 0.3105184618 | CY102: 0.07234119989 | CZ102: 0.1213564733 | DA102: 0.1478361599 | DB102: 0.2328845489 | DC102: 0.2479831873 | DD102: 0.1897179195 | DE102: 0.05976897451 | DF102: 0.04806991996 | DG102: 0.7301277634 | DH102: 0.6758014009 | DI102: 0.70319267 | DJ102: 0.008263565175 | DK102: 0.4160576669 | DL102: 0.4326451775 | DM102: 0.1279270705 | DN102: 0.5467936717 | DO102: 0.7361325731 | DP102: 0.1463473664 | DQ102: 0.9319897269 | DR102: 0.1701537868 | DS102: 0.3759563561 | DT102: 0.5265554042 | DU102: 0.317355668 | DV102: 8.543618068 | DW102: 10.34187946 | DX102: 18.88549753 | DZ102: 31 | EA102: 27 | EB102: 30 | FS102: Texans | FT102: 0.4066616955 | FU102: 0.1623802181 | FV102: 0.4217899642 | FW102: 0.09162682207 | FX102: 0.4619386036 | FY102: 0.2702135092 | FZ102: 0.4439996086 | GA102: 0.03501017731 | GB102: 0.4031775927 | GC102: 0.08415278875 | GD102: 0.4128216448 | GE102: 0.08811048542 | GF102: 0.469225258 | GG102: 0.1570895229 | GH102: 0.4285261437 | GI102: 0.05901562245 | GJ102: 0.08555059858 | GK102: 0.8477102211 | GL102: 0.826896873 | GM102: 0.4773750083 | GN102: 0.04082584766 | GO102: 0.3373135711 | GP102: 0.5693489686 | GQ102: 0.09538774869 | GR102: 0.4887977264 | GS102: 0.8305209188 | GT102: 0.3507925769 | GU102: 0.9004434709 | GV102: 0.2761093639 | GW102: 0.4332117359 | GX102: 0.5300729082 | GY102: 0.3738885545 | GZ102: 14.79559902 | HA102: 8.792757905 | HB102: 23.58835692 | HD102: 18 | HE102: 29 | HF102: 29
CO103: Titans | CP103: 0.2889640311 | CQ103: 0.7379532764 | CR103: 0.5549589943 | CS103: 0.5104542191 | CT103: 0.4316818938 | CU103: 0.8117075093 | CV103: 0.4250189048 | CW103: 0.539921459 | CX103: 0.3124390517 | CY103: 0.4142879869 | CZ103: 0.53703891 | DA103: 0.5141188596 | DB103: 0.4107070467 | DC103: 0.6161799816 | DD103: 0.2680514019 | DE103: 0.7829759776 | DF103: 0.02941144933 | DG103: 0.5248834895 | DH103: 0.6758014009 | DI103: 0.70319267 | DJ103: 0.1190986416 | DK103: 0.7971914138 | DL103: 0.3371725755 | DM103: 0.5470648807 | DN103: 0.7984471262 | DO103: 0.5324059751 | DP103: 0.03212915794 | DQ103: 0.9905610783 | DR103: 0.2933781955 | DS103: 0.9788517292 | DT103: 0.7547659855 | DU103: 0.3331109186 | DV103: 13.67350755 | DW103: 22.59791161 | DX103: 36.27141917 | DZ103: 20 | EA103: 12 | EB103: 16 | FS103: =A31 -> Titans | FT103: 0.2936671436 | FU103: 0.8165507375 | FV103: 0.4846931824 | FW103: 0.6688666409 | FX103: 0.333301785 | FY103: 0.8345699658 | FZ103: 0.4056010711 | GA103: 0.7467479222 | GB103: 0.3161601491 | GC103: 0.6789304602 | GD103: 0.5185628099 | GE103: 0.6808611024 | GF103: 0.4061758006 | GG103: 0.79282311 | GH103: 0.1819031624 | GI103: 0.8277159095 | GJ103: 0.07719214491 | GK103: 0.4402719893 | GL103: 0.5865515257 | GM103: 0.8476871596 | GN103: 0.1669711859 | GO103: 0.7304194362 | GP103: 0.29221636 | GQ103: 0.6862244649 | GR103: 0.8444842433 | GS103: 0.5667335872 | GT103: 0.06661019997 | GU103: 0.9878248668 | GV103: 0.4358367605 | GW103: 0.9762219863 | GX103: 0.7511893667 | GY103: 0.3114529253 | GZ103: 12.87074958 | HA103: 26.29109279 | HB103: 39.16184237 | HD103: 23 | HE103: 4 | HF103: 12
CO104: =A32 -> Vikings | CP104: 0.6895007315 | CQ104: 0.7513536638 | CR104: 0.3133383923 | CS104: 0.7098767178 | CT104: 0.894738887 | CU104: 0.5683181062 | CV104: 0.3888939483 | CW104: 0.749641035 | CX104: 0.5838964274 | CY104: 0.7669270267 | CZ104: 0.4233947726 | DA104: 0.7232923096 | DB104: 0.4702543674 | DC104: 0.6468473043 | DD104: 0.6106057247 | DE104: 0.8832123336 | DF104: 0.9313877262 | DG104: 0.7432298791 | DH104: 0.29680733 | DI104: 0.70319267 | DJ104: 0.6630178361 | DK104: 0.4160576669 | DL104: 0.4000723571 | DM104: 0.692766773 | DN104: 0.6928349573 | DO104: 0.7392182981 | DP104: 0.9329679754 | DQ104: 0.5406391707 | DR104: 0.9395876954 | DS104: 0.3983679458 | DT104: 0.05559283233 | DU104: 0.8475785542 | DV104: 20.49729268 | DW104: 24.9191411 | DX104: 45.41643377 | DZ104: =RANK(DV104,DV$73:DV$104,0) -> 11 | EA104: 7 | EB104: 6 | FS104: Vikings | FT104: 0.5888801525 | FU104: 0.4014259344 | FV104: 0.1356272843 | FW104: 0.3254163751 | FX104: 0.8182659429 | FY104: 0.5072893104 | FZ104: 0.1646124569 | GA104: 0.4995174014 | GB104: 0.4947305922 | GC104: 0.6928997252 | GD104: 0.2098773116 | GE104: 0.377742798 | GF104: 0.3076391319 | GG104: 0.4125012686 | GH104: 0.5732307647 | GI104: 0.7503833054 | GJ104: 0.9677268304 | GK104: 0.7433706662 | GL104: 0.2070820464 | GM104: 0.6178373312 | GN104: 0.6878420166 | GO104: 0.3354462982 | GP104: 0.2596958401 | GQ104: 0.6095063736 | GR104: 0.6157148849 | GS104: 0.8115373722 | GT104: 0.8534313928 | GU104: 0.4804326399 | GV104: 0.8948555022 | GW104: 0.3952653415 | GX104: 0.07638436109 | GY104: 0.8672831094 | GZ104: 16.62926587 | HA104: 18.50335658 | HB104: 35.13262245 | HD104: =RANK(GZ104,GZ$73:GZ$104,0) -> 15 | HE104: 19 | HF104: 18

Sheet Week 2 (hidden)
A1: 49ers | B1: Seahawks | C1: 2 | D1: 23 | E1: 10 | G1: Hill | H1: 1 | I1: 16 | J1: 12 | K1: 123 | L1: 19 | M1: 27 | N1: 0 | O1: 256 | P1: 29 | Q1: 2 | R1: 5 | S1: 15 | T1: 0 | U1: 0 | V1: 0 | W1: 0 | X1: 4 | Y1: 21 | Z1: 6 | AA1: 54 | AB1: 6 | AC1: 281 | AD1: 40 | AE1: 1 | AF1: 0 | AG1: 1 | AH1: 9 | AI1: 16 | AJ1: 4 | AK1: 10 | AL1: 1 | AM1: 2 | AN1: 0 | AO1: 0 | AP1: 4 | AQ1: 8 | AR1: 14 | AS1: 28 | AT1: 12 | AU1: 262 | AV1: 5 | AW1: 34 | AX1: 31 | AY1: 19 | AZ1: 12 | BA1: 217 | BB1: 25 | BC1: 41 | BD1: 1 | BE1: 66 | BF1: 23 | BG1: 0 | BH1: 4 | BI1: 14 | BJ1: 1 | BK1: 2 | BL1: 1 | BM1: 0 | BN1: 1 | BO1: 7 | BP1: 6 | BQ1: 45 | BR1: 7 | BS1: 365 | BT1: 35 | BU1: 3 | BV1: 1 | BW1: 1 | BX1: 2 | BY1: 9 | BZ1: 3 | CA1: 5 | CB1: 3 | CC1: 5 | CD1: 0 | CE1: 0 | CF1: 1 | CG1: 1 | CH1: 8 | CI1: 19 | CJ1: 12 | CK1: 313 | CL1: 6 | CM1: 25 | CN1: 29 | CP1: =(I1+N1+Q1)/(I1+J1) -> 0.6428571429 | CQ1: =(AY1+BD1+BG1)/(AY1+AZ1) -> 0.6451612903 | CR1: =(K1+20*N1-45*V1) / (M1+X1) -> 3.967741935 | CS1: =(BA1+BD1*20-BL1*45)/(BC1+BN1) -> 4.571428571 | CT1: =(V1+W1) -> 0 | CU1: =(BL1+BM1) -> 1 | CV1: =(K1+O1)/J1 -> 31.58333333 | CW1: =(BA1+BE1)/AZ1 -> 23.58333333 | CX1: =(AW1+AX1/60)/J1 -> 2.876388889 | CY1: =(CM1+CN1/60)/AZ1 -> 2.123611111 | CZ1: =(K1+O1)/(M1+P1+X1) -> 6.316666667 | DA1: =(BA1+BE1)/(BC1+BF1+BN1) -> 4.353846154 | DB1: =I1/J1 -> 1.333333333 | DC1: =AY1/AZ1 -> 1.583333333 | DD1: =(R1+T1)/(S1+U1) -> 0.3333333333 | DE1: =(BH1+BJ1)/(BI1+BK1) -> 0.3125 | DF1: =AU1/AT1 -> 21.83333333 | DG1: =CK1/CJ1 -> 26.08333333 | DH1: =AV1 -> 5 | DI1: =CL1 -> 6 | DJ1: =IF(AE1<>0,(AF1*7+AG1*3)/(AE1*7),0) -> 0.4285714286 | DK1: =IF(BU1<>0,(BV1*7+BW1*3)/(BU1*7),0) -> 0.4761904762 | DL1: =(M1+P1+X1)/J1 -> 5 | DM1: =(BC1+BF1+BN1)/AZ1 -> 5.416666667 | DN1: =AA1/(M1+P1+X1) -> 0.9 | DO1: =BQ1/(BC1+BF1+BN1) -> 0.6923076923 | DP1: =AR1/AS1 -> 0.5 | DQ1: =CH1/CI1 -> 0.4210526316 | DR1: =O1/P1 -> 8.827586207 | DS1: =BE1/BF1 -> 2.869565217 | DT1: =IF(AB1<>0,(AC1-AD1)/AB1,"NONE") -> 40.16666667 | DU1: =IF(BR1<>0,(BS1-BT1)/BR1,"NONE") -> 47.14285714 | DV1: =IF(AQ1<>0,AP1/AQ1,0) -> 0.5 | DW1: =IF(CG1<>0,CF1/CG1,0) -> 1 | DX1: =D1/(K1+O1) -> 0.06068601583 | DY1: =E1/(BA1+BE1) -> 0.03533568905 | DZ1: =D1/J1 -> 1.916666667 | EA1: =E1/AZ1 -> 0.8333333333 | EB1: =((MAX(MIN(((L1/M1)*100-30)/20,2.375),0)+MAX(MIN(((K1/M1)-3)*0.25,2.375),0)+MAX(MIN((N1/M1)*20,2.375),0)+MAX(MIN((2.375-(V1/M1)*25),2.375),0))/6)*100 -> 79.70679012 | EC1: =((MAX(MIN(((BB1/BC1)*100-30)/20,2.375),0)+MAX(MIN(((BA1/BC1)-3)*0.25,2.375),0)+MAX(MIN((BD1/BC1)*20,2.375),0)+MAX(MIN((2.375-(BL1/BC1)*25),2.375),0))/6)*100 -> 72.91666667 | EE1: =RANK(CP1,CP$1:CP$32,0) -> 27 | EF1: =RANK(CQ1,CQ$1:CQ$32,1) -> 7 | EG1: =RANK(CR1,CR$1:CR$32,0) -> 26 | EH1: =RANK(CS1,CS$1:CS$32,1) -> 9 | EI1: 1 | EJ1: =RANK(CU1,CU$1:CU$32,0) -> 16 | EK1: 17 | EL1: =RANK(CW1,CW$1:CW$32,1) -> 4 | EM1: =RANK(CX1,CX$1:CX$32,0) -> 12 | EN1: =RANK(CY1,CY$1:CY$32,1) -> 4 | EO1: =RANK(CZ1,CZ$1:CZ$32,0) -> 10 | EP1: =RANK(DA1,DA$1:DA$32,1) -> 4 | EQ1: =RANK(DB1,DB$1:DB$32,0) -> 29 | ER1: =RANK(DC1,DC$1:DC$32,1) -> 10 | ES1: =RANK(DD1,DD$1:DD$32,0) -> 25 | ET1: =RANK(DE1,DE$1:DE$32,1) -> 5 | EU1: =RANK(DF1,DF$1:DF$32,0) -> 31 | EV1: =RANK(DG1,DG$1:DG$32,1) -> 9 | EW1: 24 | EX1: =RANK(DI1,DI$1:DI$32,0) -> 1 | EY1: =RANK(DJ1,DJ$1:DJ$32,0) -> 24 | EZ1: =RANK(DK1,DK$1:DK$32,1) -> 10 | FA1: =RANK(DL1,DL$1:DL$32,0) -> 28 | FB1: =RANK(DM1,DM$1:DM$32,1) -> 13 | FC1: 22 | FD1: =RANK(DO1,DO$1:DO$32,0) -> 20 | FE1: 11 | FF1: =RANK(DQ1,DQ$1:DQ$32,1) -> 13 | FG1: =RANK(DR1,DR$1:DR$32,0) -> 2 | FH1: =RANK(DS1,DS$1:DS$32,1) -> 6 | FI1: =RANK(DT1,DT$1:DT$32,0) -> 23 | FJ1: =RANK(DU1,DU$1:DU$32,1) -> 28 | FK1: =RANK(DV1,DV$1:DV$32,0) -> 15 | FL1: =RANK(DW1,DW$1:DW$32,1) -> 32 | FM1: =RANK(DX1,DX$1:DX$32,0) -> 17 | FN1: =RANK(DY1,DY$1:DY$32,1) -> 6 | FO1: =RANK(DZ1,DZ$1:DZ$32,0) -> 18 | FP1: =RANK(EA1,EA$1:EA$32,1) -> 3 | FQ1: =RANK(EB1,EB$1:EB$32,0) -> 18 | FR1: =RANK(EC1,EC$1:EC$32,1) -> 9 | FT1: =CP1-VLOOKUP($B1,'Defense Adjusted'!$A$1:$AG$32,'DA - Totals'!D$2,FALSE) -> 0.6316086701 | FU1: =CQ1-VLOOKUP($B1,'Defense Adjusted'!$A$1:$AG$32,'DA - Totals'!E$2,FALSE) -> 0.6867498199 | FV1: =CR1-VLOOKUP($B1,'Defense Adjusted'!$A$1:$AG$32,'DA - Totals'!F$2,FALSE) -> 2.512486465 | FW1: =CS1-VLOOKUP($B1,'Defense Adjusted'!$A$1:$AG$32,'DA - Totals'!G$2,FALSE) -> 5.823293794 | FX1: =CT1-VLOOKUP($B1,'Defense Adjusted'!$A$1:$AG$32,'DA - Totals'!H$2,FALSE) -> 0.3854741867 | FY1: =CU1-VLOOKUP($B1,'Defense Adjusted'!$A$1:$AG$32,'DA - Totals'!I$2,FALSE) -> 0.7228944472 | FZ1: =CV1-VLOOKUP($B1,'Defense Adjusted'!$A$1:$AG$32,'DA - Totals'!J$2,FALSE) -> 29.69114512 | GA1: =CW1-VLOOKUP($B1,'Defense Adjusted'!$A$1:$AG$32,'DA - Totals'!K$2,FALSE) -> 26.77630116 | GB1: =CX1-VLOOKUP($B1,'Defense Adjusted'!$A$1:$AG$32,'DA - Totals'!L$2,FALSE) -> 2.755508651 | GC1: =CY1-VLOOKUP($B1,'Defense Adjusted'!$A$1:$AG$32,'DA - Totals'!M$2,FALSE) -> 2.469354626 | GD1: =CZ1-VLOOKUP($B1,'Defense Adjusted'!$A$1:$AG$32,'DA - Totals'!N$2,FALSE) -> 5.949289981 | GE1: =DA1-VLOOKUP($B1,'Defense Adjusted'!$A$1:$AG$32,'DA - Totals'!O$2,FALSE) -> 4.897468967 | GF1: =DB1-VLOOKUP($B1,'Defense Adjusted'!$A$1:$AG$32,'DA - Totals'!P$2,FALSE) -> 1.308466619 | GG1: =DC1-VLOOKUP($B1,'Defense Adjusted'!$A$1:$AG$32,'DA - Totals'!Q$2,FALSE) -> 1.682826847 | GH1: =DD1-VLOOKUP($B1,'Defense Adjusted'!$A$1:$AG$32,'DA - Totals'!R$2,FALSE) -> 0.3173700985 | GI1: =DE1-VLOOKUP($B1,'Defense Adjusted'!$A$1:$AG$32,'DA - Totals'!S$2,FALSE) -> 0.374701675 | GJ1: =DF1-VLOOKUP($B1,'Defense Adjusted'!$A$1:$AG$32,'DA - Totals'!T$2,FALSE) -> 22.2223374 | GK1: =DG1-VLOOKUP($B1,'Defense Adjusted'!$A$1:$AG$32,'DA - Totals'!U$2,FALSE) -> 27.76106685 | GL1: =DH1-VLOOKUP($B1,'Defense Adjusted'!$A$1:$AG$32,'DA - Totals'!V$2,FALSE) -> 4.566053629 | GM1: =DI1-VLOOKUP($B1,'Defense Adjusted'!$A$1:$AG$32,'DA - Totals'!W$2,FALSE) -> 5.191935166 | GN1: =DJ1-VLOOKUP($B1,'Defense Adjusted'!$A$1:$AG$32,'DA - Totals'!X$2,FALSE) -> 0.4978844776 | GO1: =DK1-VLOOKUP($B1,'Defense Adjusted'!$A$1:$AG$32,'DA - Totals'!Y$2,FALSE) -> 0.5900303006 | GP1: =DL1-VLOOKUP($B1,'Defense Adjusted'!$A$1:$AG$32,'DA - Totals'!Z$2,FALSE) -> 5.011518415 | GQ1: =DM1-VLOOKUP($B1,'Defense Adjusted'!$A$1:$AG$32,'DA - Totals'!AA$2,FALSE) -> 5.470053216 | GR1: =DN1-VLOOKUP($B1,'Defense Adjusted'!$A$1:$AG$32,'DA - Totals'!AB$2,FALSE) -> 0.7394075399 | GS1: =DO1-VLOOKUP($B1,'Defense Adjusted'!$A$1:$AG$32,'DA - Totals'!AC$2,FALSE) -> 0.6797909974 | GT1: =DP1-VLOOKUP($B1,'Defense Adjusted'!$A$1:$AG$32,'DA - Totals'!AD$2,FALSE) -> 0.5205924669 | GU1: =DQ1-VLOOKUP($B1,'Defense Adjusted'!$A$1:$AG$32,'DA - Totals'!AE$2,FALSE) -> 0.4432418509 | GV1: =DR1-VLOOKUP($B1,'Defense Adjusted'!$A$1:$AG$32,'DA - Totals'!AF$2,FALSE) -> 8.958260072 | GW1: =DS1-VLOOKUP($B1,'Defense Adjusted'!$A$1:$AG$32,'DA - Totals'!AG$2,FALSE) -> 3.298217628 | GX1: =DT1-VLOOKUP($B1,'Defense Adjusted'!$A$1:$AG$32,'DA - Totals'!AH$2,FALSE) -> 36.60647594 | GY1: =DU1-VLOOKUP($B1,'Defense Adjusted'!$A$1:$AG$32,'DA - Totals'!AI$2,FALSE) -> 45.96134327 | HA1: =RANK(FT1,FT$1:FT$32,0) -> 29 | HB1: =RANK(FU1,FU$1:FU$32,1) -> 13 | HC1: =RANK(FV1,FV$1:FV$32,0) -> 30 | HD1: =RANK(FW1,FW$1:FW$32,1) -> 16 | HE1: 7 | HF1: =RANK(FY1,FY$1:FY$32,0) -> 25 | HG1: 22 | HH1: =RANK(GA1,GA$1:GA$32,1) -> 9 | HI1: =RANK(GB1,GB$1:GB$32,0) -> 14 | HJ1: =RANK(GC1,GC$1:GC$32,1) -> 10 | HK1: =RANK(GD1,GD$1:GD$32,0) -> 10 | HL1: =RANK(GE1,GE$1:GE$32,1) -> 8 | HM1: =RANK(GF1,GF$1:GF$32,0) -> 29 | HN1: =RANK(GG1,GG$1:GG$32,1) -> 17 | HO1: =RANK(GH1,GH$1:GH$32,0) -> 27 | HP1: =RANK(GI1,GI$1:GI$32,1) -> 13 | HQ1: =RANK(GJ1,GJ$1:GJ$32,0) -> 32 | HR1: =RANK(GK1,GK$1:GK$32,1) -> 13 | HS1: 24 | HT1: =RANK(GM1,GM$1:GM$32,0) -> 3 | HU1: =RANK(GN1,GN$1:GN$32,0) -> 26 | HV1: =RANK(GO1,GO$1:GO$32,1) -> 11 | HW1: =RANK(GP1,GP$1:GP$32,0) -> 27 | HX1: =RANK(GQ1,GQ$1:GQ$32,1) -> 14 | HY1: 14 | HZ1: =RANK(GS1,GS$1:GS$32,0) -> 22 | IA1: 11 | IB1: =RANK(GU1,GU$1:GU$32,1) -> 14 | IC1: =RANK(GV1,GV$1:GV$32,0) -> 2 | ID1: =RANK(GW1,GW$1:GW$32,1) -> 6 | IE1: =RANK(GX1,GX$1:GX$32,0) -> 26 | IF1: =RANK(GY1,GY$1:GY$32,1) -> 30
A2: Bears | B2: Steelers | C2: 2 | D2: 17 | E2: 14 | G2: Cutler | H2: 1 | I2: 17 | J2: 9 | K2: 231 | L2: 27 | M2: 38 | N2: 2 | O2: 44 | P2: 17 | Q2: 0 | R2: 7 | S2: 14 | T2: 0 | U2: 0 | V2: 0 | W2: 0 | X2: 2 | Y2: 5 | Z2: 10 | AA2: 80 | AB2: 6 | AC2: 275 | AD2: 36 | AE2: 2 | AF2: 2 | AG2: 0 | AH2: 1 | AI2: 5 | AJ2: 3 | AK2: 10 | AL2: 0 | AM2: 2 | AN2: 0 | AO2: 0 | AP2: 2 | AQ2: 7 | AR2: 4 | AS2: 17 | AT2: 10 | AU2: 270 | AV2: 3 | AW2: 29 | AX2: 34 | AY2: 21 | AZ2: 8 | BA2: 203 | BB2: 23 | BC2: 35 | BD2: 1 | BE2: 105 | BF2: 22 | BG2: 1 | BH2: 6 | BI2: 12 | BJ2: 1 | BK2: 1 | BL2: 1 | BM2: 1 | BN2: 2 | BO2: 18 | BP2: 6 | BQ2: 52 | BR2: 3 | BS2: 163 | BT2: 14 | BU2: 3 | BV2: 2 | BW2: 0 | BX2: 6 | BY2: 16 | BZ2: 1 | CA2: 5 | CB2: 0 | CC2: 0 | CD2: 0 | CE2: 0 | CF2: 3 | CG2: 5 | CH2: 7 | CI2: 21 | CJ2: 10 | CK2: 281 | CL2: 1 | CM2: 30 | CN2: 26 | CP2: 0.7307692308 | CQ2: 0.7931034483 | CR2: 6.775 | CS2: 4.810810811 | CT2: 0 | CU2: 2 | CV2: 30.55555556 | CW2: 38.5 | CX2: 3.285185185 | CY2: 3.804166667 | CZ2: 4.824561404 | DA2: 5.220338983 | DB2: 1.888888889 | DC2: 2.625 | DD2: 0.5 | DE2: 0.5384615385 | DF2: 27 | DG2: 28.1 | DH2: 3 | DI2: 1 | DJ2: 1 | DK2: 0.6666666667 | DL2: 6.333333333 | DM2: 7.375 | DN2: 1.403508772 | DO2: 0.8813559322 | DP2: 0.2352941176 | DQ2: 0.3333333333 | DR2: 2.588235294 | DS2: 4.772727273 | DT2: 39.83333333 | DU2: 49.66666667 | DV2: 0.2857142857 | DW2: 0.6 | DX2: 0.06181818182 | DY2: 0.04545454545 | DZ2: 1.888888889 | EA2: 1.75 | EB2: =((MAX(MIN(((L2/M2)*100-30)/20,2.375),0)+MAX(MIN(((K2/M2)-3)*0.25,2.375),0)+MAX(MIN((N2/M2)*20,2.375),0)+MAX(MIN((2.375-(V2/M2)*25),2.375),0))/6)*100 -> 104.1666667 | EC2: =((MAX(MIN(((BB2/BC2)*100-30)/20,2.375),0)+MAX(MIN(((BA2/BC2)-3)*0.25,2.375),0)+MAX(MIN((BD2/BC2)*20,2.375),0)+MAX(MIN((2.375-(BL2/BC2)*25),2.375),0))/6)*100 -> 78.63095238 | EE2: 13 | EF2: 27 | EG2: 9 | EH2: 11 | EI2: 1 | EJ2: 6 | EK2: 22 | EL2: 25 | EM2: 6 | EN2: 30 | EO2: 24 | EP2: 16 | EQ2: 13 | ER2: 30 | ES2: 7 | ET2: 27 | EU2: 23 | EV2: 16 | EW2: 12 | EX2: =RANK(DI2,DI$1:DI$32,0) -> 25 | EY2: 1 | EZ2: 15 | FA2: 8 | FB2: 29 | FC2: 30 | FD2: 14 | FE2: 31 | FF2: 6 | FG2: 29 | FH2: 22 | FI2: 24 | FJ2: 31 | FK2: 24 | FL2: 23 | FM2: 16 | FN2: =RANK(DY2,DY$1:DY$32,1) -> 7 | FO2: 19 | FP2: =RANK(EA2,EA$1:EA$32,1) -> 13 | FQ2: 8 | FR2: =RANK(EC2,EC$1:EC$32,1) -> 12 | FT2: =CP2-VLOOKUP($B2,'Defense Adjusted'!$A$1:$AG$32,'DA - Totals'!D$2,FALSE) -> 0.7321861896 | FU2: =CQ2-VLOOKUP($B2,'Defense Adjusted'!$A$1:$AG$32,'DA - Totals'!E$2,FALSE) -> 0.7656906601 | FV2: =CR2-VLOOKUP($B2,'Defense Adjusted'!$A$1:$AG$32,'DA - Totals'!F$2,FALSE) -> 6.275439414 | FW2: =CS2-VLOOKUP($B2,'Defense Adjusted'!$A$1:$AG$32,'DA - Totals'!G$2,FALSE) -> 3.649238367 | FX2: =CT2-VLOOKUP($B2,'Defense Adjusted'!$A$1:$AG$32,'DA - Totals'!H$2,FALSE) -> 0.363313874 | FY2: =CU2-VLOOKUP($B2,'Defense Adjusted'!$A$1:$AG$32,'DA - Totals'!I$2,FALSE) -> 2.123824412 | FZ2: =CV2-VLOOKUP($B2,'Defense Adjusted'!$A$1:$AG$32,'DA - Totals'!J$2,FALSE) -> 30.10990778 | GA2: =CW2-VLOOKUP($B2,'Defense Adjusted'!$A$1:$AG$32,'DA - Totals'!K$2,FALSE) -> 33.45294858 | GB2: =CX2-VLOOKUP($B2,'Defense Adjusted'!$A$1:$AG$32,'DA - Totals'!L$2,FALSE) -> 3.291439736 | GC2: =CY2-VLOOKUP($B2,'Defense Adjusted'!$A$1:$AG$32,'DA - Totals'!M$2,FALSE) -> 3.397792152 | GD2: =CZ2-VLOOKUP($B2,'Defense Adjusted'!$A$1:$AG$32,'DA - Totals'!N$2,FALSE) -> 4.771792676 | GE2: =DA2-VLOOKUP($B2,'Defense Adjusted'!$A$1:$AG$32,'DA - Totals'!O$2,FALSE) -> 4.726278215 | GF2: =DB2-VLOOKUP($B2,'Defense Adjusted'!$A$1:$AG$32,'DA - Totals'!P$2,FALSE) -> 1.882454329 | GG2: =DC2-VLOOKUP($B2,'Defense Adjusted'!$A$1:$AG$32,'DA - Totals'!Q$2,FALSE) -> 2.337769623 | GH2: =DD2-VLOOKUP($B2,'Defense Adjusted'!$A$1:$AG$32,'DA - Totals'!R$2,FALSE) -> 0.4611114535 | GI2: =DE2-VLOOKUP($B2,'Defense Adjusted'!$A$1:$AG$32,'DA - Totals'!S$2,FALSE) -> 0.5165738268 | GJ2: =DF2-VLOOKUP($B2,'Defense Adjusted'!$A$1:$AG$32,'DA - Totals'!T$2,FALSE) -> 29.6348105 | GK2: =DG2-VLOOKUP($B2,'Defense Adjusted'!$A$1:$AG$32,'DA - Totals'!U$2,FALSE) -> 29.3044017 | GL2: =DH2-VLOOKUP($B2,'Defense Adjusted'!$A$1:$AG$32,'DA - Totals'!V$2,FALSE) -> 3.479603975 | GM2: =DI2-VLOOKUP($B2,'Defense Adjusted'!$A$1:$AG$32,'DA - Totals'!W$2,FALSE) -> 1.996284123 | GN2: =DJ2-VLOOKUP($B2,'Defense Adjusted'!$A$1:$AG$32,'DA - Totals'!X$2,FALSE) -> 1.058395933 | GO2: =DK2-VLOOKUP($B2,'Defense Adjusted'!$A$1:$AG$32,'DA - Totals'!Y$2,FALSE) -> 0.7262255711 | GP2: =DL2-VLOOKUP($B2,'Defense Adjusted'!$A$1:$AG$32,'DA - Totals'!Z$2,FALSE) -> 6.206881348 | GQ2: =DM2-VLOOKUP($B2,'Defense Adjusted'!$A$1:$AG$32,'DA - Totals'!AA$2,FALSE) -> 7.008875631 | GR2: =DN2-VLOOKUP($B2,'Defense Adjusted'!$A$1:$AG$32,'DA - Totals'!AB$2,FALSE) -> 1.32670807 | GS2: =DO2-VLOOKUP($B2,'Defense Adjusted'!$A$1:$AG$32,'DA - Totals'!AC$2,FALSE) -> 0.9190005533 | GT2: =DP2-VLOOKUP($B2,'Defense Adjusted'!$A$1:$AG$32,'DA - Totals'!AD$2,FALSE) -> 0.2760886076 | GU2: =DQ2-VLOOKUP($B2,'Defense Adjusted'!$A$1:$AG$32,'DA - Totals'!AE$2,FALSE) -> 0.3446033352 | GV2: =DR2-VLOOKUP($B2,'Defense Adjusted'!$A$1:$AG$32,'DA - Totals'!AF$2,FALSE) -> 3.069850071 | GW2: =DS2-VLOOKUP($B2,'Defense Adjusted'!$A$1:$AG$32,'DA - Totals'!AG$2,FALSE) -> 4.834851814 | GX2: =DT2-VLOOKUP($B2,'Defense Adjusted'!$A$1:$AG$32,'DA - Totals'!AH$2,FALSE) -> 39.75938765 | GY2: =DU2-VLOOKUP($B2,'Defense Adjusted'!$A$1:$AG$32,'DA - Totals'!AI$2,FALSE) -> 50.06094321 | HA2: 14 | HB2: 20 | HC2: 12 | HD2: 3 | HE2: 5 | HF2: 8 | HG2: 20 | HH2: 20 | HI2: 7 | HJ2: 28 | HK2: 24 | HL2: 7 | HM2: 14 | HN2: 26 | HO2: 10 | HP2: 25 | HQ2: 19 | HR2: 16 | HS2: 19 | HT2: =RANK(GM2,GM$1:GM$32,0) -> 26 | HU2: 1 | HV2: 18 | HW2: 10 | HX2: 28 | HY2: 29 | HZ2: 11 | IA2: 30 | IB2: 5 | IC2: 28 | ID2: 24 | IE2: 21 | IF2: 31
